Workbook

Sheet Paràmetres (hidden)
A1: COMPONENTS | B1: POSICIÓ | C1: PARÀMETRES DE CÀLCUL
A2: ='Taula Farratges'!B$1 -> MS % | B2: 1 | C2: 2
A3: ='Taula Farratges'!C$1 -> UFL | B3: =1+B2 -> 2 | C3: 1
A4: ='Taula Farratges'!D$1 -> UFV | B4: 3 | C4: 1
A5: ='Taula Farratges'!E1 -> MNT_PB | B5: 4 | C5: 1
A6: ='Taula Farratges'!F1 -> PDIA | B6: 5 | C6: 1
A7: ='Taula Farratges'!G1 -> PDI | B7: 6 | C7: 1
A8: ='Taula Farratges'!H1 -> BPR | B8: 7 | C8: 1
A9: ='Taula Farratges'!I1 -> UEL | B9: 8 | C9: 1
A10: ='Taula Farratges'!J1 -> UEB | B10: 9 | C10: 1
A11: ='Taula Farratges'!K1 -> UEM | B11: 10 | C11: 1
A12: ='Taula Farratges'!L1 -> NI ref | B12: 11 | C12: 1
A13: ='Taula Farratges'!M1 -> dMO | B13: 12 | C13: 1
A14: ='Taula Farratges'!N1 -> MOD | B14: 13 | C14: 1
A15: ='Taula Farratges'!O1 -> EE | B15: 14 | C15: 1
A16: ='Taula Farratges'!P1 -> FB | B16: 15 | C16: 1
A17: ='Taula Farratges'!Q1 -> NDF | B17: 16 | C17: 1
A18: ='Taula Farratges'!R1 -> ADF | B18: 17 | C18: 1
A19: ='Taula Farratges'!S1 -> Lignina | B19: 18 | C19: 1
A20: ='Taula Farratges'!T1 -> cendres | B20: 19 | C20: 1
A21: ='Taula Farratges'!U1 -> Ca | B21: 20 | C21: 1
A22: ='Taula Farratges'!V1 -> P | B22: 21 | C22: 1
A23: ='Taula Farratges'!W1 -> Mg | B23: 22 | C23: 1
A24: ='Taula Farratges'!X1 -> Cl | B24: 23 | C24: 1
A25: ='Taula Farratges'!Y1 -> K | B25: 24 | C25: 1
A26: ='Taula Farratges'!Z1 -> Na | B26: 25 | C26: 1
A27: ='Taula Farratges'!AA1 -> S | B27: 26 | C27: 1
A28: ='Taula Farratges'!AB1 -> Co | B28: 27 | C28: 1
A29: ='Taula Farratges'!AC1 -> Cu | B29: 28 | C29: 1
A30: ='Taula Farratges'!AD1 -> Mo | B30: 29 | C30: 1
A31: ='Taula Farratges'!AE1 -> Iode | B31: 30 | C31: 1
A32: ='Taula Farratges'!AF1 -> Fe | B32: 31 | C32: 1
A33: ='Taula Farratges'!AG1 -> Mn | B33: 32 | C33: 1
A34: ='Taula Farratges'!AH1 -> Se | B34: 33 | C34: 1
A35: ='Taula Farratges'!AI1 -> Zn | B35: 34 | C35: 1
A36: ='Taula Farratges'!AJ1 -> Vit A | B36: 35 | C36: 1
A37: ='Taula Farratges'!AK1 -> Vit D | B37: 36 | C37: 1
A38: ='Taula Farratges'!AL1 -> Vit E | B38: 37 | C38: 1
A39: ='Taula Farratges'!AM1 -> AG | B39: 38 | C39: 1
A40: ='Taula Farratges'!AN1 -> DT_N | B40: 39 | C40: 1
A41: ='Taula Farratges'!AO1 -> PF | B41: 40 | C41: 1
A42: ='Taula Farratges'!AP1 -> MOF | B42: 41 | C42: 1

Sheet Taula Farratges
A1: Farratges | B1: MS % | C1: UFL | D1: UFV | E1: MNT_PB | F1: PDIA | G1: PDI | H1: BPR | I1: UEL | J1: UEB | K1: UEM | L1: NI ref | M1: dMO | N1: MOD | O1: EE | P1: FB | Q1: NDF | R1: ADF | S1: Lignina | T1: cendres | U1: Ca | V1: P | W1: Mg | X1: Cl | Y1: K | Z1: Na | AA1: S | AB1: Co | AC1: Cu | AD1: Mo | AE1: Iode | AF1: Fe | AG1: Mn | AH1: Se | AI1: Zn | AJ1: Vit A | AK1: Vit D | AL1: Vit E | AM1: AG | AN1: DT_N | AO1: PF | AP1: MOF
A3: VERD Raigràs italià Fulla tardor/hivern | B3: 16.6 | C3: 0.987525423 | D3: 0.968623439 | E3: 190 | F3: 37.05 | G3: 83.72930525 | H3: 43.99629972 | I3: 0.9908485486 | J3: 0.9829225231 | K3: 0.9787806617 | L3: 2.753201964 | M3: 0.75792 | N3: 649.53744 | O3: 41 | P3: 238 | Q3: 531.32 | R3: 265 | T3: 143 | U3: 2.28 | V3: 2.58 | AM3: 27.18 | AN3: 0.74 | AP3: 566.5326882
A4: VERD Raigràs italià Fulla primavera | B4: 15.1 | C4: 1.1 | D4: 1.09899354 | E4: 191 | F4: 34.38 | G4: 86.07504607 | H4: 44.12488481 | I4: 0.9708980146 | J4: 0.9494630462 | K4: 0.9358514742 | L4: 2.879496281 | M4: 0.81287 | N4: 704.75829 | O4: 43 | P4: 178 | Q4: 462.92 | R4: 203 | T4: 133 | U4: 2 | V4: 2.4 | W4: 1.7 | Y4: 30 | Z4: 3 | AC4: 8.1 | AG4: 85.1 | AM4: 27.285 | AN4: 0.76 | AP4: 628.165719
A5: VERD Raigràs italià Espiga a 10 cm | B5: 15.8 | C5: 1.073514419 | D5: 1.069426873 | E5: 168 | F5: 26.46 | G5: 77.8462145 | H5: 31.10451486 | I5: 0.9910346389 | J5: 0.9832391547 | K5: 0.9791911182 | L5: 2.752047879 | M5: 0.79572 | N5: 705.00792 | O5: 39 | P5: 188 | Q5: 474.32 | R5: 213 | T5: 114 | U5: 1.8 | V5: 2.1 | W5: 1.7 | Y5: 30 | Z5: 3 | AA5: 1 | AC5: 8.1 | AG5: 85.1 | AM5: 24.87 | AN5: 0.79 | AP5: 636.2376237
A6: VERD Raigràs italià 1 setmana abans inici espigat | B6: 16.4 | C6: 0.9568987067 | D6: 0.9279323027 | E6: 112 | F6: 22.68 | G6: 69.96884231 | H6: -17.0368975 | I6: 1.057101244 | J6: 1.101295022 | K6: 1.137999252 | L6: 2.36799878 | M6: 0.7379 | N6: 663.3721 | O6: 33 | P6: 230 | Q6: 522.2 | R6: 257 | T6: 101 | U6: 1.8 | V6: 1.8 | W6: 1.7 | Y6: 30 | Z6: 3 | AA6: 1 | AC6: 6 | AG6: 80 | AI6: 23 | AJ6: 80000 | AK6: 30 | AL6: 20 | AM6: 18.99 | AN6: 0.73 | AP6: 597.0361265
A7: VERD Raigràs italià Inici espigat | B7: 16.5 | C7: 0.9368495611 | D7: 0.9041024886 | E7: 105 | F7: 21.2625 | G7: 67.81242603 | H7: -21.5953848 | I7: 1.067222853 | J7: 1.120433875 | K7: 1.164876603 | L7: 2.313361632 | M7: 0.72817 | N7: 654.62483 | O7: 32 | P7: 238 | Q7: 531.32 | R7: 265 | T7: 101 | U7: 1.8 | V7: 1.8 | W7: 1.7 | Y7: 30 | Z7: 3 | AA7: 1 | AC7: 5 | AG7: 80 | AI7: 23 | AJ7: 80000 | AK7: 30 | AL7: 20 | AM7: 18.255 | AN7: 0.73 | AP7: 589.3655744
A8: VERD Raigràs italià Espigat | B8: 17.8 | C8: 0.8818407587 | D8: 0.8377966687 | E8: 88 | F8: 19.14 | G8: 63.38289694 | H8: -34.0522143 | I8: 1.091434895 | J8: 1.167439208 | K8: 1.232308365 | L8: 2.186774769 | M8: 0.69765 | N8: 629.97795 | O8: 30 | P8: 265 | Q8: 562.1 | R8: 293 | T8: 97 | U8: 1.8 | V8: 1.5 | AC8: 5 | AG8: 79.6 | AI8: 23.8 | AJ8: 80000 | AK8: 30 | AL8: 20 | AM8: 16.47 | AN8: 0.71 | AP8: 565.5384465
A9: VERD Raigràs italià Final espigat | B9: 20.4 | C9: 0.8544008851 | D9: 0.8031831803 | E9: 80 | F9: 17.4 | G9: 60.32551195 | H9: -38.91893425 | I9: 1.096771795 | J9: 1.178039486 | K9: 1.247801042 | L9: 2.15962381 | M9: 0.67756 | N9: 617.93472 | O9: 29 | P9: 284 | Q9: 583.76 | R9: 313 | T9: 88 | U9: 1.8 | V9: 1.5 | W9: 2.3 | Y9: 26 | Z9: 1.5 | AJ9: 80000 | AK9: 30 | AL9: 20 | AM9: 15.63 | AN9: 0.71 | AP9: 554.2271801
A10: VERD Raigràs italià Inici floració | B10: 24 | C10: 0.8342394507 | D10: 0.7793634604 | E10: 70 | F10: 15.225 | G10: 57.3422064 | H10: -45.48047731 | I10: 1.094099952 | J10: 1.172721579 | K10: 1.240015355 | L10: 2.173183444 | M10: 0.66587 | N10: 608.60518 | O10: 28 | P10: 293 | Q10: 594.02 | R10: 322 | T10: 86 | U10: 1.8 | V10: 1.2 | AJ10: 80000 | AK10: 30 | AL10: 20 | AM10: 14.58 | AN10: 0.71 | AP10: 546.7382102
A11: VERD Raigràs italià Floració | B11: 27.5 | C11: 0.8068536711 | D11: 0.7469697818 | E11: 60 | F11: 13.5 | G11: 54.39933876 | H11: -52.28407859 | I11: 1.094509341 | J11: 1.173534971 | K11: 1.241204453 | L11: 2.171101492 | M11: 0.64963 | N11: 595.06108 | O11: 27 | P11: 307 | Q11: 609.98 | R11: 337 | T11: 84 | U11: 1.8 | V11: 1.2 | AJ11: 80000 | AK11: 30 | AL11: 20 | AM11: 13.53 | AN11: 0.7 | AP11: 534.2709123
A12: VERD Blat de moro Pastós | B12: 30.7 | C12: 1.336519373 | D12: 1.297656969 | E12: 77.4 | F12: 13.932 | G12: 58.79146932 | H12: -42.36519209 | I12: 1.02870768 | J12: 1.049139944 | K12: 1.066392013 | L12: 1.4 | M12: 0.720464135 | N12: 687.4668776 | O12: 23.8 | P12: 208 | Q12: 454.4 | R12: 243.9 | S12: 29.5 | T12: 45.8 | U12: 0.84 | V12: 1.61 | AA12: 1.1 | AF12: 160 | AJ12: 80000 | AK12: 30 | AL12: 20 | AM12: 15.357 | AN12: 0.76 | AP12: 630.3086521
A13: VERD Civada Inici allargament tiges | B13: 14.9 | C13: 1.064086631 | D13: 1.064854725 | E13: 120 | F13: 26.1 | G13: 78.54094724 | H13: -13.57775696 | I13: 1.020791557 | J13: 1.034988504 | K13: 1.047364373 | L13: 2.572916273 | M13: 0.8100113766 | N13: 712 | O13: 34 | P13: 230 | Q13: 522.2 | R13: 257 | T13: 121 | U13: 2 | V13: 2.64 | AJ13: 80000 | AK13: 30 | AL13: 20 | AM13: 19.83 | AN13: 0.74 | AP13: 646.839457
A14: VERD Civada Inici espigat | B14: 20.6 | C14: 0.9133309306 | D14: 0.8741939522 | E14: 102 | F14: 19.89 | G14: 65.21758227 | H14: -21.9507916 | I14: 1.060258573 | J14: 1.1072336 | K14: 1.146303874 | L14: 2.350843351 | M14: 0.7104972376 | N14: 643 | O14: 32 | P14: 302 | Q14: 604.28 | R14: 331 | T14: 95 | U14: 1.8 | V14: 2.31 | AJ14: 80000 | AK14: 30 | AL14: 20 | AM14: 17.94 | AN14: 0.74 | AP14: 578.0360445
A15: VERD Civada Floració | B15: 17.7 | C15: 0.8229420319 | D15: 0.7662555366 | E15: 101 | F15: 18.9375 | G15: 59.89304518 | H15: -17.97919135 | I15: 1.102855944 | J15: 1.190232315 | K15: 1.265754423 | L15: 2.128991841 | M15: 0.66 | N15: 594 | O15: 32 | P15: 333 | Q15: 639.62 | R15: 364 | T15: 100 | U15: 1.6 | V15: 1.98 | AJ15: 80000 | AK15: 30 | AL15: 20 | AM15: 17.835 | AN15: 0.75 | AP15: 526.5534262
A16: VERD Civada Lletós-pastós | B16: 31.8 | C16: 0.735658448 | D16: 0.6565506562 | E16: 67 | F16: 12.5625 | G16: 48.69970816 | H16: -40.32371469 | I16: 1.10231487 | J16: 1.18914327 | K16: 1.26414502 | L16: 2.131702295 | M16: 0.5894396552 | N16: 547 | O16: 25 | P16: 270 | Q16: 567.8 | R16: 298 | T16: 72 | U16: 1.4 | V16: 1.65 | AJ16: 80000 | AK16: 30 | AL16: 20 | AM16: 14.265 | AN16: 0.75 | AP16: 482.6664074
A17: VERD Civada Pastós | B17: 38.3 | C17: 0.7072537332 | D17: 0.6232506884 | E17: 63 | F17: 12.285 | G17: 46.82400532 | H17: -42.66801408 | I17: 1.085210225 | J17: 1.155186303 | K17: 1.214532939 | L17: 2.218779543 | M17: 0.5698924731 | N17: 530 | O17: 25 | P17: 263 | Q17: 559.82 | R17: 291 | T17: 70 | U17: 1.2 | V17: 1.65 | AJ17: 80000 | AK17: 30 | AL17: 20 | AM17: 13.845 | AN17: 0.74 | AP17: 464.7846187
A18: VERD Triticale Lletós-pastós | B18: 40.51 | C18: 0.7866308836 | D18: 0.7130740068 | E18: 71.9 | F18: 13.48125 | G18: 51.74268223 | H18: -38.67729114 | I18: 1.046395966 | J18: 1.081369429 | K18: 1.110363008 | L18: 2.426936796 | M18: 0.6102620087 | N18: 574.9278384 | O18: 14.8 | P18: 299 | Q18: 618.4 | R18: 350.1 | S18: 43.5 | T18: 57.9 | U18: 1.16 | V18: 0.99 | W18: 2.7 | Y18: 25 | Z18: 1.7 | AA18: 3 | AC18: 8.6 | AD18: 0.44 | AG18: 43.9 | AI18: 24.1 | AJ18: 80000 | AK18: 30 | AL18: 20 | AM18: 14.7795 | AN18: 0.75 | AP18: 510.8802662
A19: VERD Alfals Inici botons florals | B19: 19.83 | C19: 0.8954507068 | D19: 0.8453932124 | E19: 196.7 | F19: 33.93075 | G19: 74.37573864 | H19: 59.44643611 | I19: 0.9783295072 | J19: 0.9618149826 | K19: 0.9515972519 | L19: 2.83185017 | M19: 0.674826 | N19: 585.2091072 | O19: 22.6 | P19: 277.4 | Q19: 442.1 | R19: 334.4 | S19: 74.3 | T19: 132.8 | U19: 5.43 | V19: 1.75 | AC19: 8.8 | AD19: 1.3 | AG19: 26.7 | AI19: 32.3 | AJ19: 120000 | AK19: 20 | AL19: 100 | AM19: 20.3135 | AN19: 0.77 | AP19: 502.6782183
A20: VERD Alfals Vegetatiu 30 cm | B20: 14.4 | C20: 1.057970395 | D20: 1.037917837 | E20: 246 | F20: 40.59 | G20: 87.13790609 | H20: 95.11408255 | I20: 0.9343019937 | J20: 0.8904932233 | K20: 0.8622791436 | L20: 3.125183834 | M20: 0.75199 | N20: 654.98329 | O20: 33 | P20: 201 | Q20: 489.14 | R20: 259 | T20: 129 | U20: 4.95 | V20: 3.15 | AC20: 8.8 | AD20: 1.3 | AG20: 26.7 | AI20: 32.3 | AJ20: 120000 | AK20: 20 | AL20: 100 | AM20: 25.49 | AN20: 0.78 | AP20: 568.7888379
A21: VERD Enclova fulla, 1r any | B21: 11 | C21: 1.096854529 | D21: 1.092315415 | E21: 233.5 | F21: 47.28375 | G21: 101.4759961 | H21: 71.57961546 | I21: 0.9440674911 | J21: 0.9059343706 | K21: 0.8812924975 | L21: 3.057759878 | M21: 0.789865 | N21: 687.814442 | O21: 27 | P21: 163.5 | Q21: 249.6 | R21: 234.1 | T21: 129.2 | U21: 3.3 | V21: 2.1 | AM21: 24.1775 | AN21: 0.73 | AP21: 598.1277405
A22: VERD Enclova tija fulla, 1r any | B22: 11.5 | C22: 1.018584209 | D22: 0.9979952283 | E22: 186 | F22: 37.665 | G22: 91.19718606 | H22: 37.93595928 | I22: 0.988232989 | J22: 0.9784811434 | K22: 0.9730315989 | L22: 2.76946899 | M22: 0.754515 | N22: 664.0486515 | O22: 27 | P22: 198.5 | Q22: 280.5 | R22: 269.9 | T22: 119.9 | U22: 3.3 | V22: 2.1 | AM22: 19.19 | AN22: 0.73 | AP22: 583.7835984
A23: VERD Enclova gemmes florals, 1r any | B23: 11.91 | C23: 0.971662067 | D23: 0.9400058138 | E23: 170.3 | F23: 34.48575 | G23: 87.26725566 | H23: 27.64789741 | I23: 1.00280174 | J23: 1.003435006 | K23: 1.005537317 | L23: 2.679941156 | M23: 0.727447 | N23: 645.6819572 | O23: 27 | P23: 225.3 | Q23: 323.9 | R23: 304.2 | T23: 112.4 | U23: 3.6 | V23: 2.1 | AM23: 17.5415 | AN23: 0.73 | AP23: 567.4701334
A24: VERD Enclova Botons florals, 1r any | B24: 13.77 | C24: 0.9661408557 | D24: 0.9305393291 | E24: 168.9 | F24: 34.20225 | G24: 86.94535264 | H24: 26.68590212 | I24: 1.000730959 | J24: 0.9998558827 | K24: 1.000844288 | L24: 2.692507587 | M24: 0.717953 | N24: 645.1525658 | O24: 27 | P24: 234.7 | Q24: 348.5 | R24: 330.4 | T24: 101.4 | U24: 3.6 | V24: 2.1 | AM24: 17.3945 | AN24: 0.73 | AP24: 566.6355756
A25: VERD Enclova Inici Floració, 1r any | B25: 14.5 | C25: 0.9196215428 | D25: 0.8756744961 | E25: 167 | F25: 32.565 | G25: 84.17295987 | H25: 28.74256271 | I25: 1.010019035 | J25: 1.015994101 | K25: 1.022087499 | L25: 2.63654613 | M25: 0.695127 | N25: 620.3313348 | O25: 23 | P25: 257.3 | Q25: 366 | R25: 334.1 | T25: 107.6 | U25: 3.6 | V25: 2.1 | AM25: 17.195 | AN25: 0.74 | AP25: 541.967139
A26: VERD Enclova Floració, 1r any | B26: 14.92 | C26: 0.8896999035 | D26: 0.8413566291 | E26: 162.4 | F26: 31.668 | G26: 82.56252045 | H26: 26.45331179 | I26: 1.017849675 | J26: 1.029771407 | K26: 1.040391915 | L26: 2.590159344 | M26: 0.682098 | N26: 604.6116672 | O26: 23 | P26: 270.2 | Q26: 390.1 | R26: 346.3 | T26: 113.6 | U26: 2.7 | V26: 3.5 | AM26: 16.712 | AN26: 0.74 | AP26: 526.4629793
A27: VERD Enclova Fructificació, 1r any | B27: 18.93 | C27: 0.7740194666 | D27: 0.7050334795 | E27: 130.8 | F27: 25.506 | G27: 74.01316404 | H27: 6.799556184 | I27: 1.056133358 | J27: 1.099480224 | K27: 1.135467666 | L27: 2.373278359 | M27: 0.618165 | N27: 549.4868685 | O27: 21 | P27: 333.5 | Q27: 519.6 | R27: 450.7 | T27: 111.1 | U27: 2.7 | V27: 3.5 | AM27: 13.394 | AN27: 0.74 | AP27: 474.5819724
A28: VERD Enclova fulla, 2n any | B28: 11 | C28: 1.099747568 | D28: 1.095573936 | E28: 240.5 | F28: 48.70125 | G28: 102.775997 | H28: 76.87320774 | I28: 0.9385770623 | J28: 0.8972271293 | K28: 0.8705493025 | L28: 3.095494801 | M28: 0.790269 | N28: 686.9808417 | O28: 27 | P28: 163.1 | Q28: 272.8 | R28: 253.3 | T28: 130.7 | U28: 3.3 | V28: 2.1 | AM28: 24.9125 | AN28: 0.73 | AP28: 595.5743013
A29: VERD Enclova tija fulla, 2n any | B29: 10.03 | C29: 1.027185591 | D29: 1.007222315 | E29: 206.5 | F29: 41.81625 | G29: 95.04208597 | H29: 53.3796313 | I29: 0.9734076994 | J29: 0.9536197806 | K29: 0.9411371114 | L29: 2.863324384 | M29: 0.755121 | N29: 662.4676533 | O29: 27 | P29: 197.9 | Q29: 311.2 | R29: 290.4 | T29: 122.7 | U29: 3.3 | V29: 2.1 | AM29: 21.3425 | AN29: 0.73 | AP29: 577.1261293
A30: VERD Enclova gemmes florals,2n any | B30: 12.06 | C30: 0.9414798783 | D30: 0.9030186208 | E30: 177.4 | F30: 35.9235 | G30: 87.76027264 | H30: 34.30704275 | I30: 1.00595395 | J30: 1.008904022 | K30: 1.012728493 | L30: 2.660911447 | M30: 0.709469 | N30: 628.1638526 | O30: 27 | P30: 243.1 | Q30: 360.2 | R30: 330.5 | T30: 114.6 | U30: 3.6 | V30: 2.1 | AM30: 18.287 | AN30: 0.73 | AP30: 546.9396001
A31: VERD Enclova Botons Florals, 2n any | B31: 12.51 | C31: 0.8951169505 | D31: 0.8483103437 | E31: 168.9 | F31: 34.20225 | G31: 85.02746379 | H31: 29.68260345 | I31: 1.021257856 | J31: 1.035817512 | K31: 1.048474402 | L31: 2.570192304 | M31: 0.686441 | N31: 605.6468943 | O31: 27 | P31: 265.9 | Q31: 382.3 | R31: 352.4 | T31: 117.7 | U31: 3.6 | V31: 2.1 | AM31: 17.3945 | AN31: 0.73 | AP31: 524.9568365
A32: VERD Enclova Inici Floració, 2n any | B32: 15.37 | C32: 0.8688196702 | D32: 0.8142223989 | E32: 151.5 | F32: 29.5425 | G32: 80.22335033 | H32: 18.72117137 | I32: 1.03172308 | J32: 1.054574304 | K32: 1.073743818 | L32: 2.50970557 | M32: 0.666039 | N32: 598.4360415 | O32: 23 | P32: 286.1 | Q32: 406 | R32: 371.5 | T32: 101.5 | U32: 3.6 | V32: 2.1 | AM32: 15.5675 | AN32: 0.74 | AP32: 521.8195916
A33: VERD Enclova Floració, 2n any | B33: 17.12 | C33: 0.8321434211 | D33: 0.7722857657 | E33: 141.1 | F33: 27.5145 | G33: 77.40801428 | H33: 12.25538394 | I33: 1.04040746 | J33: 1.070362352 | K33: 1.095245434 | L33: 2.460435584 | M33: 0.64897 | N33: 579.984489 | O33: 23 | P33: 303 | Q33: 452.6 | R33: 406.5 | T33: 106.3 | U33: 2.7 | V33: 3.5 | AM33: 14.4755 | AN33: 0.74 | AP33: 504.7095418
A34: VERD Enclova Fructificació, 2n any | B34: 20.03 | C34: 0.7714311913 | D34: 0.6990913505 | E34: 135.4 | F34: 26.403 | G34: 74.79356037 | H34: 10.38574942 | I34: 1.052200861 | J34: 1.092134028 | K34: 1.125249773 | L34: 2.394829046 | M34: 0.609681 | N34: 548.6519319 | O34: 21 | P34: 341.9 | Q34: 491.1 | R34: 452.9 | T34: 100.1 | U34: 2.7 | V34: 3.5 | AM34: 13.877 | AN34: 0.74 | AP34: 472.0479914
A35: VERD Enclova Botons | B35: 11 | C35: 0.9871458131 | D35: 0.9668537027 | E35: 199 | F35: 40.2975 | G35: 86.21303252 | H35: 49.55476384 | I35: 0.9828422118 | J35: 0.9693798556 | K35: 0.9612993691 | L35: 2.803269123 | M35: 0.753 | N35: 637.791 | O35: 27 | P35: 200 | Q35: 488 | R35: 230 | T35: 153 | U35: 3.3 | V35: 2.1 | AJ35: 120000 | AK35: 20 | AL35: 100 | AM35: 20.555 | AN35: 0.73 | AP35: 554.1757463
A36: VERD Enclova Floració | B36: 13.5 | C36: 0.8566351193 | D36: 0.8059033998 | E36: 155 | F36: 30.225 | G36: 70.91503133 | H36: 22.20440079 | I36: 1.033625341 | J36: 1.058015117 | K36: 1.078411657 | L36: 2.498842463 | M36: 0.67321 | N36: 586.36591 | O36: 23 | P36: 279 | Q36: 578.06 | R36: 305.05 | T36: 129 | U36: 3.6 | V36: 2.1 | AJ36: 120000 | AK36: 20 | AL36: 100 | AM36: 15.935 | AN36: 0.74 | AP36: 509.3963728
A37: VERD Enclova Final floració | B37: 15.3 | C37: 0.8276145297 | D37: 0.7672213764 | E37: 152 | F37: 29.64 | G37: 68.69210074 | H37: 20.9161303 | I37: 1.041416423 | J37: 1.072209943 | K37: 1.097775658 | L37: 2.454764615 | M37: 0.64695 | N37: 574.4916 | O37: 21 | P37: 305 | Q37: 607.7 | R37: 329.75 | T37: 112 | U37: 2.7 | V37: 3.5 | AJ37: 120000 | AK37: 20 | AL37: 100 | AM37: 15.62 | AN37: 0.74 | AP37: 496.437687
A38: ENSITJAT prefenificat Raigràs italià 1 setmana abans inici espigat | B38: 33.5 | C38: 0.9154038958 | D38: 0.8723292381 | E38: 123 | F38: 17 | G38: 67 | H38: 5 | I38: 1.05 | J38: 1.07 | K38: 1.35 | L38: 2 | M38: 0.73 | N38: 649.7 | O38: 36 | P38: 246 | Q38: 510 | R38: 275 | T38: 110 | U38: 1.84 | V38: 1.56 | AJ38: 8000 | AK38: 200 | AL38: 5 | AM38: 19 | AN38: 0.79 | AO38: 80 | AP38: 588.49475
A39: ENSITJAT prefenificat Raigràs italià Inici espigat | B39: 33.5 | C39: 0.88 | D39: 0.82 | E39: 117 | F39: 16 | G39: 65 | H39: 1 | I39: 1.06 | J39: 1.08 | K39: 1.39 | L39: 1.9 | M39: 0.706043 | N39: 631.9 | O39: 35 | P39: 254 | Q39: 520 | R39: 283 | T39: 110 | U39: 1.84 | V39: 1.56 | AJ39: 8000 | AK39: 200 | AL39: 5 | AM39: 19 | AN39: 0.79 | AO39: 80 | AP39: 570.0426753
A40: ENSITJAT prefenificat Raigràs italià Final espigat | B40: 33.5 | C40: 0.78 | D40: 0.71 | E40: 95 | F40: 12 | G40: 59 | H40: -14 | I40: 1.11 | J40: 1.18 | K40: 1.62 | L40: 1.7 | M40: 0.66 | N40: 594.66 | O40: 33 | P40: 297 | Q40: 571 | R40: 327 | T40: 99 | U40: 1.84 | V40: 1.38 | AJ40: 8000 | AK40: 200 | AL40: 5 | AM40: 17 | AN40: 0.79 | AO40: 80 | AP40: 534.52605
A41: ERGI 1 cicle Moises 22 | B41: 25,1 | C41: 0.7467018162 | D41: 0.6588544918 | E41: 157.7 | F41: 15.37575 | G41: 58.72459543 | H41: 52.11242902 | I41: 1.187970696 | J41: 1.319362583 | K41: 1.462790435 | L41: 1.842219347 | M41: 0.5905643564 | N41: 527.9645347 | O41: 31.1 | P41: 362.3762376 | Q41: 626 | R41: 324.5 | S41: 34.8 | T41: 106 | U41: 0.8 | V41: 1.2 | AM41: 21.8591 | AN41: 0.85 | AO41: 95 | AP41: 362.483602
A42: ENSITJAT Prat natural pla, gramínies en gran part | B42: 48 | C42: 0.9301076693 | D42: 0.8656931921 | E42: 114.3 | F42: 15.0876 | G42: 51.5305866 | H42: -5.252929949 | I42: 1.131789867 | J42: 1.229566374 | K42: 1.638343115 | L42: 1.644820804 | M42: 0.668711 | N42: 599.165056 | O42: 22.2 | P42: 311.3 | Q42: 584.2 | R42: 385 | T42: 104 | U42: 3.48 | V42: 1.82 | AJ42: 8000 | AK42: 200 | AL42: 5 | AM42: 18.2569 | AN42: 0.78 | AO42: 115 | AP42: 535.9795542
A43: ENSITJAT Blat de moro Lletós | B43: 28.5 | C43: 0.9421569565 | D43: 0.8895769703 | E43: 78.1 | F43: 13.6675 | G43: 49.99866751 | H43: -39.59697674 | I43: 1.080663836 | J43: 1.19129726 | K43: 1.345532831 | L43: 1.4 | M43: 0.69 | N43: 651.222 | O43: 33.3 | P43: 232.6 | Q43: 488.2 | R43: 278.4 | S43: 30.4 | T43: 56.2 | U43: 1.44 | V43: 1.61 | AM43: 24 | AN43: 0.75 | AO43: 100 | AP43: 588.3446
A44: ENSITJAT Blat de moro Lletós-pastós | B44: 28.5 | C44: 0.9787464011 | D44: 0.9339294308 | E44: 78.1 | F44: 13.6675 | G44: 51.60752582 | H44: -41.05332562 | I44: 1.042209484 | J44: 1.152562936 | K44: 1.284686536 | L44: 1.4 | M44: 0.71 | N44: 670.098 | O44: 33.3 | P44: 232.6 | Q44: 488.2 | R44: 278.4 | S44: 30.4 | T44: 56.2 | U44: 1.44 | V44: 1.61 | AM44: 24 | AN44: 0.75 | AO44: 125 | AP44: 608.5998
A45: ENSITJAT Blat de moro Pastós | B45: 30 | C45: 0.9962612852 | D45: 0.9540342158 | E45: 77 | F45: 13.475 | G45: 54.02881787 | H45: -42.65449475 | I45: 1.01329589 | J45: 1.116491162 | K45: 1.278523867 | L45: 1.4 | M45: 0.717 | N45: 680.2179 | O45: 34.4 | P45: 216.5 | Q45: 450.9 | R45: 287.5 | S45: 29.3 | T45: 51.3 | U45: 1.2 | V45: 1.54 | AM45: 24 | AN45: 0.75 | AO45: 80 | AP45: 619.39492
A46: ENSITJAT Blat de moro Pastós-vidriós | B46: 32 | C46: 0.9831423928 | D46: 0.9382032062 | E46: 75.9 | F46: 13.2825 | G46: 52.11647112 | H46: -42.99002243 | I46: 1.004191288 | J46: 1.098575718 | K46: 1.284420211 | L46: 1.4 | M46: 0.7101910828 | N46: 673.6872611 | O46: 32.1 | P46: 203.7 | Q46: 432.7 | R46: 244.4 | S46: 22.9 | T46: 51.4 | U46: 1.2 | V46: 1.61 | AM46: 24 | AN46: 0.75 | AO46: 100 | AP46: 612.5872382
A47: ENSITJAT Blat de moro Vidriós | B47: 32 | C47: 0.9640116468 | D47: 0.9154634589 | E47: 76 | F47: 13.3 | G47: 51.89904202 | H47: -42.13633028 | I47: 1.020614142 | J47: 1.114790276 | K47: 1.304256824 | L47: 1.4 | M47: 0.7008046463 | N47: 663.5218391 | O47: 32 | P47: 202 | Q47: 432.4 | R47: 244.4 | S47: 26.5 | T47: 53.2 | U47: 1.24 | V47: 1.61 | AM47: 24 | AN47: 0.75 | AO47: 80 | AP47: 601.7570275
A48: EBM moises | B48: 34,14 | C48: 0.9880808024 | D48: 0.9429082876 | E48: 75 | F48: 13.125 | G48: 61.63450478 | H48: -33.74610122 | I48: 0.9824749708 | J48: 1.068176595 | K48: 1.284420211 | L48: 1.4 | M48: 0.7101910828 | N48: 677.3802548 | O48: 35 | P48: 174.8201439 | Q48: 420 | R48: 256.9 | T48: 46.2 | U48: 1.2 | V48: 1.61 | AM48: 24 | AN48: 0.75 | AO48: 100 | AP48: 474.6328403
A49: ENSITJAT Civada Lletós-pastós | B49: 31 | C49: 0.6642411484 | D49: 0.5695207363 | E49: 96.6 | F49: 18.9336 | G49: 47.97507469 | H49: -17.51123621 | I49: 1.154955419 | J49: 1.282660589 | K49: 1.791224433 | L49: 1.504435061 | M49: 0.56 | N49: 508.704 | O49: 45 | P49: 333.4 | Q49: 600.1 | R49: 385.3 | S49: 49.3 | T49: 91.6 | U49: 2.16 | V49: 1.848 | AC49: 5 | AD49: 0.13 | AG49: 30 | AJ49: 5000 | AK49: 200 | AL49: 5 | AM49: 19 | AN49: 0.72 | AO49: 80 | AP49: 433.84195
A50: ENSITJAT Ordi Lletós-pastós | B50: 30.5 | C50: 0.721420216 | D50: 0.6340131908 | E50: 98.8 | F50: 19.3648 | G50: 51.13221978 | H50: -18.30719857 | I50: 1.147495958 | J50: 1.265287422 | K50: 1.745392764 | L50: 1.543939505 | M50: 0.5903225806 | N50: 540.1451613 | O50: 40.7 | P50: 278.4 | Q50: 533.3 | R50: 328.5 | S50: 42.9 | T50: 85 | U50: 2.12 | V50: 1.782 | AJ50: 5000 | AK50: 200 | AL50: 5 | AM50: 19 | AN50: 0.72 | AO50: 80 | AP50: 466.9429565
A51: Ensitjat ordi SG | B51: 26,9 | C51: 0.7491819423 | D51: 0.6635064542 | E51: 110.5 | F51: 21.658 | G51: 66.70521997 | H51: -5.026281205 | I51: 1.132099884 | J51: 1.233221694 | K51: 1.69763915 | L51: 1.587369636 | M51: 0.6 | N51: 554.22 | O51: 30 | P51: 320.9 | Q51: 584.199 | R51: 366.273 | T51: 76.3 | U51: 1.6 | V51: 1.32 | AM51: 19 | AN51: 0.72 | AO51: 80 | AP51: 399.39195
A52: ENSITJAT Sorgo Pastós | B52: 24 | C52: 0.8946611737 | D52: 0.8448988526 | E52: 102.3 | F52: 26.4957 | G52: 67.48794219 | H52: -32.54844063 | I52: 1.126297354 | J52: 1.216028017 | K52: 1.608406605 | L52: 1.675435074 | M52: 0.701 | N52: 644.7097 | O52: 25 | P52: 293.4 | Q52: 586.4 | R52: 346.8 | S52: 42.4 | T52: 80.3 | U52: 2.24 | V52: 1.584 | AJ52: 5000 | AK52: 200 | AL52: 5 | AM52: 19 | AN52: 0.63 | AO52: 80 | AP52: 572.00891
A53: ENSITJAT Triticale lletós | B53: 28.1 | C53: 0.7185428841 | D53: 0.6315093177 | E53: 99.8 | F53: 19.5608 | G53: 51.20239422 | H53: -17.39059614 | I53: 1.146293336 | J53: 1.262798213 | K53: 1.742230253 | L53: 1.546742077 | M53: 0.5903225806 | N53: 537.6067742 | O53: 46.6 | P53: 329.3 | Q53: 589.7 | R53: 373.5 | S53: 46.2 | T53: 89.3 | U53: 1.96 | V53: 1.914 | AJ53: 5000 | AK53: 200 | AL53: 5 | AM53: 19 | AN53: 0.72 | AO53: 80 | AP53: 464.2085694
A54: ENSITJAT prefenificat Alfals Inici botons florals | B54: 45 | C54: 0.980732297 | D54: 0.9375437283 | E54: 213.6 | F54: 22.3212 | G54: 62.68377642 | H54: 81.82328754 | I54: 0.9797376592 | J54: 0.954797698 | K54: 1.099990717 | L54: 2.449821438 | M54: 0.709856 | N54: 621.9758272 | O54: 20.8 | P54: 247.2 | Q54: 407.2 | R54: 320.1 | S54: 64.3 | T54: 123.8 | U54: 3.84 | V54: 1.82 | AJ54: 3000 | AK54: 200 | AL54: 5 | AM54: 26.4988 | AN54: 0.83 | AO54: 80 | AP54: 550.6914111
A55: ENSITJAT prefenificat Alfals abans floració | B55: 43 | C55: 0.9478567903 | D55: 0.9046584391 | E55: 198.2 | F55: 21.802 | G55: 61.32585238 | H55: 64.24775046 | I55: 0.9937421911 | J55: 0.9777668498 | K55: 1.121023222 | L55: 2.403858178 | M55: 0.707306 | N55: 605.0295524 | O55: 18.7 | P55: 249.7 | Q55: 424.6 | R55: 336.1 | S55: 65.9 | T55: 144.6 | U55: 3.84 | V55: 1.82 | AJ55: 3000 | AK55: 200 | AL55: 5 | AM55: 25.2206 | AN55: 0.8 | AO55: 80 | AP55: 534.6627196
A56: ENSITJAT prefenificat Alfals rebrots floració | B56: 47 | C56: 1.003207297 | D56: 0.9674763745 | E56: 219.7 | F56: 27.79205 | G56: 68.85859238 | H56: 78.00981843 | I56: 0.972568435 | J56: 0.942718323 | K56: 1.084479733 | L56: 2.484860488 | M56: 0.726176 | N56: 627.779152 | O56: 17.8 | P56: 231.2 | Q56: 391.4 | R56: 298.9 | S56: 61.9 | T56: 135.5 | U56: 5.22 | V56: 2.45 | AJ56: 3000 | AK56: 200 | AL56: 5 | AM56: 27.0051 | AN56: 0.79 | AO56: 80 | AP56: 551.9218578
A57: ENSITJAT Enclova Botons Florals a Floració, Bolles | B57: 27.16 | C57: 0.754603903 | D57: 0.6728644459 | E57: 140.9 | F57: 16.27395 | G57: 57.0350509 | H57: 33.42177985 | I57: 1.075441606 | J57: 1.126048654 | K57: 1.267021205 | L57: 2.126863251 | M57: 0.60143 | N57: 526.25125 | O57: 27 | P57: 353.5 | Q57: 537.2 | R57: 351.6765 | T57: 125 | U57: 3.6 | V57: 2.1 | AM57: 20.4647 | AN57: 0.79 | AO57: 150 | AP57: 306.2478463
A58: ENSITJAT Enclova Inici Floració a Fructificació | B58: 19.66 | C58: 0.7669925154 | D58: 0.6858718121 | E58: 135.6 | F58: 15.6618 | G58: 56.90934942 | H58: 28.47470403 | I58: 1.080492689 | J58: 1.135321292 | K58: 1.273160331 | L58: 2.116607605 | M58: 0.605612 | N58: 535.7243752 | O58: 27 | P58: 349.4 | Q58: 589.3 | R58: 349.3026 | T58: 115.4 | U58: 3.6 | V58: 2.1 | AM58: 20.0248 | AN58: 0.79 | AO58: 150 | AP58: 316.8191373
A59: Fenc Graminies SG | B59: 83 | C59: 0.5002944594 | D59: 0.3905711571 | E59: 75 | F59: 13.125 | G59: 55.61263329 | H59: -24.33692702 | I59: 1.188081043 | J59: 1.363499085 | K59: 1.828866905 | L59: 1.473470175 | M59: 0.453912 | N59: 417.825996 | O59: 26 | P59: 452 | Q59: 775.28 | R59: 469.4 | T59: 79.5 | U59: 4.8 | V59: 2.4 | AM59: 13.855 | AN59: 0.75 | AP59: 343.7681088
A60: FENC Bromo Final vegetació | B60: 85 | C60: 0.7641928518 | D60: 0.6935543947 | E60: 100 | F60: 20.3 | G60: 58.49315002 | H60: -20.42784718 | I60: 1.083509489 | J60: 1.149054212 | K60: 1.470370044 | L60: 1.832722892 | M60: 0.62749 | N60: 564.741 | O60: 34 | P60: 320 | Q60: 640 | R60: 333 | T60: 100 | U60: 1.24 | V60: 2.03 | AJ60: 50000 | AK60: 50 | AL60: 5 | AM60: 15.93 | AN60: 0.71 | AP60: 494.5458579
A61: FENC Dàctil Floració | B61: 85 | C61: 0.6267609342 | D61: 0.5315550907 | E61: 88 | F61: 17.248 | G61: 48.36165599 | H61: -22.60508827 | I61: 1.134465219 | J61: 1.249296501 | K61: 1.633810149 | L61: 1.649384319 | M61: 0.537152 | N61: 491.49408 | O61: 27 | P61: 372 | Q61: 684.08 | R61: 404 | T61: 85 | U61: 0.92 | V61: 1.26 | AJ61: 50000 | AK61: 50 | AL61: 5 | AM61: 14.934 | AN61: 0.72 | AP61: 418.5686824
A62: FENC Festuca Floració | B62: 88.2 | C62: 0.7394322088 | D62: 0.6592885094 | E62: 116 | F62: 23.548 | G62: 59.75765181 | H62: -7.64311645 | I62: 1.079354117 | J62: 1.140751809 | K62: 1.457997654 | L62: 1.848275155 | M62: 0.6004725 | N62: 550.6332825 | O62: 27 | P62: 331 | Q62: 637.34 | R62: 354.45 | T62: 83 | U62: 0.92 | V62: 1.26 | AJ62: 50000 | AK62: 50 | AL62: 5 | AM62: 17.258 | AN62: 0.71 | AP62: 474.7304096
A63: FENC Raigràs italià Espigat | B63: 85 | C63: 0.7551388452 | D63: 0.682416558 | E63: 79 | F63: 13.825 | G63: 52.18563094 | H63: -32.77260482 | I63: 1.106265531 | J63: 1.193403103 | K63: 1.540819033 | L63: 1.74892754 | M63: 0.622116 | N63: 566.12556 | O63: 26 | P63: 307 | Q63: 609.98 | R63: 337 | T63: 90 | U63: 1.6 | V63: 1.61 | W63: 2 | Y63: 20 | Z63: 2 | AC63: 4.9 | AG63: 110 | AI63: 26.5 | AJ63: 50000 | AK63: 50 | AL63: 5 | AM63: 14.187 | AN63: 0.75 | AP63: 502.8178696
A64: FENC Raigràs italià Floració | B64: 85 | C64: 0.6767027483 | D64: 0.590716319 | E64: 52 | F64: 10.92 | G64: 45.71239642 | H64: -52.98300282 | I64: 1.155610109 | J64: 1.294411723 | K64: 1.707296002 | L64: 1.578391115 | M64: 0.574748 | N64: 528.76816 | O64: 24 | P64: 344 | Q64: 652.16 | R64: 374 | T64: 80 | U64: 1.6 | V64: 1.26 | AJ64: 50000 | AK64: 50 | AL64: 5 | AM64: 11.946 | AN64: 0.7 | AP64: 466.1057416
A65: FENC Raigràs italià rebrots d'espigat amb fulles | B65: 85 | C65: 0.8845575231 | D65: 0.835550182 | E65: 107 | F65: 23.219 | G65: 65.95615613 | H65: -22.33097018 | I65: 1.050313537 | J65: 1.087684312 | K65: 1.37366381 | L65: 1.961746987 | M65: 0.69441 | N65: 629.13546 | O65: 29 | P65: 256 | Q65: 567 | R65: 291 | T65: 94 | U65: 1.6 | V65: 1.89 | W65: 2 | Y65: 20 | Z65: 2 | AJ65: 50000 | AK65: 50 | AL65: 5 | AM65: 16.511 | AN65: 0.69 | AP65: 560.3751069
A66: FENC Civada Floració | B66: 90 | C66: 0.6748031786 | D66: 0.5822746186 | E66: 140 | F66: 33.32 | G66: 65.22813994 | H66: 6.340615698 | I66: 1.074914591 | J66: 1.131741987 | K66: 1.444961085 | L66: 1.864950459 | M66: 0.55566 | N66: 509.54022 | O66: 33 | P66: 320 | Q66: 620 | R66: 390 | S66: 60 | T66: 83 | U66: 2.52 | V66: 0.66 | AJ66: 50000 | AK66: 50 | AL66: 5 | AM66: 19.25 | AN66: 0.66 | AP66: 419.8801711
A67: FENC Civada Inici espigat | B67: 90 | C67: 0.7865238981 | D67: 0.7057522891 | E67: 175 | F67: 41.65 | G67: 77.97898436 | H67: 25.71188765 | I67: 1.023756676 | J67: 1.039063255 | K67: 1.301625956 | L67: 2.070318916 | M67: 0.60695 | N67: 567.49825 | O67: 26 | P67: 290 | Q67: 580 | R67: 350 | S67: 40 | T67: 65 | U67: 2.52 | V67: 0.66 | AJ67: 50000 | AK67: 50 | AL67: 5 | AM67: 22.155 | AN67: 0.66 | AP67: 471.7400882
A68: FENC Ordi Espigat | B68: 78.5 | C68: 0.5919301713 | D68: 0.4925934379 | E68: 112 | F68: 26.656 | G68: 55.09811221 | H68: -9.266789075 | I68: 1.11967543 | J68: 1.218703295 | K68: 1.584554034 | L68: 1.700655693 | M68: 0.514628 | N68: 464.709084 | O68: 12.5 | P68: 285 | Q68: 584.9 | R68: 422 | T68: 97 | U68: 1.18 | V68: 1.65 | W68: 1.6 | Y68: 14.15 | Z68: 1.75 | AA68: 1.7 | AB68: 0.07 | AC68: 24 | AF68: 101 | AG68: 27 | AH68: 0.16 | AI68: 48 | AM68: 16.926 | AN68: 0.66 | AP68: 379.9275254
A69: FENC Ordi Inici espigat | B69: 83.7 | C69: 0.7873403043 | D69: 0.7263260237 | E69: 108 | F69: 25.704 | G69: 65.002965 | H69: -20.29450546 | I69: 1.065656642 | J69: 1.11556277 | K69: 1.417509819 | L69: 1.901066789 | M69: 0.653002 | N69: 570.723748 | O69: 12.5 | P69: 285 | Q69: 584.9 | R69: 313 | T69: 126 | U69: 1.18 | V69: 1.65 | W69: 1.6 | Y69: 14.15 | Z69: 1.75 | AA69: 1.7 | AB69: 0.07 | AC69: 24 | AF69: 101 | AG69: 27 | AH69: 0.16 | AI69: 48 | AJ69: 50000 | AK69: 50 | AL69: 5 | AM69: 16.594 | AN69: 0.66 | AP69: 496.5856114
A70: FENC Ordi Lletós | B70: 90 | C70: 0.7063206172 | D70: 0.6214014901 | E70: 135 | F70: 32.13 | G70: 65.96134992 | H70: 1.60549777 | I70: 1.06938303 | J70: 1.121640879 | K70: 1.428604953 | L70: 1.886302322 | M70: 0.58099 | N70: 526.37694 | O70: 12.5 | P70: 285 | Q70: 610 | R70: 370 | T70: 94 | U70: 1.44 | V70: 1.584 | W70: 1.6 | Y70: 14.15 | Z70: 1.75 | AA70: 1.7 | AB70: 0.07 | AC70: 24 | AF70: 101 | AG70: 27 | AH70: 0.16 | AI70: 48 | AJ70: 50000 | AK70: 50 | AL70: 5 | AM70: 18.835 | AN70: 0.66 | AP70: 439.8400866
A71: FENC Ordi Vidriós | B71: 76.3 | C71: 0.7403468234 | D71: 0.6622083638 | E71: 99 | F71: 23.562 | G71: 60.20475676 | H71: -25.00432611 | I71: 1.093450987 | J71: 1.167979739 | K71: 1.500772141 | L71: 1.795596257 | M71: 0.605886 | N71: 554.38569 | O71: 12.5 | P71: 285 | Q71: 584.9 | R71: 350 | T71: 85 | U71: 1.44 | V71: 1.584 | W71: 1.8 | Y71: 11.8 | Z71: 1.4 | AA71: 1.7 | AB71: 0.07 | AC71: 24 | AF71: 101 | AG71: 27 | AH71: 0.16 | AI71: 48 | AJ71: 50000 | AK71: 50 | AL71: 5 | AM71: 15.847 | AN71: 0.66 | AP71: 479.4760238
A72: PALLA blat | B72: 88 | C72: 0.5448944996 | D72: 0.4422046337 | E72: 35 | F72: 7.84 | G72: 35.75192835 | H72: -59.96328956 | I72: 1.215855774 | J72: 1.428129804 | K72: 1.940357448 | L72: 1.388806399 | M72: 0.49196 | N72: 452.6032 | O72: 15 | P72: 420 | Q72: 738.8 | R72: 439 | T72: 80 | U72: 0.8 | V72: 0.66 | W72: 1.4 | Y72: 16.5 | Z72: 2.1 | AM72: 10.535 | AN72: 0.68 | AP72: 387.9456129
A73: PALLA Blat tractada amoniac | B73: 88 | C73: 0.565316952 | D73: 0.4605385981 | E73: 100 | F73: 22.4 | G73: 49.60791438 | H73: -16.60686793 | I73: 1.141925732 | J73: 1.264114285 | K73: 1.659586355 | L73: 1.623766568 | M73: 0.49287 | N73: 453.4404 | O73: 15 | P73: 420 | Q73: 738.8 | R73: 439 | T73: 80 | U73: 0.8 | V73: 0.7 | AM73: 15.93 | AN73: 0.66 | AP73: 371.8618627
A74: PALLA Blat de moro rostoll | B74: 85 | C74: 0.6529503033 | D74: 0.5611555319 | E74: 59 | F74: 14.042 | G74: 47.1604761 | H74: -49.08081739 | I74: 1.157472222 | J74: 1.298062411 | K74: 1.714069322 | L74: 1.572153941 | M74: 0.554526 | N74: 514.600128 | O74: 13 | P74: 344 | Q74: 670 | R74: 390 | S74: 110 | T74: 72 | U74: 2.28 | V74: 0.66 | W74: 1.4 | Y74: 16.5 | Z74: 2.1 | AJ74: 50000 | AK74: 50 | AL74: 5 | AM74: 12.527 | AN74: 0.66 | AP74: 447.1601862
A75: PALLA Civada | B75: 88 | C75: 0.5381272518 | D75: 0.4366356893 | E75: 32 | F75: 7.392 | G75: 35.09975274 | H75: -62.00686823 | I75: 1.219499726 | J75: 1.436733453 | K75: 1.955627715 | L75: 1.377962083 | M75: 0.491918 | N75: 447.64538 | O75: 15 | P75: 420 | Q75: 738.8 | R75: 439 | T75: 90 | U75: 1.4 | V75: 0.66 | AJ75: 50000 | AK75: 50 | AL75: 5 | AM75: 10.286 | AN75: 0.67 | AP75: 383.5447598
A76: PALLA Ordi | B76: 88 | C76: 0.54583885 | D76: 0.4430524613 | E76: 38 | F76: 8.512 | G76: 36.3914354 | H76: -57.86991626 | I76: 1.212233533 | J76: 1.419628584 | K76: 1.925323806 | L76: 1.399650714 | M76: 0.492002 | N76: 452.64184 | O76: 12.5 | P76: 420 | Q76: 738.8 | R76: 439 | T76: 80 | U76: 1.4 | V76: 0.66 | W76: 1.4 | Y76: 16.5 | Z76: 2.1 | AC76: 3.1 | AG76: 17.6 | AI76: 7.3 | AJ76: 50000 | AK76: 50 | AL76: 5 | AM76: 10.784 | AN76: 0.68 | AP76: 387.2032859
A77: PALLA Ordi tractada amoniac | B77: 88 | C77: 0.565316952 | D77: 0.4605385981 | E77: 100 | F77: 22.4 | G77: 49.60791438 | H77: -16.60686793 | I77: 1.141925732 | J77: 1.264114285 | K77: 1.659586355 | L77: 1.623766568 | M77: 0.49287 | N77: 453.4404 | O77: 12.5 | P77: 420 | Q77: 738.8 | R77: 439 | T77: 80 | U77: 1.4 | V77: 0.66 | AM77: 15.93 | AN77: 0.66 | AP77: 371.8618627
A78: FENC Alfals Botons florals | B78: 85 | C78: 0.5712355805 | D78: 0.464442748 | E78: 171 | F78: 35.91 | G78: 61.68676322 | H78: 42.44499475 | I78: 1.073184795 | J78: 1.127610305 | K78: 1.440095705 | L78: 1.871251216 | M78: 0.48796 | N78: 443.06768 | O78: 26 | P78: 372 | Q78: 684.08 | R78: 436 | T78: 92 | U78: 4.2 | V78: 1.75 | AC78: 7.1 | AG78: 29 | AI78: 24.6 | AJ78: 45000 | AK78: 400 | AL78: 10 | AM78: 21.823 | AN78: 0.72 | AP78: 344.9931188
A79: FENC Alfals Inici vegetació | B79: 85 | C79: 0.7631700038 | D79: 0.6873563 | E79: 168.5 | F79: 35.385 | G79: 71.39879666 | H79: 32.37218784 | I79: 1.027253066 | J79: 1.045286018 | K79: 1.31089825 | L79: 2.055675061 | M79: 0.612562 | N79: 548.9168082 | O79: 21.2 | P79: 283.4 | Q79: 483.1 | R79: 326.7 | S79: 69.3 | T79: 103.9 | U79: 3.75 | V79: 1.68 | AB79: 0.1 | AC79: 4.6 | AD79: 0.6 | AG79: 42.9 | AH79: 0.03 | AI79: 21.3 | AJ79: 45000 | AK79: 400 | AL79: 10 | AM79: 21.6155 | AN79: 0.72 | AP79: 460.0530203
A80: FENC Alfals Floració | B80: 85 | C80: 0.5304260801 | D80: 0.4188102854 | E80: 160 | F80: 33.6 | G80: 57.35624758 | H80: 35.98633783 | I80: 1.094986479 | J80: 1.168978414 | K80: 1.506087001 | L80: 1.789259742 | M80: 0.4606 | N80: 421.9096 | O80: 24 | P80: 395 | Q80: 710.3 | R80: 460 | T80: 84 | U80: 4.2 | V80: 1.54 | AJ80: 45000 | AK80: 400 | AL80: 10 | AM80: 20.91 | AN80: 0.72 | AP80: 324.6684585
A81: FENC Alfals floració (Catalunya) | B81: 89 | C81: 0.7804774848 | D81: 0.7084236384 | E81: 174.5 | F81: 36.645 | G81: 73.40253262 | H81: 36.23664732 | I81: 1.017963166 | J81: 1.029102189 | K81: 1.286335584 | L81: 2.094928316 | M81: 0.623962 | N81: 555.950142 | O81: 19.8 | P81: 271.5 | Q81: 446.6 | R81: 316.7 | S81: 69.1 | T81: 109 | U81: 5.67 | V81: 2.1 | AB81: 0.1 | AC81: 4.6 | AD81: 0.6 | AG81: 42.9 | AH81: 0.03 | AI81: 21.3 | AJ81: 45000 | AK81: 400 | AL81: 10 | AM81: 22.1135 | AN81: 0.72 | AP81: 466.3887716
A82: FENC Alfals rebrots (Catalunya) | B82: 89 | C82: 0.8220547044 | D82: 0.7561386752 | E82: 179.3 | F82: 37.653 | G82: 76.25857889 | H82: 38.09099042 | I82: 1.006503009 | J82: 1.009490389 | K82: 1.256671417 | L82: 2.14437983 | M82: 0.64471 | N82: 577.982515 | O82: 19.8 | P82: 259.6 | Q82: 442.1 | R82: 298.5 | S82: 65.8 | T82: 103.5 | U82: 3.3 | V82: 1.54 | AB82: 0.1 | AC82: 4.6 | AD82: 0.6 | AG82: 42.9 | AH82: 0.03 | AI82: 21.3 | AJ82: 45000 | AK82: 400 | AL82: 10 | AM82: 22.5119 | AN82: 0.72 | AP82: 488.6649455
A83: FENC Alfals rebrots de floració | B83: 85 | C83: 0.5559914214 | D83: 0.4463183361 | E83: 174 | F83: 36.54 | G83: 61.35273255 | H83: 45.33409107 | I83: 1.075441268 | J83: 1.131707149 | K83: 1.446811059 | L83: 1.86256583 | M83: 0.47542 | N83: 434.53388 | O83: 24 | P83: 382 | Q83: 695.48 | R83: 447 | T83: 86 | U83: 3.66 | V83: 1.54 | AB83: 0.1 | AC83: 4.6 | AD83: 0.6 | AG83: 42.9 | AH83: 0.03 | AI83: 21.3 | AJ83: 45000 | AK83: 400 | AL83: 10 | AM83: 22.072 | AN83: 0.72 | AP83: 334.8526972
A84: FENC Alfals Sense especificar (primavera) IAMZ | B84: 90 | C84: 0.8022678479 | D84: 0.7359621515 | E84: 171 | F84: 35.91 | G84: 73.93543875 | H84: 32.77416797 | I84: 1.014835798 | J84: 1.023836553 | K84: 1.278138126 | L84: 2.108364335 | M84: 0.64072 | N84: 567.0372 | O84: 25 | P84: 300 | Q84: 394 | R84: 302 | T84: 115 | U84: 4.38 | V84: 3.15 | AJ84: 45000 | AK84: 400 | AL84: 10 | AM84: 21.823 | AN84: 0.72 | AP84: 479.4969685
A85: FENC Alfals Sense especificar (estiu) IAMZ | B85: 90 | C85: 0.8027529859 | D85: 0.732612327 | E85: 187 | F85: 39.27 | G85: 76.69014372 | H85: 44.68883486 | I85: 1.004731173 | J85: 1.006321977 | K85: 1.25219197 | L85: 2.152050886 | M85: 0.631828 | N85: 566.117888 | O85: 25 | P85: 284 | Q85: 583.76 | R85: 309.8 | T85: 104 | U85: 5.82 | V85: 2.03 | AJ85: 45000 | AK85: 400 | AL85: 10 | AM85: 23.151 | AN85: 0.72 | AP85: 474.0078601
A86: FENC Enclova Final floració | B86: 87.6 | C86: 0.7974276922 | D86: 0.7271766252 | E86: 143 | F86: 30.03 | G86: 68.40600963 | H86: 11.57181812 | I86: 1.041902847 | J86: 1.071676354 | K86: 1.350515054 | L86: 1.995372678 | M86: 0.63274 | N86: 575.16066 | O86: 13.5 | P86: 287 | Q86: 414 | R86: 309 | T86: 91 | U86: 0.36 | V86: 0.21 | AJ86: 45000 | AK86: 400 | AL86: 10 | AM86: 19.499 | AN86: 0.72 | AP86: 493.9941847
A87: FENC Trèvol blanc Vegetatiu | B87: 90 | C87: 0.7981872668 | D87: 0.7236613654 | E87: 220 | F87: 56.1 | G87: 91.79713043 | H87: 57.22036526 | I87: 0.9822368086 | J87: 0.9683089799 | K87: 1.196312677 | L87: 2.252572334 | M87: 0.6202 | N87: 557.5598 | O87: 27 | P87: 212 | Q87: 360 | R87: 320 | S87: 70 | T87: 101 | U87: 4.05 | V87: 2.17 | W87: 4.3 | X87: 3.2 | Y87: 16.2 | Z87: 1.9 | AA87: 1.7 | AB87: 0.16 | AC87: 11 | AF87: 184 | AG87: 73 | AI87: 17 | AJ87: 45000 | AK87: 400 | AL87: 10 | AM87: 25.89 | AN87: 0.66 | AP87: 446.5874095
A88: FENC Trèvol violeta Final floració | B88: 89 | C88: 0.7112930165 | D88: 0.6233057215 | E88: 160 | F88: 40.8 | G88: 73.88731868 | H88: 18.87200844 | I88: 1.049059571 | J88: 1.083978186 | K88: 1.370545909 | L88: 1.966209831 | M88: 0.5746 | N88: 525.759 | O88: 28 | P88: 288 | Q88: 460 | R88: 360 | S88: 80 | T88: 85 | U88: 4.59 | V88: 1.75 | AJ88: 45000 | AK88: 400 | AL88: 10 | AM88: 20.91 | AN88: 0.66 | AP88: 429.1792985
A89: FENC Veça Inici botons | B89: 91.4 | C89: 0.9721214262 | D89: 0.932227536 | E89: 196 | F89: 49.98 | G89: 94.63849626 | H89: 33.46866561 | I89: 0.9680489979 | J89: 0.9458914147 | K89: 1.16210933 | L89: 2.318870324 | M89: 0.718468 | N89: 653.80588 | O89: 25 | P89: 204 | Q89: 492.56 | R89: 233.8 | T89: 90 | U89: 5.28 | V89: 1.54 | AJ89: 45000 | AK89: 400 | AL89: 10 | AM89: 23.898 | AN89: 0.66 | AP89: 556.6249568
A90: FENC Veça Botons | B90: 92 | C90: 0.7602900998 | D90: 0.6840692248 | E90: 217 | F90: 55.335 | G90: 89.49619547 | H90: 56.93371672 | I90: 0.9884905805 | J90: 0.9786155001 | K90: 1.211628532 | L90: 2.224098202 | M90: 0.6088 | N90: 533.9176 | O90: 25 | P90: 244 | Q90: 470 | R90: 330 | T90: 123 | U90: 5.28 | V90: 1.54 | AJ90: 45000 | AK90: 400 | AL90: 10 | AM90: 25.641 | AN90: 0.66 | AP90: 423.0359288
A91: FENC Veça Inici floració | B91: 90 | C91: 0.7518572372 | D91: 0.6734733305 | E91: 225 | F91: 57.375 | G91: 90.85954176 | H91: 62.84705998 | I91: 0.9844856593 | J91: 0.9718713426 | K91: 1.201833094 | L91: 2.242225526 | M91: 0.60196 | N91: 527.91892 | O91: 25 | P91: 244 | Q91: 538.16 | R91: 336 | T91: 123 | U91: 5.28 | V91: 1.54 | AJ91: 45000 | AK91: 400 | AL91: 10 | AM91: 26.305 | AN91: 0.66 | AP91: 414.2272603
A92: FENC Veça Final floració | B92: 85 | C92: 0.9139505759 | D92: 0.8625564777 | E92: 197 | F92: 50.235 | G92: 92.18452814 | H92: 36.48201349 | I92: 0.9773405656 | J92: 0.960845548 | K92: 1.184313609 | L92: 2.275394642 | M92: 0.688144 | N92: 623.458464 | O92: 25 | P92: 232 | Q92: 524.48 | R92: 260.4 | T92: 94 | U92: 4.41 | V92: 2.17 | AJ92: 45000 | AK92: 400 | AL92: 10 | AM92: 23.981 | AN92: 0.66 | AP92: 523.89411
A93: FENC Veça Fructificació | B93: 91 | C93: 0.8320963568 | D93: 0.7657742026 | E93: 186 | F93: 47.43 | G93: 85.84481608 | H93: 32.08838466 | I93: 1.000806021 | J93: 0.9997563541 | K93: 1.242213475 | L93: 2.169337956 | M93: 0.64528 | N93: 583.33312 | O93: 20 | P93: 236 | Q93: 453 | R93: 298 | T93: 96 | U93: 4.53 | V93: 1.19 | AJ93: 45000 | AK93: 400 | AL93: 10 | AM93: 23.068 | AN93: 0.66 | AP93: 484.0280298
A94: FENC Veça Pastós | B94: 90.2 | C94: 0.9492342693 | D94: 0.908971077 | E94: 188 | F94: 47.94 | G94: 91.99944958 | H94: 28.96923571 | I94: 0.9750278921 | J94: 0.9572930027 | K94: 1.178699078 | L94: 2.286233093 | M94: 0.71596 | N94: 640.7842 | O94: 20 | P94: 278 | Q94: 576.92 | R94: 236 | T94: 105 | U94: 4.8 | V94: 2.1 | AJ94: 45000 | AK94: 400 | AL94: 10 | AM94: 23.234 | AN94: 0.66 | AP94: 545.7686271
A95: FENC Veça (>50%)-Civada tall precoç INRA | B95: 84 | C95: 0.73 | D95: 0.65 | E95: 158 | F95: 42 | G95: 93 | H95: -18.58155175 | I95: 1.020408163 | J95: 1.024501769 | K95: 0.86 | L95: 3.13 | M95: 0.68 | N95: 881 | P95: 333 | Q95: 674 | R95: 378 | T95: 119 | AN95: 0.6 | AP95: 799.8825
A96: FENC Veça (20-50%)-Civada tall precoç INRA | B96: 79 | C96: 0.72 | D96: 0.65 | E96: 104 | F96: 24 | G96: 75 | H96: -50.30615175 | I96: 1.065092359 | J96: 1.108776844 | K96: 1.21 | L96: 2.23 | M96: 0.68 | N96: 897 | P96: 280 | Q96: 595 | R96: 323 | T96: 103 | AN96: 0.63 | AP96: 833.8825
A97: FENC Veça (< 20%)-Civada tall precoç INRA | B97: 81 | C97: 0.74 | D97: 0.66 | E97: 129 | F97: 29 | G97: 81 | H97: -31.06451623 | I97: 1.031870043 | J97: 1.053472022 | K97: 1.21 | L97: 2.23 | M97: 0.7 | N97: 870 | P97: 270 | Q97: 575 | R97: 308 | T97: 130 | AN97: 0.64 | AP97: 803.2617
A98: FENC Veça (>50%)-Civada tall tardà INRA | B98: 81 | C98: 0.65 | D98: 0.55 | E98: 123 | F98: 31 | G98: 81 | H98: -43.47657607 | I98: 1.07880684 | J98: 1.128333036 | K98: 0.89 | L98: 3.02 | M98: 0.61 | N98: 929 | P98: 268 | Q98: 584 | R98: 309 | T98: 71 | AN98: 0.6 | AP98: 854.0553
A99: FENC Veça (20-50%)-Civada tall tardà INRA | B99: 82 | C99: 0.64 | D99: 0.55 | E99: 99 | F99: 23 | G99: 72 | H99: -53.56774055 | I99: 1.090181359 | J99: 1.155366373 | K99: 1.39 | L99: 1.94 | M99: 0.63 | N99: 901 | P99: 333 | Q99: 675 | R99: 385 | T99: 99 | AN99: 0.63 | AP99: 835.4345
A100: Ensitjat RGI Campabadal | B100: 24,05 | C100: 0.7393415388 | D100: 0.6548606873 | E100: 117.6 | F100: 11.466 | G100: 55.31628223 | H100: 17.24393402 | I100: 1.240837281 | J100: 1.434561467 | K100: 1.55122274 | L100: 1.73719787 | M100: 0.59726 | N100: 532.994824 | O100: 26 | P100: 358 | Q100: 630.3 | R100: 427.3 | T100: 107.6 | U100: 2 | V100: 1.8 | AM100: 18.5308 | AN100: 0.85 | AO100: 95 | AP100: 373.3806117
A101: Ensitjat BM Campabadal | B101: 34,51 | C101: 0.979101499 | D101: 0.9343387196 | E101: 71.8 | F101: 12.565 | G101: 60.82282172 | H101: -35.75284643 | I101: 0.9788151623 | J101: 1.063090444 | K101: 1.284420211 | L101: 1.4 | M101: 0.7101910828 | N101: 671.7697452 | O101: 35 | P101: 195.9 | Q101: 378.1 | R101: 211.2 | T101: 54.1 | U101: 1.44 | V101: 1.61 | AM101: 24 | AN101: 0.75 | AO101: 100 | AP101: 469.1633718
A102: Pastone | B102: 53 | C102: 1,08 | E102: 83 | F102: 27 | G102: 78 | H102: -42 | I102: 0,97 | L102: 1,4 | M102: 0.78 | N102: 768.16 | O102: 31 | P102: 90 | Q102: 318 | R102: 104 | T102: 19 | U102: 0.8 | V102: 1.26 | W102: 1.5 | AM102: 24 | AN102: 0.63 | AO102: 0.87

Sheet Taula Concentrats
A1: Concentrats | B1: MS | C1: UFL | D1: UFV | E1: MNT_PB | F1: PDIA | G1: PDI | H1: BPR | I1: UEL | J1: UEB | K1: UEM | L1: NI ref | M1: dMO | N1: MOD_TDN | O1: EE | P1: FB | Q1: NDF | R1: ADF | S1: Lignina | T1: cendres | U1: Ca | V1: P | W1: Mg | X1: Cl | Y1: K | Z1: Na | AA1: S | AB1: Co | AC1: Cu | AD1: Mo | AE1: Iode | AF1: Fe | AG1: Mn | AH1: Se | AI1: Zn | AJ1: Vit A | AK1: Vit D | AL1: Vit E | AM1: AG | AN1: DT_N | AO1: dr | AP1: MOF
A3: Ordi gra | B3: 87.2 | C3: 1.078969989 | D3: 1.067752556 | E3: 112 | F3: 27.59508246 | G3: 89.46220189 | H3: -31.34737412 | I3: 0.2046 | L3: 2 | M3: 0.837328 | N3: 816.3948 | O3: 19 | P3: 54 | Q3: 215 | R3: 65 | S3: 12 | T3: 25 | U3: 0.8 | V3: 3.9 | W3: 1.3 | Y3: 5.55 | Z3: 0.35 | AB3: 0.01 | AC3: 4.1 | AD3: 0.3 | AF3: 90 | AG3: 17.6 | AH3: 0.02 | AI3: 24.4 | AJ3: 1000 | AL3: 25 | AM3: =0.75*O3 -> 14.25 | AN3: =1-(F3/(E3*AO3)) -> 0.7349259949 | AO3: =(88.3+0.0371*E3-3.7*(10^-5)*(E3^2)-0.107*S3-0.00313*(100-N3))/100 -> 0.9294938772 | AP3: =N3-E3*(1-AN3)-O3 -> 767.7065114
A4: Blat de moro gra | B4: 86 | C4: 1.24475541 | D4: 1.26992117 | E4: 89 | F4: 38.12988822 | G4: 100.7057165 | H4: -70.14473162 | I4: 0.3291 | L4: 2 | M4: 0.882846 | N4: 870.486156 | O4: 43 | P4: 26 | Q4: 125 | R4: 31 | S4: 60 | T4: 14 | U4: 0.5 | V4: 2.9 | W4: 1.4 | Y4: 3.6 | Z4: 0.33 | AB4: 0.02 | AC4: 2.3 | AD4: 0.3 | AF4: 80 | AG4: 10.8 | AH4: 0.02 | AI4: 21.4 | AM4: =0.85*O4 -> 36.55 | AN4: 0.5092513996 | AO4: 0.8730044467 | AP4: 783.8095306
A5: Blat gra | B5: 87 | C5: 1.191513797 | D5: 1.205062577 | E5: 157 | F5: 33.00144942 | G5: 96.50582734 | H5: 5.8944095 | I5: 0.1714 | L5: 2 | M5: 0.87875 | N5: 861.175 | O5: 23 | P5: 29 | Q5: 146 | R5: 38 | S5: 12 | T5: 20 | U5: 0.5 | V5: 3.9 | AB5: 0.02 | AC5: 4.4 | AD5: 0.3 | AG5: 33.7 | AH5: 0.04 | AI5: 32.5 | AL5: 12 | AM5: =O5*0.75 -> 17.25 | AN5: 0.7771204339 | AO5: 0.9431116475 | AP5: 803.1829081
A6: Civada | B6: 87.4 | C6: 1.002754804 | D6: 0.9548146189 | E6: 111 | F6: 20.39754399 | G6: 75.33304787 | H6: -14.56672481 | I6: 0.3208 | L6: 2 | M6: 0.72867 | N6: 706.8099 | O6: 67 | P6: 135 | Q6: 336 | R6: 162 | S6: 27 | T6: 30 | U6: 1 | V6: 4 | W6: 1.75 | Y6: 4.3 | Z6: 0.5 | AB6: 0.02 | AC6: 3.5 | AD6: 0.7 | AG6: 38.4 | AH6: 0.04 | AI6: 25.2 | AL6: 15 | AM6: =O6*0.9 -> 60.3 | AN6: 0.7980031538 | AO6: 0.9097253799 | AP6: 617.3882501
A7: Fajol gra | B7: 88 | C7: 1.000775785 | D7: 0.9661592102 | E7: 125 | F7: 34.09988724 | G7: 90.96989041 | H7: -20.55937996 | I7: 0.2129 | L7: 2 | M7: 0.74393 | N7: 726.81961 | O7: 28 | P7: 118 | Q7: 301 | R7: 158.9 | S7: 33.4 | T7: 23 | U7: 1.1 | V7: 3.7 | W7: 1.2 | X7: 0.5 | Y7: 5.1 | Z7: 0.6 | AA7: 1.6 | AB7: 0.06 | AC7: 11 | AF7: 50 | AG7: 38 | AI7: 10 | AM7: =O7*0.75 -> 21 | AN7: 0.6993867196 | AO7: 0.9074752038 | AP7: 661.2429499
A8: Mill gra | B8: 88 | C8: 1.009546491 | D8: 0.9776763056 | E8: 131 | F8: 35.90764594 | G8: 91.77812279 | H8: -15.03762007 | I8: 0.2129 | L8: 2 | M8: 0.752754 | N8: 721.138332 | O8: 42 | P8: 106 | Q8: 284.5 | R8: 143.86 | S8: 29.7 | T8: 42 | U8: 0.4 | V8: 3.2 | W8: 1.7 | X8: 0.34 | Y8: 4.66 | Z8: 0.45 | AM8: =0.9*O8 -> 37.8 | AN8: 0.6997481148 | AO8: 0.9129140598 | AP8: 639.805335
A9: Segol gra | B9: 86.5 | C9: 1.207814675 | D9: 1.231534718 | E9: 120 | F9: 35.28382464 | G9: 99.1104158 | H9: -34.72904868 | I9: 0.2129 | L9: 2 | M9: 0.88214 | N9: 864.4972 | O9: 16.2 | P9: 26 | Q9: 132 | R9: 42 | S9: 14 | T9: 20 | U9: 0.7 | V9: 4 | W9: 1.35 | Y9: 5.25 | Z9: 0.3 | AB9: 0.03 | AC9: 4.5 | AD9: 0.2 | AG9: 55 | AH9: 0.03 | AI9: 30 | AL9: 17 | AM9: =0.75*O9 -> 12.15 | AN9: 0.6842240358 | AO9: 0.9311407624 | AP9: 810.4040843
A10: Sorgo gra | B10: 86 | C10: 1.256362413 | D10: 1.285094692 | E10: 114 | F10: 33.93068942 | G10: 97.13096315 | H10: -37.7104277 | I10: 0.2129 | L10: 2 | M10: 0.884686 | N10: 869.646338 | O10: 37 | P10: 25 | Q10: 107 | R10: 49 | S10: 4 | T10: 17 | U10: 0.3 | V10: 3.2 | W10: 1.75 | Y10: 3.6 | Z10: 0.4 | AC10: 10 | AF10: 160 | AG10: 14 | AI10: 14 | AJ10: 14000 | AL10: 12 | AM10: =O10*0.9 -> 33.3 | AN10: 0.6834637038 | AO10: 0.9402954104 | AP10: 796.5612002
A11: Triticale gra | B11: 87.1 | C11: 1.191793332 | D11: 1.210362141 | E11: 130 | F11: 38.225488 | G11: 101.2965379 | H11: -26.94851539 | I11: 0.2129 | L11: 2 | M11: 0.87145 | N11: 852.2781 | O11: 17 | P11: 33 | Q11: 148 | R11: 40 | S11: 13 | T11: 22 | U11: 0.5 | V11: 4.6 | AM11: =O11*0.75 -> 12.75 | AN11: 0.6853862298 | AO11: 0.9346133045 | AP11: 794.3783099
A12: Blat segó blat dur | B12: 87.7 | C12: 1.017694369 | D12: 0.9779078471 | E12: 167 | F12: 34.63114108 | G12: 88.47767853 | H12: 25.24478524 | I12: 0.3057772 | L12: 2 | M12: 0.731538 | N12: 692.034948 | O12: 58 | P12: 118 | Q12: 481 | R12: 148 | S12: 38 | T12: 54 | U12: 1.7 | V12: 10.4 | AC12: 10 | AF12: 200 | AG12: 90 | AI12: 80 | AJ12: 1000 | AL12: 21 | AM12: =O12*0.8 -> 46.4 | AN12: 0.7727450842 | AO12: 0.9125087639 | AP12: 596.0833771
A13: Blat de moro flocs | B13: 89 | C13: 1.285459442 | D13: 1.315633547 | E13: 100 | F13: 41.4985065 | G13: 103.9464693 | H13: -59.77494194 | I13: 0.231567 | L13: 2 | M13: 0.88266 | N13: 868.53744 | O13: 43 | P13: 26 | Q13: 90 | R13: 30 | S13: 10 | T13: 16 | U13: 0.3 | V13: 2.9 | W13: 1.4 | X13: 0.5 | Y13: 3.7 | Z13: 0.3 | AA13: 1.2 | AB13: 0.05 | AC13: 4 | AF13: 30 | AG13: 5 | AH13: 0.08 | AI13: 14 | AJ13: 1000 | AL13: 25 | AM13: =O13*0.85 -> 36.55 | AN13: 0.5536620228 | AO13: 0.9297552219 | AP13: 780.9036423
A14: Blat de moro bagàs | B14: 88.1 | C14: 1.203463873 | D14: 1.20550115 | E14: 151 | F14: 56.28378672 | G14: 116.7748185 | H14: -22.64723712 | I14: 0.2876 | L14: 2 | M14: 0.850092 | N14: 833.940252 | O14: 34 | P14: 68 | Q14: 272 | R14: 78 | S14: 11 | T14: 19 | W14: 1.8 | Y14: 3.5 | Z14: 9.5 | AM14: =O14*0.75 -> 25.5 | AN14: 0.6042201418 | AO14: 0.9417869599 | AP14: 740.1774934
A15: Blat de moro hominyfeed (mescla segó, germèn i midó) | B15: 90 | C15: 1.153355136 | D15: 1.157966805 | E15: 114 | F15: 46.52415979 | G15: 107.3745235 | H15: -49.99869329 | I15: 0.2535785 | L15: 2 | M15: 0.837476 | N15: 816.5391 | O15: 19 | P15: 54 | Q15: 215 | R15: 65 | S15: 12 | T15: 25 | U15: 0.5 | V15: 5.7 | W15: 2.6 | X15: 0.6 | Y15: 6.5 | Z15: 0.9 | AA15: 0.3 | AB15: 0.06 | AC15: 15 | AF15: 75 | AG15: 16 | AH15: 0.11 | AI15: 3 | AM15: =O15*0.85 -> 16.15 | AN15: 0.5612101445 | AO15: 0.9300731538 | AP15: 747.5170565
A16: Blat de moro gluten feed | B16: 87.7 | C16: 1.056307439 | D16: 1.029893853 | E16: 216 | F16: 53.8646516 | G16: 111.0030461 | H16: 49.88125855 | I16: 0.3125 | L16: 2 | M16: 0.825072 | N16: 769.792176 | O16: 45 | P16: 88 | Q16: 343 | R16: 100 | S16: 13 | T16: 67 | U16: 3 | V16: 7.8 | W16: 3.5 | Y16: 10.25 | Z16: 7 | AJ16: 3000 | AL16: 14 | AM16: =O16*0.9 -> 40.5 | AN16: 0.7383081976 | AO16: 0.9529277751 | AP16: 668.2667467
A17: Blat de moro gluten meal | B17: 89.3 | C17: 1.647747782 | D17: 1.703959302 | E17: 661 | F17: 427.8502116 | G17: 474.6927582 | H17: 117.5185209 | I17: 0.4868 | L17: 2 | M17: 0.943652 | N17: 929.49722 | O17: 35 | P17: 21 | Q17: 107 | R17: 28 | S17: 6 | T17: 15 | U17: 0.2 | V17: 4 | AJ17: 14000 | AL17: 26 | AM17: =O17*0.8 -> 28 | AN17: 0.3436078323 | AO17: 0.986113493 | AP17: 460.6219971
A18: Blat de moro espigots | B18: 90.2 | C18: 0.5231913971 | D18: 0.4115298955 | E18: 44 | F18: 14.39853914 | G18: 59.97738242 | H18: -62.53694262 | I18: 0.4692912 | L18: 2 | M18: 0.455276 | N18: 437.06496 | O18: 5 | P18: 302 | Q18: 822 | R18: 408 | S18: 38 | T18: 40 | U18: 1.2 | V18: 0.7 | AM18: 2 | AN18: 0.6232120323 | AO18: 0.8684978132 | AP18: 415.4862894
A19: Blat de moro segó | B19: 88.3 | C19: 1.112973677 | D19: 1.10078662 | E19: 101 | F19: 43.23835933 | G19: 96.34428969 | H19: -50.71801618 | I19: 0.3706 | L19: 2 | M19: 0.707252 | N19: 669.060392 | O19: 40 | P19: 150 | Q19: 557 | R19: 164 | S19: 19 | T19: 54 | U19: 0.3 | V19: 2.5 | AM19: =O19*0.85 -> 34 | AN19: 0.5317077588 | AO19: 0.9141782203 | AP19: 581.7628756
A20: Blat de moro tortó de gèrmens a pressió | B20: 88.1 | C20: 1.17895975 | D20: 1.171602179 | E20: 146 | F20: 59.1015472 | G20: 113.8847817 | H20: -23.87880397 | I20: 0.2642698 | L20: 2 | M20: 0.801524 | N20: 763.050848 | O20: 82 | P20: 72 | Q20: 285 | R20: 82 | S20: 11 | T20: 48 | U20: 0.6 | V20: 4.7 | W20: 4.5 | Y20: 1.8 | Z20: 8.5 | AM20: =O20*0.8 -> 65.6 | AN20: 0.5685588128 | AO20: 0.9382625715 | AP20: 618.0604347
A21: Blat de moro tortó de gèrmens amb dissolvent | B21: 87.9 | C21: 1.041990023 | D21: 1.023538393 | E21: 135 | F21: 54.17190727 | G21: 111.6965778 | H21: -33.88229766 | I21: 0.2686721 | L21: 2 | M21: 0.79028 | N21: 752.34656 | O21: 17 | P21: 79 | Q21: 310 | R21: 89 | S21: 12 | T21: 48 | U21: 0.9 | V21: 5 | W21: 4.5 | Y21: 1.8 | Z21: 8.5 | AJ21: 1000 | AL21: 94 | AM21: =O21*0.75 -> 12.75 | AN21: 0.5703343944 | AO21: 0.9339201973 | AP21: 677.3417032
A22: Blat de moro extrussionat | B22: 90.3 | C22: 1.26592428 | D22: 1.305945141 | E22: 96.35 | F22: 55.42277845 | G22: 120.6512297 | H22: -82.39695502 | I22: 0.21464959 | L22: 2 | M22: 0.9181304 | N22: 904.9093222 | O22: 4.32 | P22: 2.55 | Q22: 12.18 | R22: 3.1 | S22: 0.55 | T22: 14.4 | U22: 0.3 | V22: 2.9 | W22: 1.4 | X22: 0.5 | Y22: 3.7 | Z22: 0.3 | AA22: 1.2 | AB22: 0.05 | AC22: 4 | AF22: 30 | AG22: 5 | AH22: 0.08 | AI22: 14 | AJ22: 1000 | AL22: 25 | AM22: =O22*0.85 -> 3.672 | AN22: 0.3880056001 | AO22: 0.9399161825 | AP22: 841.6236618
A23: Fajol segones | B23: 89 | C23: 1.185521315 | D23: 1.168586189 | E23: 335 | F23: 98.39838218 | G23: 150.650279 | H23: 125.2564113 | I23: 0.2129 | L23: 2 | M23: 0.79562 | N23: 751.8609 | O23: 82 | P23: 83 | Q23: 251.39 | R23: 114.99 | S23: 22.61 | T23: 55 | AM23: =O23*0.8 -> 65.6 | AN23: 0.6946621902 | AO23: 0.9619722962 | AP23: 567.5727337
A24: Ordi bagàs cerveseria fresc | B24: 20.5 | C24: 0.8640921799 | D24: 0.7703702942 | E24: 300 | F24: 129.9487159 | G24: 172.9796551 | H24: 53.5641575 | I24: 0.4951 | L24: 2 | M24: 0.6385 | N24: 606.575 | O24: 86 | P24: 150 | Q24: 525 | R24: 206 | S24: 47 | T24: 50 | U24: 3.3 | V24: 5.7 | W24: 1.6 | Y24: 0.7 | Z24: 1.6 | AB24: 0.08 | AC24: 22.2 | AD24: 0.5 | AG24: 38.5 | AH24: 0.06 | AI24: 85 | AL24: 29 | AM24: =O24*0.45 -> 38.7 | AN24: 0.5325076887 | AO24: 0.9265657975 | AP24: 380.3273066
A25: Ordi bagàs cerveseria sec | B25: 91.9 | C25: 0.871193565 | D25: 0.7805426295 | E25: 262.4 | F25: 107.6156328 | G25: 151.6383987 | H25: 35.09442835 | I25: 0.4951 | L25: 2 | M25: 0.62732 | N25: 601.348952 | O25: 79.9 | P25: 161.6 | Q25: 643.3 | R25: 236.4 | S25: 78.9 | T25: 41.4 | U25: 2.3 | V25: 6.3 | AB25: 0.08 | AC25: 22.2 | AD25: 0.5 | AG25: 38.5 | AH25: 0.06 | AI25: 85 | AL25: 29 | AM25: =O25*0.45 -> 35.955 | AN25: 0.5371850665 | AO25: 0.886143731 | AP25: 400.0063135
A26: Ordi malta, gra germinat i eixugat | B26: 89.6 | C26: 0.8231856487 | D26: 0.7581965961 | E26: 255 | F26: 66.35502136 | G26: 127.2527654 | H26: 71.69727487 | I26: 0.2959 | L26: 2 | M26: 0.89925 | N26: 840.79875 | O26: 23 | P26: 10 | Q26: 94 | R26: 10 | S26: 6 | T26: 65 | U26: 2.7 | V26: 7.5 | AL26: 16 | AM26: =O26*0.45 -> 10.35 | AN26: 0.7318227862 | AO26: 0.9703127509 | AP26: 749.4135605
A27: Ordi segó | B27: 89 | C27: 0.7604950037 | D27: 0.683000715 | E27: 118 | F27: 25.13276462 | G27: 75.56717545 | H27: -8.043766921 | I27: 0.3630071 | L27: 2 | M27: 0.620602 | N27: 581.504074 | O27: 32 | P27: 187 | Q27: 539 | R27: 239 | S27: 28 | T27: 63 | U27: 0.8 | V27: 3.9 | AB27: 0.03 | AC27: 11.7 | AD27: 0.6 | AG27: 123 | AH27: 0.05 | AI27: 59 | AM27: =O27*0.8 -> 25.6 | AN27: 0.7651033494 | AO27: 0.9067371975 | AP27: 521.7862692
A28: Cacau tortó | B28: 86.6 | C28: 0.9215256292 | D28: 0.8794694618 | E28: 232 | F28: 88.67087909 | G28: 140.270913 | H28: 25.81494705 | I28: 0.34659281 | L28: 2 | M28: 0.745465 | N28: 673.154895 | O28: 20 | P28: 161 | Q28: 363.86 | R28: 212.9 | S28: 47.29 | T28: 97 | U28: 2.6 | V28: 1.3 | AM28: =O28*0.75 -> 15 | AN28: 0.5829749087 | AO28: 0.9164965682 | AP28: 556.4050738
A29: Cacauet, tortó 48 | B29: 88.6 | C29: 1.194433583 | D29: 1.186516039 | E29: 524 | F29: 143.3022223 | G29: 198.101494 | H29: 261.736138 | I29: 0.2876 | L29: 2 | M29: 0.84376 | N29: 789.75936 | O29: 16 | P29: 77 | Q29: 150 | R29: 101 | S29: 26 | T29: 64 | U29: 1.8 | V29: 6.6 | W29: 3 | AB29: 0.3 | AC29: 14.5 | AD29: 1.7 | AF29: 450 | AG29: 47.5 | AH29: 0.11 | AI29: 61.5 | AM29: =O29*0.75 -> 12 | AN29: 0.7179423819 | AO29: 0.969580348 | AP29: 625.9611681
A30: Coco tortó | B30: 90 | C30: 0.9709595673 | D30: 0.9339995141 | E30: 239 | F30: 87.26903545 | G30: 138.2098434 | H30: 30.48498753 | I30: 0.2876 | L30: 2 | M30: 0.71604 | N30: 660.18888 | O30: 18 | P30: 178 | Q30: 580 | R30: 316 | S30: 78 | T30: 78 | U30: 2 | V30: 6.6 | W30: 4 | Z30: 0.6 | AC30: 20 | AF30: 500 | AG30: 60 | AI30: 70 | AM30: =O30*0.9 -> 16.2 | AN30: 0.5872269422 | AO30: 0.8846081419 | AP30: 543.5361192
A31: Colza, gra | B31: 89.9 | C31: 1.96875359 | D31: 2.026164505 | E31: 217 | F31: 41.88482236 | G31: 81.98060891 | H31: 90.24033351 | I31: 0.2959 | L31: 2 | M31: 0.84608 | N31: 798.69952 | O31: 457 | P31: 68 | Q31: 199 | R31: 116 | S31: 41 | T31: 56 | U31: 3.3 | V31: 5.3 | AM31: =O31*0.85 -> 388.45 | AN31: 0.7911253228 | AO31: 0.924083365 | AP31: 296.3737151
A32: Colza, gra semiesclovellat | B32: 90 | C32: 2.006824385 | D32: 2.066056386 | E32: 217 | F32: 41.88482236 | G32: 80.92224091 | H32: 91.89403351 | I32: 0.2959 | L32: 2 | M32: 0.84608 | N32: 798.69952 | O32: 480 | P32: 68 | Q32: 115 | R32: 84 | S32: 41 | T32: 56 | U32: 3.3 | V32: 5.3 | AM32: =O32*0.79 -> 379.2 | AN32: 0.7911253228 | AO32: 0.924083365 | AP32: 273.3737151
A33: Colza, turtó | B33: 90 | C33: 0.958005025 | D33: 0.9098593603 | E33: 418 | F33: 103.9119909 | G33: 155.8627084 | H33: 193.047004 | I33: 0.3125 | L33: 2 | M33: 0.7842 | N33: 704.9958 | O33: 26 | P33: 120 | Q33: 287 | R33: 182 | S33: 74 | T33: 101 | U33: 8.4 | V33: 12.4 | W33: 5.15 | Y33: 12.4 | Z33: 0.75 | AB33: 0.1 | AC33: 5.5 | AD33: 0.5 | AF33: 300 | AG33: 63.5 | AH33: 0.07 | AI33: 64.5 | AL33: 20 | AM33: =O33*0.8 -> 20.8 | AN33: 0.7277738088 | AO33: 0.9131864885 | AP33: 565.2052521
A34: Colza, turtó tanné, curtit | B34: 89 | C34: 1.240309081 | D34: 1.253284486 | E34: 391 | F34: 143.4249536 | G34: 193.4731611 | H34: 118.7396757 | I34: 0.3374 | L34: 2 | M34: 0.77349 | N34: 713.93127 | O34: 26 | P34: 129 | Q34: 302 | R34: 193 | S34: 79 | T34: 77 | U34: 8.4 | V34: 12.4 | Y34: 12.4 | Z34: 0.75 | AB34: 0.1 | AC34: 5.5 | AD34: 0.5 | AF34: 300 | AG34: 63.5 | AH34: 0.07 | AI34: 64.5 | AM34: =O34*0.69 -> 17.94 | AN34: 0.5952070214 | AO34: 0.9061810788 | AP34: 529.6572154
A35: Cotó, gra | B35: 92 | C35: 1.105745464 | D35: 1.027155353 | E35: 220 | F35: 48.76444907 | G35: 91.65479282 | H35: 70.58383788 | I35: 0.5034 | L35: 2 | M35: 0.64652 | N35: 618.71964 | O35: 198 | P35: 276 | Q35: 456 | R35: 354 | S35: 105 | T35: 43 | U35: 2.1 | V35: 6.4 | AM35: =O35*0.95 -> 188.1 | AN35: 0.7394108541 | AO35: 0.8505979247 | AP35: 363.3900279
A36: Cotó tortó dessoliat | B36: 89 | C36: 1.150192028 | D36: 1.125943813 | E36: 466 | F36: 160.9221094 | G36: 212.6445717 | H36: 184.5836527 | I36: 0.2994882 | L36: 2 | M36: 0.802196 | N36: 750.855456 | O36: 20 | P36: 127 | Q36: 232 | R36: 138 | S36: 32 | T36: 64 | U36: 4.7 | V36: 9.4 | W36: 5.2 | Y36: 15.2 | Z36: 0.4 | AM36: =O36*0.75 -> 15 | AN36: 0.6409096727 | AO36: 0.9616700558 | AP36: 563.5193635
A37: Cotó clovella | B37: 91 | C37: 0.3662081422 | D37: 0.2380788633 | E37: 81 | F37: 16.10308659 | G37: 54.6536023 | H37: -25.8351808 | I37: 0.65129486 | L37: 2 | M37: 0.323182 | N37: 309.608356 | O37: 19 | P37: 547 | Q37: 900 | R37: 697.4 | S37: 184.6 | T37: 42 | U37: 1.4 | V37: 1.1 | AM37: =O37*0.75 -> 14.25 | AN37: 0.7237543586 | AO37: 0.7196621715 | AP37: 268.232459
A38: Favó gra | B38: 86.9 | C38: 1.286607118 | D38: 1.320957789 | E38: 302 | F38: 51.43027974 | G38: 115.0698849 | H38: 130.983117 | I38: 0.1714 | L38: 2 | M38: 0.9143 | N38: 876.8137 | O38: 16 | P38: 90 | Q38: 171 | R38: 108 | S38: 24.7 | T38: 41 | U38: 1.3 | V38: 7 | W38: 1.6 | X38: 0.8 | Y38: 12 | Z38: 0.25 | AB38: 0.4 | AC38: 13.8 | AD38: 1 | AF38: 100 | AG38: 12.7 | AH38: 0.02 | AI38: 43.7 | AM38: =O38*0.8 -> 12.8 | AN38: 0.8224539482 | AO38: 0.9591817888 | AP38: 807.1947924
A39: Gira-sol, gra | B39: 93 | C39: 1.708471184 | D39: 1.695156001 | E39: 174 | F39: 24.64749869 | G39: 60.41910651 | H39: 72.58686279 | I39: 0.2627 | L39: 2 | M39: 0.74312 | N39: 714.13832 | O39: 485 | P39: 164 | Q39: 294 | R39: 200 | S39: 56 | T39: 39 | U39: 1.8 | V39: 4.8 | AM39: =O39*0.95 -> 460.75 | AN39: 0.8418449238 | AO39: 0.8956544094 | AP39: 201.6193367
A40: Gira-sol tortó esclovellat | B40: 91 | C40: 0.9910764189 | D40: 0.9439708695 | E40: 417 | F40: 80.25381508 | G40: 133.123438 | H40: 220.1112143 | I40: 0.3208 | L40: 2 | M40: 0.745917 | N40: 691.465059 | O40: 22 | P40: 176 | Q40: 299 | R40: 220 | S40: 70 | T40: 73 | U40: 3.8 | V40: 9.9 | W40: 5.5 | X40: 1.2 | Y40: 12 | Z40: 0.33 | AM40: =O40*0.75 -> 16.5 | AN40: 0.790120834 | AO40: 0.9169809263 | AP40: 581.9454468
A41: Llentia gra | B41: 88 | C41: 1.292742572 | D41: 1.330655343 | E41: 281 | F41: 49.08181296 | G41: 113.199967 | H41: 113.2253843 | I41: 0.1714 | L41: 2 | M41: 0.91963 | N41: 886.52332 | O41: 19.3 | P41: 49 | Q41: 160 | R41: 72 | S41: 3 | T41: 36 | U41: 1.1 | V41: 4.5 | AM41: =O41*0.75 -> 14.475 | AN41: 0.8216657174 | AO41: 0.9794436099 | AP41: 817.1113866
A42: Llí, gra | B42: 90.3 | C42: 1.657583747 | D42: 1.660671498 | E42: 253 | F42: 51.01194867 | G42: 92.3191443 | H42: 111.0075068 | I42: 0.3208 | L42: 2 | M42: 0.780518 | N42: 743.3653432 | O42: 362 | P42: 101.9 | Q42: 244.7 | R42: 148.4 | S42: 62 | T42: 47.6 | U42: 4.208194906 | V42: 6.755260244 | W42: 3.986710963 | X42: 0.6644518272 | Y42: 7.973421927 | Z42: 0.7751937984 | AA42: 2.990033223 | AC42: 13.28903654 | AD42: 0.2214839424 | AE42: 0.4429678848 | AF42: 163.8981174 | AG42: 32.11517165 | AI42: 49.83388704 | AM42: =O42*0.95 -> 343.9 | AN42: 0.7776919873 | AO42: 0.9069770052 | AP42: 325.121416
A43: Llinosa tortó dessoliat | B43: 89 | C43: 1.151871054 | D43: 1.134141167 | E43: 377 | F43: 129.4671117 | G43: 180.6322598 | H43: 120.744456 | I43: 0.3064061 | L43: 2 | M43: 0.803904 | N43: 752.454144 | O43: 58 | P43: 118 | Q43: 236 | R43: 149 | S43: 88 | T43: 64 | U43: 4.7 | V43: 9.4 | W43: 6.1 | Y43: 14 | Z43: 1.3 | AB43: 0.6 | AC43: 21 | AD43: 0.6 | AF43: 250 | AG43: 59 | AH43: 0.5 | AI43: 73 | AL43: 9 | AM43: =O43*0.75 -> 43.5 | AN43: 0.6169566624 | AO43: 0.8965410847 | AP43: 550.0468057
A44: Margalló tortó (palmiste) | B44: 90 | C44: 0.8319475036 | D44: 0.7632996493 | E44: 206 | F44: 83.76805509 | G44: 136.5208369 | H44: -3.926221648 | I44: 0.4287 | L44: 2 | M44: 0.73056 | N44: 699.14592 | O44: 19 | P44: 167 | Q44: 632 | R44: 241 | S44: 103 | T44: 43 | U44: 3.1 | V44: 6.7 | AM44: =O44*0.9 -> 17.1 | AN44: 0.5228718322 | AO44: 0.8522679473 | AP44: 581.8575174
A45: Mongeta gra | B45: 88 | C45: 1.269417567 | D45: 1.306008103 | E45: 257 | F45: 44.57202968 | G45: 108.5638422 | H45: 93.98279293 | I45: 0.1714 | L45: 2 | M45: 0.91937 | N45: 878.91772 | O45: 19 | P45: 51 | Q45: 162 | R45: 74 | S45: 3 | T45: 44 | U45: 1.3 | V45: 5.1 | W45: 1.6 | Y45: 14 | Z45: 0.4 | AM45: =O45*0.8 -> 15.2 | AN45: 0.8221354136 | AO45: 0.9750789946 | AP45: 814.2065213
A46: Pèsol gra | B46: 85.7 | C46: 1.262578618 | D46: 1.297789954 | E46: 259 | F46: 44.91173193 | G46: 108.9957771 | H46: 95.45867945 | I46: 0.1714 | L46: 2 | M46: 0.91768 | N46: 877.30208 | O46: 15 | P46: 64 | Q46: 162 | R46: 74 | S46: 3 | T46: 44 | U46: 0.9 | V46: 4.6 | W46: 1.45 | Y46: 11 | Z46: 0.3 | AB46: 0.07 | AC46: 7.2 | AD46: 1.1 | AG46: 8 | AH46: 0.2 | AI46: 37 | AM46: =O46*0.8 -> 12 | AN46: 0.8222202176 | AO46: 0.9753885851 | AP46: 816.2571164
A47: Soja, gra extrussionat | B47: 88 | C47: 1.485485602 | D47: 1.497390722 | E47: 402 | F47: 188.4323551 | G47: 238.0406285 | H47: 109.2870728 | I47: 0.3208 | L47: 2 | M47: 0.97179 | N47: 912.51081 | O47: 213 | P47: 74 | Q47: 146 | R47: 92 | S47: 7 | T47: 61 | U47: 2.8 | V47: 6.4 | AM47: =O47*0.95 -> 202.35 | AN47: 0.526666784 | AO47: 0.9902901084 | AP47: 509.2308572
A48: Soja, gra torrat | B48: 88.6 | C48: 1.490185728 | D48: 1.502445871 | E48: 397.3 | F48: 133.307895 | G48: 185.6891829 | H48: 158.2262376 | I48: 0.2959 | L48: 2 | M48: 0.975779 | N48: 918.5007727 | O48: 216.7 | P48: 63.2 | Q48: 132 | R48: 77.78 | S48: 13.5 | T48: 58.7 | U48: 3.611738149 | V48: 5.981941309 | W48: 2.595936795 | X48: 0.5643340858 | Y48: 20.76749436 | Z48: 0.9029345372 | AA48: 3.16027088 | AC48: 38.37471783 | AD48: 4.514672686 | AF48: 161.3995485 | AG48: 31.6027088 | AH48: 0.316027088 | AI48: 45.14672686 | AM48: =O48*0.95 -> 205.865 | AN48: 0.6587213001 | AO48: 0.9831688769 | AP48: 566.2107452
A49: Soja tortó 44 | B49: 87.2 | C49: 1.165625863 | D49: 1.159793832 | E49: 488 | F49: 153.419998 | G49: 207.0695265 | H49: 219.1726116 | I49: 0.2781056 | L49: 2 | M49: 0.849655 | N49: 779.133635 | O49: 22 | P49: 84 | Q49: 163 | R49: 104 | S49: 8 | T49: 83 | U49: 3.4 | V49: 7 | W49: 2.7 | Y49: 20 | Z49: 1.95 | AB49: 0.3 | AC49: 17.1 | AD49: 2.3 | AF49: 200 | AG49: 43.7 | AH49: 0.2 | AI49: 54.6 | AL49: 7 | AM49: =O49*0.75 -> 16.5 | AN49: 0.6819996035 | AO49: 0.9886316028 | AP49: 601.9494415
A50: Soja tortó 46 | B50: 87.2 | C50: 1.204239972 | D50: 1.205333606 | E50: 505 | F50: 160.0692099 | G50: 214.4558798 | H50: 229.0708283 | I50: 0.2686721 | L50: 2 | M50: 0.863895 | N50: 799.102875 | O50: 20 | P50: 72 | Q50: 143 | R50: 89 | S50: 7 | T50: 75 | U50: 3.4 | V50: 7.4 | W50: 2.7 | Y50: 20 | Z50: 1.95 | AB50: 0.3 | AC50: 17.1 | AD50: 2.3 | AF50: 200 | AG50: 43.7 | AH50: 0.2 | AI50: 54.6 | AM50: =O50*0.75 -> 15 | AN50: 0.6799548883 | AO50: 0.99038767 | AP50: 617.4800936
A51: Soja tortó 48 | B51: 88.3 | C51: 1.223810674 | D51: 1.22687166 | E51: 520 | F51: 165.0816182 | G51: 219.3151576 | H51: 239.0600948 | I51: 0.2674143 | L51: 2 | M51: 0.867341 | N51: 804.025107 | O51: 23 | P51: 70 | Q51: 140 | R51: 87 | S51: 7 | T51: 73 | U51: 3.4 | V51: 7.8 | W51: 2.7 | Y51: 19.7 | Z51: 1.95 | AB51: 0.3 | AC51: 17.1 | AD51: 2.3 | AF51: 200 | AG51: 43.7 | AH51: 0.2 | AI51: 54.6 | AM51: =O51*0.75 -> 17.25 | AN51: 0.6794639687 | AO51: 0.9904179858 | AP51: 614.3463707
A52: Soja tortó 50 | B52: 87.8 | C52: 1.225744301 | D52: 1.225565004 | E52: 544 | F52: 172.4045434 | G52: 225.7154558 | H52: 256.1016993 | I52: 0.2498051 | L52: 2 | M52: 0.862027 | N52: 797.374975 | O52: 28 | P52: 77 | Q52: 102 | R52: 59 | S52: 6 | T52: 75 | U52: 3 | V52: 7.8 | W52: 2.7 | Y52: 19.7 | Z52: 1.95 | AB52: 0.3 | AC52: 17.1 | AD52: 2.3 | AF52: 200 | AG52: 43.7 | AH52: 0.2 | AI52: 54.6 | AM52: =O52*0.75 -> 21 | AN52: 0.6801163265 | AO52: 0.9907355167 | AP52: 595.3582566
A53: Soja tortó 48 curtit "tanne" | B53: 88.8 | C53: 1.223810674 | D53: 1.22687166 | E53: 520 | F53: 165.0816182 | G53: 219.3151576 | H53: 239.0600948 | I53: 0.2674143 | L53: 2 | M53: 0.867341 | N53: 804.025107 | O53: 23 | P53: 70 | Q53: 140 | R53: 87 | S53: 7 | T53: 73 | U53: 3.4 | V53: 7.8 | AB53: 0.3 | AC53: 17.1 | AD53: 2.3 | AF53: 200 | AG53: 43.7 | AH53: 0.2 | AI53: 54.6 | AM53: =O53*0.66 -> 15.18 | AN53: 0.6794639687 | AO53: 0.9904179858 | AP53: 614.3463707
A54: Llobí (tramús) gra | B54: 86.7 | C54: 1.49857485 | D54: 1.544346092 | E54: 399 | F54: 69.09881582 | G54: 127.2670334 | H54: 218.10216 | I54: 0.1714 | L54: 2 | M54: 0.90507 | N54: 864.34185 | O54: 104 | P54: 161 | Q54: 229 | R54: 172 | S54: 17 | T54: 45 | U54: 2 | V54: 4.6 | W54: 2.5 | Y54: 9.5 | Z54: 0.55 | AM54: =O54*0.9 -> 93.6 | AN54: 0.822898728 | AO54: 0.9778585299 | AP54: 689.6784425
A55: Llobí (tramús) extrussionat | B55: 88 | C55: 1.52751288 | D55: 1.578192665 | E55: 406 | F55: 69.23209069 | G55: 127.7145253 | H55: 223.2811959 | I55: 0.1714 | L55: 2 | M55: 0.91027 | N55: 877.50028 | O55: 109 | P55: 121 | Q55: 214 | R55: 175 | S55: 34.4 | T55: 36 | U55: 2 | V55: 4.5 | W55: 1.7 | X55: 0.23 | Y55: 10 | Z55: 0.11 | AM55: =O55*0.77 -> 83.93 | AN55: 0.8224029302 | AO55: 0.9601644388 | AP55: 696.3958697
A56: Polpes (cítrics) ensitjades | B56: 21 | C56: 1.224764853 | D56: 1.238763409 | E56: 73 | F56: 20.57651646 | G56: 79.53725613 | H56: -58.87615574 | I56: 0.2212 | L56: 2 | M56: 0.87228 | N56: 824.3046 | O56: 97 | P56: 156 | Q56: 356.65 | R56: 206.62 | S56: 44.65 | T56: 55 | U56: 20.4 | V56: 1.5 | W56: 1.6 | Y56: 6.2 | Z56: 0.9 | AA56: 0.2 | AB56: 0.16 | AC56: 6 | AF56: 160 | AG56: 7 | AI56: 16 | AM56: =O56*0.6 -> 58.2 | AN56: 0.6807836781 | AO56: 0.883006504 | AP56: 704.0018085
A57: Polpes (cítrics) | B57: 90 | C57: 1.09457765 | D57: 1.103551588 | E57: 70 | F57: 20.49453097 | G57: 82.57976854 | H57: -65.70818372 | I57: 0.2212 | L57: 2 | M57: 0.87931 | N57: 822.15485 | O57: 28 | P57: 137 | Q57: 223 | R57: 158 | S57: 14 | T57: 65 | U57: 23 | V57: 1.3 | AM57: =O57*0.6 -> 16.8 | AN57: 0.6799461392 | AO57: 0.9147804468 | AP57: 771.7510797
A58: Garrofer garrofa | B58: 87 | C58: 0.843494905 | D58: 0.8273952756 | E58: 58 | F58: 20.57803675 | G58: 81.08159627 | H58: -76.25681175 | I58: 0.288174289 | L58: 2 | M58: 0.8014563863 | N58: 771.8025 | O58: 11 | P58: 87 | Q58: 257.16 | R58: 120.01 | S58: 23.83 | T58: 37 | U58: 1.5 | V58: 0.6 | AM58: =O58*0.9 -> 9.9 | AN58: 0.6052595731 | AO58: 0.8988026382 | AP58: 737.9075552
A59: Garrofer polpa deshidratada sense grana, IAMZ | B59: 86 | C59: 0.8175571336 | D59: 0.8010099087 | E59: 56 | F59: 19.88740459 | G59: 81.02326077 | H59: -78.36477527 | I59: 0.286199543 | L59: 2 | M59: 0.8034925234 | N59: 773.7633 | O59: 0.1 | P59: 84.5 | Q59: 253.55 | R59: 116.87 | S59: 23.07 | T59: 37 | U59: 1.5 | V59: 0.6 | AM59: =O59*0.8 -> 0.08 | AN59: 0.6049783161 | AO59: 0.8990195713 | AP59: 751.5420857
A60: Oliva molinada "orujo" | B60: 89 | C60: 0.3555684594 | D60: 0.2315284959 | E60: 111 | F60: 37.77367179 | G60: 72.19608588 | H60: -21.36502202 | I60: 0.5864 | L60: 2 | M60: 0.33429 | N60: 306.87822 | O60: 74 | P60: 339 | Q60: 620.51 | R60: 456.32 | S60: 108.36 | T60: 82 | U60: 14 | V60: 3.4 | AM60: =O60*0.74 -> 54.76 | AN60: 0.5799513971 | AO60: 0.8101523183 | AP60: 186.2528251
A61: Oliva polpa sense extracció, IAMZ | B61: 68.5 | C61: 0.5285256608 | D61: 0.4118821932 | E61: 114 | F61: 44.70328847 | G61: 84.48223093 | H61: -28.4745976 | I61: 0.5864 | L61: 2 | M61: 0.458 | N61: 425.024 | O61: 74 | P61: 200 | Q61: 341 | R61: 295 | S61: 60.21 | T61: 72 | U61: 11.9 | V61: 1.6 | AM61: =O61*0.74 -> 54.76 | AN61: 0.5473115864 | AO61: 0.8662340312 | AP61: 299.4175209
A62: Oliva polpa d'extracció ("orujo"), IAMZ | B62: 87.6 | C62: 0.2835820822 | D62: 0.1630785602 | E62: 66 | F62: 20.21048157 | G62: 53.34965943 | H62: -38.25996541 | I62: 0.5864 | L62: 2 | M62: 0.26932 | N62: 252.89148 | O62: 74 | P62: 412 | Q62: 725.77 | R62: 527.95 | S62: 134.64 | T62: 61 | U62: 5.6 | V62: 0.9 | AM62: =O62*0.74 -> 54.76 | AN62: 0.6005460193 | AO62: 0.7665949833 | AP62: 152.5275173
A63: Patata-ITEB | B63: 13 | C63: 1.224039877 | D63: 1.270348111 | E63: 100 | F63: 34.23948908 | G63: 100.5831692 | H63: -56.86200025 | I63: 0.1216 | L63: 2 | M63: 0.9445 | N63: 901.9975 | O63: 0.8 | P63: 30 | Q63: 174.97 | R63: 48.46 | S63: 7.28 | T63: 45 | U63: 1 | V63: 2 | W63: 1 | X63: 22 | AM63: =O63*0.8 -> 0.64 | AN63: 0.6332974699 | AO63: 0.9337129217 | AP63: 864.527247
A64: Patata polpa-ITEB | B64: 17 | C64: 1.047562058 | D64: 1.040325904 | E64: 50 | F64: 15.36772122 | G64: 77.36979178 | H64: -80.57823525 | I64: 0.1216 | L64: 2 | M64: 0.8101 | N64: 789.8475 | O64: 2.5 | P64: 150 | Q64: 348 | R64: 199.09 | S64: 43.7 | T64: 25 | U64: 5 | V64: 0.5 | W64: 0.8 | X64: 6 | AM64: =O64*0.8 -> 2 | AN64: 0.6489216562 | AO64: 0.8754582267 | AP64: 769.7935828
A65: Poma deixalles | B65: 22 | C65: 1.10018865 | D65: 1.102760433 | E65: 23 | F65: 8.795543217 | G65: 71.56469958 | H65: -100.0868068 | I65: 0.4868 | L65: 2 | M65: 0.82908 | N65: 813.32748 | O65: 18 | P65: 68 | Q65: 229.76 | R65: 96.16 | S65: 18 | T65: 19 | U65: 0.6 | V65: 0.6 | AM65: =O65*0.9 -> 16.2 | AN65: 0.5724362337 | AO65: 0.8944044201 | AP65: 785.4935134
A66: Poma molinada ("marc") deshidratada | B66: 94.1 | C66: 0.5535459391 | D66: 0.4298652377 | E66: 79 | F66: 22.41772409 | G66: 65.61179369 | H66: -39.82073375 | I66: 0.4868 | L66: 2 | M66: 0.44368 | N66: 435.25008 | O66: 39 | P66: 478 | Q66: 354 | R66: 610.79 | S66: 121 | T66: 19 | U66: 1.9 | V66: 1.6 | AM66: 35.1 | AN66: 0.6412637776 | AO66: 0.7910231575 | AP66: 367.9099184
A67: Poma residu deshidratat, NRC | B67: 89 | C67: 1.017592193 | D67: 0.9832011689 | E67: 49 | F67: 17.45620144 | G67: 73.71511167 | H67: -76.13454724 | I67: 0.4868 | L67: 2 | M67: 0.7332 | N67: 717.0696 | O67: 51 | P67: 170 | Q67: 376.83 | R67: 260 | S67: 50.24 | T67: 22 | U67: 1.3 | V67: 1.1 | W67: 0.7 | Y67: 4.6 | Z67: 1.2 | AA67: 0.2 | AC67: 10 | AF67: 300 | AG67: 7 | AM67: 45.9 | AN67: =1-(F67/(E67*AO67)) -> 0.5885548453 | AO67: =(88.3+0.0371*E67-3.7*(10^-5)*(E67^2)-0.107*S67-0.00313*(100-N67))/100 -> 0.8658481085 | AP67: =N67-E67*(1-AN67)-O67 -> 645.9087874
A68: Raïm vinassa sense pinyols | B68: 67 | C68: 0.6608050597 | D68: 0.5617156148 | E68: 172 | F68: 20.01576435 | G68: 59.87298187 | H68: -4.236902376 | I68: 0.5864 | L68: 2 | M68: 0.54433 | N68: 483.36504 | O68: 97 | P68: 103 | Q68: 777 | R68: 685 | S68: 536 | T68: 112 | U68: 6 | V68: 2.5 | AM68: =O68*0.75 -> 72.75 | AN68: 0.6891352988 | AO68: 0.3743452458 | AP68: 332.8963114
A69: Raïm polpa | B69: 90 | C69: 0.3048901197 | D69: 0.1865548158 | E69: 120 | F69: 11.60850895 | G69: 48.20840292 | H69: -20.98733433 | I69: 0.5864 | L69: 2 | M69: 0.30492 | N69: 292.41828 | O69: 7 | P69: 372 | Q69: 754 | R69: 653 | S69: 499 | T69: 41 | U69: 8 | V69: 4 | AM69: =O69*0.75 -> 5.25 | AN69: 0.754650443 | AO69: 0.3942846922 | AP69: 255.9763332
A70: Raïm tortó de pinyols | B70: 89 | C70: 0.1623041941 | D70: 0.0678723051 | E70: 112 | F70: -1.654010677 | G70: 29.6262119 | H70: -16.03534777 | I70: 0.5864 | L70: 2 | M70: 0.18833 | N70: 181.17346 | O70: 16 | P70: 503 | Q70: 847 | R70: 751 | S70: 644 | T70: 38 | U70: 6.6 | V70: 1.3 | AM70: =O70*0.75 -> 12 | AN70: 1.063280888 | AO70: 0.2333714493 | AP70: 172.2609194
A71: Remolatxa polpes ensitjades | B71: 22 | C71: 1.00766597 | D71: 1.00149028 | E71: 98 | F71: 33.63126047 | G71: 93.73194347 | H71: -53.22731718 | I71: 0.2876 | L71: 2 | M71: 0.85378 | N71: 778.64736 | O71: 9 | P71: 206 | Q71: 428.74 | R71: 269.38 | S71: 62.22 | T71: 88 | U71: 13 | V71: 1 | AB71: 0.1 | AC71: 4.6 | AD71: 0.3 | AG71: 52.4 | AH71: 0.03 | AI71: 9.6 | AM71: =O71*0.5 -> 4.5 | AN71: 0.6057580172 | AO71: 0.8704707824 | AP71: 731.0116457
A72: Remolatxa polpes deshidratades | B72: 90 | C72: 1.025471629 | D72: 1.019108024 | E72: 98 | F72: 34.16981377 | G72: 94.98664694 | H72: -54.34630184 | I72: 0.2876 | L72: 2 | M72: 0.855001 | N72: 794.2104289 | O72: 9 | P72: 202.7 | Q72: 507.9 | R72: 302.1 | S72: 55.1 | T72: 71.1 | U72: 10.6 | V72: 1 | W72: 2.233333333 | X72: 0.4 | Y72: 4 | Z72: 2.233333333 | AA72: 2.2 | AB72: 0.09333333333 | AC72: 7.733333333 | AD72: 0.3 | AF72: 243 | AG72: 47.6 | AH72: 0.03 | AI72: 9.733333333 | AK72: 0.6 | AM72: 4 | AN72: 0.6031402548 | AO72: 0.8785763064 | AP72: 746.3181739
A73: Melassa Remolatxa | B73: 76 | C73: 1.184004733 | D73: 1.207089514 | E73: 146 | F73: 10.22 | G73: 76.74012851 | H73: 17.6422992 | I73: -0.7084 | L73: 3 | M73: 0.89 | N73: 878.252 | O73: 2 | P73: 0 | Q73: 0 | R73: 0 | S73: 0 | T73: 13.2 | U73: 3.5 | V73: 0.5 | W73: 16.5 | Y73: 55 | Z73: 12.5 | AM73: 2 | AN73: 0.93 | AO73: 1 | AP73: 866.032
A74: Melassa canya | B74: 75 | C74: 0.8610639099 | D74: 0.8391616233 | E74: 45 | F74: 3.15 | G74: 61.811424 | H74: -64.008475 | I74: -1.5384 | L74: 4 | M74: 0.8 | N74: 710.4 | O74: 12 | P74: 0 | Q74: 0 | R74: 0 | S74: 0 | T74: 112 | U74: 9.3 | V74: 1.1 | W74: 4.7 | X74: 27 | Y74: 33 | Z74: 1.7 | AM74: 12 | AN74: 0.93 | AO74: 1 | AP74: 695.25
A75: Grassa vegetal, mantega de porc (tots els tipus) | B75: 99.9 | C75: 3.61 | D75: 3.94 | E75: 1e-07 | F75: 1e-07 | G75: 1e-07 | H75: -14 | I75: 0.25 | L75: 2 | M75: 0.9 | N75: 1e-07 | O75: 999 | P75: 1e-07 | Q75: 1e-07 | R75: 1e-07 | S75: 1e-07 | T75: 1e-07 | U75: 1e-07 | V75: 1e-07 | W75: 1e-07 | X75: 1e-07 | Y75: 1e-07 | Z75: 1e-07 | AA75: 1e-07 | AB75: 1e-07 | AC75: 1e-07 | AD75: 1e-07 | AE75: 1e-07 | AF75: 1e-07 | AG75: 1e-07 | AH75: 1e-07 | AI75: 1e-07 | AJ75: 1300 | AK75: 1e-07 | AL75: 95 | AM75: =O75 -> 999 | AN75: 0 | AO75: 0 | AP75: 0
A76: Llevat cerveseria | B76: 93.3 | C76: 1.18 | D76: 1.17 | E76: 476 | F76: 87 | G76: 143 | H76: 278 | I76: 0.15 | L76: 2 | M76: 0.84 | N76: 756 | O76: 40 | P76: 21 | Q76: 88 | R76: 25 | S76: 7 | T76: 32 | U76: 3 | V76: 13.5 | W76: 2.4 | AM76: 32 | AN76: =1-(F76/(E76*AO76)) -> 0.815157707 | AO76: =(88.3+0.0371*E76-3.7*(10^-5)*(E76^2)-0.107*S76-0.00313*(100-N76))/100 -> 0.98880568 | AP76: =N76-E76*(1-AN76)-O76 -> 628.0150685
A77: Urea | B77: 99 | C77: 0.26 | D77: 0.2 | E77: 2870 | F77: 1e-06 | G77: 71 | H77: 2557 | I77: 0.23 | L77: 2 | M77: 0.99 | N77: 1e-06 | O77: 1e-06 | P77: 1e-06 | Q77: 1e-06 | R77: 1e-06 | S77: 1e-06 | T77: 1e-06 | U77: 1e-06 | V77: 1e-06 | W77: 1e-06 | X77: 1e-06 | Y77: 1e-06 | Z77: 1e-06 | AA77: 1e-06 | AB77: 1e-06 | AC77: 1e-06 | AD77: 1e-06 | AE77: 1e-06 | AF77: 1e-06 | AG77: 1e-06 | AH77: 1e-06 | AI77: 1e-06 | AJ77: 1e-06 | AK77: 1e-06 | AL77: 1e-06 | AM77: 0 | AN77: 0 | AO77: 0 | AP77: 0
A78: Residu pa deshidratat, NRC | B78: 92 | C78: 1.096141567 | D78: 1.054875419 | E78: 107 | F78: 22.01612961 | G78: 70.4665579 | H78: -10.7237942 | I78: 0.294457 | L78: 2 | M78: 0.714218 | N78: 628.1690154 | O78: 127 | P78: 130 | Q78: 180 | R78: 130 | S78: 10 | T78: 44 | U78: 1.4 | V78: 2.6 | W78: 2.6 | X78: 16.1 | Y78: 5.3 | Z78: 12.4 | AA78: 0.2 | AB78: 1.05 | AC78: 5 | AF78: 31 | AG78: 71 | AI78: 16 | AJ78: 2000 | AL78: 45 | AN78: =1-(F78/(E78*AO78)) -> 0.7773884271 | AO78: =(88.3+0.0371*E78-3.7*(10^-5)*(E78^2)-0.107*S78-0.00313*(100-N78))/100 -> 0.9242925602 | AP78: =N78-E78*(1-AN78)-O78 -> 477.3495771
A79: Mandioca | B79: 85 | C79: 1.142097463 | D79: 1.174454355 | E79: 31 | F79: 10.10542253 | G79: 75.49002249 | H79: -97.45343744 | I79: 0.1216 | L79: 2 | M79: 0.91762 | N79: 861.64518 | O79: 8.2 | P79: 54 | Q79: 118 | R79: 59 | S79: 14.01 | T79: 61 | U79: 2.5 | V79: 1 | W79: 0.9 | Y79: 7.5 | Z79: 0.35 | AC79: 2 | AF79: 50 | AG79: 5 | AI79: 30 | AM79: =O79*0.8 -> 6.56 | AN79: =1-(F79/(E79*AO79)) -> 0.638999494 | AO79: =(88.3+0.0371*E79-3.7*(10^-5)*(E79^2)-0.107*S79-0.00313*(100-N79))/100 -> 0.9029942241 | AP79: =N79-E79*(1-AN79)-O79 -> 842.2541643
A80: Alfals deshidratat i aglomerats | B80: 90.2 | C80: 0.7398701174 | D80: 0.6738447078 | E80: 233 | F80: 68.64631679 | G80: 116.147103 | H80: 51.38002158 | I80: 0.3789 | L80: 2 | M80: 0.6658 | N80: 579.9118 | O80: 34 | P80: 237 | Q80: 405 | R80: 280 | S80: 76 | T80: 129 | U80: 24.1 | V80: 3.2 | AM80: =O80*0.5 -> 17 | AN80: =1-(F80/(E80*AO80)) -> 0.6663643659 | AO80: =(88.3+0.0371*E80-3.7*(10^-5)*(E80^2)-0.107*S80-0.00313*(100-N80))/100 -> 0.8830573093 | AP80: =N80-E80*(1-AN80)-O80 -> 468.1746973
A81: Graminies deshidratades i aglomerades | B81: 91 | C81: 0.8289959418 | D81: 0.7851460594 | E81: 105 | F81: 26.82240135 | G81: 80.52058238 | H81: -29.85340787 | I81: 0.3818741 | L81: 2 | M81: 0.72207 | N81: 649.14093 | O81: 25 | P81: 238 | Q81: 508 | R81: 269 | S81: 73.08 | T81: 101 | U81: 4.3 | V81: 2.7 | AM81: =O81*0.5 -> 12.5 | AN81: =1-(F81/(E81*AO81)) -> 0.7018778114 | AO81: =(88.3+0.0371*E81-3.7*(10^-5)*(E81^2)-0.107*S81-0.00313*(100-N81))/100 -> 0.8568682611 | AP81: =N81-E81*(1-AN81)-O81 -> 592.8381002

Sheet Taula Minerals-aa
A1: INGREDIENTS | B1: MS | C1: UFL | D1: UFV | E1: MNT_PB | F1: PDIA | G1: PDI | H1: BPR | I1: UEL | J1: UEB | K1: UEM | L1: NI ref | M1: dMO | N1: MOD_TDN | O1: EE | P1: FB | Q1: NDF | R1: ADF | S1: Lignina | T1: cendres | U1: Ca | V1: P | W1: Mg | X1: Cl | Y1: K | Z1: Na | AA1: S | AB1: Co | AC1: Cu | AD1: Mo | AE1: Iode | AF1: Fe | AG1: Mn | AH1: Se | AI1: Zn | AJ1: Vit A | AK1: Vit D | AL1: Vit E | AM1: AG | AN1: DT_N | AO1: dr | AP1: MOF
A3: Carbonat càlcic | B3: 98 | T3: 955 | U3: 145.54 | W3: 14 | X3: 0.2 | Y3: 0.7 | Z3: 0.7 | AA3: 0.7 | AC3: 12 | AF3: 620
A4: Fosfat bicàlcic | B4: 98.8 | T4: 836 | U4: 244 | V4: 122.4 | W4: 5 | X4: 0.4 | Y4: 1.2 | Z4: 0.8 | AA4: 11 | AC4: 15 | AF4: 7800
A5: Fosfat monocàlcic | B5: 98.8 | U5: 88.2 | V5: 155.04
A6: Òxid magnèsic | B6: 100 | U6: 30 | W6: 510
A7: Farina d’ossos | B7: 100 | U7: 11.8 | V7: 10.2
A8: Fosfat sòdic | B8: 100 | V8: 13.6 | Z8: 19
A9: Fosfòric | B9: 100 | V9: 21.488
A10: Bicarbonat sòdic | B10: 99.7 | Z10: 270
A11: Carbonat de cobalt | B11: 100 | AB11: 49
A12: Carbonat de manganès | B12: 100 | AG12: 47
A13: Carbonat de zinc | B13: 100 | AI13: 52
A14: Clorur potàssic | B14: 100 | Y14: 52
A15: Clorur sòdic | B15: 98 | X15: 570 | Z15: 360
A16: Iodur potàssic | B16: 100 | AE16: 76
A17: Òxid de coure | B17: 100 | AC17: 80 | AL17: 780
A18: Òxid de manganès | B18: 100 | AG18: 77
A19: Òxid de zinc | B19: 100 | AI19: 80
A20: Sulfat de cobalt | B20: 100 | AB20: 22
A21: Sulfat de coure | B21: 100 | AC21: 25
A22: Sulfat de zinc | B22: 100 | AI22: 23
A23: Sulfat magnèsic | B23: 100 | W23: 10 | AA23: 13
A24: Sulfat sòdic | B24: 100 | Z24: 32 | AA24: 22

Sheet CàlculsEV (hidden)
D1: =OFFSET('Taula Farratges'!$A$1,0,D2,1,1) -> MS % | E1: =OFFSET('Taula Farratges'!$A$1,0,E2,1,1) -> UEB | F1: =OFFSET('Taula Farratges'!$A$1,0,F2,1,1) -> UFL | G1: =OFFSET('Taula Farratges'!$A$1,0,G2,1,1) -> PDI | H1: =OFFSET('Taula Farratges'!$A$1,0,H2,1,1) -> BPR | I1: =OFFSET('Taula Farratges'!$A$1,0,I2,1,1) -> NI ref | J1: =OFFSET('Taula Farratges'!$A$1,0,J2,1,1) -> Ca | K1: =OFFSET('Taula Farratges'!$A$1,0,K2,1,1) -> P | L1: =OFFSET('Taula Farratges'!$A$1,0,L2,1,1) -> Mg | M1: =OFFSET('Taula Farratges'!$A$1,0,M2,1,1) -> K | N1: =OFFSET('Taula Farratges'!$A$1,0,N2,1,1) -> Na | O1: =OFFSET('Taula Farratges'!$A$1,0,O2,1,1) -> S | P1: =OFFSET('Taula Farratges'!$A$1,0,P2,1,1) -> Cl | Q1: =OFFSET('Taula Farratges'!$A$1,0,Q2,1,1) -> Co | R1: =OFFSET('Taula Farratges'!$A$1,0,R2,1,1) -> Cu | S1: =OFFSET('Taula Farratges'!$A$1,0,S2,1,1) -> Mn | T1: =OFFSET('Taula Farratges'!$A$1,0,T2,1,1) -> Zn | U1: =OFFSET('Taula Farratges'!$A$1,0,U2,1,1) -> Iode | V1: =OFFSET('Taula Farratges'!$A$1,0,V2,1,1) -> Se | W1: =OFFSET('Taula Farratges'!$A$1,0,W2,1,1) -> Vit A | X1: =OFFSET('Taula Farratges'!$A$1,0,X2,1,1) -> Vit D | Y1: =OFFSET('Taula Farratges'!$A$1,0,Y2,1,1) -> Vit E | Z1: =OFFSET('Taula Farratges'!$A$1,0,Z2,1,1) -> AG | AA1: =OFFSET('Taula Farratges'!$A$1,0,AA2,1,1) -> MNT_PB | AB1: =OFFSET('Taula Farratges'!$A$1,0,AB2,1,1) -> PDIA | AC1: =OFFSET('Taula Farratges'!$A$1,0,AC2,1,1) -> dMO | AD1: =OFFSET('Taula Farratges'!$A$1,0,AD2,1,1) -> MOD | AE1: =OFFSET('Taula Farratges'!$A$1,0,AE2,1,1) -> EE | AF1: =OFFSET('Taula Farratges'!$A$1,0,AF2,1,1) -> FB | AG1: =OFFSET('Taula Farratges'!$A$1,0,AG2,1,1) -> NDF | AH1: =OFFSET('Taula Farratges'!$A$1,0,AH2,1,1) -> ADF | AI1: =OFFSET('Taula Farratges'!$A$1,0,AI2,1,1) -> Lignina | AJ1: =OFFSET('Taula Farratges'!$A$1,0,AJ2,1,1) -> cendres | AK1: =OFFSET('Taula Farratges'!$A$1,0,AK2,1,1) -> Mo | AL1: =OFFSET('Taula Farratges'!$A$1,0,AL2,1,1) -> DT_N | AM1: =OFFSET('Taula Farratges'!$A$1,0,AM2,1,1) -> MOF | BI1: AG | BJ1: MNT_PB | BK1: PDIA | BL1: dMO | BM1: MOD | BN1: EE | BO1: FB | BP1: NDF | BQ1: ADF | BR1: Lignina | BS1: cendres | BT1: Mo
A2: TIPUS | B2: INGREDIENTS UTILITZATS | C2: Nº | D2: 1 | E2: 9 | F2: =E29+1 -> 2 | G2: 6 | H2: 7 | I2: 11 | J2: 20 | K2: 21 | L2: 22 | M2: 24 | N2: 25 | O2: 26 | P2: 23 | Q2: 27 | R2: 28 | S2: 32 | T2: 34 | U2: 30 | V2: 33 | W2: 35 | X2: 36 | Y2: 37 | Z2: 38 | AA2: 4 | AB2: 5 | AC2: 12 | AD2: 13 | AE2: 14 | AF2: 15 | AG2: 16 | AH2: 17 | AI2: 18 | AJ2: 19 | AK2: 29 | AL2: 39 | AM2: 41 | AN2: UEB | AO2: UFV | AP2: PDI | AQ2: BPR | AR2: NI ref | AS2: Ca | AT2: P | AU2: Mg | AV2: K | AW2: Na | AX2: S | AY2: Cl | AZ2: Co | BA2: Cu | BB2: Mn | BC2: Zn | BD2: Iode | BE2: Se | BF2: Vit A | BG2: Vit D | BH2: Vit E | BI2: AG | BJ2: MNT_PB | BK2: PDIA | BL2: dMO | BM2: MOD | BN2: EE | BO2: FB | BP2: NDF | BQ2: ADF | BR2: Lignina | BS2: cendres | BT2: Mo | BU2: DT_N | BV2: MOF
A3: FARRATGES | B3: =IF(OFFSET('Taula Farratges'!$A$1,C3,0,1,1)=0,"",OFFSET('Taula Farratges'!$A$1,C3,0,1,1)) -> FENC Civada Inici espigat | C3: 66 | D3: =OFFSET('Taula Farratges'!$A$1,$C3,$D$2,1,1) -> 90 | E3: =OFFSET('Taula Farratges'!$A$1,$C3,$E$2,1,1) -> 1.039063255 | F3: =OFFSET('Taula Farratges'!$A$1,$C3,$F$2,1,1) -> 0.7865238981 | G3: =OFFSET('Taula Farratges'!$A$1,$C3,$G$2,1,1) -> 77.97898436 | H3: =OFFSET('Taula Farratges'!$A$1,$C3,$H$2,1,1) -> 25.71188765 | I3: =OFFSET('Taula Farratges'!$A$1,$C3,$I$2,1,1) -> 2.070318916 | J3: =OFFSET('Taula Farratges'!$A$1,$C3,$J$2,1,1) -> 2.52 | K3: =OFFSET('Taula Farratges'!$A$1,$C3,$K$2,1,1) -> 0.66 | L3: =OFFSET('Taula Farratges'!$A$1,$C3,$L$2,1,1) -> 0 | M3: =OFFSET('Taula Farratges'!$A$1,$C3,$M$2,1,1) -> 0 | N3: =OFFSET('Taula Farratges'!$A$1,$C3,$N$2,1,1) -> 0 | O3: =OFFSET('Taula Farratges'!$A$1,$C3,$O$2,1,1) -> 0 | P3: =OFFSET('Taula Farratges'!$A$1,$C3,$P$2,1,1) -> 0 | Q3: =OFFSET('Taula Farratges'!$A$1,$C3,$Q$2,1,1) -> 0 | R3: =OFFSET('Taula Farratges'!$A$1,$C3,$R$2,1,1) -> 0 | S3: =OFFSET('Taula Farratges'!$A$1,$C3,$S$2,1,1) -> 0 | T3: =OFFSET('Taula Farratges'!$A$1,$C3,$T$2,1,1) -> 0 | U3: =OFFSET('Taula Farratges'!$A$1,$C3,$U$2,1,1) -> 0 | V3: =OFFSET('Taula Farratges'!$A$1,$C3,$V$2,1,1) -> 0 | W3: =OFFSET('Taula Farratges'!$A$1,$C3,$W$2,1,1) -> 50000 | X3: =OFFSET('Taula Farratges'!$A$1,$C3,$X$2,1,1) -> 50 | Y3: =OFFSET('Taula Farratges'!$A$1,$C3,$Y$2,1,1) -> 5 | Z3: =OFFSET('Taula Farratges'!$A$1,$C3,$Z$2,1,1) -> 22.155 | AA3: =OFFSET('Taula Farratges'!$A$1,$C3,$AA$2,1,1) -> 175 | AB3: =OFFSET('Taula Farratges'!$A$1,$C3,$AB$2,1,1) -> 41.65 | AC3: =OFFSET('Taula Farratges'!$A$1,$C3,$AC$2,1,1) -> 0.60695 | AD3: =OFFSET('Taula Farratges'!$A$1,$C3,$AD$2,1,1) -> 567.49825 | AE3: =OFFSET('Taula Farratges'!$A$1,$C3,$AE$2,1,1) -> 26 | AF3: =OFFSET('Taula Farratges'!$A$1,$C3,$AF$2,1,1) -> 290 | AG3: =OFFSET('Taula Farratges'!$A$1,$C3,$AG$2,1,1) -> 580 | AH3: =OFFSET('Taula Farratges'!$A$1,$C3,$AH$2,1,1) -> 350 | AI3: =OFFSET('Taula Farratges'!$A$1,$C3,$AI$2,1,1) -> 40 | AJ3: =OFFSET('Taula Farratges'!$A$1,$C3,$AJ$2,1,1) -> 65 | AK3: =OFFSET('Taula Farratges'!$A$1,$C3,$AK$2,1,1) -> 0 | AL3: =OFFSET('Taula Farratges'!$A$1,$C3,$AL$2,1,1) -> 0.66 | AM3: =OFFSET('Taula Farratges'!$A$1,$C3,$AM$2,1,1) -> 471.7400882 | AN3: =IF('II_Plantejar Ració'!$E4>0,IF(CàlculsEV!E3>0,1,"No"),"") -> 1 | AO3: =IF('II_Plantejar Ració'!$E4>0,IF(CàlculsEV!F3>0,1,"No"),"") -> 1 | AP3: =IF('II_Plantejar Ració'!$E4>0,IF(CàlculsEV!G3>0,1,"No"),"") -> 1 | AQ3: =IF('II_Plantejar Ració'!$E4>0,IF(CàlculsEV!H3=0,"No",1),"") -> 1 | AR3: =IF('II_Plantejar Ració'!$E4>0,IF(CàlculsEV!I3>0,1,"No"),"") -> 1 | AS3: =IF('II_Plantejar Ració'!$E4>0,IF(CàlculsEV!J3>0,1,"No"),"") -> 1 | AT3: =IF('II_Plantejar Ració'!$E4>0,IF(CàlculsEV!K3>0,1,"No"),"") -> 1 | AU3: =IF('II_Plantejar Ració'!$E4>0,IF(CàlculsEV!L3>0,1,"No"),"") -> No | AV3: =IF('II_Plantejar Ració'!$E4>0,IF(CàlculsEV!M3>0,1,"No"),"") -> No | AW3: =IF('II_Plantejar Ració'!$E4>0,IF(CàlculsEV!N3>0,1,"No"),"") -> No | AX3: =IF('II_Plantejar Ració'!$E4>0,IF(CàlculsEV!O3>0,1,"No"),"") -> No | AY3: =IF('II_Plantejar Ració'!$E4>0,IF(CàlculsEV!P3>0,1,"No"),"") -> No | AZ3: =IF('II_Plantejar Ració'!$E4>0,IF(CàlculsEV!Q3>0,1,"No"),"") -> No | BA3: =IF('II_Plantejar Ració'!$E4>0,IF(CàlculsEV!R3>0,1,"No"),"") -> No | BB3: =IF('II_Plantejar Ració'!$E4>0,IF(CàlculsEV!S3>0,1,"No"),"") -> No | BC3: =IF('II_Plantejar Ració'!$E4>0,IF(CàlculsEV!T3>0,1,"No"),"") -> No | BD3: =IF('II_Plantejar Ració'!$E4>0,IF(CàlculsEV!U3>0,1,"No"),"") -> No | BE3: =IF('II_Plantejar Ració'!$E4>0,IF(CàlculsEV!V3>0,1,"No"),"") -> No | BF3: =IF('II_Plantejar Ració'!$E4>0,IF(CàlculsEV!W3>0,1,"No"),"") -> 1 | BG3: =IF('II_Plantejar Ració'!$E4>0,IF(CàlculsEV!X3>0,1,"No"),"") -> 1 | BH3: =IF('II_Plantejar Ració'!$E4>0,IF(CàlculsEV!Y3>0,1,"No"),"") -> 1 | BI3: =IF('II_Plantejar Ració'!$E4>0,IF(CàlculsEV!Z3>0,1,"No"),"") -> 1 | BJ3: =IF('II_Plantejar Ració'!$E4>0,IF(CàlculsEV!AA3>0,1,"No"),"") -> 1 | BK3: =IF('II_Plantejar Ració'!$E4>0,IF(CàlculsEV!AB3>0,1,"No"),"") -> 1 | BL3: =IF('II_Plantejar Ració'!$E4>0,IF(CàlculsEV!AC3>0,1,"No"),"") -> 1 | BM3: =IF('II_Plantejar Ració'!$E4>0,IF(CàlculsEV!AD3>0,1,"No"),"") -> 1 | BN3: =IF('II_Plantejar Ració'!$E4>0,IF(CàlculsEV!AE3>0,1,"No"),"") -> 1 | BO3: =IF('II_Plantejar Ració'!$E4>0,IF(CàlculsEV!AF3>0,1,"No"),"") -> 1 | BP3: =IF('II_Plantejar Ració'!$E4>0,IF(CàlculsEV!AG3>0,1,"No"),"") -> 1 | BQ3: =IF('II_Plantejar Ració'!$E4>0,IF(CàlculsEV!AH3>0,1,"No"),"") -> 1 | BR3: =IF('II_Plantejar Ració'!$E4>0,IF(CàlculsEV!AI3>0,1,"No"),"") -> 1 | BS3: =IF('II_Plantejar Ració'!$E4>0,IF(CàlculsEV!AJ3>0,1,"No"),"") -> 1 | BT3: =IF('II_Plantejar Ració'!$E4>0,IF(CàlculsEV!AK3>0,1,"No"),"") -> No | BU3: =IF('II_Plantejar Ració'!$E4>0,IF(CàlculsEV!AL3>0,1,"No"),"") -> 1 | BV3: =IF('II_Plantejar Ració'!$E4>0,IF(CàlculsEV!AM3>0,1,"No"),"") -> 1 | BW3: =IF(AN3="",0,1) -> 1 | BX3: 1 | BY3: 1 | BZ3: 1 | CA3: 1 | CB3: 1 | CC3: 1 | CD3: 1 | CE3: 1 | CF3: 1 | CG3: 1 | CH3: 1 | CI3: 1 | CJ3: 1 | CK3: 1 | CL3: 1 | CM3: 1 | CN3: 1 | CO3: 1 | CP3: 1 | CQ3: 1 | CR3: 1 | CS3: 1 | CT3: 1 | CU3: 1 | CV3: 1 | CW3: 1 | CX3: 1 | CY3: 1 | CZ3: 1 | DA3: 1 | DB3: 1 | DC3: 1 | DD3: 1 | DE3: 1
B4: =IF(OFFSET('Taula Farratges'!$A$1,C4,0,1,1)=0,"",OFFSET('Taula Farratges'!$A$1,C4,0,1,1)) -> ENSITJAT prefenificat Alfals rebrots floració | C4: 55 | D4: =OFFSET('Taula Farratges'!$A$1,$C4,$D$2,1,1) -> 47 | E4: =OFFSET('Taula Farratges'!$A$1,$C4,$E$2,1,1) -> 0.942718323 | F4: =OFFSET('Taula Farratges'!$A$1,$C4,$F$2,1,1) -> 1.003207297 | G4: =OFFSET('Taula Farratges'!$A$1,$C4,$G$2,1,1) -> 68.85859238 | H4: =OFFSET('Taula Farratges'!$A$1,$C4,$H$2,1,1) -> 78.00981843 | I4: =OFFSET('Taula Farratges'!$A$1,$C4,$I$2,1,1) -> 2.484860488 | J4: =OFFSET('Taula Farratges'!$A$1,$C4,$J$2,1,1) -> 5.22 | K4: =OFFSET('Taula Farratges'!$A$1,$C4,$K$2,1,1) -> 2.45 | L4: =OFFSET('Taula Farratges'!$A$1,$C4,$L$2,1,1) -> 0 | M4: =OFFSET('Taula Farratges'!$A$1,$C4,$M$2,1,1) -> 0 | N4: =OFFSET('Taula Farratges'!$A$1,$C4,$N$2,1,1) -> 0 | O4: =OFFSET('Taula Farratges'!$A$1,$C4,$O$2,1,1) -> 0 | P4: =OFFSET('Taula Farratges'!$A$1,$C4,$P$2,1,1) -> 0 | Q4: =OFFSET('Taula Farratges'!$A$1,$C4,$Q$2,1,1) -> 0 | R4: =OFFSET('Taula Farratges'!$A$1,$C4,$R$2,1,1) -> 0 | S4: =OFFSET('Taula Farratges'!$A$1,$C4,$S$2,1,1) -> 0 | T4: =OFFSET('Taula Farratges'!$A$1,$C4,$T$2,1,1) -> 0 | U4: =OFFSET('Taula Farratges'!$A$1,$C4,$U$2,1,1) -> 0 | V4: =OFFSET('Taula Farratges'!$A$1,$C4,$V$2,1,1) -> 0 | W4: =OFFSET('Taula Farratges'!$A$1,$C4,$W$2,1,1) -> 3000 | X4: =OFFSET('Taula Farratges'!$A$1,$C4,$X$2,1,1) -> 200 | Y4: =OFFSET('Taula Farratges'!$A$1,$C4,$Y$2,1,1) -> 5 | Z4: =OFFSET('Taula Farratges'!$A$1,$C4,$Z$2,1,1) -> 27.0051 | AA4: =OFFSET('Taula Farratges'!$A$1,$C4,$AA$2,1,1) -> 219.7 | AB4: =OFFSET('Taula Farratges'!$A$1,$C4,$AB$2,1,1) -> 27.79205 | AC4: =OFFSET('Taula Farratges'!$A$1,$C4,$AC$2,1,1) -> 0.726176 | AD4: =OFFSET('Taula Farratges'!$A$1,$C4,$AD$2,1,1) -> 627.779152 | AE4: =OFFSET('Taula Farratges'!$A$1,$C4,$AE$2,1,1) -> 17.8 | AF4: =OFFSET('Taula Farratges'!$A$1,$C4,$AF$2,1,1) -> 231.2 | AG4: =OFFSET('Taula Farratges'!$A$1,$C4,$AG$2,1,1) -> 391.4 | AH4: =OFFSET('Taula Farratges'!$A$1,$C4,$AH$2,1,1) -> 298.9 | AI4: =OFFSET('Taula Farratges'!$A$1,$C4,$AI$2,1,1) -> 61.9 | AJ4: =OFFSET('Taula Farratges'!$A$1,$C4,$AJ$2,1,1) -> 135.5 | AK4: =OFFSET('Taula Farratges'!$A$1,$C4,$AK$2,1,1) -> 0 | AL4: =OFFSET('Taula Farratges'!$A$1,$C4,$AL$2,1,1) -> 0.79 | AM4: =OFFSET('Taula Farratges'!$A$1,$C4,$AM$2,1,1) -> 551.9218578 | AN4: =IF('II_Plantejar Ració'!$E5>0,IF(CàlculsEV!E4>0,1,"No"),"") ->  | AO4: =IF('II_Plantejar Ració'!$E5>0,IF(CàlculsEV!F4>0,1,"No"),"") ->  | AP4: =IF('II_Plantejar Ració'!$E5>0,IF(CàlculsEV!G4>0,1,"No"),"") ->  | AQ4: =IF('II_Plantejar Ració'!$E5>0,IF(CàlculsEV!H4=0,"No",1),"") ->  | AR4: =IF('II_Plantejar Ració'!$E5>0,IF(CàlculsEV!I4>0,1,"No"),"") ->  | AS4: =IF('II_Plantejar Ració'!$E5>0,IF(CàlculsEV!J4>0,1,"No"),"") ->  | AT4: =IF('II_Plantejar Ració'!$E5>0,IF(CàlculsEV!K4>0,1,"No"),"") ->  | AU4: =IF('II_Plantejar Ració'!$E5>0,IF(CàlculsEV!L4>0,1,"No"),"") ->  | AV4: =IF('II_Plantejar Ració'!$E5>0,IF(CàlculsEV!M4>0,1,"No"),"") ->  | AW4: =IF('II_Plantejar Ració'!$E5>0,IF(CàlculsEV!N4>0,1,"No"),"") ->  | AX4: =IF('II_Plantejar Ració'!$E5>0,IF(CàlculsEV!O4>0,1,"No"),"") ->  | AY4: =IF('II_Plantejar Ració'!$E5>0,IF(CàlculsEV!P4>0,1,"No"),"") ->  | AZ4: =IF('II_Plantejar Ració'!$E5>0,IF(CàlculsEV!Q4>0,1,"No"),"") ->  | BA4: =IF('II_Plantejar Ració'!$E5>0,IF(CàlculsEV!R4>0,1,"No"),"") ->  | BB4: =IF('II_Plantejar Ració'!$E5>0,IF(CàlculsEV!S4>0,1,"No"),"") ->  | BC4: =IF('II_Plantejar Ració'!$E5>0,IF(CàlculsEV!T4>0,1,"No"),"") ->  | BD4: =IF('II_Plantejar Ració'!$E5>0,IF(CàlculsEV!U4>0,1,"No"),"") ->  | BE4: =IF('II_Plantejar Ració'!$E5>0,IF(CàlculsEV!V4>0,1,"No"),"") ->  | BF4: =IF('II_Plantejar Ració'!$E5>0,IF(CàlculsEV!W4>0,1,"No"),"") ->  | BG4: =IF('II_Plantejar Ració'!$E5>0,IF(CàlculsEV!X4>0,1,"No"),"") ->  | BH4: =IF('II_Plantejar Ració'!$E5>0,IF(CàlculsEV!Y4>0,1,"No"),"") ->  | BI4: =IF('II_Plantejar Ració'!$E5>0,IF(CàlculsEV!Z4>0,1,"No"),"") ->  | BJ4: =IF('II_Plantejar Ració'!$E5>0,IF(CàlculsEV!AA4>0,1,"No"),"") ->  | BK4: =IF('II_Plantejar Ració'!$E5>0,IF(CàlculsEV!AB4>0,1,"No"),"") ->  | BL4: =IF('II_Plantejar Ració'!$E5>0,IF(CàlculsEV!AC4>0,1,"No"),"") ->  | BM4: =IF('II_Plantejar Ració'!$E5>0,IF(CàlculsEV!AD4>0,1,"No"),"") ->  | BN4: =IF('II_Plantejar Ració'!$E5>0,IF(CàlculsEV!AE4>0,1,"No"),"") ->  | BO4: =IF('II_Plantejar Ració'!$E5>0,IF(CàlculsEV!AF4>0,1,"No"),"") ->  | BP4: =IF('II_Plantejar Ració'!$E5>0,IF(CàlculsEV!AG4>0,1,"No"),"") ->  | BQ4: =IF('II_Plantejar Ració'!$E5>0,IF(CàlculsEV!AH4>0,1,"No"),"") ->  | BR4: =IF('II_Plantejar Ració'!$E5>0,IF(CàlculsEV!AI4>0,1,"No"),"") ->  | BS4: =IF('II_Plantejar Ració'!$E5>0,IF(CàlculsEV!AJ4>0,1,"No"),"") ->  | BT4: =IF('II_Plantejar Ració'!$E5>0,IF(CàlculsEV!AK4>0,1,"No"),"") ->  | BU4: =IF('II_Plantejar Ració'!$E5>0,IF(CàlculsEV!AL4>0,1,"No"),"") ->  | BV4: =IF('II_Plantejar Ració'!$E5>0,IF(CàlculsEV!AM4>0,1,"No"),"") ->  | BW4: =IF(AN4="",0,1) -> 0 | BX4: =IF(AO4="",0,1) -> 0 | BY4: =IF(AP4="",0,1) -> 0 | BZ4: =IF(AQ4="",0,1) -> 0 | CA4: =IF(AR4="",0,1) -> 0 | CB4: =IF(AS4="",0,1) -> 0 | CC4: =IF(AT4="",0,1) -> 0 | CD4: =IF(AU4="",0,1) -> 0 | CE4: =IF(AV4="",0,1) -> 0 | CF4: =IF(AW4="",0,1) -> 0 | CG4: =IF(AX4="",0,1) -> 0 | CH4: =IF(AY4="",0,1) -> 0 | CI4: =IF(AZ4="",0,1) -> 0 | CJ4: =IF(BA4="",0,1) -> 0 | CK4: =IF(BB4="",0,1) -> 0 | CL4: =IF(BC4="",0,1) -> 0 | CM4: =IF(BD4="",0,1) -> 0 | CN4: =IF(BE4="",0,1) -> 0 | CO4: =IF(BF4="",0,1) -> 0 | CP4: =IF(BG4="",0,1) -> 0 | CQ4: =IF(BH4="",0,1) -> 0 | CR4: =IF(BI4="",0,1) -> 0 | CS4: =IF(BJ4="",0,1) -> 0 | CT4: =IF(BK4="",0,1) -> 0 | CU4: =IF(BL4="",0,1) -> 0 | CV4: =IF(BM4="",0,1) -> 0 | CW4: =IF(BN4="",0,1) -> 0 | CX4: =IF(BO4="",0,1) -> 0 | CY4: =IF(BP4="",0,1) -> 0 | CZ4: =IF(BQ4="",0,1) -> 0 | DA4: =IF(BR4="",0,1) -> 0 | DB4: =IF(BS4="",0,1) -> 0 | DC4: =IF(BT4="",0,1) -> 0 | DD4: =IF(BU4="",0,1) -> 0 | DE4: =IF(BV4="",0,1) -> 0
B5: =IF(OFFSET('Taula Farratges'!$A$1,C5,0,1,1)=0,"",OFFSET('Taula Farratges'!$A$1,C5,0,1,1)) ->  | C5: 1 | D5: =OFFSET('Taula Farratges'!$A$1,$C5,$D$2,1,1) -> 0 | E5: =OFFSET('Taula Farratges'!$A$1,$C5,$E$2,1,1) -> 0 | F5: =OFFSET('Taula Farratges'!$A$1,$C5,$F$2,1,1) -> 0 | G5: =OFFSET('Taula Farratges'!$A$1,$C5,$G$2,1,1) -> 0 | H5: =OFFSET('Taula Farratges'!$A$1,$C5,$H$2,1,1) -> 0 | I5: =OFFSET('Taula Farratges'!$A$1,$C5,$I$2,1,1) -> 0 | J5: =OFFSET('Taula Farratges'!$A$1,$C5,$J$2,1,1) -> 0 | K5: =OFFSET('Taula Farratges'!$A$1,$C5,$K$2,1,1) -> 0 | L5: =OFFSET('Taula Farratges'!$A$1,$C5,$L$2,1,1) -> 0 | M5: =OFFSET('Taula Farratges'!$A$1,$C5,$M$2,1,1) -> 0 | N5: =OFFSET('Taula Farratges'!$A$1,$C5,$N$2,1,1) -> 0 | O5: =OFFSET('Taula Farratges'!$A$1,$C5,$O$2,1,1) -> 0 | P5: =OFFSET('Taula Farratges'!$A$1,$C5,$P$2,1,1) -> 0 | Q5: =OFFSET('Taula Farratges'!$A$1,$C5,$Q$2,1,1) -> 0 | R5: =OFFSET('Taula Farratges'!$A$1,$C5,$R$2,1,1) -> 0 | S5: =OFFSET('Taula Farratges'!$A$1,$C5,$S$2,1,1) -> 0 | T5: =OFFSET('Taula Farratges'!$A$1,$C5,$T$2,1,1) -> 0 | U5: =OFFSET('Taula Farratges'!$A$1,$C5,$U$2,1,1) -> 0 | V5: =OFFSET('Taula Farratges'!$A$1,$C5,$V$2,1,1) -> 0 | W5: =OFFSET('Taula Farratges'!$A$1,$C5,$W$2,1,1) -> 0 | X5: =OFFSET('Taula Farratges'!$A$1,$C5,$X$2,1,1) -> 0 | Y5: =OFFSET('Taula Farratges'!$A$1,$C5,$Y$2,1,1) -> 0 | Z5: =OFFSET('Taula Farratges'!$A$1,$C5,$Z$2,1,1) -> 0 | AA5: =OFFSET('Taula Farratges'!$A$1,$C5,$AA$2,1,1) -> 0 | AB5: =OFFSET('Taula Farratges'!$A$1,$C5,$AB$2,1,1) -> 0 | AC5: =OFFSET('Taula Farratges'!$A$1,$C5,$AC$2,1,1) -> 0 | AD5: =OFFSET('Taula Farratges'!$A$1,$C5,$AD$2,1,1) -> 0 | AE5: =OFFSET('Taula Farratges'!$A$1,$C5,$AE$2,1,1) -> 0 | AF5: =OFFSET('Taula Farratges'!$A$1,$C5,$AF$2,1,1) -> 0 | AG5: =OFFSET('Taula Farratges'!$A$1,$C5,$AG$2,1,1) -> 0 | AH5: =OFFSET('Taula Farratges'!$A$1,$C5,$AH$2,1,1) -> 0 | AI5: =OFFSET('Taula Farratges'!$A$1,$C5,$AI$2,1,1) -> 0 | AJ5: =OFFSET('Taula Farratges'!$A$1,$C5,$AJ$2,1,1) -> 0 | AK5: =OFFSET('Taula Farratges'!$A$1,$C5,$AK$2,1,1) -> 0 | AL5: =OFFSET('Taula Farratges'!$A$1,$C5,$AL$2,1,1) -> 0 | AM5: =OFFSET('Taula Farratges'!$A$1,$C5,$AM$2,1,1) -> 0 | AN5: =IF('II_Plantejar Ració'!$E6>0,IF(CàlculsEV!E5>0,1,"No"),"") ->  | AO5: =IF('II_Plantejar Ració'!$E6>0,IF(CàlculsEV!F5>0,1,"No"),"") ->  | AP5: =IF('II_Plantejar Ració'!$E6>0,IF(CàlculsEV!G5>0,1,"No"),"") ->  | AQ5: =IF('II_Plantejar Ració'!$E6>0,IF(CàlculsEV!H5=0,"No",1),"") ->  | AR5: =IF('II_Plantejar Ració'!$E6>0,IF(CàlculsEV!I5>0,1,"No"),"") ->  | AS5: =IF('II_Plantejar Ració'!$E6>0,IF(CàlculsEV!J5>0,1,"No"),"") ->  | AT5: =IF('II_Plantejar Ració'!$E6>0,IF(CàlculsEV!K5>0,1,"No"),"") ->  | AU5: =IF('II_Plantejar Ració'!$E6>0,IF(CàlculsEV!L5>0,1,"No"),"") ->  | AV5: =IF('II_Plantejar Ració'!$E6>0,IF(CàlculsEV!M5>0,1,"No"),"") ->  | AW5: =IF('II_Plantejar Ració'!$E6>0,IF(CàlculsEV!N5>0,1,"No"),"") ->  | AX5: =IF('II_Plantejar Ració'!$E6>0,IF(CàlculsEV!O5>0,1,"No"),"") ->  | AY5: =IF('II_Plantejar Ració'!$E6>0,IF(CàlculsEV!P5>0,1,"No"),"") ->  | AZ5: =IF('II_Plantejar Ració'!$E6>0,IF(CàlculsEV!Q5>0,1,"No"),"") ->  | BA5: =IF('II_Plantejar Ració'!$E6>0,IF(CàlculsEV!R5>0,1,"No"),"") ->  | BB5: =IF('II_Plantejar Ració'!$E6>0,IF(CàlculsEV!S5>0,1,"No"),"") ->  | BC5: =IF('II_Plantejar Ració'!$E6>0,IF(CàlculsEV!T5>0,1,"No"),"") ->  | BD5: =IF('II_Plantejar Ració'!$E6>0,IF(CàlculsEV!U5>0,1,"No"),"") ->  | BE5: =IF('II_Plantejar Ració'!$E6>0,IF(CàlculsEV!V5>0,1,"No"),"") ->  | BF5: =IF('II_Plantejar Ració'!$E6>0,IF(CàlculsEV!W5>0,1,"No"),"") ->  | BG5: =IF('II_Plantejar Ració'!$E6>0,IF(CàlculsEV!X5>0,1,"No"),"") ->  | BH5: =IF('II_Plantejar Ració'!$E6>0,IF(CàlculsEV!Y5>0,1,"No"),"") ->  | BI5: =IF('II_Plantejar Ració'!$E6>0,IF(CàlculsEV!Z5>0,1,"No"),"") ->  | BJ5: =IF('II_Plantejar Ració'!$E6>0,IF(CàlculsEV!AA5>0,1,"No"),"") ->  | BK5: =IF('II_Plantejar Ració'!$E6>0,IF(CàlculsEV!AB5>0,1,"No"),"") ->  | BL5: =IF('II_Plantejar Ració'!$E6>0,IF(CàlculsEV!AC5>0,1,"No"),"") ->  | BM5: =IF('II_Plantejar Ració'!$E6>0,IF(CàlculsEV!AD5>0,1,"No"),"") ->  | BN5: =IF('II_Plantejar Ració'!$E6>0,IF(CàlculsEV!AE5>0,1,"No"),"") ->  | BO5: =IF('II_Plantejar Ració'!$E6>0,IF(CàlculsEV!AF5>0,1,"No"),"") ->  | BP5: =IF('II_Plantejar Ració'!$E6>0,IF(CàlculsEV!AG5>0,1,"No"),"") ->  | BQ5: =IF('II_Plantejar Ració'!$E6>0,IF(CàlculsEV!AH5>0,1,"No"),"") ->  | BR5: =IF('II_Plantejar Ració'!$E6>0,IF(CàlculsEV!AI5>0,1,"No"),"") ->  | BS5: =IF('II_Plantejar Ració'!$E6>0,IF(CàlculsEV!AJ5>0,1,"No"),"") ->  | BT5: =IF('II_Plantejar Ració'!$E6>0,IF(CàlculsEV!AK5>0,1,"No"),"") ->  | BU5: =IF('II_Plantejar Ració'!$E6>0,IF(CàlculsEV!AL5>0,1,"No"),"") ->  | BV5: =IF('II_Plantejar Ració'!$E6>0,IF(CàlculsEV!AM5>0,1,"No"),"") ->  | BW5: 0 | BX5: 0 | BY5: 0 | BZ5: 0 | CA5: 0 | CB5: 0 | CC5: 0 | CD5: 0 | CE5: 0 | CF5: 0 | CG5: 0 | CH5: 0 | CI5: 0 | CJ5: 0 | CK5: 0 | CL5: 0 | CM5: 0 | CN5: 0 | CO5: 0 | CP5: 0 | CQ5: 0 | CR5: 0 | CS5: 0 | CT5: 0 | CU5: 0 | CV5: 0 | CW5: 0 | CX5: 0 | CY5: 0 | CZ5: 0 | DA5: 0 | DB5: 0 | DC5: 0 | DD5: 0 | DE5: 0
B6: =IF(OFFSET('Taula Farratges'!$A$1,C6,0,1,1)=0,"",OFFSET('Taula Farratges'!$A$1,C6,0,1,1)) ->  | C6: 1 | D6: =OFFSET('Taula Farratges'!$A$1,$C6,$D$2,1,1) -> 0 | E6: =OFFSET('Taula Farratges'!$A$1,$C6,$E$2,1,1) -> 0 | F6: =OFFSET('Taula Farratges'!$A$1,$C6,$F$2,1,1) -> 0 | G6: =OFFSET('Taula Farratges'!$A$1,$C6,$G$2,1,1) -> 0 | H6: =OFFSET('Taula Farratges'!$A$1,$C6,$H$2,1,1) -> 0 | I6: =OFFSET('Taula Farratges'!$A$1,$C6,$I$2,1,1) -> 0 | J6: =OFFSET('Taula Farratges'!$A$1,$C6,$J$2,1,1) -> 0 | K6: =OFFSET('Taula Farratges'!$A$1,$C6,$K$2,1,1) -> 0 | L6: =OFFSET('Taula Farratges'!$A$1,$C6,$L$2,1,1) -> 0 | M6: =OFFSET('Taula Farratges'!$A$1,$C6,$M$2,1,1) -> 0 | N6: =OFFSET('Taula Farratges'!$A$1,$C6,$N$2,1,1) -> 0 | O6: =OFFSET('Taula Farratges'!$A$1,$C6,$O$2,1,1) -> 0 | P6: =OFFSET('Taula Farratges'!$A$1,$C6,$P$2,1,1) -> 0 | Q6: =OFFSET('Taula Farratges'!$A$1,$C6,$Q$2,1,1) -> 0 | R6: =OFFSET('Taula Farratges'!$A$1,$C6,$R$2,1,1) -> 0 | S6: =OFFSET('Taula Farratges'!$A$1,$C6,$S$2,1,1) -> 0 | T6: =OFFSET('Taula Farratges'!$A$1,$C6,$T$2,1,1) -> 0 | U6: =OFFSET('Taula Farratges'!$A$1,$C6,$U$2,1,1) -> 0 | V6: =OFFSET('Taula Farratges'!$A$1,$C6,$V$2,1,1) -> 0 | W6: =OFFSET('Taula Farratges'!$A$1,$C6,$W$2,1,1) -> 0 | X6: =OFFSET('Taula Farratges'!$A$1,$C6,$X$2,1,1) -> 0 | Y6: =OFFSET('Taula Farratges'!$A$1,$C6,$Y$2,1,1) -> 0 | Z6: =OFFSET('Taula Farratges'!$A$1,$C6,$Z$2,1,1) -> 0 | AA6: =OFFSET('Taula Farratges'!$A$1,$C6,$AA$2,1,1) -> 0 | AB6: =OFFSET('Taula Farratges'!$A$1,$C6,$AB$2,1,1) -> 0 | AC6: =OFFSET('Taula Farratges'!$A$1,$C6,$AC$2,1,1) -> 0 | AD6: =OFFSET('Taula Farratges'!$A$1,$C6,$AD$2,1,1) -> 0 | AE6: =OFFSET('Taula Farratges'!$A$1,$C6,$AE$2,1,1) -> 0 | AF6: =OFFSET('Taula Farratges'!$A$1,$C6,$AF$2,1,1) -> 0 | AG6: =OFFSET('Taula Farratges'!$A$1,$C6,$AG$2,1,1) -> 0 | AH6: =OFFSET('Taula Farratges'!$A$1,$C6,$AH$2,1,1) -> 0 | AI6: =OFFSET('Taula Farratges'!$A$1,$C6,$AI$2,1,1) -> 0 | AJ6: =OFFSET('Taula Farratges'!$A$1,$C6,$AJ$2,1,1) -> 0 | AK6: =OFFSET('Taula Farratges'!$A$1,$C6,$AK$2,1,1) -> 0 | AL6: =OFFSET('Taula Farratges'!$A$1,$C6,$AL$2,1,1) -> 0 | AM6: =OFFSET('Taula Farratges'!$A$1,$C6,$AM$2,1,1) -> 0 | AN6: =IF('II_Plantejar Ració'!$E7>0,IF(CàlculsEV!E6>0,1,"No"),"") ->  | AO6: =IF('II_Plantejar Ració'!$E7>0,IF(CàlculsEV!F6>0,1,"No"),"") ->  | AP6: =IF('II_Plantejar Ració'!$E7>0,IF(CàlculsEV!G6>0,1,"No"),"") ->  | AQ6: =IF('II_Plantejar Ració'!$E7>0,IF(CàlculsEV!H6=0,"No",1),"") ->  | AR6: =IF('II_Plantejar Ració'!$E7>0,IF(CàlculsEV!I6>0,1,"No"),"") ->  | AS6: =IF('II_Plantejar Ració'!$E7>0,IF(CàlculsEV!J6>0,1,"No"),"") ->  | AT6: =IF('II_Plantejar Ració'!$E7>0,IF(CàlculsEV!K6>0,1,"No"),"") ->  | AU6: =IF('II_Plantejar Ració'!$E7>0,IF(CàlculsEV!L6>0,1,"No"),"") ->  | AV6: =IF('II_Plantejar Ració'!$E7>0,IF(CàlculsEV!M6>0,1,"No"),"") ->  | AW6: =IF('II_Plantejar Ració'!$E7>0,IF(CàlculsEV!N6>0,1,"No"),"") ->  | AX6: =IF('II_Plantejar Ració'!$E7>0,IF(CàlculsEV!O6>0,1,"No"),"") ->  | AY6: =IF('II_Plantejar Ració'!$E7>0,IF(CàlculsEV!P6>0,1,"No"),"") ->  | AZ6: =IF('II_Plantejar Ració'!$E7>0,IF(CàlculsEV!Q6>0,1,"No"),"") ->  | BA6: =IF('II_Plantejar Ració'!$E7>0,IF(CàlculsEV!R6>0,1,"No"),"") ->  | BB6: =IF('II_Plantejar Ració'!$E7>0,IF(CàlculsEV!S6>0,1,"No"),"") ->  | BC6: =IF('II_Plantejar Ració'!$E7>0,IF(CàlculsEV!T6>0,1,"No"),"") ->  | BD6: =IF('II_Plantejar Ració'!$E7>0,IF(CàlculsEV!U6>0,1,"No"),"") ->  | BE6: =IF('II_Plantejar Ració'!$E7>0,IF(CàlculsEV!V6>0,1,"No"),"") ->  | BF6: =IF('II_Plantejar Ració'!$E7>0,IF(CàlculsEV!W6>0,1,"No"),"") ->  | BG6: =IF('II_Plantejar Ració'!$E7>0,IF(CàlculsEV!X6>0,1,"No"),"") ->  | BH6: =IF('II_Plantejar Ració'!$E7>0,IF(CàlculsEV!Y6>0,1,"No"),"") ->  | BI6: =IF('II_Plantejar Ració'!$E7>0,IF(CàlculsEV!Z6>0,1,"No"),"") ->  | BJ6: =IF('II_Plantejar Ració'!$E7>0,IF(CàlculsEV!AA6>0,1,"No"),"") ->  | BK6: =IF('II_Plantejar Ració'!$E7>0,IF(CàlculsEV!AB6>0,1,"No"),"") ->  | BL6: =IF('II_Plantejar Ració'!$E7>0,IF(CàlculsEV!AC6>0,1,"No"),"") ->  | BM6: =IF('II_Plantejar Ració'!$E7>0,IF(CàlculsEV!AD6>0,1,"No"),"") ->  | BN6: =IF('II_Plantejar Ració'!$E7>0,IF(CàlculsEV!AE6>0,1,"No"),"") ->  | BO6: =IF('II_Plantejar Ració'!$E7>0,IF(CàlculsEV!AF6>0,1,"No"),"") ->  | BP6: =IF('II_Plantejar Ració'!$E7>0,IF(CàlculsEV!AG6>0,1,"No"),"") ->  | BQ6: =IF('II_Plantejar Ració'!$E7>0,IF(CàlculsEV!AH6>0,1,"No"),"") ->  | BR6: =IF('II_Plantejar Ració'!$E7>0,IF(CàlculsEV!AI6>0,1,"No"),"") ->  | BS6: =IF('II_Plantejar Ració'!$E7>0,IF(CàlculsEV!AJ6>0,1,"No"),"") ->  | BT6: =IF('II_Plantejar Ració'!$E7>0,IF(CàlculsEV!AK6>0,1,"No"),"") ->  | BU6: =IF('II_Plantejar Ració'!$E7>0,IF(CàlculsEV!AL6>0,1,"No"),"") ->  | BV6: =IF('II_Plantejar Ració'!$E7>0,IF(CàlculsEV!AM6>0,1,"No"),"") ->  | BW6: 0 | BX6: 0 | BY6: 0 | BZ6: 0 | CA6: 0 | CB6: 0 | CC6: 0 | CD6: 0 | CE6: 0 | CF6: 0 | CG6: 0 | CH6: 0 | CI6: 0 | CJ6: 0 | CK6: 0 | CL6: 0 | CM6: 0 | CN6: 0 | CO6: 0 | CP6: 0 | CQ6: 0 | CR6: 0 | CS6: 0 | CT6: 0 | CU6: 0 | CV6: 0 | CW6: 0 | CX6: 0 | CY6: 0 | CZ6: 0 | DA6: 0 | DB6: 0 | DC6: 0 | DD6: 0 | DE6: 0
B7: =IF(OFFSET('Taula Farratges'!$A$1,C7,0,1,1)=0,"",OFFSET('Taula Farratges'!$A$1,C7,0,1,1)) ->  | C7: 1 | D7: =OFFSET('Taula Farratges'!$A$1,$C7,$D$2,1,1) -> 0 | E7: =OFFSET('Taula Farratges'!$A$1,$C7,$E$2,1,1) -> 0 | F7: =OFFSET('Taula Farratges'!$A$1,$C7,$F$2,1,1) -> 0 | G7: =OFFSET('Taula Farratges'!$A$1,$C7,$G$2,1,1) -> 0 | H7: =OFFSET('Taula Farratges'!$A$1,$C7,$H$2,1,1) -> 0 | I7: =OFFSET('Taula Farratges'!$A$1,$C7,$I$2,1,1) -> 0 | J7: =OFFSET('Taula Farratges'!$A$1,$C7,$J$2,1,1) -> 0 | K7: =OFFSET('Taula Farratges'!$A$1,$C7,$K$2,1,1) -> 0 | L7: =OFFSET('Taula Farratges'!$A$1,$C7,$L$2,1,1) -> 0 | M7: =OFFSET('Taula Farratges'!$A$1,$C7,$M$2,1,1) -> 0 | N7: =OFFSET('Taula Farratges'!$A$1,$C7,$N$2,1,1) -> 0 | O7: =OFFSET('Taula Farratges'!$A$1,$C7,$O$2,1,1) -> 0 | P7: =OFFSET('Taula Farratges'!$A$1,$C7,$P$2,1,1) -> 0 | Q7: =OFFSET('Taula Farratges'!$A$1,$C7,$Q$2,1,1) -> 0 | R7: =OFFSET('Taula Farratges'!$A$1,$C7,$R$2,1,1) -> 0 | S7: =OFFSET('Taula Farratges'!$A$1,$C7,$S$2,1,1) -> 0 | T7: =OFFSET('Taula Farratges'!$A$1,$C7,$T$2,1,1) -> 0 | U7: =OFFSET('Taula Farratges'!$A$1,$C7,$U$2,1,1) -> 0 | V7: =OFFSET('Taula Farratges'!$A$1,$C7,$V$2,1,1) -> 0 | W7: =OFFSET('Taula Farratges'!$A$1,$C7,$W$2,1,1) -> 0 | X7: =OFFSET('Taula Farratges'!$A$1,$C7,$X$2,1,1) -> 0 | Y7: =OFFSET('Taula Farratges'!$A$1,$C7,$Y$2,1,1) -> 0 | Z7: =OFFSET('Taula Farratges'!$A$1,$C7,$Z$2,1,1) -> 0 | AA7: =OFFSET('Taula Farratges'!$A$1,$C7,$AA$2,1,1) -> 0 | AB7: =OFFSET('Taula Farratges'!$A$1,$C7,$AB$2,1,1) -> 0 | AC7: =OFFSET('Taula Farratges'!$A$1,$C7,$AC$2,1,1) -> 0 | AD7: =OFFSET('Taula Farratges'!$A$1,$C7,$AD$2,1,1) -> 0 | AE7: =OFFSET('Taula Farratges'!$A$1,$C7,$AE$2,1,1) -> 0 | AF7: =OFFSET('Taula Farratges'!$A$1,$C7,$AF$2,1,1) -> 0 | AG7: =OFFSET('Taula Farratges'!$A$1,$C7,$AG$2,1,1) -> 0 | AH7: =OFFSET('Taula Farratges'!$A$1,$C7,$AH$2,1,1) -> 0 | AI7: =OFFSET('Taula Farratges'!$A$1,$C7,$AI$2,1,1) -> 0 | AJ7: =OFFSET('Taula Farratges'!$A$1,$C7,$AJ$2,1,1) -> 0 | AK7: =OFFSET('Taula Farratges'!$A$1,$C7,$AK$2,1,1) -> 0 | AL7: =OFFSET('Taula Farratges'!$A$1,$C7,$AL$2,1,1) -> 0 | AM7: =OFFSET('Taula Farratges'!$A$1,$C7,$AM$2,1,1) -> 0 | AN7: =IF('II_Plantejar Ració'!$E8>0,IF(CàlculsEV!E7>0,1,"No"),"") ->  | AO7: =IF('II_Plantejar Ració'!$E8>0,IF(CàlculsEV!F7>0,1,"No"),"") ->  | AP7: =IF('II_Plantejar Ració'!$E8>0,IF(CàlculsEV!G7>0,1,"No"),"") ->  | AQ7: =IF('II_Plantejar Ració'!$E8>0,IF(CàlculsEV!H7=0,"No",1),"") ->  | AR7: =IF('II_Plantejar Ració'!$E8>0,IF(CàlculsEV!I7>0,1,"No"),"") ->  | AS7: =IF('II_Plantejar Ració'!$E8>0,IF(CàlculsEV!J7>0,1,"No"),"") ->  | AT7: =IF('II_Plantejar Ració'!$E8>0,IF(CàlculsEV!K7>0,1,"No"),"") ->  | AU7: =IF('II_Plantejar Ració'!$E8>0,IF(CàlculsEV!L7>0,1,"No"),"") ->  | AV7: =IF('II_Plantejar Ració'!$E8>0,IF(CàlculsEV!M7>0,1,"No"),"") ->  | AW7: =IF('II_Plantejar Ració'!$E8>0,IF(CàlculsEV!N7>0,1,"No"),"") ->  | AX7: =IF('II_Plantejar Ració'!$E8>0,IF(CàlculsEV!O7>0,1,"No"),"") ->  | AY7: =IF('II_Plantejar Ració'!$E8>0,IF(CàlculsEV!P7>0,1,"No"),"") ->  | AZ7: =IF('II_Plantejar Ració'!$E8>0,IF(CàlculsEV!Q7>0,1,"No"),"") ->  | BA7: =IF('II_Plantejar Ració'!$E8>0,IF(CàlculsEV!R7>0,1,"No"),"") ->  | BB7: =IF('II_Plantejar Ració'!$E8>0,IF(CàlculsEV!S7>0,1,"No"),"") ->  | BC7: =IF('II_Plantejar Ració'!$E8>0,IF(CàlculsEV!T7>0,1,"No"),"") ->  | BD7: =IF('II_Plantejar Ració'!$E8>0,IF(CàlculsEV!U7>0,1,"No"),"") ->  | BE7: =IF('II_Plantejar Ració'!$E8>0,IF(CàlculsEV!V7>0,1,"No"),"") ->  | BF7: =IF('II_Plantejar Ració'!$E8>0,IF(CàlculsEV!W7>0,1,"No"),"") ->  | BG7: =IF('II_Plantejar Ració'!$E8>0,IF(CàlculsEV!X7>0,1,"No"),"") ->  | BH7: =IF('II_Plantejar Ració'!$E8>0,IF(CàlculsEV!Y7>0,1,"No"),"") ->  | BI7: =IF('II_Plantejar Ració'!$E8>0,IF(CàlculsEV!Z7>0,1,"No"),"") ->  | BJ7: =IF('II_Plantejar Ració'!$E8>0,IF(CàlculsEV!AA7>0,1,"No"),"") ->  | BK7: =IF('II_Plantejar Ració'!$E8>0,IF(CàlculsEV!AB7>0,1,"No"),"") ->  | BL7: =IF('II_Plantejar Ració'!$E8>0,IF(CàlculsEV!AC7>0,1,"No"),"") ->  | BM7: =IF('II_Plantejar Ració'!$E8>0,IF(CàlculsEV!AD7>0,1,"No"),"") ->  | BN7: =IF('II_Plantejar Ració'!$E8>0,IF(CàlculsEV!AE7>0,1,"No"),"") ->  | BO7: =IF('II_Plantejar Ració'!$E8>0,IF(CàlculsEV!AF7>0,1,"No"),"") ->  | BP7: =IF('II_Plantejar Ració'!$E8>0,IF(CàlculsEV!AG7>0,1,"No"),"") ->  | BQ7: =IF('II_Plantejar Ració'!$E8>0,IF(CàlculsEV!AH7>0,1,"No"),"") ->  | BR7: =IF('II_Plantejar Ració'!$E8>0,IF(CàlculsEV!AI7>0,1,"No"),"") ->  | BS7: =IF('II_Plantejar Ració'!$E8>0,IF(CàlculsEV!AJ7>0,1,"No"),"") ->  | BT7: =IF('II_Plantejar Ració'!$E8>0,IF(CàlculsEV!AK7>0,1,"No"),"") ->  | BU7: =IF('II_Plantejar Ració'!$E8>0,IF(CàlculsEV!AL7>0,1,"No"),"") ->  | BV7: =IF('II_Plantejar Ració'!$E8>0,IF(CàlculsEV!AM7>0,1,"No"),"") ->  | BW7: 0 | BX7: 0 | BY7: 0 | BZ7: 0 | CA7: 0 | CB7: 0 | CC7: 0 | CD7: 0 | CE7: 0 | CF7: 0 | CG7: 0 | CH7: 0 | CI7: 0 | CJ7: 0 | CK7: 0 | CL7: 0 | CM7: 0 | CN7: 0 | CO7: 0 | CP7: 0 | CQ7: 0 | CR7: 0 | CS7: 0 | CT7: 0 | CU7: 0 | CV7: 0 | CW7: 0 | CX7: 0 | CY7: 0 | CZ7: 0 | DA7: 0 | DB7: 0 | DC7: 0 | DD7: 0 | DE7: 0
A8: CONCENTRATS | B8: =IF(OFFSET('Taula Concentrats'!$A$1,C8,0,1,1)=0,"",OFFSET('Taula Concentrats'!$A$1,C8,0,1,1)) ->  | C8: 1 | D8: =OFFSET('Taula Concentrats'!$A$1,$C8,$D$2,1,1) -> 0 | E8: =OFFSET('Taula Concentrats'!$A$1,$C8,$E$2,1,1) -> 0 | F8: =OFFSET('Taula Concentrats'!$A$1,$C8,$F$2,1,1) -> 0 | G8: =OFFSET('Taula Concentrats'!$A$1,$C8,$G$2,1,1) -> 0 | H8: =OFFSET('Taula Concentrats'!$A$1,$C8,$H$2,1,1) -> 0 | I8: =OFFSET('Taula Concentrats'!$A$1,$C8,$I$2,1,1) -> 0 | J8: =OFFSET('Taula Concentrats'!$A$1,$C8,$J$2,1,1) -> 0 | K8: =OFFSET('Taula Concentrats'!$A$1,$C8,$K$2,1,1) -> 0 | L8: =OFFSET('Taula Concentrats'!$A$1,$C8,$L$2,1,1) -> 0 | M8: =OFFSET('Taula Concentrats'!$A$1,$C8,$M$2,1,1) -> 0 | N8: =OFFSET('Taula Concentrats'!$A$1,$C8,$N$2,1,1) -> 0 | O8: =OFFSET('Taula Concentrats'!$A$1,$C8,$O$2,1,1) -> 0 | P8: =OFFSET('Taula Concentrats'!$A$1,$C8,$P$2,1,1) -> 0 | Q8: =OFFSET('Taula Concentrats'!$A$1,$C8,$Q$2,1,1) -> 0 | R8: =OFFSET('Taula Concentrats'!$A$1,$C8,$R$2,1,1) -> 0 | S8: =OFFSET('Taula Concentrats'!$A$1,$C8,$S$2,1,1) -> 0 | T8: =OFFSET('Taula Concentrats'!$A$1,$C8,$T$2,1,1) -> 0 | U8: =OFFSET('Taula Concentrats'!$A$1,$C8,$U$2,1,1) -> 0 | V8: =OFFSET('Taula Concentrats'!$A$1,$C8,$V$2,1,1) -> 0 | W8: =OFFSET('Taula Concentrats'!$A$1,$C8,$W$2,1,1) -> 0 | X8: =OFFSET('Taula Concentrats'!$A$1,$C8,$X$2,1,1) -> 0 | Y8: =OFFSET('Taula Concentrats'!$A$1,$C8,$Y$2,1,1) -> 0 | Z8: =OFFSET('Taula Concentrats'!$A$1,$C8,$Z$2,1,1) -> 0 | AA8: =OFFSET('Taula Concentrats'!$A$1,$C8,$AA$2,1,1) -> 0 | AB8: =OFFSET('Taula Concentrats'!$A$1,$C8,$AB$2,1,1) -> 0 | AC8: =OFFSET('Taula Concentrats'!$A$1,$C8,$AC$2,1,1) -> 0 | AD8: =OFFSET('Taula Concentrats'!$A$1,$C8,$AD$2,1,1) -> 0 | AE8: =OFFSET('Taula Concentrats'!$A$1,$C8,$AE$2,1,1) -> 0 | AF8: =OFFSET('Taula Concentrats'!$A$1,$C8,$AF$2,1,1) -> 0 | AG8: =OFFSET('Taula Concentrats'!$A$1,$C8,$AG$2,1,1) -> 0 | AH8: =OFFSET('Taula Concentrats'!$A$1,$C8,$AH$2,1,1) -> 0 | AI8: =OFFSET('Taula Concentrats'!$A$1,$C8,$AI$2,1,1) -> 0 | AJ8: =OFFSET('Taula Concentrats'!$A$1,$C8,$AJ$2,1,1) -> 0 | AK8: =OFFSET('Taula Concentrats'!$A$1,$C8,$AK$2,1,1) -> 0 | AL8: =OFFSET('Taula Concentrats'!$A$1,$C8,$AL$2,1,1) -> 0 | AM8: =OFFSET('Taula Concentrats'!$A$1,$C8,$AM$2,1,1) -> 0 | AN8: =IF('II_Plantejar Ració'!$E9>0,IF(CàlculsEV!E8>=0,1,"No"),"") ->  | AO8: =IF('II_Plantejar Ració'!$E9>0,IF(CàlculsEV!F8>0,1,"No"),"") ->  | AP8: =IF('II_Plantejar Ració'!$E9>0,IF(CàlculsEV!G8>0,1,"No"),"") ->  | AQ8: =IF('II_Plantejar Ració'!$E9>0,IF(CàlculsEV!H8=0,"No",1),"") ->  | AR8: =IF('II_Plantejar Ració'!$E9>0,IF(CàlculsEV!I8>0,1,"No"),"") ->  | AS8: =IF('II_Plantejar Ració'!$E9>0,IF(CàlculsEV!J8>0,1,"No"),"") ->  | AT8: =IF('II_Plantejar Ració'!$E9>0,IF(CàlculsEV!K8>0,1,"No"),"") ->  | AU8: =IF('II_Plantejar Ració'!$E9>0,IF(CàlculsEV!L8>0,1,"No"),"") ->  | AV8: =IF('II_Plantejar Ració'!$E9>0,IF(CàlculsEV!M8>0,1,"No"),"") ->  | AW8: =IF('II_Plantejar Ració'!$E9>0,IF(CàlculsEV!N8>0,1,"No"),"") ->  | AX8: =IF('II_Plantejar Ració'!$E9>0,IF(CàlculsEV!O8>0,1,"No"),"") ->  | AY8: =IF('II_Plantejar Ració'!$E9>0,IF(CàlculsEV!P8>0,1,"No"),"") ->  | AZ8: =IF('II_Plantejar Ració'!$E9>0,IF(CàlculsEV!Q8>0,1,"No"),"") ->  | BA8: =IF('II_Plantejar Ració'!$E9>0,IF(CàlculsEV!R8>0,1,"No"),"") ->  | BB8: =IF('II_Plantejar Ració'!$E9>0,IF(CàlculsEV!S8>0,1,"No"),"") ->  | BC8: =IF('II_Plantejar Ració'!$E9>0,IF(CàlculsEV!T8>0,1,"No"),"") ->  | BD8: =IF('II_Plantejar Ració'!$E9>0,IF(CàlculsEV!U8>0,1,"No"),"") ->  | BE8: =IF('II_Plantejar Ració'!$E9>0,IF(CàlculsEV!V8>0,1,"No"),"") ->  | BF8: =IF('II_Plantejar Ració'!$E9>0,IF(CàlculsEV!W8>0,1,"No"),"") ->  | BG8: =IF('II_Plantejar Ració'!$E9>0,IF(CàlculsEV!X8>0,1,"No"),"") ->  | BH8: =IF('II_Plantejar Ració'!$E9>0,IF(CàlculsEV!Y8>0,1,"No"),"") ->  | BI8: =IF('II_Plantejar Ració'!$E9>0,IF(CàlculsEV!Z8>0,1,"No"),"") ->  | BJ8: =IF('II_Plantejar Ració'!$E9>0,IF(CàlculsEV!AA8>0,1,"No"),"") ->  | BK8: =IF('II_Plantejar Ració'!$E9>0,IF(CàlculsEV!AB8>0,1,"No"),"") ->  | BL8: =IF('II_Plantejar Ració'!$E9>0,IF(CàlculsEV!AC8>0,1,"No"),"") ->  | BM8: =IF('II_Plantejar Ració'!$E9>0,IF(CàlculsEV!AD8>0,1,"No"),"") ->  | BN8: =IF('II_Plantejar Ració'!$E9>0,IF(CàlculsEV!AE8>0,1,"No"),"") ->  | BO8: =IF('II_Plantejar Ració'!$E9>0,IF(CàlculsEV!AF8>0,1,"No"),"") ->  | BP8: =IF('II_Plantejar Ració'!$E9>0,IF(CàlculsEV!AG8>0,1,"No"),"") ->  | BQ8: =IF('II_Plantejar Ració'!$E9>0,IF(CàlculsEV!AH8>0,1,"No"),"") ->  | BR8: =IF('II_Plantejar Ració'!$E9>0,IF(CàlculsEV!AI8>0,1,"No"),"") ->  | BS8: =IF('II_Plantejar Ració'!$E9>0,IF(CàlculsEV!AJ8>0,1,"No"),"") ->  | BT8: =IF('II_Plantejar Ració'!$E9>0,IF(CàlculsEV!AK8>0,1,"No"),"") ->  | BU8: =IF('II_Plantejar Ració'!$E9>0,IF(CàlculsEV!AL8>0,1,"No"),"") ->  | BV8: =IF('II_Plantejar Ració'!$E9>0,IF(CàlculsEV!AM8>0,1,"No"),"") ->  | BW8: 0 | BX8: 0 | BY8: 0 | BZ8: 0 | CA8: 0 | CB8: 0 | CC8: 0 | CD8: 0 | CE8: 0 | CF8: 0 | CG8: 0 | CH8: 0 | CI8: 0 | CJ8: 0 | CK8: 0 | CL8: 0 | CM8: 0 | CN8: 0 | CO8: 0 | CP8: 0 | CQ8: 0 | CR8: 0 | CS8: 0 | CT8: 0 | CU8: 0 | CV8: 0 | CW8: 0 | CX8: 0 | CY8: 0 | CZ8: 0 | DA8: 0 | DB8: 0 | DC8: 0 | DD8: 0 | DE8: 0
B9: =IF(OFFSET('Taula Concentrats'!$A$1,C9,0,1,1)=0,"",OFFSET('Taula Concentrats'!$A$1,C9,0,1,1)) -> Ordi gra | C9: 2 | D9: =OFFSET('Taula Concentrats'!$A$1,$C9,$D$2,1,1) -> 87.2 | E9: =OFFSET('Taula Concentrats'!$A$1,$C9,$E$2,1,1) -> 0 | F9: =OFFSET('Taula Concentrats'!$A$1,$C9,$F$2,1,1) -> 1.078969989 | G9: =OFFSET('Taula Concentrats'!$A$1,$C9,$G$2,1,1) -> 89.46220189 | H9: =OFFSET('Taula Concentrats'!$A$1,$C9,$H$2,1,1) -> -31.34737412 | I9: =OFFSET('Taula Concentrats'!$A$1,$C9,$I$2,1,1) -> 2 | J9: =OFFSET('Taula Concentrats'!$A$1,$C9,$J$2,1,1) -> 0.8 | K9: =OFFSET('Taula Concentrats'!$A$1,$C9,$K$2,1,1) -> 3.9 | L9: =OFFSET('Taula Concentrats'!$A$1,$C9,$L$2,1,1) -> 1.3 | M9: =OFFSET('Taula Concentrats'!$A$1,$C9,$M$2,1,1) -> 5.55 | N9: =OFFSET('Taula Concentrats'!$A$1,$C9,$N$2,1,1) -> 0.35 | O9: =OFFSET('Taula Concentrats'!$A$1,$C9,$O$2,1,1) -> 0 | P9: =OFFSET('Taula Concentrats'!$A$1,$C9,$P$2,1,1) -> 0 | Q9: =OFFSET('Taula Concentrats'!$A$1,$C9,$Q$2,1,1) -> 0.01 | R9: =OFFSET('Taula Concentrats'!$A$1,$C9,$R$2,1,1) -> 4.1 | S9: =OFFSET('Taula Concentrats'!$A$1,$C9,$S$2,1,1) -> 17.6 | T9: =OFFSET('Taula Concentrats'!$A$1,$C9,$T$2,1,1) -> 24.4 | U9: =OFFSET('Taula Concentrats'!$A$1,$C9,$U$2,1,1) -> 0 | V9: =OFFSET('Taula Concentrats'!$A$1,$C9,$V$2,1,1) -> 0.02 | W9: =OFFSET('Taula Concentrats'!$A$1,$C9,$W$2,1,1) -> 1000 | X9: =OFFSET('Taula Concentrats'!$A$1,$C9,$X$2,1,1) -> 0 | Y9: =OFFSET('Taula Concentrats'!$A$1,$C9,$Y$2,1,1) -> 25 | Z9: =OFFSET('Taula Concentrats'!$A$1,$C9,$Z$2,1,1) -> 14.25 | AA9: =OFFSET('Taula Concentrats'!$A$1,$C9,$AA$2,1,1) -> 112 | AB9: =OFFSET('Taula Concentrats'!$A$1,$C9,$AB$2,1,1) -> 27.59508246 | AC9: =OFFSET('Taula Concentrats'!$A$1,$C9,$AC$2,1,1) -> 0.837328 | AD9: =OFFSET('Taula Concentrats'!$A$1,$C9,$AD$2,1,1) -> 816.3948 | AE9: =OFFSET('Taula Concentrats'!$A$1,$C9,$AE$2,1,1) -> 19 | AF9: =OFFSET('Taula Concentrats'!$A$1,$C9,$AF$2,1,1) -> 54 | AG9: =OFFSET('Taula Concentrats'!$A$1,$C9,$AG$2,1,1) -> 215 | AH9: =OFFSET('Taula Concentrats'!$A$1,$C9,$AH$2,1,1) -> 65 | AI9: =OFFSET('Taula Concentrats'!$A$1,$C9,$AI$2,1,1) -> 12 | AJ9: =OFFSET('Taula Concentrats'!$A$1,$C9,$AJ$2,1,1) -> 25 | AK9: =OFFSET('Taula Concentrats'!$A$1,$C9,$AK$2,1,1) -> 0.3 | AL9: =OFFSET('Taula Concentrats'!$A$1,$C9,$AL$2,1,1) -> 0.7349259949 | AM9: =OFFSET('Taula Concentrats'!$A$1,$C9,$AM$2,1,1) -> 767.7065114 | AN9: =IF('II_Plantejar Ració'!$E10>0,IF(CàlculsEV!E9>=0,1,"No"),"") -> 1 | AO9: =IF('II_Plantejar Ració'!$E10>0,IF(CàlculsEV!F9>0,1,"No"),"") -> 1 | AP9: =IF('II_Plantejar Ració'!$E10>0,IF(CàlculsEV!G9>0,1,"No"),"") -> 1 | AQ9: =IF('II_Plantejar Ració'!$E10>0,IF(CàlculsEV!H9=0,"No",1),"") -> 1 | AR9: =IF('II_Plantejar Ració'!$E10>0,IF(CàlculsEV!I9>0,1,"No"),"") -> 1 | AS9: =IF('II_Plantejar Ració'!$E10>0,IF(CàlculsEV!J9>0,1,"No"),"") -> 1 | AT9: =IF('II_Plantejar Ració'!$E10>0,IF(CàlculsEV!K9>0,1,"No"),"") -> 1 | AU9: =IF('II_Plantejar Ració'!$E10>0,IF(CàlculsEV!L9>0,1,"No"),"") -> 1 | AV9: =IF('II_Plantejar Ració'!$E10>0,IF(CàlculsEV!M9>0,1,"No"),"") -> 1 | AW9: =IF('II_Plantejar Ració'!$E10>0,IF(CàlculsEV!N9>0,1,"No"),"") -> 1 | AX9: =IF('II_Plantejar Ració'!$E10>0,IF(CàlculsEV!O9>0,1,"No"),"") -> No | AY9: =IF('II_Plantejar Ració'!$E10>0,IF(CàlculsEV!P9>0,1,"No"),"") -> No | AZ9: =IF('II_Plantejar Ració'!$E10>0,IF(CàlculsEV!Q9>0,1,"No"),"") -> 1 | BA9: =IF('II_Plantejar Ració'!$E10>0,IF(CàlculsEV!R9>0,1,"No"),"") -> 1 | BB9: =IF('II_Plantejar Ració'!$E10>0,IF(CàlculsEV!S9>0,1,"No"),"") -> 1 | BC9: =IF('II_Plantejar Ració'!$E10>0,IF(CàlculsEV!T9>0,1,"No"),"") -> 1 | BD9: =IF('II_Plantejar Ració'!$E10>0,IF(CàlculsEV!U9>0,1,"No"),"") -> No | BE9: =IF('II_Plantejar Ració'!$E10>0,IF(CàlculsEV!V9>0,1,"No"),"") -> 1 | BF9: =IF('II_Plantejar Ració'!$E10>0,IF(CàlculsEV!W9>0,1,"No"),"") -> 1 | BG9: =IF('II_Plantejar Ració'!$E10>0,IF(CàlculsEV!X9>0,1,"No"),"") -> No | BH9: =IF('II_Plantejar Ració'!$E10>0,IF(CàlculsEV!Y9>0,1,"No"),"") -> 1 | BI9: =IF('II_Plantejar Ració'!$E10>0,IF(CàlculsEV!Z9>0,1,"No"),"") -> 1 | BJ9: =IF('II_Plantejar Ració'!$E10>0,IF(CàlculsEV!AA9>0,1,"No"),"") -> 1 | BK9: =IF('II_Plantejar Ració'!$E10>0,IF(CàlculsEV!AB9>0,1,"No"),"") -> 1 | BL9: =IF('II_Plantejar Ració'!$E10>0,IF(CàlculsEV!AC9>0,1,"No"),"") -> 1 | BM9: =IF('II_Plantejar Ració'!$E10>0,IF(CàlculsEV!AD9>0,1,"No"),"") -> 1 | BN9: =IF('II_Plantejar Ració'!$E10>0,IF(CàlculsEV!AE9>0,1,"No"),"") -> 1 | BO9: =IF('II_Plantejar Ració'!$E10>0,IF(CàlculsEV!AF9>0,1,"No"),"") -> 1 | BP9: =IF('II_Plantejar Ració'!$E10>0,IF(CàlculsEV!AG9>0,1,"No"),"") -> 1 | BQ9: =IF('II_Plantejar Ració'!$E10>0,IF(CàlculsEV!AH9>0,1,"No"),"") -> 1 | BR9: =IF('II_Plantejar Ració'!$E10>0,IF(CàlculsEV!AI9>0,1,"No"),"") -> 1 | BS9: =IF('II_Plantejar Ració'!$E10>0,IF(CàlculsEV!AJ9>0,1,"No"),"") -> 1 | BT9: =IF('II_Plantejar Ració'!$E10>0,IF(CàlculsEV!AK9>0,1,"No"),"") -> 1 | BU9: =IF('II_Plantejar Ració'!$E10>0,IF(CàlculsEV!AL9>0,1,"No"),"") -> 1 | BV9: =IF('II_Plantejar Ració'!$E10>0,IF(CàlculsEV!AM9>0,1,"No"),"") -> 1 | BW9: 1 | BX9: 1 | BY9: 1 | BZ9: 1 | CA9: 1 | CB9: 1 | CC9: 1 | CD9: 1 | CE9: 1 | CF9: 1 | CG9: 1 | CH9: 1 | CI9: 1 | CJ9: 1 | CK9: 1 | CL9: 1 | CM9: 1 | CN9: 1 | CO9: 1 | CP9: 1 | CQ9: 1 | CR9: 1 | CS9: 1 | CT9: 1 | CU9: 1 | CV9: 1 | CW9: 1 | CX9: 1 | CY9: 1 | CZ9: 1 | DA9: 1 | DB9: 1 | DC9: 1 | DD9: 1 | DE9: 1
B10: =IF(OFFSET('Taula Concentrats'!$A$1,C10,0,1,1)=0,"",OFFSET('Taula Concentrats'!$A$1,C10,0,1,1)) -> Colza, turtó | C10: 32 | D10: =OFFSET('Taula Concentrats'!$A$1,$C10,$D$2,1,1) -> 90 | E10: =OFFSET('Taula Concentrats'!$A$1,$C10,$E$2,1,1) -> 0 | F10: =OFFSET('Taula Concentrats'!$A$1,$C10,$F$2,1,1) -> 0.958005025 | G10: =OFFSET('Taula Concentrats'!$A$1,$C10,$G$2,1,1) -> 155.8627084 | H10: =OFFSET('Taula Concentrats'!$A$1,$C10,$H$2,1,1) -> 193.047004 | I10: =OFFSET('Taula Concentrats'!$A$1,$C10,$I$2,1,1) -> 2 | J10: =OFFSET('Taula Concentrats'!$A$1,$C10,$J$2,1,1) -> 8.4 | K10: =OFFSET('Taula Concentrats'!$A$1,$C10,$K$2,1,1) -> 12.4 | L10: =OFFSET('Taula Concentrats'!$A$1,$C10,$L$2,1,1) -> 5.15 | M10: =OFFSET('Taula Concentrats'!$A$1,$C10,$M$2,1,1) -> 12.4 | N10: =OFFSET('Taula Concentrats'!$A$1,$C10,$N$2,1,1) -> 0.75 | O10: =OFFSET('Taula Concentrats'!$A$1,$C10,$O$2,1,1) -> 0 | P10: =OFFSET('Taula Concentrats'!$A$1,$C10,$P$2,1,1) -> 0 | Q10: =OFFSET('Taula Concentrats'!$A$1,$C10,$Q$2,1,1) -> 0.1 | R10: =OFFSET('Taula Concentrats'!$A$1,$C10,$R$2,1,1) -> 5.5 | S10: =OFFSET('Taula Concentrats'!$A$1,$C10,$S$2,1,1) -> 63.5 | T10: =OFFSET('Taula Concentrats'!$A$1,$C10,$T$2,1,1) -> 64.5 | U10: =OFFSET('Taula Concentrats'!$A$1,$C10,$U$2,1,1) -> 0 | V10: =OFFSET('Taula Concentrats'!$A$1,$C10,$V$2,1,1) -> 0.07 | W10: =OFFSET('Taula Concentrats'!$A$1,$C10,$W$2,1,1) -> 0 | X10: =OFFSET('Taula Concentrats'!$A$1,$C10,$X$2,1,1) -> 0 | Y10: =OFFSET('Taula Concentrats'!$A$1,$C10,$Y$2,1,1) -> 20 | Z10: =OFFSET('Taula Concentrats'!$A$1,$C10,$Z$2,1,1) -> 20.8 | AA10: =OFFSET('Taula Concentrats'!$A$1,$C10,$AA$2,1,1) -> 418 | AB10: =OFFSET('Taula Concentrats'!$A$1,$C10,$AB$2,1,1) -> 103.9119909 | AC10: =OFFSET('Taula Concentrats'!$A$1,$C10,$AC$2,1,1) -> 0.7842 | AD10: =OFFSET('Taula Concentrats'!$A$1,$C10,$AD$2,1,1) -> 704.9958 | AE10: =OFFSET('Taula Concentrats'!$A$1,$C10,$AE$2,1,1) -> 26 | AF10: =OFFSET('Taula Concentrats'!$A$1,$C10,$AF$2,1,1) -> 120 | AG10: =OFFSET('Taula Concentrats'!$A$1,$C10,$AG$2,1,1) -> 287 | AH10: =OFFSET('Taula Concentrats'!$A$1,$C10,$AH$2,1,1) -> 182 | AI10: =OFFSET('Taula Concentrats'!$A$1,$C10,$AI$2,1,1) -> 74 | AJ10: =OFFSET('Taula Concentrats'!$A$1,$C10,$AJ$2,1,1) -> 101 | AK10: =OFFSET('Taula Concentrats'!$A$1,$C10,$AK$2,1,1) -> 0.5 | AL10: =OFFSET('Taula Concentrats'!$A$1,$C10,$AL$2,1,1) -> 0.7277738088 | AM10: =OFFSET('Taula Concentrats'!$A$1,$C10,$AM$2,1,1) -> 565.2052521 | AN10: =IF('II_Plantejar Ració'!$E11>0,IF(CàlculsEV!E10>=0,1,"No"),"") ->  | AO10: =IF('II_Plantejar Ració'!$E11>0,IF(CàlculsEV!F10>0,1,"No"),"") ->  | AP10: =IF('II_Plantejar Ració'!$E11>0,IF(CàlculsEV!G10>0,1,"No"),"") ->  | AQ10: =IF('II_Plantejar Ració'!$E11>0,IF(CàlculsEV!H10=0,"No",1),"") ->  | AR10: =IF('II_Plantejar Ració'!$E11>0,IF(CàlculsEV!I10>0,1,"No"),"") ->  | AS10: =IF('II_Plantejar Ració'!$E11>0,IF(CàlculsEV!J10>0,1,"No"),"") ->  | AT10: =IF('II_Plantejar Ració'!$E11>0,IF(CàlculsEV!K10>0,1,"No"),"") ->  | AU10: =IF('II_Plantejar Ració'!$E11>0,IF(CàlculsEV!L10>0,1,"No"),"") ->  | AV10: =IF('II_Plantejar Ració'!$E11>0,IF(CàlculsEV!M10>0,1,"No"),"") ->  | AW10: =IF('II_Plantejar Ració'!$E11>0,IF(CàlculsEV!N10>0,1,"No"),"") ->  | AX10: =IF('II_Plantejar Ració'!$E11>0,IF(CàlculsEV!O10>0,1,"No"),"") ->  | AY10: =IF('II_Plantejar Ració'!$E11>0,IF(CàlculsEV!P10>0,1,"No"),"") ->  | AZ10: =IF('II_Plantejar Ració'!$E11>0,IF(CàlculsEV!Q10>0,1,"No"),"") ->  | BA10: =IF('II_Plantejar Ració'!$E11>0,IF(CàlculsEV!R10>0,1,"No"),"") ->  | BB10: =IF('II_Plantejar Ració'!$E11>0,IF(CàlculsEV!S10>0,1,"No"),"") ->  | BC10: =IF('II_Plantejar Ració'!$E11>0,IF(CàlculsEV!T10>0,1,"No"),"") ->  | BD10: =IF('II_Plantejar Ració'!$E11>0,IF(CàlculsEV!U10>0,1,"No"),"") ->  | BE10: =IF('II_Plantejar Ració'!$E11>0,IF(CàlculsEV!V10>0,1,"No"),"") ->  | BF10: =IF('II_Plantejar Ració'!$E11>0,IF(CàlculsEV!W10>0,1,"No"),"") ->  | BG10: =IF('II_Plantejar Ració'!$E11>0,IF(CàlculsEV!X10>0,1,"No"),"") ->  | BH10: =IF('II_Plantejar Ració'!$E11>0,IF(CàlculsEV!Y10>0,1,"No"),"") ->  | BI10: =IF('II_Plantejar Ració'!$E11>0,IF(CàlculsEV!Z10>0,1,"No"),"") ->  | BJ10: =IF('II_Plantejar Ració'!$E11>0,IF(CàlculsEV!AA10>0,1,"No"),"") ->  | BK10: =IF('II_Plantejar Ració'!$E11>0,IF(CàlculsEV!AB10>0,1,"No"),"") ->  | BL10: =IF('II_Plantejar Ració'!$E11>0,IF(CàlculsEV!AC10>0,1,"No"),"") ->  | BM10: =IF('II_Plantejar Ració'!$E11>0,IF(CàlculsEV!AD10>0,1,"No"),"") ->  | BN10: =IF('II_Plantejar Ració'!$E11>0,IF(CàlculsEV!AE10>0,1,"No"),"") ->  | BO10: =IF('II_Plantejar Ració'!$E11>0,IF(CàlculsEV!AF10>0,1,"No"),"") ->  | BP10: =IF('II_Plantejar Ració'!$E11>0,IF(CàlculsEV!AG10>0,1,"No"),"") ->  | BQ10: =IF('II_Plantejar Ració'!$E11>0,IF(CàlculsEV!AH10>0,1,"No"),"") ->  | BR10: =IF('II_Plantejar Ració'!$E11>0,IF(CàlculsEV!AI10>0,1,"No"),"") ->  | BS10: =IF('II_Plantejar Ració'!$E11>0,IF(CàlculsEV!AJ10>0,1,"No"),"") ->  | BT10: =IF('II_Plantejar Ració'!$E11>0,IF(CàlculsEV!AK10>0,1,"No"),"") ->  | BU10: =IF('II_Plantejar Ració'!$E11>0,IF(CàlculsEV!AL10>0,1,"No"),"") ->  | BV10: =IF('II_Plantejar Ració'!$E11>0,IF(CàlculsEV!AM10>0,1,"No"),"") ->  | BW10: 0 | BX10: 0 | BY10: 0 | BZ10: 0 | CA10: 0 | CB10: 0 | CC10: 0 | CD10: 0 | CE10: 0 | CF10: 0 | CG10: 0 | CH10: 0 | CI10: 0 | CJ10: 0 | CK10: 0 | CL10: 0 | CM10: 0 | CN10: 0 | CO10: 0 | CP10: 0 | CQ10: 0 | CR10: 0 | CS10: 0 | CT10: 0 | CU10: 0 | CV10: 0 | CW10: 0 | CX10: 0 | CY10: 0 | CZ10: 0 | DA10: 0 | DB10: 0 | DC10: 0 | DD10: 0 | DE10: 0
B11: =IF(OFFSET('Taula Concentrats'!$A$1,C11,0,1,1)=0,"",OFFSET('Taula Concentrats'!$A$1,C11,0,1,1)) -> Blat de moro gra | C11: 3 | D11: =OFFSET('Taula Concentrats'!$A$1,$C11,$D$2,1,1) -> 86 | E11: =OFFSET('Taula Concentrats'!$A$1,$C11,$E$2,1,1) -> 0 | F11: =OFFSET('Taula Concentrats'!$A$1,$C11,$F$2,1,1) -> 1.24475541 | G11: =OFFSET('Taula Concentrats'!$A$1,$C11,$G$2,1,1) -> 100.7057165 | H11: =OFFSET('Taula Concentrats'!$A$1,$C11,$H$2,1,1) -> -70.14473162 | I11: =OFFSET('Taula Concentrats'!$A$1,$C11,$I$2,1,1) -> 2 | J11: =OFFSET('Taula Concentrats'!$A$1,$C11,$J$2,1,1) -> 0.5 | K11: =OFFSET('Taula Concentrats'!$A$1,$C11,$K$2,1,1) -> 2.9 | L11: =OFFSET('Taula Concentrats'!$A$1,$C11,$L$2,1,1) -> 1.4 | M11: =OFFSET('Taula Concentrats'!$A$1,$C11,$M$2,1,1) -> 3.6 | N11: =OFFSET('Taula Concentrats'!$A$1,$C11,$N$2,1,1) -> 0.33 | O11: =OFFSET('Taula Concentrats'!$A$1,$C11,$O$2,1,1) -> 0 | P11: =OFFSET('Taula Concentrats'!$A$1,$C11,$P$2,1,1) -> 0 | Q11: =OFFSET('Taula Concentrats'!$A$1,$C11,$Q$2,1,1) -> 0.02 | R11: =OFFSET('Taula Concentrats'!$A$1,$C11,$R$2,1,1) -> 2.3 | S11: =OFFSET('Taula Concentrats'!$A$1,$C11,$S$2,1,1) -> 10.8 | T11: =OFFSET('Taula Concentrats'!$A$1,$C11,$T$2,1,1) -> 21.4 | U11: =OFFSET('Taula Concentrats'!$A$1,$C11,$U$2,1,1) -> 0 | V11: =OFFSET('Taula Concentrats'!$A$1,$C11,$V$2,1,1) -> 0.02 | W11: =OFFSET('Taula Concentrats'!$A$1,$C11,$W$2,1,1) -> 0 | X11: =OFFSET('Taula Concentrats'!$A$1,$C11,$X$2,1,1) -> 0 | Y11: =OFFSET('Taula Concentrats'!$A$1,$C11,$Y$2,1,1) -> 0 | Z11: =OFFSET('Taula Concentrats'!$A$1,$C11,$Z$2,1,1) -> 36.55 | AA11: =OFFSET('Taula Concentrats'!$A$1,$C11,$AA$2,1,1) -> 89 | AB11: =OFFSET('Taula Concentrats'!$A$1,$C11,$AB$2,1,1) -> 38.12988822 | AC11: =OFFSET('Taula Concentrats'!$A$1,$C11,$AC$2,1,1) -> 0.882846 | AD11: =OFFSET('Taula Concentrats'!$A$1,$C11,$AD$2,1,1) -> 870.486156 | AE11: =OFFSET('Taula Concentrats'!$A$1,$C11,$AE$2,1,1) -> 43 | AF11: =OFFSET('Taula Concentrats'!$A$1,$C11,$AF$2,1,1) -> 26 | AG11: =OFFSET('Taula Concentrats'!$A$1,$C11,$AG$2,1,1) -> 125 | AH11: =OFFSET('Taula Concentrats'!$A$1,$C11,$AH$2,1,1) -> 31 | AI11: =OFFSET('Taula Concentrats'!$A$1,$C11,$AI$2,1,1) -> 60 | AJ11: =OFFSET('Taula Concentrats'!$A$1,$C11,$AJ$2,1,1) -> 14 | AK11: =OFFSET('Taula Concentrats'!$A$1,$C11,$AK$2,1,1) -> 0.3 | AL11: =OFFSET('Taula Concentrats'!$A$1,$C11,$AL$2,1,1) -> 0.5092513996 | AM11: =OFFSET('Taula Concentrats'!$A$1,$C11,$AM$2,1,1) -> 783.8095306 | AN11: =IF('II_Plantejar Ració'!$E12>0,IF(CàlculsEV!E11>=0,1,"No"),"") ->  | AO11: =IF('II_Plantejar Ració'!$E12>0,IF(CàlculsEV!F11>0,1,"No"),"") ->  | AP11: =IF('II_Plantejar Ració'!$E12>0,IF(CàlculsEV!G11>0,1,"No"),"") ->  | AQ11: =IF('II_Plantejar Ració'!$E12>0,IF(CàlculsEV!H11=0,"No",1),"") ->  | AR11: =IF('II_Plantejar Ració'!$E12>0,IF(CàlculsEV!I11>0,1,"No"),"") ->  | AS11: =IF('II_Plantejar Ració'!$E12>0,IF(CàlculsEV!J11>0,1,"No"),"") ->  | AT11: =IF('II_Plantejar Ració'!$E12>0,IF(CàlculsEV!K11>0,1,"No"),"") ->  | AU11: =IF('II_Plantejar Ració'!$E12>0,IF(CàlculsEV!L11>0,1,"No"),"") ->  | AV11: =IF('II_Plantejar Ració'!$E12>0,IF(CàlculsEV!M11>0,1,"No"),"") ->  | AW11: =IF('II_Plantejar Ració'!$E12>0,IF(CàlculsEV!N11>0,1,"No"),"") ->  | AX11: =IF('II_Plantejar Ració'!$E12>0,IF(CàlculsEV!O11>0,1,"No"),"") ->  | AY11: =IF('II_Plantejar Ració'!$E12>0,IF(CàlculsEV!P11>0,1,"No"),"") ->  | AZ11: =IF('II_Plantejar Ració'!$E12>0,IF(CàlculsEV!Q11>0,1,"No"),"") ->  | BA11: =IF('II_Plantejar Ració'!$E12>0,IF(CàlculsEV!R11>0,1,"No"),"") ->  | BB11: =IF('II_Plantejar Ració'!$E12>0,IF(CàlculsEV!S11>0,1,"No"),"") ->  | BC11: =IF('II_Plantejar Ració'!$E12>0,IF(CàlculsEV!T11>0,1,"No"),"") ->  | BD11: =IF('II_Plantejar Ració'!$E12>0,IF(CàlculsEV!U11>0,1,"No"),"") ->  | BE11: =IF('II_Plantejar Ració'!$E12>0,IF(CàlculsEV!V11>0,1,"No"),"") ->  | BF11: =IF('II_Plantejar Ració'!$E12>0,IF(CàlculsEV!W11>0,1,"No"),"") ->  | BG11: =IF('II_Plantejar Ració'!$E12>0,IF(CàlculsEV!X11>0,1,"No"),"") ->  | BH11: =IF('II_Plantejar Ració'!$E12>0,IF(CàlculsEV!Y11>0,1,"No"),"") ->  | BI11: =IF('II_Plantejar Ració'!$E12>0,IF(CàlculsEV!Z11>0,1,"No"),"") ->  | BJ11: =IF('II_Plantejar Ració'!$E12>0,IF(CàlculsEV!AA11>0,1,"No"),"") ->  | BK11: =IF('II_Plantejar Ració'!$E12>0,IF(CàlculsEV!AB11>0,1,"No"),"") ->  | BL11: =IF('II_Plantejar Ració'!$E12>0,IF(CàlculsEV!AC11>0,1,"No"),"") ->  | BM11: =IF('II_Plantejar Ració'!$E12>0,IF(CàlculsEV!AD11>0,1,"No"),"") ->  | BN11: =IF('II_Plantejar Ració'!$E12>0,IF(CàlculsEV!AE11>0,1,"No"),"") ->  | BO11: =IF('II_Plantejar Ració'!$E12>0,IF(CàlculsEV!AF11>0,1,"No"),"") ->  | BP11: =IF('II_Plantejar Ració'!$E12>0,IF(CàlculsEV!AG11>0,1,"No"),"") ->  | BQ11: =IF('II_Plantejar Ració'!$E12>0,IF(CàlculsEV!AH11>0,1,"No"),"") ->  | BR11: =IF('II_Plantejar Ració'!$E12>0,IF(CàlculsEV!AI11>0,1,"No"),"") ->  | BS11: =IF('II_Plantejar Ració'!$E12>0,IF(CàlculsEV!AJ11>0,1,"No"),"") ->  | BT11: =IF('II_Plantejar Ració'!$E12>0,IF(CàlculsEV!AK11>0,1,"No"),"") ->  | BU11: =IF('II_Plantejar Ració'!$E12>0,IF(CàlculsEV!AL11>0,1,"No"),"") ->  | BV11: =IF('II_Plantejar Ració'!$E12>0,IF(CàlculsEV!AM11>0,1,"No"),"") ->  | BW11: 0 | BX11: 0 | BY11: 0 | BZ11: 0 | CA11: 0 | CB11: 0 | CC11: 0 | CD11: 0 | CE11: 0 | CF11: 0 | CG11: 0 | CH11: 0 | CI11: 0 | CJ11: 0 | CK11: 0 | CL11: 0 | CM11: 0 | CN11: 0 | CO11: 0 | CP11: 0 | CQ11: 0 | CR11: 0 | CS11: 0 | CT11: 0 | CU11: 0 | CV11: 0 | CW11: 0 | CX11: 0 | CY11: 0 | CZ11: 0 | DA11: 0 | DB11: 0 | DC11: 0 | DD11: 0 | DE11: 0
B12: =IF(OFFSET('Taula Concentrats'!$A$1,C12,0,1,1)=0,"",OFFSET('Taula Concentrats'!$A$1,C12,0,1,1)) -> Soja tortó 44 | C12: 48 | D12: =OFFSET('Taula Concentrats'!$A$1,$C12,$D$2,1,1) -> 87.2 | E12: =OFFSET('Taula Concentrats'!$A$1,$C12,$E$2,1,1) -> 0 | F12: =OFFSET('Taula Concentrats'!$A$1,$C12,$F$2,1,1) -> 1.165625863 | G12: =OFFSET('Taula Concentrats'!$A$1,$C12,$G$2,1,1) -> 207.0695265 | H12: =OFFSET('Taula Concentrats'!$A$1,$C12,$H$2,1,1) -> 219.1726116 | I12: =OFFSET('Taula Concentrats'!$A$1,$C12,$I$2,1,1) -> 2 | J12: =OFFSET('Taula Concentrats'!$A$1,$C12,$J$2,1,1) -> 3.4 | K12: =OFFSET('Taula Concentrats'!$A$1,$C12,$K$2,1,1) -> 7 | L12: =OFFSET('Taula Concentrats'!$A$1,$C12,$L$2,1,1) -> 2.7 | M12: =OFFSET('Taula Concentrats'!$A$1,$C12,$M$2,1,1) -> 20 | N12: =OFFSET('Taula Concentrats'!$A$1,$C12,$N$2,1,1) -> 1.95 | O12: =OFFSET('Taula Concentrats'!$A$1,$C12,$O$2,1,1) -> 0 | P12: =OFFSET('Taula Concentrats'!$A$1,$C12,$P$2,1,1) -> 0 | Q12: =OFFSET('Taula Concentrats'!$A$1,$C12,$Q$2,1,1) -> 0.3 | R12: =OFFSET('Taula Concentrats'!$A$1,$C12,$R$2,1,1) -> 17.1 | S12: =OFFSET('Taula Concentrats'!$A$1,$C12,$S$2,1,1) -> 43.7 | T12: =OFFSET('Taula Concentrats'!$A$1,$C12,$T$2,1,1) -> 54.6 | U12: =OFFSET('Taula Concentrats'!$A$1,$C12,$U$2,1,1) -> 0 | V12: =OFFSET('Taula Concentrats'!$A$1,$C12,$V$2,1,1) -> 0.2 | W12: =OFFSET('Taula Concentrats'!$A$1,$C12,$W$2,1,1) -> 0 | X12: =OFFSET('Taula Concentrats'!$A$1,$C12,$X$2,1,1) -> 0 | Y12: =OFFSET('Taula Concentrats'!$A$1,$C12,$Y$2,1,1) -> 7 | Z12: =OFFSET('Taula Concentrats'!$A$1,$C12,$Z$2,1,1) -> 16.5 | AA12: =OFFSET('Taula Concentrats'!$A$1,$C12,$AA$2,1,1) -> 488 | AB12: =OFFSET('Taula Concentrats'!$A$1,$C12,$AB$2,1,1) -> 153.419998 | AC12: =OFFSET('Taula Concentrats'!$A$1,$C12,$AC$2,1,1) -> 0.849655 | AD12: =OFFSET('Taula Concentrats'!$A$1,$C12,$AD$2,1,1) -> 779.133635 | AE12: =OFFSET('Taula Concentrats'!$A$1,$C12,$AE$2,1,1) -> 22 | AF12: =OFFSET('Taula Concentrats'!$A$1,$C12,$AF$2,1,1) -> 84 | AG12: =OFFSET('Taula Concentrats'!$A$1,$C12,$AG$2,1,1) -> 163 | AH12: =OFFSET('Taula Concentrats'!$A$1,$C12,$AH$2,1,1) -> 104 | AI12: =OFFSET('Taula Concentrats'!$A$1,$C12,$AI$2,1,1) -> 8 | AJ12: =OFFSET('Taula Concentrats'!$A$1,$C12,$AJ$2,1,1) -> 83 | AK12: =OFFSET('Taula Concentrats'!$A$1,$C12,$AK$2,1,1) -> 2.3 | AL12: =OFFSET('Taula Concentrats'!$A$1,$C12,$AL$2,1,1) -> 0.6819996035 | AM12: =OFFSET('Taula Concentrats'!$A$1,$C12,$AM$2,1,1) -> 601.9494415 | AN12: =IF('II_Plantejar Ració'!$E13>0,IF(CàlculsEV!E12>=0,1,"No"),"") -> 1 | AO12: =IF('II_Plantejar Ració'!$E13>0,IF(CàlculsEV!F12>0,1,"No"),"") -> 1 | AP12: =IF('II_Plantejar Ració'!$E13>0,IF(CàlculsEV!G12>0,1,"No"),"") -> 1 | AQ12: =IF('II_Plantejar Ració'!$E13>0,IF(CàlculsEV!H12=0,"No",1),"") -> 1 | AR12: =IF('II_Plantejar Ració'!$E13>0,IF(CàlculsEV!I12>0,1,"No"),"") -> 1 | AS12: =IF('II_Plantejar Ració'!$E13>0,IF(CàlculsEV!J12>0,1,"No"),"") -> 1 | AT12: =IF('II_Plantejar Ració'!$E13>0,IF(CàlculsEV!K12>0,1,"No"),"") -> 1 | AU12: =IF('II_Plantejar Ració'!$E13>0,IF(CàlculsEV!L12>0,1,"No"),"") -> 1 | AV12: =IF('II_Plantejar Ració'!$E13>0,IF(CàlculsEV!M12>0,1,"No"),"") -> 1 | AW12: =IF('II_Plantejar Ració'!$E13>0,IF(CàlculsEV!N12>0,1,"No"),"") -> 1 | AX12: =IF('II_Plantejar Ració'!$E13>0,IF(CàlculsEV!O12>0,1,"No"),"") -> No | AY12: =IF('II_Plantejar Ració'!$E13>0,IF(CàlculsEV!P12>0,1,"No"),"") -> No | AZ12: =IF('II_Plantejar Ració'!$E13>0,IF(CàlculsEV!Q12>0,1,"No"),"") -> 1 | BA12: =IF('II_Plantejar Ració'!$E13>0,IF(CàlculsEV!R12>0,1,"No"),"") -> 1 | BB12: =IF('II_Plantejar Ració'!$E13>0,IF(CàlculsEV!S12>0,1,"No"),"") -> 1 | BC12: =IF('II_Plantejar Ració'!$E13>0,IF(CàlculsEV!T12>0,1,"No"),"") -> 1 | BD12: =IF('II_Plantejar Ració'!$E13>0,IF(CàlculsEV!U12>0,1,"No"),"") -> No | BE12: =IF('II_Plantejar Ració'!$E13>0,IF(CàlculsEV!V12>0,1,"No"),"") -> 1 | BF12: =IF('II_Plantejar Ració'!$E13>0,IF(CàlculsEV!W12>0,1,"No"),"") -> No | BG12: =IF('II_Plantejar Ració'!$E13>0,IF(CàlculsEV!X12>0,1,"No"),"") -> No | BH12: =IF('II_Plantejar Ració'!$E13>0,IF(CàlculsEV!Y12>0,1,"No"),"") -> 1 | BI12: =IF('II_Plantejar Ració'!$E13>0,IF(CàlculsEV!Z12>0,1,"No"),"") -> 1 | BJ12: =IF('II_Plantejar Ració'!$E13>0,IF(CàlculsEV!AA12>0,1,"No"),"") -> 1 | BK12: =IF('II_Plantejar Ració'!$E13>0,IF(CàlculsEV!AB12>0,1,"No"),"") -> 1 | BL12: =IF('II_Plantejar Ració'!$E13>0,IF(CàlculsEV!AC12>0,1,"No"),"") -> 1 | BM12: =IF('II_Plantejar Ració'!$E13>0,IF(CàlculsEV!AD12>0,1,"No"),"") -> 1 | BN12: =IF('II_Plantejar Ració'!$E13>0,IF(CàlculsEV!AE12>0,1,"No"),"") -> 1 | BO12: =IF('II_Plantejar Ració'!$E13>0,IF(CàlculsEV!AF12>0,1,"No"),"") -> 1 | BP12: =IF('II_Plantejar Ració'!$E13>0,IF(CàlculsEV!AG12>0,1,"No"),"") -> 1 | BQ12: =IF('II_Plantejar Ració'!$E13>0,IF(CàlculsEV!AH12>0,1,"No"),"") -> 1 | BR12: =IF('II_Plantejar Ració'!$E13>0,IF(CàlculsEV!AI12>0,1,"No"),"") -> 1 | BS12: =IF('II_Plantejar Ració'!$E13>0,IF(CàlculsEV!AJ12>0,1,"No"),"") -> 1 | BT12: =IF('II_Plantejar Ració'!$E13>0,IF(CàlculsEV!AK12>0,1,"No"),"") -> 1 | BU12: =IF('II_Plantejar Ració'!$E13>0,IF(CàlculsEV!AL12>0,1,"No"),"") -> 1 | BV12: =IF('II_Plantejar Ració'!$E13>0,IF(CàlculsEV!AM12>0,1,"No"),"") -> 1 | BW12: 1 | BX12: 1 | BY12: 1 | BZ12: 1 | CA12: 1 | CB12: 1 | CC12: 1 | CD12: 1 | CE12: 1 | CF12: 1 | CG12: 1 | CH12: 1 | CI12: 1 | CJ12: 1 | CK12: 1 | CL12: 1 | CM12: 1 | CN12: 1 | CO12: 1 | CP12: 1 | CQ12: 1 | CR12: 1 | CS12: 1 | CT12: 1 | CU12: 1 | CV12: 1 | CW12: 1 | CX12: 1 | CY12: 1 | CZ12: 1 | DA12: 1 | DB12: 1 | DC12: 1 | DD12: 1 | DE12: 1
B13: =IF(OFFSET('Taula Concentrats'!$A$1,C13,0,1,1)=0,"",OFFSET('Taula Concentrats'!$A$1,C13,0,1,1)) -> Mandioca | C13: 78 | D13: =OFFSET('Taula Concentrats'!$A$1,$C13,$D$2,1,1) -> 85 | E13: =OFFSET('Taula Concentrats'!$A$1,$C13,$E$2,1,1) -> 0 | F13: =OFFSET('Taula Concentrats'!$A$1,$C13,$F$2,1,1) -> 1.142097463 | G13: =OFFSET('Taula Concentrats'!$A$1,$C13,$G$2,1,1) -> 75.49002249 | H13: =OFFSET('Taula Concentrats'!$A$1,$C13,$H$2,1,1) -> -97.45343744 | I13: =OFFSET('Taula Concentrats'!$A$1,$C13,$I$2,1,1) -> 2 | J13: =OFFSET('Taula Concentrats'!$A$1,$C13,$J$2,1,1) -> 2.5 | K13: =OFFSET('Taula Concentrats'!$A$1,$C13,$K$2,1,1) -> 1 | L13: =OFFSET('Taula Concentrats'!$A$1,$C13,$L$2,1,1) -> 0.9 | M13: =OFFSET('Taula Concentrats'!$A$1,$C13,$M$2,1,1) -> 7.5 | N13: =OFFSET('Taula Concentrats'!$A$1,$C13,$N$2,1,1) -> 0.35 | O13: =OFFSET('Taula Concentrats'!$A$1,$C13,$O$2,1,1) -> 0 | P13: =OFFSET('Taula Concentrats'!$A$1,$C13,$P$2,1,1) -> 0 | Q13: =OFFSET('Taula Concentrats'!$A$1,$C13,$Q$2,1,1) -> 0 | R13: =OFFSET('Taula Concentrats'!$A$1,$C13,$R$2,1,1) -> 2 | S13: =OFFSET('Taula Concentrats'!$A$1,$C13,$S$2,1,1) -> 5 | T13: =OFFSET('Taula Concentrats'!$A$1,$C13,$T$2,1,1) -> 30 | U13: =OFFSET('Taula Concentrats'!$A$1,$C13,$U$2,1,1) -> 0 | V13: =OFFSET('Taula Concentrats'!$A$1,$C13,$V$2,1,1) -> 0 | W13: =OFFSET('Taula Concentrats'!$A$1,$C13,$W$2,1,1) -> 0 | X13: =OFFSET('Taula Concentrats'!$A$1,$C13,$X$2,1,1) -> 0 | Y13: =OFFSET('Taula Concentrats'!$A$1,$C13,$Y$2,1,1) -> 0 | Z13: =OFFSET('Taula Concentrats'!$A$1,$C13,$Z$2,1,1) -> 6.56 | AA13: =OFFSET('Taula Concentrats'!$A$1,$C13,$AA$2,1,1) -> 31 | AB13: =OFFSET('Taula Concentrats'!$A$1,$C13,$AB$2,1,1) -> 10.10542253 | AC13: =OFFSET('Taula Concentrats'!$A$1,$C13,$AC$2,1,1) -> 0.91762 | AD13: =OFFSET('Taula Concentrats'!$A$1,$C13,$AD$2,1,1) -> 861.64518 | AE13: =OFFSET('Taula Concentrats'!$A$1,$C13,$AE$2,1,1) -> 8.2 | AF13: =OFFSET('Taula Concentrats'!$A$1,$C13,$AF$2,1,1) -> 54 | AG13: =OFFSET('Taula Concentrats'!$A$1,$C13,$AG$2,1,1) -> 118 | AH13: =OFFSET('Taula Concentrats'!$A$1,$C13,$AH$2,1,1) -> 59 | AI13: =OFFSET('Taula Concentrats'!$A$1,$C13,$AI$2,1,1) -> 14.01 | AJ13: =OFFSET('Taula Concentrats'!$A$1,$C13,$AJ$2,1,1) -> 61 | AK13: =OFFSET('Taula Concentrats'!$A$1,$C13,$AK$2,1,1) -> 0 | AL13: =OFFSET('Taula Concentrats'!$A$1,$C13,$AL$2,1,1) -> 0.638999494 | AM13: =OFFSET('Taula Concentrats'!$A$1,$C13,$AM$2,1,1) -> 842.2541643 | AN13: =IF('II_Plantejar Ració'!$E14>0,IF(CàlculsEV!E13>=0,1,"No"),"") ->  | AO13: =IF('II_Plantejar Ració'!$E14>0,IF(CàlculsEV!F13>0,1,"No"),"") ->  | AP13: =IF('II_Plantejar Ració'!$E14>0,IF(CàlculsEV!G13>0,1,"No"),"") ->  | AQ13: =IF('II_Plantejar Ració'!$E14>0,IF(CàlculsEV!H13=0,"No",1),"") ->  | AR13: =IF('II_Plantejar Ració'!$E14>0,IF(CàlculsEV!I13>0,1,"No"),"") ->  | AS13: =IF('II_Plantejar Ració'!$E14>0,IF(CàlculsEV!J13>0,1,"No"),"") ->  | AT13: =IF('II_Plantejar Ració'!$E14>0,IF(CàlculsEV!K13>0,1,"No"),"") ->  | AU13: =IF('II_Plantejar Ració'!$E14>0,IF(CàlculsEV!L13>0,1,"No"),"") ->  | AV13: =IF('II_Plantejar Ració'!$E14>0,IF(CàlculsEV!M13>0,1,"No"),"") ->  | AW13: =IF('II_Plantejar Ració'!$E14>0,IF(CàlculsEV!N13>0,1,"No"),"") ->  | AX13: =IF('II_Plantejar Ració'!$E14>0,IF(CàlculsEV!O13>0,1,"No"),"") ->  | AY13: =IF('II_Plantejar Ració'!$E14>0,IF(CàlculsEV!P13>0,1,"No"),"") ->  | AZ13: =IF('II_Plantejar Ració'!$E14>0,IF(CàlculsEV!Q13>0,1,"No"),"") ->  | BA13: =IF('II_Plantejar Ració'!$E14>0,IF(CàlculsEV!R13>0,1,"No"),"") ->  | BB13: =IF('II_Plantejar Ració'!$E14>0,IF(CàlculsEV!S13>0,1,"No"),"") ->  | BC13: =IF('II_Plantejar Ració'!$E14>0,IF(CàlculsEV!T13>0,1,"No"),"") ->  | BD13: =IF('II_Plantejar Ració'!$E14>0,IF(CàlculsEV!U13>0,1,"No"),"") ->  | BE13: =IF('II_Plantejar Ració'!$E14>0,IF(CàlculsEV!V13>0,1,"No"),"") ->  | BF13: =IF('II_Plantejar Ració'!$E14>0,IF(CàlculsEV!W13>0,1,"No"),"") ->  | BG13: =IF('II_Plantejar Ració'!$E14>0,IF(CàlculsEV!X13>0,1,"No"),"") ->  | BH13: =IF('II_Plantejar Ració'!$E14>0,IF(CàlculsEV!Y13>0,1,"No"),"") ->  | BI13: =IF('II_Plantejar Ració'!$E14>0,IF(CàlculsEV!Z13>0,1,"No"),"") ->  | BJ13: =IF('II_Plantejar Ració'!$E14>0,IF(CàlculsEV!AA13>0,1,"No"),"") ->  | BK13: =IF('II_Plantejar Ració'!$E14>0,IF(CàlculsEV!AB13>0,1,"No"),"") ->  | BL13: =IF('II_Plantejar Ració'!$E14>0,IF(CàlculsEV!AC13>0,1,"No"),"") ->  | BM13: =IF('II_Plantejar Ració'!$E14>0,IF(CàlculsEV!AD13>0,1,"No"),"") ->  | BN13: =IF('II_Plantejar Ració'!$E14>0,IF(CàlculsEV!AE13>0,1,"No"),"") ->  | BO13: =IF('II_Plantejar Ració'!$E14>0,IF(CàlculsEV!AF13>0,1,"No"),"") ->  | BP13: =IF('II_Plantejar Ració'!$E14>0,IF(CàlculsEV!AG13>0,1,"No"),"") ->  | BQ13: =IF('II_Plantejar Ració'!$E14>0,IF(CàlculsEV!AH13>0,1,"No"),"") ->  | BR13: =IF('II_Plantejar Ració'!$E14>0,IF(CàlculsEV!AI13>0,1,"No"),"") ->  | BS13: =IF('II_Plantejar Ració'!$E14>0,IF(CàlculsEV!AJ13>0,1,"No"),"") ->  | BT13: =IF('II_Plantejar Ració'!$E14>0,IF(CàlculsEV!AK13>0,1,"No"),"") ->  | BU13: =IF('II_Plantejar Ració'!$E14>0,IF(CàlculsEV!AL13>0,1,"No"),"") ->  | BV13: =IF('II_Plantejar Ració'!$E14>0,IF(CàlculsEV!AM13>0,1,"No"),"") ->  | BW13: 0 | BX13: 0 | BY13: 0 | BZ13: 0 | CA13: 0 | CB13: 0 | CC13: 0 | CD13: 0 | CE13: 0 | CF13: 0 | CG13: 0 | CH13: 0 | CI13: 0 | CJ13: 0 | CK13: 0 | CL13: 0 | CM13: 0 | CN13: 0 | CO13: 0 | CP13: 0 | CQ13: 0 | CR13: 0 | CS13: 0 | CT13: 0 | CU13: 0 | CV13: 0 | CW13: 0 | CX13: 0 | CY13: 0 | CZ13: 0 | DA13: 0 | DB13: 0 | DC13: 0 | DD13: 0 | DE13: 0
B14: =IF(OFFSET('Taula Concentrats'!$A$1,C14,0,1,1)=0,"",OFFSET('Taula Concentrats'!$A$1,C14,0,1,1)) -> Ordi bagàs cerveseria sec | C14: 24 | D14: =OFFSET('Taula Concentrats'!$A$1,$C14,$D$2,1,1) -> 91.9 | E14: =OFFSET('Taula Concentrats'!$A$1,$C14,$E$2,1,1) -> 0 | F14: =OFFSET('Taula Concentrats'!$A$1,$C14,$F$2,1,1) -> 0.871193565 | G14: =OFFSET('Taula Concentrats'!$A$1,$C14,$G$2,1,1) -> 151.6383987 | H14: =OFFSET('Taula Concentrats'!$A$1,$C14,$H$2,1,1) -> 35.09442835 | I14: =OFFSET('Taula Concentrats'!$A$1,$C14,$I$2,1,1) -> 2 | J14: =OFFSET('Taula Concentrats'!$A$1,$C14,$J$2,1,1) -> 2.3 | K14: =OFFSET('Taula Concentrats'!$A$1,$C14,$K$2,1,1) -> 6.3 | L14: =OFFSET('Taula Concentrats'!$A$1,$C14,$L$2,1,1) -> 0 | M14: =OFFSET('Taula Concentrats'!$A$1,$C14,$M$2,1,1) -> 0 | N14: =OFFSET('Taula Concentrats'!$A$1,$C14,$N$2,1,1) -> 0 | O14: =OFFSET('Taula Concentrats'!$A$1,$C14,$O$2,1,1) -> 0 | P14: =OFFSET('Taula Concentrats'!$A$1,$C14,$P$2,1,1) -> 0 | Q14: =OFFSET('Taula Concentrats'!$A$1,$C14,$Q$2,1,1) -> 0.08 | R14: =OFFSET('Taula Concentrats'!$A$1,$C14,$R$2,1,1) -> 22.2 | S14: =OFFSET('Taula Concentrats'!$A$1,$C14,$S$2,1,1) -> 38.5 | T14: =OFFSET('Taula Concentrats'!$A$1,$C14,$T$2,1,1) -> 85 | U14: =OFFSET('Taula Concentrats'!$A$1,$C14,$U$2,1,1) -> 0 | V14: =OFFSET('Taula Concentrats'!$A$1,$C14,$V$2,1,1) -> 0.06 | W14: =OFFSET('Taula Concentrats'!$A$1,$C14,$W$2,1,1) -> 0 | X14: =OFFSET('Taula Concentrats'!$A$1,$C14,$X$2,1,1) -> 0 | Y14: =OFFSET('Taula Concentrats'!$A$1,$C14,$Y$2,1,1) -> 29 | Z14: =OFFSET('Taula Concentrats'!$A$1,$C14,$Z$2,1,1) -> 35.955 | AA14: =OFFSET('Taula Concentrats'!$A$1,$C14,$AA$2,1,1) -> 262.4 | AB14: =OFFSET('Taula Concentrats'!$A$1,$C14,$AB$2,1,1) -> 107.6156328 | AC14: =OFFSET('Taula Concentrats'!$A$1,$C14,$AC$2,1,1) -> 0.62732 | AD14: =OFFSET('Taula Concentrats'!$A$1,$C14,$AD$2,1,1) -> 601.348952 | AE14: =OFFSET('Taula Concentrats'!$A$1,$C14,$AE$2,1,1) -> 79.9 | AF14: =OFFSET('Taula Concentrats'!$A$1,$C14,$AF$2,1,1) -> 161.6 | AG14: =OFFSET('Taula Concentrats'!$A$1,$C14,$AG$2,1,1) -> 643.3 | AH14: =OFFSET('Taula Concentrats'!$A$1,$C14,$AH$2,1,1) -> 236.4 | AI14: =OFFSET('Taula Concentrats'!$A$1,$C14,$AI$2,1,1) -> 78.9 | AJ14: =OFFSET('Taula Concentrats'!$A$1,$C14,$AJ$2,1,1) -> 41.4 | AK14: =OFFSET('Taula Concentrats'!$A$1,$C14,$AK$2,1,1) -> 0.5 | AL14: =OFFSET('Taula Concentrats'!$A$1,$C14,$AL$2,1,1) -> 0.5371850665 | AM14: =OFFSET('Taula Concentrats'!$A$1,$C14,$AM$2,1,1) -> 400.0063135 | AN14: =IF('II_Plantejar Ració'!$E15>0,IF(CàlculsEV!E14>=0,1,"No"),"") ->  | AO14: =IF('II_Plantejar Ració'!$E15>0,IF(CàlculsEV!F14>0,1,"No"),"") ->  | AP14: =IF('II_Plantejar Ració'!$E15>0,IF(CàlculsEV!G14>0,1,"No"),"") ->  | AQ14: =IF('II_Plantejar Ració'!$E15>0,IF(CàlculsEV!H14=0,"No",1),"") ->  | AR14: =IF('II_Plantejar Ració'!$E15>0,IF(CàlculsEV!I14>0,1,"No"),"") ->  | AS14: =IF('II_Plantejar Ració'!$E15>0,IF(CàlculsEV!J14>0,1,"No"),"") ->  | AT14: =IF('II_Plantejar Ració'!$E15>0,IF(CàlculsEV!K14>0,1,"No"),"") ->  | AU14: =IF('II_Plantejar Ració'!$E15>0,IF(CàlculsEV!L14>0,1,"No"),"") ->  | AV14: =IF('II_Plantejar Ració'!$E15>0,IF(CàlculsEV!M14>0,1,"No"),"") ->  | AW14: =IF('II_Plantejar Ració'!$E15>0,IF(CàlculsEV!N14>0,1,"No"),"") ->  | AX14: =IF('II_Plantejar Ració'!$E15>0,IF(CàlculsEV!O14>0,1,"No"),"") ->  | AY14: =IF('II_Plantejar Ració'!$E15>0,IF(CàlculsEV!P14>0,1,"No"),"") ->  | AZ14: =IF('II_Plantejar Ració'!$E15>0,IF(CàlculsEV!Q14>0,1,"No"),"") ->  | BA14: =IF('II_Plantejar Ració'!$E15>0,IF(CàlculsEV!R14>0,1,"No"),"") ->  | BB14: =IF('II_Plantejar Ració'!$E15>0,IF(CàlculsEV!S14>0,1,"No"),"") ->  | BC14: =IF('II_Plantejar Ració'!$E15>0,IF(CàlculsEV!T14>0,1,"No"),"") ->  | BD14: =IF('II_Plantejar Ració'!$E15>0,IF(CàlculsEV!U14>0,1,"No"),"") ->  | BE14: =IF('II_Plantejar Ració'!$E15>0,IF(CàlculsEV!V14>0,1,"No"),"") ->  | BF14: =IF('II_Plantejar Ració'!$E15>0,IF(CàlculsEV!W14>0,1,"No"),"") ->  | BG14: =IF('II_Plantejar Ració'!$E15>0,IF(CàlculsEV!X14>0,1,"No"),"") ->  | BH14: =IF('II_Plantejar Ració'!$E15>0,IF(CàlculsEV!Y14>0,1,"No"),"") ->  | BI14: =IF('II_Plantejar Ració'!$E15>0,IF(CàlculsEV!Z14>0,1,"No"),"") ->  | BJ14: =IF('II_Plantejar Ració'!$E15>0,IF(CàlculsEV!AA14>0,1,"No"),"") ->  | BK14: =IF('II_Plantejar Ració'!$E15>0,IF(CàlculsEV!AB14>0,1,"No"),"") ->  | BL14: =IF('II_Plantejar Ració'!$E15>0,IF(CàlculsEV!AC14>0,1,"No"),"") ->  | BM14: =IF('II_Plantejar Ració'!$E15>0,IF(CàlculsEV!AD14>0,1,"No"),"") ->  | BN14: =IF('II_Plantejar Ració'!$E15>0,IF(CàlculsEV!AE14>0,1,"No"),"") ->  | BO14: =IF('II_Plantejar Ració'!$E15>0,IF(CàlculsEV!AF14>0,1,"No"),"") ->  | BP14: =IF('II_Plantejar Ració'!$E15>0,IF(CàlculsEV!AG14>0,1,"No"),"") ->  | BQ14: =IF('II_Plantejar Ració'!$E15>0,IF(CàlculsEV!AH14>0,1,"No"),"") ->  | BR14: =IF('II_Plantejar Ració'!$E15>0,IF(CàlculsEV!AI14>0,1,"No"),"") ->  | BS14: =IF('II_Plantejar Ració'!$E15>0,IF(CàlculsEV!AJ14>0,1,"No"),"") ->  | BT14: =IF('II_Plantejar Ració'!$E15>0,IF(CàlculsEV!AK14>0,1,"No"),"") ->  | BU14: =IF('II_Plantejar Ració'!$E15>0,IF(CàlculsEV!AL14>0,1,"No"),"") ->  | BV14: =IF('II_Plantejar Ració'!$E15>0,IF(CàlculsEV!AM14>0,1,"No"),"") ->  | BW14: 0 | BX14: 0 | BY14: 0 | BZ14: 0 | CA14: 0 | CB14: 0 | CC14: 0 | CD14: 0 | CE14: 0 | CF14: 0 | CG14: 0 | CH14: 0 | CI14: 0 | CJ14: 0 | CK14: 0 | CL14: 0 | CM14: 0 | CN14: 0 | CO14: 0 | CP14: 0 | CQ14: 0 | CR14: 0 | CS14: 0 | CT14: 0 | CU14: 0 | CV14: 0 | CW14: 0 | CX14: 0 | CY14: 0 | CZ14: 0 | DA14: 0 | DB14: 0 | DC14: 0 | DD14: 0 | DE14: 0
B15: =IF(OFFSET('Taula Concentrats'!$A$1,C15,0,1,1)=0,"",OFFSET('Taula Concentrats'!$A$1,C15,0,1,1)) -> Cotó, gra | C15: 34 | D15: =OFFSET('Taula Concentrats'!$A$1,$C15,$D$2,1,1) -> 92 | E15: =OFFSET('Taula Concentrats'!$A$1,$C15,$E$2,1,1) -> 0 | F15: =OFFSET('Taula Concentrats'!$A$1,$C15,$F$2,1,1) -> 1.105745464 | G15: =OFFSET('Taula Concentrats'!$A$1,$C15,$G$2,1,1) -> 91.65479282 | H15: =OFFSET('Taula Concentrats'!$A$1,$C15,$H$2,1,1) -> 70.58383788 | I15: =OFFSET('Taula Concentrats'!$A$1,$C15,$I$2,1,1) -> 2 | J15: =OFFSET('Taula Concentrats'!$A$1,$C15,$J$2,1,1) -> 2.1 | K15: =OFFSET('Taula Concentrats'!$A$1,$C15,$K$2,1,1) -> 6.4 | L15: =OFFSET('Taula Concentrats'!$A$1,$C15,$L$2,1,1) -> 0 | M15: =OFFSET('Taula Concentrats'!$A$1,$C15,$M$2,1,1) -> 0 | N15: =OFFSET('Taula Concentrats'!$A$1,$C15,$N$2,1,1) -> 0 | O15: =OFFSET('Taula Concentrats'!$A$1,$C15,$O$2,1,1) -> 0 | P15: =OFFSET('Taula Concentrats'!$A$1,$C15,$P$2,1,1) -> 0 | Q15: =OFFSET('Taula Concentrats'!$A$1,$C15,$Q$2,1,1) -> 0 | R15: =OFFSET('Taula Concentrats'!$A$1,$C15,$R$2,1,1) -> 0 | S15: =OFFSET('Taula Concentrats'!$A$1,$C15,$S$2,1,1) -> 0 | T15: =OFFSET('Taula Concentrats'!$A$1,$C15,$T$2,1,1) -> 0 | U15: =OFFSET('Taula Concentrats'!$A$1,$C15,$U$2,1,1) -> 0 | V15: =OFFSET('Taula Concentrats'!$A$1,$C15,$V$2,1,1) -> 0 | W15: =OFFSET('Taula Concentrats'!$A$1,$C15,$W$2,1,1) -> 0 | X15: =OFFSET('Taula Concentrats'!$A$1,$C15,$X$2,1,1) -> 0 | Y15: =OFFSET('Taula Concentrats'!$A$1,$C15,$Y$2,1,1) -> 0 | Z15: =OFFSET('Taula Concentrats'!$A$1,$C15,$Z$2,1,1) -> 188.1 | AA15: =OFFSET('Taula Concentrats'!$A$1,$C15,$AA$2,1,1) -> 220 | AB15: =OFFSET('Taula Concentrats'!$A$1,$C15,$AB$2,1,1) -> 48.76444907 | AC15: =OFFSET('Taula Concentrats'!$A$1,$C15,$AC$2,1,1) -> 0.64652 | AD15: =OFFSET('Taula Concentrats'!$A$1,$C15,$AD$2,1,1) -> 618.71964 | AE15: =OFFSET('Taula Concentrats'!$A$1,$C15,$AE$2,1,1) -> 198 | AF15: =OFFSET('Taula Concentrats'!$A$1,$C15,$AF$2,1,1) -> 276 | AG15: =OFFSET('Taula Concentrats'!$A$1,$C15,$AG$2,1,1) -> 456 | AH15: =OFFSET('Taula Concentrats'!$A$1,$C15,$AH$2,1,1) -> 354 | AI15: =OFFSET('Taula Concentrats'!$A$1,$C15,$AI$2,1,1) -> 105 | AJ15: =OFFSET('Taula Concentrats'!$A$1,$C15,$AJ$2,1,1) -> 43 | AK15: =OFFSET('Taula Concentrats'!$A$1,$C15,$AK$2,1,1) -> 0 | AL15: =OFFSET('Taula Concentrats'!$A$1,$C15,$AL$2,1,1) -> 0.7394108541 | AM15: =OFFSET('Taula Concentrats'!$A$1,$C15,$AM$2,1,1) -> 363.3900279 | AN15: =IF('II_Plantejar Ració'!$E16>0,IF(CàlculsEV!E15>=0,1,"No"),"") ->  | AO15: =IF('II_Plantejar Ració'!$E16>0,IF(CàlculsEV!F15>0,1,"No"),"") ->  | AP15: =IF('II_Plantejar Ració'!$E16>0,IF(CàlculsEV!G15>0,1,"No"),"") ->  | AQ15: =IF('II_Plantejar Ració'!$E16>0,IF(CàlculsEV!H15=0,"No",1),"") ->  | AR15: =IF('II_Plantejar Ració'!$E16>0,IF(CàlculsEV!I15>0,1,"No"),"") ->  | AS15: =IF('II_Plantejar Ració'!$E16>0,IF(CàlculsEV!J15>0,1,"No"),"") ->  | AT15: =IF('II_Plantejar Ració'!$E16>0,IF(CàlculsEV!K15>0,1,"No"),"") ->  | AU15: =IF('II_Plantejar Ració'!$E16>0,IF(CàlculsEV!L15>0,1,"No"),"") ->  | AV15: =IF('II_Plantejar Ració'!$E16>0,IF(CàlculsEV!M15>0,1,"No"),"") ->  | AW15: =IF('II_Plantejar Ració'!$E16>0,IF(CàlculsEV!N15>0,1,"No"),"") ->  | AX15: =IF('II_Plantejar Ració'!$E16>0,IF(CàlculsEV!O15>0,1,"No"),"") ->  | AY15: =IF('II_Plantejar Ració'!$E16>0,IF(CàlculsEV!P15>0,1,"No"),"") ->  | AZ15: =IF('II_Plantejar Ració'!$E16>0,IF(CàlculsEV!Q15>0,1,"No"),"") ->  | BA15: =IF('II_Plantejar Ració'!$E16>0,IF(CàlculsEV!R15>0,1,"No"),"") ->  | BB15: =IF('II_Plantejar Ració'!$E16>0,IF(CàlculsEV!S15>0,1,"No"),"") ->  | BC15: =IF('II_Plantejar Ració'!$E16>0,IF(CàlculsEV!T15>0,1,"No"),"") ->  | BD15: =IF('II_Plantejar Ració'!$E16>0,IF(CàlculsEV!U15>0,1,"No"),"") ->  | BE15: =IF('II_Plantejar Ració'!$E16>0,IF(CàlculsEV!V15>0,1,"No"),"") ->  | BF15: =IF('II_Plantejar Ració'!$E16>0,IF(CàlculsEV!W15>0,1,"No"),"") ->  | BG15: =IF('II_Plantejar Ració'!$E16>0,IF(CàlculsEV!X15>0,1,"No"),"") ->  | BH15: =IF('II_Plantejar Ració'!$E16>0,IF(CàlculsEV!Y15>0,1,"No"),"") ->  | BI15: =IF('II_Plantejar Ració'!$E16>0,IF(CàlculsEV!Z15>0,1,"No"),"") ->  | BJ15: =IF('II_Plantejar Ració'!$E16>0,IF(CàlculsEV!AA15>0,1,"No"),"") ->  | BK15: =IF('II_Plantejar Ració'!$E16>0,IF(CàlculsEV!AB15>0,1,"No"),"") ->  | BL15: =IF('II_Plantejar Ració'!$E16>0,IF(CàlculsEV!AC15>0,1,"No"),"") ->  | BM15: =IF('II_Plantejar Ració'!$E16>0,IF(CàlculsEV!AD15>0,1,"No"),"") ->  | BN15: =IF('II_Plantejar Ració'!$E16>0,IF(CàlculsEV!AE15>0,1,"No"),"") ->  | BO15: =IF('II_Plantejar Ració'!$E16>0,IF(CàlculsEV!AF15>0,1,"No"),"") ->  | BP15: =IF('II_Plantejar Ració'!$E16>0,IF(CàlculsEV!AG15>0,1,"No"),"") ->  | BQ15: =IF('II_Plantejar Ració'!$E16>0,IF(CàlculsEV!AH15>0,1,"No"),"") ->  | BR15: =IF('II_Plantejar Ració'!$E16>0,IF(CàlculsEV!AI15>0,1,"No"),"") ->  | BS15: =IF('II_Plantejar Ració'!$E16>0,IF(CàlculsEV!AJ15>0,1,"No"),"") ->  | BT15: =IF('II_Plantejar Ració'!$E16>0,IF(CàlculsEV!AK15>0,1,"No"),"") ->  | BU15: =IF('II_Plantejar Ració'!$E16>0,IF(CàlculsEV!AL15>0,1,"No"),"") ->  | BV15: =IF('II_Plantejar Ració'!$E16>0,IF(CàlculsEV!AM15>0,1,"No"),"") ->  | BW15: 0 | BX15: 0 | BY15: 0 | BZ15: 0 | CA15: 0 | CB15: 0 | CC15: 0 | CD15: 0 | CE15: 0 | CF15: 0 | CG15: 0 | CH15: 0 | CI15: 0 | CJ15: 0 | CK15: 0 | CL15: 0 | CM15: 0 | CN15: 0 | CO15: 0 | CP15: 0 | CQ15: 0 | CR15: 0 | CS15: 0 | CT15: 0 | CU15: 0 | CV15: 0 | CW15: 0 | CX15: 0 | CY15: 0 | CZ15: 0 | DA15: 0 | DB15: 0 | DC15: 0 | DD15: 0 | DE15: 0
B16: =IF(OFFSET('Taula Concentrats'!$A$1,C16,0,1,1)=0,"",OFFSET('Taula Concentrats'!$A$1,C16,0,1,1)) -> Llevat cerveseria | C16: 75 | D16: =OFFSET('Taula Concentrats'!$A$1,$C16,$D$2,1,1) -> 93.3 | E16: =OFFSET('Taula Concentrats'!$A$1,$C16,$E$2,1,1) -> 0 | F16: =OFFSET('Taula Concentrats'!$A$1,$C16,$F$2,1,1) -> 1.18 | G16: =OFFSET('Taula Concentrats'!$A$1,$C16,$G$2,1,1) -> 143 | H16: =OFFSET('Taula Concentrats'!$A$1,$C16,$H$2,1,1) -> 278 | I16: =OFFSET('Taula Concentrats'!$A$1,$C16,$I$2,1,1) -> 2 | J16: =OFFSET('Taula Concentrats'!$A$1,$C16,$J$2,1,1) -> 3 | K16: =OFFSET('Taula Concentrats'!$A$1,$C16,$K$2,1,1) -> 13.5 | L16: =OFFSET('Taula Concentrats'!$A$1,$C16,$L$2,1,1) -> 2.4 | M16: =OFFSET('Taula Concentrats'!$A$1,$C16,$M$2,1,1) -> 0 | N16: =OFFSET('Taula Concentrats'!$A$1,$C16,$N$2,1,1) -> 0 | O16: =OFFSET('Taula Concentrats'!$A$1,$C16,$O$2,1,1) -> 0 | P16: =OFFSET('Taula Concentrats'!$A$1,$C16,$P$2,1,1) -> 0 | Q16: =OFFSET('Taula Concentrats'!$A$1,$C16,$Q$2,1,1) -> 0 | R16: =OFFSET('Taula Concentrats'!$A$1,$C16,$R$2,1,1) -> 0 | S16: =OFFSET('Taula Concentrats'!$A$1,$C16,$S$2,1,1) -> 0 | T16: =OFFSET('Taula Concentrats'!$A$1,$C16,$T$2,1,1) -> 0 | U16: =OFFSET('Taula Concentrats'!$A$1,$C16,$U$2,1,1) -> 0 | V16: =OFFSET('Taula Concentrats'!$A$1,$C16,$V$2,1,1) -> 0 | W16: =OFFSET('Taula Concentrats'!$A$1,$C16,$W$2,1,1) -> 0 | X16: =OFFSET('Taula Concentrats'!$A$1,$C16,$X$2,1,1) -> 0 | Y16: =OFFSET('Taula Concentrats'!$A$1,$C16,$Y$2,1,1) -> 0 | Z16: =OFFSET('Taula Concentrats'!$A$1,$C16,$Z$2,1,1) -> 32 | AA16: =OFFSET('Taula Concentrats'!$A$1,$C16,$AA$2,1,1) -> 476 | AB16: =OFFSET('Taula Concentrats'!$A$1,$C16,$AB$2,1,1) -> 87 | AC16: =OFFSET('Taula Concentrats'!$A$1,$C16,$AC$2,1,1) -> 0.84 | AD16: =OFFSET('Taula Concentrats'!$A$1,$C16,$AD$2,1,1) -> 756 | AE16: =OFFSET('Taula Concentrats'!$A$1,$C16,$AE$2,1,1) -> 40 | AF16: =OFFSET('Taula Concentrats'!$A$1,$C16,$AF$2,1,1) -> 21 | AG16: =OFFSET('Taula Concentrats'!$A$1,$C16,$AG$2,1,1) -> 88 | AH16: =OFFSET('Taula Concentrats'!$A$1,$C16,$AH$2,1,1) -> 25 | AI16: =OFFSET('Taula Concentrats'!$A$1,$C16,$AI$2,1,1) -> 7 | AJ16: =OFFSET('Taula Concentrats'!$A$1,$C16,$AJ$2,1,1) -> 32 | AK16: =OFFSET('Taula Concentrats'!$A$1,$C16,$AK$2,1,1) -> 0 | AL16: =OFFSET('Taula Concentrats'!$A$1,$C16,$AL$2,1,1) -> 0.815157707 | AM16: =OFFSET('Taula Concentrats'!$A$1,$C16,$AM$2,1,1) -> 628.0150685 | AN16: =IF('II_Plantejar Ració'!$E17>0,IF(CàlculsEV!E16>=0,1,"No"),"") -> 1 | AO16: =IF('II_Plantejar Ració'!$E17>0,IF(CàlculsEV!F16>0,1,"No"),"") -> 1 | AP16: =IF('II_Plantejar Ració'!$E17>0,IF(CàlculsEV!G16>0,1,"No"),"") -> 1 | AQ16: =IF('II_Plantejar Ració'!$E17>0,IF(CàlculsEV!H16=0,"No",1),"") -> 1 | AR16: =IF('II_Plantejar Ració'!$E17>0,IF(CàlculsEV!I16>0,1,"No"),"") -> 1 | AS16: =IF('II_Plantejar Ració'!$E17>0,IF(CàlculsEV!J16>0,1,"No"),"") -> 1 | AT16: =IF('II_Plantejar Ració'!$E17>0,IF(CàlculsEV!K16>0,1,"No"),"") -> 1 | AU16: =IF('II_Plantejar Ració'!$E17>0,IF(CàlculsEV!L16>0,1,"No"),"") -> 1 | AV16: =IF('II_Plantejar Ració'!$E17>0,IF(CàlculsEV!M16>0,1,"No"),"") -> No | AW16: =IF('II_Plantejar Ració'!$E17>0,IF(CàlculsEV!N16>0,1,"No"),"") -> No | AX16: =IF('II_Plantejar Ració'!$E17>0,IF(CàlculsEV!O16>0,1,"No"),"") -> No | AY16: =IF('II_Plantejar Ració'!$E17>0,IF(CàlculsEV!P16>0,1,"No"),"") -> No | AZ16: =IF('II_Plantejar Ració'!$E17>0,IF(CàlculsEV!Q16>0,1,"No"),"") -> No | BA16: =IF('II_Plantejar Ració'!$E17>0,IF(CàlculsEV!R16>0,1,"No"),"") -> No | BB16: =IF('II_Plantejar Ració'!$E17>0,IF(CàlculsEV!S16>0,1,"No"),"") -> No | BC16: =IF('II_Plantejar Ració'!$E17>0,IF(CàlculsEV!T16>0,1,"No"),"") -> No | BD16: =IF('II_Plantejar Ració'!$E17>0,IF(CàlculsEV!U16>0,1,"No"),"") -> No | BE16: =IF('II_Plantejar Ració'!$E17>0,IF(CàlculsEV!V16>0,1,"No"),"") -> No | BF16: =IF('II_Plantejar Ració'!$E17>0,IF(CàlculsEV!W16>0,1,"No"),"") -> No | BG16: =IF('II_Plantejar Ració'!$E17>0,IF(CàlculsEV!X16>0,1,"No"),"") -> No | BH16: =IF('II_Plantejar Ració'!$E17>0,IF(CàlculsEV!Y16>0,1,"No"),"") -> No | BI16: =IF('II_Plantejar Ració'!$E17>0,IF(CàlculsEV!Z16>0,1,"No"),"") -> 1 | BJ16: =IF('II_Plantejar Ració'!$E17>0,IF(CàlculsEV!AA16>0,1,"No"),"") -> 1 | BK16: =IF('II_Plantejar Ració'!$E17>0,IF(CàlculsEV!AB16>0,1,"No"),"") -> 1 | BL16: =IF('II_Plantejar Ració'!$E17>0,IF(CàlculsEV!AC16>0,1,"No"),"") -> 1 | BM16: =IF('II_Plantejar Ració'!$E17>0,IF(CàlculsEV!AD16>0,1,"No"),"") -> 1 | BN16: =IF('II_Plantejar Ració'!$E17>0,IF(CàlculsEV!AE16>0,1,"No"),"") -> 1 | BO16: =IF('II_Plantejar Ració'!$E17>0,IF(CàlculsEV!AF16>0,1,"No"),"") -> 1 | BP16: =IF('II_Plantejar Ració'!$E17>0,IF(CàlculsEV!AG16>0,1,"No"),"") -> 1 | BQ16: =IF('II_Plantejar Ració'!$E17>0,IF(CàlculsEV!AH16>0,1,"No"),"") -> 1 | BR16: =IF('II_Plantejar Ració'!$E17>0,IF(CàlculsEV!AI16>0,1,"No"),"") -> 1 | BS16: =IF('II_Plantejar Ració'!$E17>0,IF(CàlculsEV!AJ16>0,1,"No"),"") -> 1 | BT16: =IF('II_Plantejar Ració'!$E17>0,IF(CàlculsEV!AK16>0,1,"No"),"") -> No | BU16: =IF('II_Plantejar Ració'!$E17>0,IF(CàlculsEV!AL16>0,1,"No"),"") -> 1 | BV16: =IF('II_Plantejar Ració'!$E17>0,IF(CàlculsEV!AM16>0,1,"No"),"") -> 1 | BW16: 1 | BX16: 1 | BY16: 1 | BZ16: 1 | CA16: 1 | CB16: 1 | CC16: 1 | CD16: 1 | CE16: 1 | CF16: 1 | CG16: 1 | CH16: 1 | CI16: 1 | CJ16: 1 | CK16: 1 | CL16: 1 | CM16: 1 | CN16: 1 | CO16: 1 | CP16: 1 | CQ16: 1 | CR16: 1 | CS16: 1 | CT16: 1 | CU16: 1 | CV16: 1 | CW16: 1 | CX16: 1 | CY16: 1 | CZ16: 1 | DA16: 1 | DB16: 1 | DC16: 1 | DD16: 1 | DE16: 1
B17: =IF(OFFSET('Taula Concentrats'!$A$1,C17,0,1,1)=0,"",OFFSET('Taula Concentrats'!$A$1,C17,0,1,1)) -> Grassa vegetal, mantega de porc (tots els tipus) | C17: 74 | D17: =OFFSET('Taula Concentrats'!$A$1,$C17,$D$2,1,1) -> 99.9 | E17: =OFFSET('Taula Concentrats'!$A$1,$C17,$E$2,1,1) -> 0 | F17: =OFFSET('Taula Concentrats'!$A$1,$C17,$F$2,1,1) -> 3.61 | G17: =OFFSET('Taula Concentrats'!$A$1,$C17,$G$2,1,1) -> 1e-07 | H17: =OFFSET('Taula Concentrats'!$A$1,$C17,$H$2,1,1) -> -14 | I17: =OFFSET('Taula Concentrats'!$A$1,$C17,$I$2,1,1) -> 2 | J17: =OFFSET('Taula Concentrats'!$A$1,$C17,$J$2,1,1) -> 1e-07 | K17: =OFFSET('Taula Concentrats'!$A$1,$C17,$K$2,1,1) -> 1e-07 | L17: =OFFSET('Taula Concentrats'!$A$1,$C17,$L$2,1,1) -> 1e-07 | M17: =OFFSET('Taula Concentrats'!$A$1,$C17,$M$2,1,1) -> 1e-07 | N17: =OFFSET('Taula Concentrats'!$A$1,$C17,$N$2,1,1) -> 1e-07 | O17: =OFFSET('Taula Concentrats'!$A$1,$C17,$O$2,1,1) -> 1e-07 | P17: =OFFSET('Taula Concentrats'!$A$1,$C17,$P$2,1,1) -> 1e-07 | Q17: =OFFSET('Taula Concentrats'!$A$1,$C17,$Q$2,1,1) -> 1e-07 | R17: =OFFSET('Taula Concentrats'!$A$1,$C17,$R$2,1,1) -> 1e-07 | S17: =OFFSET('Taula Concentrats'!$A$1,$C17,$S$2,1,1) -> 1e-07 | T17: =OFFSET('Taula Concentrats'!$A$1,$C17,$T$2,1,1) -> 1e-07 | U17: =OFFSET('Taula Concentrats'!$A$1,$C17,$U$2,1,1) -> 1e-07 | V17: =OFFSET('Taula Concentrats'!$A$1,$C17,$V$2,1,1) -> 1e-07 | W17: =OFFSET('Taula Concentrats'!$A$1,$C17,$W$2,1,1) -> 1300 | X17: =OFFSET('Taula Concentrats'!$A$1,$C17,$X$2,1,1) -> 1e-07 | Y17: =OFFSET('Taula Concentrats'!$A$1,$C17,$Y$2,1,1) -> 95 | Z17: =OFFSET('Taula Concentrats'!$A$1,$C17,$Z$2,1,1) -> 999 | AA17: =OFFSET('Taula Concentrats'!$A$1,$C17,$AA$2,1,1) -> 1e-07 | AB17: =OFFSET('Taula Concentrats'!$A$1,$C17,$AB$2,1,1) -> 1e-07 | AC17: =OFFSET('Taula Concentrats'!$A$1,$C17,$AC$2,1,1) -> 0.9 | AD17: =OFFSET('Taula Concentrats'!$A$1,$C17,$AD$2,1,1) -> 1e-07 | AE17: =OFFSET('Taula Concentrats'!$A$1,$C17,$AE$2,1,1) -> 999 | AF17: =OFFSET('Taula Concentrats'!$A$1,$C17,$AF$2,1,1) -> 1e-07 | AG17: =OFFSET('Taula Concentrats'!$A$1,$C17,$AG$2,1,1) -> 1e-07 | AH17: =OFFSET('Taula Concentrats'!$A$1,$C17,$AH$2,1,1) -> 1e-07 | AI17: =OFFSET('Taula Concentrats'!$A$1,$C17,$AI$2,1,1) -> 1e-07 | AJ17: =OFFSET('Taula Concentrats'!$A$1,$C17,$AJ$2,1,1) -> 1e-07 | AK17: =OFFSET('Taula Concentrats'!$A$1,$C17,$AK$2,1,1) -> 1e-07 | AL17: =OFFSET('Taula Concentrats'!$A$1,$C17,$AL$2,1,1) -> 0 | AM17: =OFFSET('Taula Concentrats'!$A$1,$C17,$AM$2,1,1) -> 0 | AN17: =IF('II_Plantejar Ració'!$E18>0,IF(CàlculsEV!E17>=0,1,"No"),"") -> 1 | AO17: =IF('II_Plantejar Ració'!$E18>0,IF(CàlculsEV!F17>0,1,"No"),"") -> 1 | AP17: =IF('II_Plantejar Ració'!$E18>0,IF(CàlculsEV!G17>0,1,"No"),"") -> 1 | AQ17: =IF('II_Plantejar Ració'!$E18>0,IF(CàlculsEV!H17=0,"No",1),"") -> 1 | AR17: =IF('II_Plantejar Ració'!$E18>0,IF(CàlculsEV!I17>0,1,"No"),"") -> 1 | AS17: =IF('II_Plantejar Ració'!$E18>0,IF(CàlculsEV!J17>0,1,"No"),"") -> 1 | AT17: =IF('II_Plantejar Ració'!$E18>0,IF(CàlculsEV!K17>0,1,"No"),"") -> 1 | AU17: =IF('II_Plantejar Ració'!$E18>0,IF(CàlculsEV!L17>0,1,"No"),"") -> 1 | AV17: =IF('II_Plantejar Ració'!$E18>0,IF(CàlculsEV!M17>0,1,"No"),"") -> 1 | AW17: =IF('II_Plantejar Ració'!$E18>0,IF(CàlculsEV!N17>0,1,"No"),"") -> 1 | AX17: =IF('II_Plantejar Ració'!$E18>0,IF(CàlculsEV!O17>0,1,"No"),"") -> 1 | AY17: =IF('II_Plantejar Ració'!$E18>0,IF(CàlculsEV!P17>0,1,"No"),"") -> 1 | AZ17: =IF('II_Plantejar Ració'!$E18>0,IF(CàlculsEV!Q17>0,1,"No"),"") -> 1 | BA17: =IF('II_Plantejar Ració'!$E18>0,IF(CàlculsEV!R17>0,1,"No"),"") -> 1 | BB17: =IF('II_Plantejar Ració'!$E18>0,IF(CàlculsEV!S17>0,1,"No"),"") -> 1 | BC17: =IF('II_Plantejar Ració'!$E18>0,IF(CàlculsEV!T17>0,1,"No"),"") -> 1 | BD17: =IF('II_Plantejar Ració'!$E18>0,IF(CàlculsEV!U17>0,1,"No"),"") -> 1 | BE17: =IF('II_Plantejar Ració'!$E18>0,IF(CàlculsEV!V17>0,1,"No"),"") -> 1 | BF17: =IF('II_Plantejar Ració'!$E18>0,IF(CàlculsEV!W17>0,1,"No"),"") -> 1 | BG17: =IF('II_Plantejar Ració'!$E18>0,IF(CàlculsEV!X17>0,1,"No"),"") -> 1 | BH17: =IF('II_Plantejar Ració'!$E18>0,IF(CàlculsEV!Y17>0,1,"No"),"") -> 1 | BI17: =IF('II_Plantejar Ració'!$E18>0,IF(CàlculsEV!Z17>0,1,"No"),"") -> 1 | BJ17: =IF('II_Plantejar Ració'!$E18>0,IF(CàlculsEV!AA17>0,1,"No"),"") -> 1 | BK17: =IF('II_Plantejar Ració'!$E18>0,IF(CàlculsEV!AB17>0,1,"No"),"") -> 1 | BL17: =IF('II_Plantejar Ració'!$E18>0,IF(CàlculsEV!AC17>0,1,"No"),"") -> 1 | BM17: =IF('II_Plantejar Ració'!$E18>0,IF(CàlculsEV!AD17>0,1,"No"),"") -> 1 | BN17: =IF('II_Plantejar Ració'!$E18>0,IF(CàlculsEV!AE17>0,1,"No"),"") -> 1 | BO17: =IF('II_Plantejar Ració'!$E18>0,IF(CàlculsEV!AF17>0,1,"No"),"") -> 1 | BP17: =IF('II_Plantejar Ració'!$E18>0,IF(CàlculsEV!AG17>0,1,"No"),"") -> 1 | BQ17: =IF('II_Plantejar Ració'!$E18>0,IF(CàlculsEV!AH17>0,1,"No"),"") -> 1 | BR17: =IF('II_Plantejar Ració'!$E18>0,IF(CàlculsEV!AI17>0,1,"No"),"") -> 1 | BS17: =IF('II_Plantejar Ració'!$E18>0,IF(CàlculsEV!AJ17>0,1,"No"),"") -> 1 | BT17: =IF('II_Plantejar Ració'!$E18>0,IF(CàlculsEV!AK17>0,1,"No"),"") -> 1 | BU17: =IF('II_Plantejar Ració'!$E18>0,IF(CàlculsEV!AL17>0,1,"No"),"") -> No | BV17: =IF('II_Plantejar Ració'!$E18>0,IF(CàlculsEV!AM17>0,1,"No"),"") -> No | BW17: 1 | BX17: 1 | BY17: 1 | BZ17: 1 | CA17: 1 | CB17: 1 | CC17: 1 | CD17: 1 | CE17: 1 | CF17: 1 | CG17: 1 | CH17: 1 | CI17: 1 | CJ17: 1 | CK17: 1 | CL17: 1 | CM17: 1 | CN17: 1 | CO17: 1 | CP17: 1 | CQ17: 1 | CR17: 1 | CS17: 1 | CT17: 1 | CU17: 1 | CV17: 1 | CW17: 1 | CX17: 1 | CY17: 1 | CZ17: 1 | DA17: 1 | DB17: 1 | DC17: 1 | DD17: 1 | DE17: 1
B18: =IF(OFFSET('Taula Concentrats'!$A$1,C18,0,1,1)=0,"",OFFSET('Taula Concentrats'!$A$1,C18,0,1,1)) -> Urea | C18: 76 | D18: =OFFSET('Taula Concentrats'!$A$1,$C18,$D$2,1,1) -> 99 | E18: =OFFSET('Taula Concentrats'!$A$1,$C18,$E$2,1,1) -> 0 | F18: =OFFSET('Taula Concentrats'!$A$1,$C18,$F$2,1,1) -> 0.26 | G18: =OFFSET('Taula Concentrats'!$A$1,$C18,$G$2,1,1) -> 71 | H18: =OFFSET('Taula Concentrats'!$A$1,$C18,$H$2,1,1) -> 2557 | I18: =OFFSET('Taula Concentrats'!$A$1,$C18,$I$2,1,1) -> 2 | J18: =OFFSET('Taula Concentrats'!$A$1,$C18,$J$2,1,1) -> 1e-06 | K18: =OFFSET('Taula Concentrats'!$A$1,$C18,$K$2,1,1) -> 1e-06 | L18: =OFFSET('Taula Concentrats'!$A$1,$C18,$L$2,1,1) -> 1e-06 | M18: =OFFSET('Taula Concentrats'!$A$1,$C18,$M$2,1,1) -> 1e-06 | N18: =OFFSET('Taula Concentrats'!$A$1,$C18,$N$2,1,1) -> 1e-06 | O18: =OFFSET('Taula Concentrats'!$A$1,$C18,$O$2,1,1) -> 1e-06 | P18: =OFFSET('Taula Concentrats'!$A$1,$C18,$P$2,1,1) -> 1e-06 | Q18: =OFFSET('Taula Concentrats'!$A$1,$C18,$Q$2,1,1) -> 1e-06 | R18: =OFFSET('Taula Concentrats'!$A$1,$C18,$R$2,1,1) -> 1e-06 | S18: =OFFSET('Taula Concentrats'!$A$1,$C18,$S$2,1,1) -> 1e-06 | T18: =OFFSET('Taula Concentrats'!$A$1,$C18,$T$2,1,1) -> 1e-06 | U18: =OFFSET('Taula Concentrats'!$A$1,$C18,$U$2,1,1) -> 1e-06 | V18: =OFFSET('Taula Concentrats'!$A$1,$C18,$V$2,1,1) -> 1e-06 | W18: =OFFSET('Taula Concentrats'!$A$1,$C18,$W$2,1,1) -> 1e-06 | X18: =OFFSET('Taula Concentrats'!$A$1,$C18,$X$2,1,1) -> 1e-06 | Y18: =OFFSET('Taula Concentrats'!$A$1,$C18,$Y$2,1,1) -> 1e-06 | Z18: =OFFSET('Taula Concentrats'!$A$1,$C18,$Z$2,1,1) -> 0 | AA18: =OFFSET('Taula Concentrats'!$A$1,$C18,$AA$2,1,1) -> 2870 | AB18: =OFFSET('Taula Concentrats'!$A$1,$C18,$AB$2,1,1) -> 1e-06 | AC18: =OFFSET('Taula Concentrats'!$A$1,$C18,$AC$2,1,1) -> 0.99 | AD18: =OFFSET('Taula Concentrats'!$A$1,$C18,$AD$2,1,1) -> 1e-06 | AE18: =OFFSET('Taula Concentrats'!$A$1,$C18,$AE$2,1,1) -> 1e-06 | AF18: =OFFSET('Taula Concentrats'!$A$1,$C18,$AF$2,1,1) -> 1e-06 | AG18: =OFFSET('Taula Concentrats'!$A$1,$C18,$AG$2,1,1) -> 1e-06 | AH18: =OFFSET('Taula Concentrats'!$A$1,$C18,$AH$2,1,1) -> 1e-06 | AI18: =OFFSET('Taula Concentrats'!$A$1,$C18,$AI$2,1,1) -> 1e-06 | AJ18: =OFFSET('Taula Concentrats'!$A$1,$C18,$AJ$2,1,1) -> 1e-06 | AK18: =OFFSET('Taula Concentrats'!$A$1,$C18,$AK$2,1,1) -> 1e-06 | AL18: =OFFSET('Taula Concentrats'!$A$1,$C18,$AL$2,1,1) -> 0 | AM18: =OFFSET('Taula Concentrats'!$A$1,$C18,$AM$2,1,1) -> 0 | AN18: =IF('II_Plantejar Ració'!$E19>0,IF(CàlculsEV!E18>=0,1,"No"),"") -> 1 | AO18: =IF('II_Plantejar Ració'!$E19>0,IF(CàlculsEV!F18>0,1,"No"),"") -> 1 | AP18: =IF('II_Plantejar Ració'!$E19>0,IF(CàlculsEV!G18>0,1,"No"),"") -> 1 | AQ18: =IF('II_Plantejar Ració'!$E19>0,IF(CàlculsEV!H18=0,"No",1),"") -> 1 | AR18: =IF('II_Plantejar Ració'!$E19>0,IF(CàlculsEV!I18>0,1,"No"),"") -> 1 | AS18: =IF('II_Plantejar Ració'!$E19>0,IF(CàlculsEV!J18>0,1,"No"),"") -> 1 | AT18: =IF('II_Plantejar Ració'!$E19>0,IF(CàlculsEV!K18>0,1,"No"),"") -> 1 | AU18: =IF('II_Plantejar Ració'!$E19>0,IF(CàlculsEV!L18>0,1,"No"),"") -> 1 | AV18: =IF('II_Plantejar Ració'!$E19>0,IF(CàlculsEV!M18>0,1,"No"),"") -> 1 | AW18: =IF('II_Plantejar Ració'!$E19>0,IF(CàlculsEV!N18>0,1,"No"),"") -> 1 | AX18: =IF('II_Plantejar Ració'!$E19>0,IF(CàlculsEV!O18>0,1,"No"),"") -> 1 | AY18: =IF('II_Plantejar Ració'!$E19>0,IF(CàlculsEV!P18>0,1,"No"),"") -> 1 | AZ18: =IF('II_Plantejar Ració'!$E19>0,IF(CàlculsEV!Q18>0,1,"No"),"") -> 1 | BA18: =IF('II_Plantejar Ració'!$E19>0,IF(CàlculsEV!R18>0,1,"No"),"") -> 1 | BB18: =IF('II_Plantejar Ració'!$E19>0,IF(CàlculsEV!S18>0,1,"No"),"") -> 1 | BC18: =IF('II_Plantejar Ració'!$E19>0,IF(CàlculsEV!T18>0,1,"No"),"") -> 1 | BD18: =IF('II_Plantejar Ració'!$E19>0,IF(CàlculsEV!U18>0,1,"No"),"") -> 1 | BE18: =IF('II_Plantejar Ració'!$E19>0,IF(CàlculsEV!V18>0,1,"No"),"") -> 1 | BF18: =IF('II_Plantejar Ració'!$E19>0,IF(CàlculsEV!W18>0,1,"No"),"") -> 1 | BG18: =IF('II_Plantejar Ració'!$E19>0,IF(CàlculsEV!X18>0,1,"No"),"") -> 1 | BH18: =IF('II_Plantejar Ració'!$E19>0,IF(CàlculsEV!Y18>0,1,"No"),"") -> 1 | BI18: =IF('II_Plantejar Ració'!$E19>0,IF(CàlculsEV!Z18>0,1,"No"),"") -> No | BJ18: =IF('II_Plantejar Ració'!$E19>0,IF(CàlculsEV!AA18>0,1,"No"),"") -> 1 | BK18: =IF('II_Plantejar Ració'!$E19>0,IF(CàlculsEV!AB18>0,1,"No"),"") -> 1 | BL18: =IF('II_Plantejar Ració'!$E19>0,IF(CàlculsEV!AC18>0,1,"No"),"") -> 1 | BM18: =IF('II_Plantejar Ració'!$E19>0,IF(CàlculsEV!AD18>0,1,"No"),"") -> 1 | BN18: =IF('II_Plantejar Ració'!$E19>0,IF(CàlculsEV!AE18>0,1,"No"),"") -> 1 | BO18: =IF('II_Plantejar Ració'!$E19>0,IF(CàlculsEV!AF18>0,1,"No"),"") -> 1 | BP18: =IF('II_Plantejar Ració'!$E19>0,IF(CàlculsEV!AG18>0,1,"No"),"") -> 1 | BQ18: =IF('II_Plantejar Ració'!$E19>0,IF(CàlculsEV!AH18>0,1,"No"),"") -> 1 | BR18: =IF('II_Plantejar Ració'!$E19>0,IF(CàlculsEV!AI18>0,1,"No"),"") -> 1 | BS18: =IF('II_Plantejar Ració'!$E19>0,IF(CàlculsEV!AJ18>0,1,"No"),"") -> 1 | BT18: =IF('II_Plantejar Ració'!$E19>0,IF(CàlculsEV!AK18>0,1,"No"),"") -> 1 | BU18: =IF('II_Plantejar Ració'!$E19>0,IF(CàlculsEV!AL18>0,1,"No"),"") -> No | BV18: =IF('II_Plantejar Ració'!$E19>0,IF(CàlculsEV!AM18>0,1,"No"),"") -> No | BW18: 1 | BX18: 1 | BY18: 1 | BZ18: 1 | CA18: 1 | CB18: 1 | CC18: 1 | CD18: 1 | CE18: 1 | CF18: 1 | CG18: 1 | CH18: 1 | CI18: 1 | CJ18: 1 | CK18: 1 | CL18: 1 | CM18: 1 | CN18: 1 | CO18: 1 | CP18: 1 | CQ18: 1 | CR18: 1 | CS18: 1 | CT18: 1 | CU18: 1 | CV18: 1 | CW18: 1 | CX18: 1 | CY18: 1 | CZ18: 1 | DA18: 1 | DB18: 1 | DC18: 1 | DD18: 1 | DE18: 1
B19: =IF(OFFSET('Taula Concentrats'!$A$1,C19,0,1,1)=0,"",OFFSET('Taula Concentrats'!$A$1,C19,0,1,1)) ->  | C19: 1 | D19: =OFFSET('Taula Concentrats'!$A$1,$C19,$D$2,1,1) -> 0 | E19: =OFFSET('Taula Concentrats'!$A$1,$C19,$E$2,1,1) -> 0 | F19: =OFFSET('Taula Concentrats'!$A$1,$C19,$F$2,1,1) -> 0 | G19: =OFFSET('Taula Concentrats'!$A$1,$C19,$G$2,1,1) -> 0 | H19: =OFFSET('Taula Concentrats'!$A$1,$C19,$H$2,1,1) -> 0 | I19: =OFFSET('Taula Concentrats'!$A$1,$C19,$I$2,1,1) -> 0 | J19: =OFFSET('Taula Concentrats'!$A$1,$C19,$J$2,1,1) -> 0 | K19: =OFFSET('Taula Concentrats'!$A$1,$C19,$K$2,1,1) -> 0 | L19: =OFFSET('Taula Concentrats'!$A$1,$C19,$L$2,1,1) -> 0 | M19: =OFFSET('Taula Concentrats'!$A$1,$C19,$M$2,1,1) -> 0 | N19: =OFFSET('Taula Concentrats'!$A$1,$C19,$N$2,1,1) -> 0 | O19: =OFFSET('Taula Concentrats'!$A$1,$C19,$O$2,1,1) -> 0 | P19: =OFFSET('Taula Concentrats'!$A$1,$C19,$P$2,1,1) -> 0 | Q19: =OFFSET('Taula Concentrats'!$A$1,$C19,$Q$2,1,1) -> 0 | R19: =OFFSET('Taula Concentrats'!$A$1,$C19,$R$2,1,1) -> 0 | S19: =OFFSET('Taula Concentrats'!$A$1,$C19,$S$2,1,1) -> 0 | T19: =OFFSET('Taula Concentrats'!$A$1,$C19,$T$2,1,1) -> 0 | U19: =OFFSET('Taula Concentrats'!$A$1,$C19,$U$2,1,1) -> 0 | V19: =OFFSET('Taula Concentrats'!$A$1,$C19,$V$2,1,1) -> 0 | W19: =OFFSET('Taula Concentrats'!$A$1,$C19,$W$2,1,1) -> 0 | X19: =OFFSET('Taula Concentrats'!$A$1,$C19,$X$2,1,1) -> 0 | Y19: =OFFSET('Taula Concentrats'!$A$1,$C19,$Y$2,1,1) -> 0 | Z19: =OFFSET('Taula Concentrats'!$A$1,$C19,$Z$2,1,1) -> 0 | AA19: =OFFSET('Taula Concentrats'!$A$1,$C19,$AA$2,1,1) -> 0 | AB19: =OFFSET('Taula Concentrats'!$A$1,$C19,$AB$2,1,1) -> 0 | AC19: =OFFSET('Taula Concentrats'!$A$1,$C19,$AC$2,1,1) -> 0 | AD19: =OFFSET('Taula Concentrats'!$A$1,$C19,$AD$2,1,1) -> 0 | AE19: =OFFSET('Taula Concentrats'!$A$1,$C19,$AE$2,1,1) -> 0 | AF19: =OFFSET('Taula Concentrats'!$A$1,$C19,$AF$2,1,1) -> 0 | AG19: =OFFSET('Taula Concentrats'!$A$1,$C19,$AG$2,1,1) -> 0 | AH19: =OFFSET('Taula Concentrats'!$A$1,$C19,$AH$2,1,1) -> 0 | AI19: =OFFSET('Taula Concentrats'!$A$1,$C19,$AI$2,1,1) -> 0 | AJ19: =OFFSET('Taula Concentrats'!$A$1,$C19,$AJ$2,1,1) -> 0 | AK19: =OFFSET('Taula Concentrats'!$A$1,$C19,$AK$2,1,1) -> 0 | AL19: =OFFSET('Taula Concentrats'!$A$1,$C19,$AL$2,1,1) -> 0 | AM19: =OFFSET('Taula Concentrats'!$A$1,$C19,$AM$2,1,1) -> 0 | AN19: =IF('II_Plantejar Ració'!$E20>0,IF(CàlculsEV!E19>=0,1,"No"),"") ->  | AO19: =IF('II_Plantejar Ració'!$E20>0,IF(CàlculsEV!F19>0,1,"No"),"") ->  | AP19: =IF('II_Plantejar Ració'!$E20>0,IF(CàlculsEV!G19>0,1,"No"),"") ->  | AQ19: =IF('II_Plantejar Ració'!$E20>0,IF(CàlculsEV!H19=0,"No",1),"") ->  | AR19: =IF('II_Plantejar Ració'!$E20>0,IF(CàlculsEV!I19>0,1,"No"),"") ->  | AS19: =IF('II_Plantejar Ració'!$E20>0,IF(CàlculsEV!J19>0,1,"No"),"") ->  | AT19: =IF('II_Plantejar Ració'!$E20>0,IF(CàlculsEV!K19>0,1,"No"),"") ->  | AU19: =IF('II_Plantejar Ració'!$E20>0,IF(CàlculsEV!L19>0,1,"No"),"") ->  | AV19: =IF('II_Plantejar Ració'!$E20>0,IF(CàlculsEV!M19>0,1,"No"),"") ->  | AW19: =IF('II_Plantejar Ració'!$E20>0,IF(CàlculsEV!N19>0,1,"No"),"") ->  | AX19: =IF('II_Plantejar Ració'!$E20>0,IF(CàlculsEV!O19>0,1,"No"),"") ->  | AY19: =IF('II_Plantejar Ració'!$E20>0,IF(CàlculsEV!P19>0,1,"No"),"") ->  | AZ19: =IF('II_Plantejar Ració'!$E20>0,IF(CàlculsEV!Q19>0,1,"No"),"") ->  | BA19: =IF('II_Plantejar Ració'!$E20>0,IF(CàlculsEV!R19>0,1,"No"),"") ->  | BB19: =IF('II_Plantejar Ració'!$E20>0,IF(CàlculsEV!S19>0,1,"No"),"") ->  | BC19: =IF('II_Plantejar Ració'!$E20>0,IF(CàlculsEV!T19>0,1,"No"),"") ->  | BD19: =IF('II_Plantejar Ració'!$E20>0,IF(CàlculsEV!U19>0,1,"No"),"") ->  | BE19: =IF('II_Plantejar Ració'!$E20>0,IF(CàlculsEV!V19>0,1,"No"),"") ->  | BF19: =IF('II_Plantejar Ració'!$E20>0,IF(CàlculsEV!W19>0,1,"No"),"") ->  | BG19: =IF('II_Plantejar Ració'!$E20>0,IF(CàlculsEV!X19>0,1,"No"),"") ->  | BH19: =IF('II_Plantejar Ració'!$E20>0,IF(CàlculsEV!Y19>0,1,"No"),"") ->  | BI19: =IF('II_Plantejar Ració'!$E20>0,IF(CàlculsEV!Z19>0,1,"No"),"") ->  | BJ19: =IF('II_Plantejar Ració'!$E20>0,IF(CàlculsEV!AA19>0,1,"No"),"") ->  | BK19: =IF('II_Plantejar Ració'!$E20>0,IF(CàlculsEV!AB19>0,1,"No"),"") ->  | BL19: =IF('II_Plantejar Ració'!$E20>0,IF(CàlculsEV!AC19>0,1,"No"),"") ->  | BM19: =IF('II_Plantejar Ració'!$E20>0,IF(CàlculsEV!AD19>0,1,"No"),"") ->  | BN19: =IF('II_Plantejar Ració'!$E20>0,IF(CàlculsEV!AE19>0,1,"No"),"") ->  | BO19: =IF('II_Plantejar Ració'!$E20>0,IF(CàlculsEV!AF19>0,1,"No"),"") ->  | BP19: =IF('II_Plantejar Ració'!$E20>0,IF(CàlculsEV!AG19>0,1,"No"),"") ->  | BQ19: =IF('II_Plantejar Ració'!$E20>0,IF(CàlculsEV!AH19>0,1,"No"),"") ->  | BR19: =IF('II_Plantejar Ració'!$E20>0,IF(CàlculsEV!AI19>0,1,"No"),"") ->  | BS19: =IF('II_Plantejar Ració'!$E20>0,IF(CàlculsEV!AJ19>0,1,"No"),"") ->  | BT19: =IF('II_Plantejar Ració'!$E20>0,IF(CàlculsEV!AK19>0,1,"No"),"") ->  | BU19: =IF('II_Plantejar Ració'!$E20>0,IF(CàlculsEV!AL19>0,1,"No"),"") ->  | BV19: =IF('II_Plantejar Ració'!$E20>0,IF(CàlculsEV!AM19>0,1,"No"),"") ->  | BW19: 0 | BX19: 0 | BY19: 0 | BZ19: 0 | CA19: 0 | CB19: 0 | CC19: 0 | CD19: 0 | CE19: 0 | CF19: 0 | CG19: 0 | CH19: 0 | CI19: 0 | CJ19: 0 | CK19: 0 | CL19: 0 | CM19: 0 | CN19: 0 | CO19: 0 | CP19: 0 | CQ19: 0 | CR19: 0 | CS19: 0 | CT19: 0 | CU19: 0 | CV19: 0 | CW19: 0 | CX19: 0 | CY19: 0 | CZ19: 0 | DA19: 0 | DB19: 0 | DC19: 0 | DD19: 0 | DE19: 0
A20: MINERALS | B20: =IF(OFFSET('Taula Minerals-aa'!$A$1,C20,0,1,1)=0,"",OFFSET('Taula Minerals-aa'!$A$1,C20,0,1,1)) -> Carbonat de cobalt | C20: 10 | D20: =OFFSET('Taula Minerals-aa'!$A$1,$C20,D2,1,1) -> 100 | E20: =OFFSET('Taula Minerals-aa'!$A$1,$C20,E2,1,1) -> 0 | F20: =OFFSET('Taula Minerals-aa'!$A$1,$C20,F2,1,1) -> 0 | G20: =OFFSET('Taula Minerals-aa'!$A$1,$C20,G2,1,1) -> 0 | H20: =OFFSET('Taula Minerals-aa'!$A$1,$C20,H2,1,1) -> 0 | I20: =OFFSET('Taula Minerals-aa'!$A$1,$C20,I2,1,1) -> 0 | J20: =OFFSET('Taula Minerals-aa'!$A$1,$C20,J2,1,1) -> 0 | K20: =OFFSET('Taula Minerals-aa'!$A$1,$C20,K2,1,1) -> 0 | L20: =OFFSET('Taula Minerals-aa'!$A$1,$C20,L$2,1,1) -> 0 | M20: =OFFSET('Taula Minerals-aa'!$A$1,$C20,M$2,1,1) -> 0 | N20: =OFFSET('Taula Minerals-aa'!$A$1,$C20,N$2,1,1) -> 0 | O20: =OFFSET('Taula Minerals-aa'!$A$1,$C20,O$2,1,1) -> 0 | P20: =OFFSET('Taula Minerals-aa'!$A$1,$C20,P$2,1,1) -> 0 | Q20: =OFFSET('Taula Minerals-aa'!$A$1,$C20,Q$2,1,1) -> 49 | R20: =OFFSET('Taula Minerals-aa'!$A$1,$C20,R$2,1,1) -> 0 | S20: =OFFSET('Taula Minerals-aa'!$A$1,$C20,S$2,1,1) -> 0 | T20: =OFFSET('Taula Minerals-aa'!$A$1,$C20,T$2,1,1) -> 0 | U20: =OFFSET('Taula Minerals-aa'!$A$1,$C20,U$2,1,1) -> 0 | V20: =OFFSET('Taula Minerals-aa'!$A$1,$C20,V$2,1,1) -> 0 | W20: =OFFSET('Taula Minerals-aa'!$A$1,$C20,W$2,1,1) -> 0 | X20: =OFFSET('Taula Minerals-aa'!$A$1,$C20,X$2,1,1) -> 0 | Y20: =OFFSET('Taula Minerals-aa'!$A$1,$C20,Y$2,1,1) -> 0 | Z20: =OFFSET('Taula Minerals-aa'!$A$1,$C20,Z$2,1,1) -> 0 | AA20: =OFFSET('Taula Minerals-aa'!$A$1,$C20,AA$2,1,1) -> 0 | AB20: =OFFSET('Taula Minerals-aa'!$A$1,$C20,AB$2,1,1) -> 0 | AC20: =OFFSET('Taula Minerals-aa'!$A$1,$C20,AC$2,1,1) -> 0 | AD20: =OFFSET('Taula Minerals-aa'!$A$1,$C20,AD$2,1,1) -> 0 | AE20: =OFFSET('Taula Minerals-aa'!$A$1,$C20,AE$2,1,1) -> 0 | AF20: =OFFSET('Taula Minerals-aa'!$A$1,$C20,AF$2,1,1) -> 0 | AG20: =OFFSET('Taula Minerals-aa'!$A$1,$C20,AG$2,1,1) -> 0 | AH20: =OFFSET('Taula Minerals-aa'!$A$1,$C20,AH$2,1,1) -> 0 | AI20: =OFFSET('Taula Minerals-aa'!$A$1,$C20,AI$2,1,1) -> 0 | AJ20: =OFFSET('Taula Minerals-aa'!$A$1,$C20,AJ$2,1,1) -> 0 | AK20: =OFFSET('Taula Minerals-aa'!$A$1,$C20,AK$2,1,1) -> 0 | AL20: =OFFSET('Taula Minerals-aa'!$A$1,$C20,AL$2,1,1) -> 0 | AM20: =OFFSET('Taula Minerals-aa'!$A$1,$C20,AM$2,1,1) -> 0 | AN20: =SUM(AN3:AN19) -> 6 | AO20: 6 | AP20: 6 | AQ20: 6 | AR20: 6 | AS20: 6 | AT20: 6 | AU20: 5 | AV20: 4 | AW20: 4 | AX20: 2 | AY20: 2 | AZ20: 4 | BA20: 4 | BB20: 4 | BC20: 4 | BD20: 2 | BE20: 4 | BF20: 4 | BG20: 3 | BH20: 5 | BI20: 5 | BJ20: 6 | BK20: 6 | BL20: 6 | BM20: 6 | BN20: 6 | BO20: 6 | BP20: 6 | BQ20: 6 | BR20: 6 | BS20: 6 | BT20: 4 | BU20: 4 | BV20: 4 | BW20: =SUM(BW3:BW19) -> 6 | BX20: 6 | BY20: 6 | BZ20: 6 | CA20: 6 | CB20: 6 | CC20: 6 | CD20: 6 | CE20: 6 | CF20: 6 | CG20: 6 | CH20: 6 | CI20: 6 | CJ20: 6 | CK20: 6 | CL20: 6 | CM20: 6 | CN20: 6 | CO20: 6 | CP20: 6 | CQ20: 6 | CR20: 6 | CS20: 6 | CT20: 6 | CU20: 6 | CV20: 6 | CW20: 6 | CX20: 6 | CY20: 6 | CZ20: =SUM(CZ3:CZ19) -> 6 | DA20: 6 | DB20: 6 | DC20: 6 | DD20: 6 | DE20: 6
B21: =IF(OFFSET('Taula Minerals-aa'!$A$1,C21,0,1,1)=0,"",OFFSET('Taula Minerals-aa'!$A$1,C21,0,1,1)) -> Fosfat bicàlcic | C21: 3 | D21: =OFFSET('Taula Minerals-aa'!$A$1,$C21,D2,1,1) -> 98.8 | E21: =OFFSET('Taula Minerals-aa'!$A$1,$C21,E2,1,1) -> 0 | F21: =OFFSET('Taula Minerals-aa'!$A$1,$C21,F2,1,1) -> 0 | G21: =OFFSET('Taula Minerals-aa'!$A$1,$C21,G2,1,1) -> 0 | H21: =OFFSET('Taula Minerals-aa'!$A$1,$C21,H2,1,1) -> 0 | I21: =OFFSET('Taula Minerals-aa'!$A$1,$C21,I2,1,1) -> 0 | J21: =OFFSET('Taula Minerals-aa'!$A$1,$C21,J2,1,1) -> 244 | K21: =OFFSET('Taula Minerals-aa'!$A$1,$C21,K2,1,1) -> 122.4 | L21: =OFFSET('Taula Minerals-aa'!$A$1,$C21,L$2,1,1) -> 5 | M21: =OFFSET('Taula Minerals-aa'!$A$1,$C21,M$2,1,1) -> 1.2 | N21: =OFFSET('Taula Minerals-aa'!$A$1,$C21,N$2,1,1) -> 0.8 | O21: =OFFSET('Taula Minerals-aa'!$A$1,$C21,O$2,1,1) -> 11 | P21: =OFFSET('Taula Minerals-aa'!$A$1,$C21,P$2,1,1) -> 0.4 | Q21: =OFFSET('Taula Minerals-aa'!$A$1,$C21,Q$2,1,1) -> 0 | R21: =OFFSET('Taula Minerals-aa'!$A$1,$C21,R$2,1,1) -> 15 | S21: =OFFSET('Taula Minerals-aa'!$A$1,$C21,S$2,1,1) -> 0 | T21: =OFFSET('Taula Minerals-aa'!$A$1,$C21,T$2,1,1) -> 0 | U21: =OFFSET('Taula Minerals-aa'!$A$1,$C21,U$2,1,1) -> 0 | V21: =OFFSET('Taula Minerals-aa'!$A$1,$C21,V$2,1,1) -> 0 | W21: =OFFSET('Taula Minerals-aa'!$A$1,$C21,W$2,1,1) -> 0 | X21: =OFFSET('Taula Minerals-aa'!$A$1,$C21,X$2,1,1) -> 0 | Y21: =OFFSET('Taula Minerals-aa'!$A$1,$C21,Y$2,1,1) -> 0 | Z21: =OFFSET('Taula Minerals-aa'!$A$1,$C21,Z$2,1,1) -> 0 | AA21: =OFFSET('Taula Minerals-aa'!$A$1,$C21,AA$2,1,1) -> 0 | AB21: =OFFSET('Taula Minerals-aa'!$A$1,$C21,AB$2,1,1) -> 0 | AC21: =OFFSET('Taula Minerals-aa'!$A$1,$C21,AC$2,1,1) -> 0 | AD21: =OFFSET('Taula Minerals-aa'!$A$1,$C21,AD$2,1,1) -> 0 | AE21: =OFFSET('Taula Minerals-aa'!$A$1,$C21,AE$2,1,1) -> 0 | AF21: =OFFSET('Taula Minerals-aa'!$A$1,$C21,AF$2,1,1) -> 0 | AG21: =OFFSET('Taula Minerals-aa'!$A$1,$C21,AG$2,1,1) -> 0 | AH21: =OFFSET('Taula Minerals-aa'!$A$1,$C21,AH$2,1,1) -> 0 | AI21: =OFFSET('Taula Minerals-aa'!$A$1,$C21,AI$2,1,1) -> 0 | AJ21: =OFFSET('Taula Minerals-aa'!$A$1,$C21,AJ$2,1,1) -> 836 | AK21: =OFFSET('Taula Minerals-aa'!$A$1,$C21,AK$2,1,1) -> 0 | AL21: =OFFSET('Taula Minerals-aa'!$A$1,$C21,AL$2,1,1) -> 0 | AM21: =OFFSET('Taula Minerals-aa'!$A$1,$C21,AM$2,1,1) -> 0 | AN21: =IF(AN20/BW20=1,"",AN2) ->  | AU21: =IF(AU20/CD20=1,"", AU2) -> Mg | AV21: K | AW21: Na | AX21: S | AY21: Cl | AZ21: Co | BA21: Cu | BB21: Mn | BC21: Zn | BD21: Iode | BE21: Se | BF21: Vit A | BG21: Vit D | BH21: Vit E | BI21: AG | BT21: Mo | BU21: DT_N | BV21: MOF
B22: =IF(OFFSET('Taula Minerals-aa'!$A$1,C22,0,1,1)=0,"",OFFSET('Taula Minerals-aa'!$A$1,C22,0,1,1)) -> Carbonat càlcic | C22: 2 | D22: =OFFSET('Taula Minerals-aa'!$A$1,$C22,D2,1,1) -> 98 | E22: =OFFSET('Taula Minerals-aa'!$A$1,$C22,E2,1,1) -> 0 | F22: =OFFSET('Taula Minerals-aa'!$A$1,$C22,F2,1,1) -> 0 | G22: =OFFSET('Taula Minerals-aa'!$A$1,$C22,G2,1,1) -> 0 | H22: =OFFSET('Taula Minerals-aa'!$A$1,$C22,H2,1,1) -> 0 | I22: =OFFSET('Taula Minerals-aa'!$A$1,$C22,I2,1,1) -> 0 | J22: =OFFSET('Taula Minerals-aa'!$A$1,$C22,J2,1,1) -> 145.54 | K22: =OFFSET('Taula Minerals-aa'!$A$1,$C22,K2,1,1) -> 0 | L22: =OFFSET('Taula Minerals-aa'!$A$1,$C22,L$2,1,1) -> 14 | M22: =OFFSET('Taula Minerals-aa'!$A$1,$C22,M$2,1,1) -> 0.7 | N22: =OFFSET('Taula Minerals-aa'!$A$1,$C22,N$2,1,1) -> 0.7 | O22: =OFFSET('Taula Minerals-aa'!$A$1,$C22,O$2,1,1) -> 0.7 | P22: =OFFSET('Taula Minerals-aa'!$A$1,$C22,P$2,1,1) -> 0.2 | Q22: =OFFSET('Taula Minerals-aa'!$A$1,$C22,Q$2,1,1) -> 0 | R22: =OFFSET('Taula Minerals-aa'!$A$1,$C22,R$2,1,1) -> 12 | S22: =OFFSET('Taula Minerals-aa'!$A$1,$C22,S$2,1,1) -> 0 | T22: =OFFSET('Taula Minerals-aa'!$A$1,$C22,T$2,1,1) -> 0 | U22: =OFFSET('Taula Minerals-aa'!$A$1,$C22,U$2,1,1) -> 0 | V22: =OFFSET('Taula Minerals-aa'!$A$1,$C22,V$2,1,1) -> 0 | W22: =OFFSET('Taula Minerals-aa'!$A$1,$C22,W$2,1,1) -> 0 | X22: =OFFSET('Taula Minerals-aa'!$A$1,$C22,X$2,1,1) -> 0 | Y22: =OFFSET('Taula Minerals-aa'!$A$1,$C22,Y$2,1,1) -> 0 | Z22: =OFFSET('Taula Minerals-aa'!$A$1,$C22,Z$2,1,1) -> 0 | AA22: =OFFSET('Taula Minerals-aa'!$A$1,$C22,AA$2,1,1) -> 0 | AB22: =OFFSET('Taula Minerals-aa'!$A$1,$C22,AB$2,1,1) -> 0 | AC22: =OFFSET('Taula Minerals-aa'!$A$1,$C22,AC$2,1,1) -> 0 | AD22: =OFFSET('Taula Minerals-aa'!$A$1,$C22,AD$2,1,1) -> 0 | AE22: =OFFSET('Taula Minerals-aa'!$A$1,$C22,AE$2,1,1) -> 0 | AF22: =OFFSET('Taula Minerals-aa'!$A$1,$C22,AF$2,1,1) -> 0 | AG22: =OFFSET('Taula Minerals-aa'!$A$1,$C22,AG$2,1,1) -> 0 | AH22: =OFFSET('Taula Minerals-aa'!$A$1,$C22,AH$2,1,1) -> 0 | AI22: =OFFSET('Taula Minerals-aa'!$A$1,$C22,AI$2,1,1) -> 0 | AJ22: =OFFSET('Taula Minerals-aa'!$A$1,$C22,AJ$2,1,1) -> 955 | AK22: =OFFSET('Taula Minerals-aa'!$A$1,$C22,AK$2,1,1) -> 0 | AL22: =OFFSET('Taula Minerals-aa'!$A$1,$C22,AL$2,1,1) -> 0 | AM22: =OFFSET('Taula Minerals-aa'!$A$1,$C22,AM$2,1,1) -> 0
B23: =IF(OFFSET('Taula Minerals-aa'!$A$1,C23,0,1,1)=0,"",OFFSET('Taula Minerals-aa'!$A$1,C23,0,1,1)) -> Fosfat sòdic | C23: 7 | D23: =OFFSET('Taula Minerals-aa'!$A$1,$C23,D2,1,1) -> 100 | E23: =OFFSET('Taula Minerals-aa'!$A$1,$C23,E2,1,1) -> 0 | F23: =OFFSET('Taula Minerals-aa'!$A$1,$C23,F2,1,1) -> 0 | G23: =OFFSET('Taula Minerals-aa'!$A$1,$C23,G2,1,1) -> 0 | H23: =OFFSET('Taula Minerals-aa'!$A$1,$C23,H2,1,1) -> 0 | I23: =OFFSET('Taula Minerals-aa'!$A$1,$C23,I2,1,1) -> 0 | J23: =OFFSET('Taula Minerals-aa'!$A$1,$C23,J2,1,1) -> 0 | K23: =OFFSET('Taula Minerals-aa'!$A$1,$C23,K2,1,1) -> 13.6 | L23: =OFFSET('Taula Minerals-aa'!$A$1,$C23,L$2,1,1) -> 0 | M23: =OFFSET('Taula Minerals-aa'!$A$1,$C23,M$2,1,1) -> 0 | N23: =OFFSET('Taula Minerals-aa'!$A$1,$C23,N$2,1,1) -> 19 | O23: =OFFSET('Taula Minerals-aa'!$A$1,$C23,O$2,1,1) -> 0 | P23: =OFFSET('Taula Minerals-aa'!$A$1,$C23,P$2,1,1) -> 0 | Q23: =OFFSET('Taula Minerals-aa'!$A$1,$C23,Q$2,1,1) -> 0 | R23: =OFFSET('Taula Minerals-aa'!$A$1,$C23,R$2,1,1) -> 0 | S23: =OFFSET('Taula Minerals-aa'!$A$1,$C23,S$2,1,1) -> 0 | T23: =OFFSET('Taula Minerals-aa'!$A$1,$C23,T$2,1,1) -> 0 | U23: =OFFSET('Taula Minerals-aa'!$A$1,$C23,U$2,1,1) -> 0 | V23: =OFFSET('Taula Minerals-aa'!$A$1,$C23,V$2,1,1) -> 0 | W23: =OFFSET('Taula Minerals-aa'!$A$1,$C23,W$2,1,1) -> 0 | X23: =OFFSET('Taula Minerals-aa'!$A$1,$C23,X$2,1,1) -> 0 | Y23: =OFFSET('Taula Minerals-aa'!$A$1,$C23,Y$2,1,1) -> 0 | Z23: =OFFSET('Taula Minerals-aa'!$A$1,$C23,Z$2,1,1) -> 0 | AA23: =OFFSET('Taula Minerals-aa'!$A$1,$C23,AA$2,1,1) -> 0 | AB23: =OFFSET('Taula Minerals-aa'!$A$1,$C23,AB$2,1,1) -> 0 | AC23: =OFFSET('Taula Minerals-aa'!$A$1,$C23,AC$2,1,1) -> 0 | AD23: =OFFSET('Taula Minerals-aa'!$A$1,$C23,AD$2,1,1) -> 0 | AE23: =OFFSET('Taula Minerals-aa'!$A$1,$C23,AE$2,1,1) -> 0 | AF23: =OFFSET('Taula Minerals-aa'!$A$1,$C23,AF$2,1,1) -> 0 | AG23: =OFFSET('Taula Minerals-aa'!$A$1,$C23,AG$2,1,1) -> 0 | AH23: =OFFSET('Taula Minerals-aa'!$A$1,$C23,AH$2,1,1) -> 0 | AI23: =OFFSET('Taula Minerals-aa'!$A$1,$C23,AI$2,1,1) -> 0 | AJ23: =OFFSET('Taula Minerals-aa'!$A$1,$C23,AJ$2,1,1) -> 0 | AK23: =OFFSET('Taula Minerals-aa'!$A$1,$C23,AK$2,1,1) -> 0 | AL23: =OFFSET('Taula Minerals-aa'!$A$1,$C23,AL$2,1,1) -> 0 | AM23: =OFFSET('Taula Minerals-aa'!$A$1,$C23,AM$2,1,1) -> 0
B24: =IF(OFFSET('Taula Minerals-aa'!$A$1,C24,0,1,1)=0,"",OFFSET('Taula Minerals-aa'!$A$1,C24,0,1,1)) ->  | C24: 1 | D24: =OFFSET('Taula Minerals-aa'!$A$1,$C24,D2,1,1) -> 0 | E24: =OFFSET('Taula Minerals-aa'!$A$1,$C24,E2,1,1) -> 0 | F24: =OFFSET('Taula Minerals-aa'!$A$1,$C24,F2,1,1) -> 0 | G24: =OFFSET('Taula Minerals-aa'!$A$1,$C24,G2,1,1) -> 0 | H24: =OFFSET('Taula Minerals-aa'!$A$1,$C24,H2,1,1) -> 0 | I24: =OFFSET('Taula Minerals-aa'!$A$1,$C24,I2,1,1) -> 0 | J24: =OFFSET('Taula Minerals-aa'!$A$1,$C24,J2,1,1) -> 0 | K24: =OFFSET('Taula Minerals-aa'!$A$1,$C24,K2,1,1) -> 0 | L24: =OFFSET('Taula Minerals-aa'!$A$1,$C24,L$2,1,1) -> 0 | M24: =OFFSET('Taula Minerals-aa'!$A$1,$C24,M$2,1,1) -> 0 | N24: =OFFSET('Taula Minerals-aa'!$A$1,$C24,N$2,1,1) -> 0 | O24: =OFFSET('Taula Minerals-aa'!$A$1,$C24,O$2,1,1) -> 0 | P24: =OFFSET('Taula Minerals-aa'!$A$1,$C24,P$2,1,1) -> 0 | Q24: =OFFSET('Taula Minerals-aa'!$A$1,$C24,Q$2,1,1) -> 0 | R24: =OFFSET('Taula Minerals-aa'!$A$1,$C24,R$2,1,1) -> 0 | S24: =OFFSET('Taula Minerals-aa'!$A$1,$C24,S$2,1,1) -> 0 | T24: =OFFSET('Taula Minerals-aa'!$A$1,$C24,T$2,1,1) -> 0 | U24: =OFFSET('Taula Minerals-aa'!$A$1,$C24,U$2,1,1) -> 0 | V24: =OFFSET('Taula Minerals-aa'!$A$1,$C24,V$2,1,1) -> 0 | W24: =OFFSET('Taula Minerals-aa'!$A$1,$C24,W$2,1,1) -> 0 | X24: =OFFSET('Taula Minerals-aa'!$A$1,$C24,X$2,1,1) -> 0 | Y24: =OFFSET('Taula Minerals-aa'!$A$1,$C24,Y$2,1,1) -> 0 | Z24: =OFFSET('Taula Minerals-aa'!$A$1,$C24,Z$2,1,1) -> 0 | AA24: =OFFSET('Taula Minerals-aa'!$A$1,$C24,AA$2,1,1) -> 0 | AB24: =OFFSET('Taula Minerals-aa'!$A$1,$C24,AB$2,1,1) -> 0 | AC24: =OFFSET('Taula Minerals-aa'!$A$1,$C24,AC$2,1,1) -> 0 | AD24: =OFFSET('Taula Minerals-aa'!$A$1,$C24,AD$2,1,1) -> 0 | AE24: =OFFSET('Taula Minerals-aa'!$A$1,$C24,AE$2,1,1) -> 0 | AF24: =OFFSET('Taula Minerals-aa'!$A$1,$C24,AF$2,1,1) -> 0 | AG24: =OFFSET('Taula Minerals-aa'!$A$1,$C24,AG$2,1,1) -> 0 | AH24: =OFFSET('Taula Minerals-aa'!$A$1,$C24,AH$2,1,1) -> 0 | AI24: =OFFSET('Taula Minerals-aa'!$A$1,$C24,AI$2,1,1) -> 0 | AJ24: =OFFSET('Taula Minerals-aa'!$A$1,$C24,AJ$2,1,1) -> 0 | AK24: =OFFSET('Taula Minerals-aa'!$A$1,$C24,AK$2,1,1) -> 0 | AL24: =OFFSET('Taula Minerals-aa'!$A$1,$C24,AL$2,1,1) -> 0 | AM24: =OFFSET('Taula Minerals-aa'!$A$1,$C24,AM$2,1,1) -> 0
B25: =IF(OFFSET('Taula Minerals-aa'!$A$1,C25,0,1,1)=0,"",OFFSET('Taula Minerals-aa'!$A$1,C25,0,1,1)) ->  | C25: 1 | D25: =OFFSET('Taula Minerals-aa'!$A$1,$C25,D2,1,1) -> 0 | E25: =OFFSET('Taula Minerals-aa'!$A$1,$C25,E2,1,1) -> 0 | F25: =OFFSET('Taula Minerals-aa'!$A$1,$C25,F2,1,1) -> 0 | G25: =OFFSET('Taula Minerals-aa'!$A$1,$C25,G2,1,1) -> 0 | H25: =OFFSET('Taula Minerals-aa'!$A$1,$C25,H2,1,1) -> 0 | I25: =OFFSET('Taula Minerals-aa'!$A$1,$C25,I2,1,1) -> 0 | J25: =OFFSET('Taula Minerals-aa'!$A$1,$C25,J2,1,1) -> 0 | K25: =OFFSET('Taula Minerals-aa'!$A$1,$C25,K2,1,1) -> 0 | L25: =OFFSET('Taula Minerals-aa'!$A$1,$C25,L$2,1,1) -> 0 | M25: =OFFSET('Taula Minerals-aa'!$A$1,$C25,M$2,1,1) -> 0 | N25: =OFFSET('Taula Minerals-aa'!$A$1,$C25,N$2,1,1) -> 0 | O25: =OFFSET('Taula Minerals-aa'!$A$1,$C25,O$2,1,1) -> 0 | P25: =OFFSET('Taula Minerals-aa'!$A$1,$C25,P$2,1,1) -> 0 | Q25: =OFFSET('Taula Minerals-aa'!$A$1,$C25,Q$2,1,1) -> 0 | R25: =OFFSET('Taula Minerals-aa'!$A$1,$C25,R$2,1,1) -> 0 | S25: =OFFSET('Taula Minerals-aa'!$A$1,$C25,S$2,1,1) -> 0 | T25: =OFFSET('Taula Minerals-aa'!$A$1,$C25,T$2,1,1) -> 0 | U25: =OFFSET('Taula Minerals-aa'!$A$1,$C25,U$2,1,1) -> 0 | V25: =OFFSET('Taula Minerals-aa'!$A$1,$C25,V$2,1,1) -> 0 | W25: =OFFSET('Taula Minerals-aa'!$A$1,$C25,W$2,1,1) -> 0 | X25: =OFFSET('Taula Minerals-aa'!$A$1,$C25,X$2,1,1) -> 0 | Y25: =OFFSET('Taula Minerals-aa'!$A$1,$C25,Y$2,1,1) -> 0 | Z25: =OFFSET('Taula Minerals-aa'!$A$1,$C25,Z$2,1,1) -> 0 | AA25: =OFFSET('Taula Minerals-aa'!$A$1,$C25,AA$2,1,1) -> 0 | AB25: =OFFSET('Taula Minerals-aa'!$A$1,$C25,AB$2,1,1) -> 0 | AC25: =OFFSET('Taula Minerals-aa'!$A$1,$C25,AC$2,1,1) -> 0 | AD25: =OFFSET('Taula Minerals-aa'!$A$1,$C25,AD$2,1,1) -> 0 | AE25: =OFFSET('Taula Minerals-aa'!$A$1,$C25,AE$2,1,1) -> 0 | AF25: =OFFSET('Taula Minerals-aa'!$A$1,$C25,AF$2,1,1) -> 0 | AG25: =OFFSET('Taula Minerals-aa'!$A$1,$C25,AG$2,1,1) -> 0 | AH25: =OFFSET('Taula Minerals-aa'!$A$1,$C25,AH$2,1,1) -> 0 | AI25: =OFFSET('Taula Minerals-aa'!$A$1,$C25,AI$2,1,1) -> 0 | AJ25: =OFFSET('Taula Minerals-aa'!$A$1,$C25,AJ$2,1,1) -> 0 | AK25: =OFFSET('Taula Minerals-aa'!$A$1,$C25,AK$2,1,1) -> 0 | AL25: =OFFSET('Taula Minerals-aa'!$A$1,$C25,AL$2,1,1) -> 0 | AM25: =OFFSET('Taula Minerals-aa'!$A$1,$C25,AM$2,1,1) -> 0
E26: =SUMPRODUCT(E3:E25,'II_Plantejar Ració'!$E$4:$E$26) -> 2.804168186 | F26: =SUMPRODUCT(F3:F25,'II_Plantejar Ració'!$E$4:$E$26) -> 4.084862302 | G26: =SUMPRODUCT(G3:G25,'II_Plantejar Ració'!$E$4:$E$26) -> 313.3377465 | H26: =SUMPRODUCT(H3:H25,'II_Plantejar Ració'!$E$4:$E$26) -> 30.54371661 | I26: =SUMPRODUCT(I3:I25,'II_Plantejar Ració'!$E$4:$E$26)/SUM('II_Plantejar Ració'!$E$4:$E$26) -> 2.033941966 | J26: =SUMPRODUCT(J3:J25,'II_Plantejar Ració'!$E$4:$E$26) -> 14.00125056 | K26: =SUMPRODUCT(K3:K25,'II_Plantejar Ració'!$E$4:$E$26) -> 9.417271913 | L26: =SUMPRODUCT(L3:L25,'II_Plantejar Ració'!$E$4:$E$26) -> 1.623763389 | M26: =SUMPRODUCT(M3:M25,'II_Plantejar Ració'!$E$4:$E$26) -> 6.413601591 | N26: =SUMPRODUCT(N3:N25,'II_Plantejar Ració'!$E$4:$E$26) -> 0.4231066164 | O26: =SUMPRODUCT(O3:O25,'II_Plantejar Ració'!$E$4:$E$26) -> 0.2831371728 | P26: =SUMPRODUCT(P3:P25,'II_Plantejar Ració'!$E$4:$E$26) -> 0.01029591644 | Q26: =SUMPRODUCT(Q3:Q25,'II_Plantejar Ració'!$E$4:$E$26) -> 0.01149785783 | R26: =SUMPRODUCT(R3:R25,'II_Plantejar Ració'!$E$4:$E$26) -> 5.101386374 | S26: =SUMPRODUCT(S3:S25,'II_Plantejar Ració'!$E$4:$E$26) -> 20.2398038 | T26: =SUMPRODUCT(T3:T25,'II_Plantejar Ració'!$E$4:$E$26) -> 28.06057316 | U26: =SUMPRODUCT(U3:U25,'II_Plantejar Ració'!$E$4:$E$26) -> 1.998001058e-08 | V26: =SUMPRODUCT(V3:V25,'II_Plantejar Ració'!$E$4:$E$26) -> 0.02299991067 | W26: =SUMPRODUCT(W3:W25,'II_Plantejar Ració'!$E$4:$E$26) -> 136347.1765 | X26: =SUMPRODUCT(X3:X25,'II_Plantejar Ració'!$E$4:$E$26) -> 134.9373185 | Y26: =SUMPRODUCT(Y3:Y25,'II_Plantejar Ració'!$E$4:$E$26) -> 61.22696525 | Z26: =SUMPRODUCT(Z3:Z25,'II_Plantejar Ració'!$E$4:$E$26) -> 275.7806413 | AA26: =SUMPRODUCT(AA3:AA25,'II_Plantejar Ració'!$E$4:$E$26) -> 601.0979502 | AB26: =SUMPRODUCT(AB3:AB25,'II_Plantejar Ració'!$E$4:$E$26) -> 144.1401607 | AC26: =SUMPRODUCT(AC3:AC25,'II_Plantejar Ració'!$E$4:$E$26)/SUM('II_Plantejar Ració'!$E$4:$E$26) -> 0.6825176678 | AD26: =SUMPRODUCT(AD3:AD25,'II_Plantejar Ració'!$E$4:$E$26) -> 2470.489244 | AE26: =SUMPRODUCT(AE3:AE25,'II_Plantejar Ració'!$E$4:$E$26) -> 291.6205154 | AF26: =SUMPRODUCT(AF3:AF25,'II_Plantejar Ració'!$E$4:$E$26) -> 844.7393632 | AG26: =SUMPRODUCT(AG3:AG25,'II_Plantejar Ració'!$E$4:$E$26) -> 1812.541502 | AH26: =SUMPRODUCT(AH3:AH25,'II_Plantejar Ració'!$E$4:$E$26) -> 1019.313378 | AI26: =SUMPRODUCT(AI3:AI25,'II_Plantejar Ració'!$E$4:$E$26) -> 121.7488907 | AJ26: =SUMPRODUCT(AJ3:AJ25,'II_Plantejar Ració'!$E$4:$E$26) -> 225.6875529 | AK26: =SUMPRODUCT(AK3:AK25,'II_Plantejar Ració'!$E$4:$E$26) -> 0.3450179983 | AL26: =SUMPRODUCT(AL3:AL25,'II_Plantejar Ració'!$E$4:$E$26)/SUM('II_Plantejar Ració'!$E$4:$E$26) -> 0.6446164812 | AM26: =SUMPRODUCT(AM3:AM25,'II_Plantejar Ració'!$E$4:$E$26) -> 2156.06485
E27: =SUMPRODUCT(E8:E19,'II_Plantejar Ració'!$E$9:$E$20) -> 0 | F27: =SUMPRODUCT(F8:F19,'II_Plantejar Ració'!$E$9:$E$20) -> 1.962233788
E28: =E26-E27 -> 2.804168186 | F28: =F26-F27 -> 2.122628514
E29: =IF(I_Necessitats!B14="UFL",1,2) -> 1
B37: =CàlculsEV!B3 -> FENC Civada Inici espigat
B38: =CàlculsEV!B4 -> ENSITJAT prefenificat Alfals rebrots floració
B39: =CàlculsEV!B5 -> 
B40: =CàlculsEV!B6 -> 
B41: =CàlculsEV!B7 -> 
B42: =CàlculsEV!B8 -> 
B43: =CàlculsEV!B9 -> Ordi gra
B44: =CàlculsEV!B10 -> Colza, turtó
B45: =CàlculsEV!B11 -> Blat de moro gra
B46: =CàlculsEV!B12 -> Soja tortó 44
B47: =CàlculsEV!B13 -> Mandioca
B48: =CàlculsEV!B14 -> Ordi bagàs cerveseria sec
B49: =CàlculsEV!B15 -> Cotó, gra
B50: =CàlculsEV!B16 -> Llevat cerveseria
B51: =CàlculsEV!B17 -> Grassa vegetal, mantega de porc (tots els tipus)
B52: =CàlculsEV!B18 -> Urea
B53: =CàlculsEV!B19 -> 

Sheet Apunts Cria
B1: Cria vedells per engreix o reposició (Guia)
B2: Del naixement al deslletament (6 mesos lleteres; 8,5 mesos altres). Objectiu: pes final de la cria tres vegades el pes al naixement. Després de la cria: mascles a engreix, femelles a reposició (creixement de 700 a 1.000 g/dia, potencial elevat creixement esquelet i muscles). Objectiu reposició: si part precoç, creixement alt. Objectiu engreix: si edat sacrifici precoç, creixement alt. Increment volum rumen: més farratges que concentrats. Concentrat ric en energia assegura un augment de pes alt després del deslletament. La cria té tres períodes: 1) Calostre; 2) Fins deslletament; 3) Postdeslletament
B8: 1.- Període CALOSTRE. Exemple o recomanació INRA | H8: Dades per a la cria | L8: 2.- Període fins deslletament
H9: Pes naixement, kg | J9: 45 | L9: Setmana deslletament 8ena. Objectiu: doblar pes en néixer
H10: Temps, mesos | J10: 4
H11: Pes final, kg | J11: =J9*3 -> 135
H12: Creixement mitjà, g/dia | J12: =1000*(J11-J9)/(J10*30.5) -> 737.704918 | L12: Pes objectiu al deslletament | O12: =2*J9 -> 90 | P12: kg
L13: Tipus aliment | M13: Composició % | P13: Subm. al dia | Q13: Tª ºC
M14: Llet entera | N14: Aliment alletament | O14: Aigua
B15: 3.- Període postdeslletament | L15: A | M15: 100 | N15: 0 | O15: 0 | P15: 2 | Q15: 40
B16: Temps, dies | C16: =J10*30.5-8*7 -> 66 | D16: =C16/30.5 -> 2.163934426 | E16: mesos | L16: B | M16: 0 | N16: 13 | O16: 87 | P16: 2 | Q16: 40
B17: Càlcul aportacions diàries de farratges i concentrat | L17: C | M17: 0 | N17: 22 | O17: 78 | P17: 1 | Q17: 40
B18: Farratges (bona qualitat) | C18: MS % | D18: UE | E18: Composició a la ració | G18: kg MS/dia | H18: Kg fresc/dia | L18: D | M18: 75 | N18: 12.5 | O18: 12.5 | P18: 1 | Q18: 40
B19: Fenc | C19: 0.85 | D19: 1.1 | E19: 0.32 | G19: =(C26-C27)*E19 -> 0.5434905875 | H19: =G19/C19 -> 0.6394006911 | N19: Quantitat (kg) tipus aliment
B20: Ensitjat | C20: 0.33 | D20: 1.2 | E20: =1-E19 -> 0.68 | G20: =(C26-C27)*E20 -> 1.154917498 | H20: =G20/C20 -> 3.499749995 | L20: Setmana | M20: Nº dies | N20: A | O20: B | P20: C | Q20: D
B21: kg mescla concentrats (75 a 80% cereals; resta turtós) 1,16 UFL i 120 PDI | H21: =IF(J12<901,1.5,3) -> 1.5 | L21: 1 | M21: 1 | N21: 6 | O21: 6 | P21: 3 | Q21: 3
B22: CI inici període, UE | C22: =0.039*(J11-8*7*J12/1000)^0.9 -> 2.320504243 | D22: 0,039 x (Pes final - Δ kg/dia x 7 x 8)0,9 | L22: 2 | M22: 7 | N22: 8 | O22: 8 | P22: 4 | Q22: 4
B23: CI, final període, UE | C23: =0.039*J11^0.9 -> 3.223777046 | D23: 0,039 x Pes final0,9 | L23: 3* | M23: 7 | N23: 8 | O23: 8 | P23: 5 | Q23: 5
B24: CI, mitjana | C24: =AVERAGE(C22:C23) -> 2.772140644 | L24: 4 | M24: 7 | N24: 8 | O24: 8 | P24: 5 | Q24: 5
B25: UE mescla farratgera | C25: =D19*E19+D20*E20 -> 1.168 | L25: 5 | M25: 7 | N25: 8 | O25: 8 | P25: 5 | Q25: 5
B26: Kg MS farratgera | C26: =C24/C25 -> 2.373408086 | D26: kg MS mescla farratgera = CI/(UE mescla farratgera) | L26: 6 | M26: 7 | N26: 8 | O26: 8 | P26: 5 | Q26: 5
C27: =0.45*H21 -> 0.675 | D27: kg MS mescla farratgera que deixa de menjar si incoporem concentrat Sg= 0,45 | L27: 7 | M27: 7 | N27: 6 | O27: 6 | P27: 3.5 | Q27: 3.5
B28: FENC, kg | C28: =H19 -> 0.6394006911 | L28: 8 | M28: 7 | N28: 3 | O28: 3 | P28: 2 | Q28: 2
B29: ENSITJAT, kg | C29: =H20 -> 3.499749995 | L29: kg llet entera | N29: =SUMPRODUCT(M21:M28,N21:N28) -> 349 | O29: 0 | P29: 0 | Q29: =SUMPRODUCT(M21:M28,Q21:Q28)*M18/100 -> 157.125
B30: MESCLA CONCENTRAT, kg | C30: =H21 -> 1.5 | L30: kg aliment alletament | N30: 0 | O30: =N29*N16/100 -> 45.37 | P30: =SUMPRODUCT(M21:M28,P21:P28)*N17/100 -> 46.09 | Q30: =SUMPRODUCT(M21:M28,Q21:Q28)*N18/100 -> 26.1875
L31: * A la tercera setmana s'introdueix fenc ben conservat

Sheet NR
AM1: ok | AN1: ok
B2: Pvinicial | C2: Pvfinal | D2: d1 | E2: d2 | F2: CDinicial %PV | G2: CDfinal %Pv | H2: Lipinicial %Pvbuit | I2: Lipfinal %Pvbuit | J2: recEN_mant Kcla/KgPV0,75 | K2: Pv adult | L2: Pv t | M2: GMD | N2: Pes v t | O2: ΔPv t | P2: Pvbuit inicial | Q2: Pv buit final | R2: c1 | S2: c0 | T2: Pvbuit t1 | U2: Pv buit t2 | V2: Dif pv buit | W2: Lip_corp_i | X2: Lip_corp_t | Y2: b1 | Z2: b0 | AA2: Lip_corp t1 | AB2: Lip_corp t2 | AC2: Dif Lip_corp | AD2: Mdel t1 | AE2: Mdel t2 | AF2: Dif Mdel | AG2: Prot_corp_t1 | AH2: Prot_corp_t2 | AI2: Dif Prot_corp | AJ2: q | AK2: km | AL2: EN mant | AM2: NecEN_guany | AN2: Ep | AO2: kpf | AP2: kf | AQ2: kmf | AR2: NecUFL_mant | AS2: NecUFLguany | AT2: EfPDI | AU2: BPR máx | AV2: BPR mín | AW2: MOND g/kg MS | AX2: CI MSI | AY2: NecPDI_PEF | AZ2: NecPDI_Uendo | BA2: NecPDI_epidèrmiques | BB2: NecPDI_guany | BC2: Itip | BD2: c | BE2: UFV | BF2: PDI | BG2: CI UEB | BH2: Pabs | BI2: Caabs | BJ2: Mgabs | BK2: Cl | BL2: K | BM2: Na | BN2: S | BO2: Co | BP2: Cu | BQ2: Mo | BR2: Iode | BS2: Fe | BT2: Mn | BU2: Se | BV2: Zn | BW2: Vit A | BX2: Vit D | BY2: Vit E
A3: 1.-Vedells Engreix (finalització) gran format tardans (Xarolés, p.e) | B3: 300 | C3: 800 | D3: 1.1028 | E3: 0.0037 | F3: 16 | G3: 11 | H3: 8 | I3: 16 | J3: 102 | K3: =B3*EXP(D3) -> 903.7768428 | L3: =IF(I_Necessitats!$C$6=1,I_Necessitats!$C$10,"") ->  | M3: =IF(I_Necessitats!$C$6=1,I_Necessitats!$C$11,"") ->  | N3: =IF(L3="","",L3+M3) ->  | O3: =IF(L3="","",E3*L3*LN(K3/L3)) ->  | P3: =B3*(100-F3)/100 -> 252 | Q3: =C3*(100-G3)/100 -> 712 | R3: =LN(Q3/P3)/LN(C3/B3) -> 1.05894968 | S3: =EXP(LN(P3)-R3*LN(B3)) -> 0.6001416667 | T3: =IF(L3="","",S3*L3^R3) ->  | U3: =IF(M3="","",S3*N3^R3) ->  | V3: =IF(L3="","",U3-T3) ->  | W3: =H3*P3/100 -> 20.16 | X3: =I3*Q3/100 -> 113.92 | Y3: =LN(X3/W3)/LN(Q3/P3) -> 1.667354706 | Z3: =EXP(LN(X3)-Y3*LN(Q3)) -> 0.001997579328 | AA3: =IF(L3="","",Z3*T3^Y3) ->  | AB3: =IF(M3="","",Z3*U3^Y3) ->  | AC3: =IF(L3="","",AB3-AA3) ->  | AD3: =IF(L3="","",T3-AA3) ->  | AE3: =IF(L3="","",U3-AB3) ->  | AF3: =IF(L3="","",AE3-AD3) ->  | AG3: =IF(L3="","",0.1436*AD3^1.0723) ->  | AH3: =IF(L3="","",0.1436*AE3^1.0723) ->  | AI3: =IF(L3="","",AH3-AG3) ->  | AJ3: =IF(M3="","",IF(M3>1,0.6,0.62-0.262*EXP(-3.175*M3))) ->  | AK3: =IF(L3="","",0.287*AJ3+0.554) ->  | AL3: =IF(L3="","",(J3*L3^0.75)/1000) ->  | AM3: =IF(L3="","",5.48*AI3+9.39*AC3) ->  | AN3: =IF(L3="","",5.48*AI3/(5.48*AI3+9.39*AC3)) ->  | AO3: =IF(L3="","",0.35+0.25*(1-AN3)^2) ->  | AP3: =IF(L3="","",0.78*0.6+0.006) ->  | AQ3: =IF(L3="","",(AK3*AP3*1.5)/(AP3+0.5*AK3)) ->  | AR3: =IF(L3="","",AM3/AO3*AQ3/1.76) ->  | AS3: =IF(L3="","",AL3/AK3*AQ3/1.76) ->  | AT3: =IF(L3="","",IF(L3<550,0.64,0.47)) ->  | AU3: =IF(L3="","",IF(L3<550,-2,-6.6)) ->  | AV3: =IF(L3="","",IF(L3<550,-7.5,-13.3)) ->  | AW3: =IF(L3="","",IF(L3<550,262,240)) ->  | AX3: =IF(L3="","",95*L3^0.75/1000) ->  | AY3: =IF(AX3="","",(AX3*(0.5*(5.7+0.074*AW3)))/AT3) ->  | AZ3: =IF(L3="","",0.312*L3) ->  | BA3: =IF(L3="","",(0.2*L3^0.6)/AT3) ->  | BB3: =IF(AI3="","",AI3*1000/AT3) ->  | BC3: 0.284 | BD3: 0.54 | BE3: =IF(L3="","",AR3+AS3) ->  | BF3: =IF(L3="","",AY3+AZ3+BA3+BB3) ->  | BG3: =IF(L3="","",BC3*L3^BD3) ->  | BH3: =IF(L3="","",0.025*L3+(((1.2+((4.655*K3^0.22)*(L3^-0.22)))*M3))) ->  | BI3: =IF(L3="","",0.015*L3+(((9.83*(K3^0.22)*(L3^-0.22)*M3)))) ->  | BJ3: =IF(L3="","",(0.003*L3+0.45*M3)) ->  | BK3: =IF(L3="","",(0.003*L3+0.45*M3)/0.16) ->  | BL3: =IF(L3="","",((2.6*AX3)+0.038*L3+1.6*M3)/0.9) ->  | BM3: =IF(L3="","",(0.015*L3+1.4*M3)/0.99) ->  | BN3: =IF(BP3="","",2*AX3) ->  | BO3: =IF(BP3="","",0.11*AX3) ->  | BP3: =IF(L3="","",(0.0071*L3+1.15*M3)/0.04) ->  | BR3: =IF(L3="","",0.006*L3) ->  | BS3: =IF(M3="","",34*M3/0.1) ->  | BT3: =IF(M3="","",(0.002*L3+0.7*M3)/0.0075) ->  | BU3: =IF(BP3="","",0.3*AX3) ->  | BV3: =IF(L3="","",(0.045*L3+24*M3)/0.15) ->  | BW3: =IF(L3="","",110*L3) ->  | BX3: =IF(L3="","",16*L3) ->  | BY3: =IF(L3="","",2.6*L3) -> 
A4: 2.-Vedells Engreix (finalització) tardans (Limousins, p.e) | B4: 330 | C4: 730 | D4: 1.1028 | E4: 0.0037 | F4: 15 | G4: 10.8 | H4: 8 | I4: 15 | J4: 98 | K4: =B4*EXP(D4) -> 994.1545271 | L4: =IF(I_Necessitats!$C$6=2,I_Necessitats!$C$10,"") ->  | M4: =IF(I_Necessitats!$C$6=2,I_Necessitats!$C$11,"") ->  | N4: =IF(L4="","",L4+M4) ->  | O4: =IF(L4="","",E4*L4*LN(K4/L4)) ->  | P4: =B4*(100-F4)/100 -> 280.5 | Q4: 651.16 | R4: =LN(Q4/P4)/LN(C4/B4) -> 1.060746481 | S4: =EXP(LN(P4)-R4*LN(B4)) -> 0.5976240488 | T4: =IF(L4="","",S4*L4^R4) ->  | U4: =IF(M4="","",S4*N4^R4) ->  | V4: =IF(L4="","",U4-T4) ->  | W4: =H4*P4/100 -> 22.44 | X4: 97.674 | Y4: =LN(X4/W4)/LN(Q4/P4) -> 1.746405066 | Z4: =EXP(LN(X4)-Y4*LN(Q4)) -> 0.001191078802 | AA4: =IF(L4="","",Z4*T4^Y4) ->  | AB4: =IF(M4="","",Z4*U4^Y4) ->  | AC4: =IF(L4="","",AB4-AA4) ->  | AD4: =IF(L4="","",T4-AA4) ->  | AE4: =IF(L4="","",U4-AB4) ->  | AF4: =IF(L4="","",AE4-AD4) ->  | AG4: =IF(L4="","",0.1436*AD4^1.0723) ->  | AH4: =IF(L4="","",0.1436*AE4^1.0723) ->  | AI4: =IF(L4="","",AH4-AG4) ->  | AJ4: =IF(M4="","",IF(M4>1,0.6,0.62-0.262*EXP(-3.175*M4))) ->  | AK4: =IF(L4="","",0.287*AJ4+0.554) ->  | AL4: =IF(L4="","",(J4*L4^0.75)/1000) ->  | AM4: =IF(L4="","",5.48*AI4+9.39*AC4) ->  | AN4: =IF(L4="","",5.48*AI4/(5.48*AI4+9.39*AC4)) ->  | AO4: =IF(L4="","",0.35+0.25*(1-AN4)^2) ->  | AP4: =IF(L4="","",0.78*0.6+0.006) ->  | AQ4: =IF(L4="","",(AK4*AP4*1.5)/(AP4+0.5*AK4)) ->  | AR4: =IF(L4="","",AM4/AO4*AQ4/1.76) ->  | AS4: =IF(L4="","",AL4/AK4*AQ4/1.76) ->  | AT4: =IF(L4="","",IF(L4<550,0.64,0.47)) ->  | AU4: =IF(L4="","",IF(L4<550,-2,-6.6)) ->  | AV4: =IF(L4="","",IF(L4<550,-7.5,-13.3)) ->  | AW4: =IF(L4="","",IF(L4<550,262,240)) ->  | AY4: =IF(AX4="","",(AX4*(0.5*(5.7+0.074*AW4)))/AT4) ->  | BC4: 0.22 | BD4: 0.57 | BH4: =IF(L4="","",0.025*L4+(((1.2+((4.655*K4^0.22)*(L4^-0.22))))*M4)) ->  | BJ4: =IF(L4="","",(0.003*L4+0.45*M4)/0.16) ->  | BN4: =IF(BP4="","",2*AX4) ->  | BO4: =IF(BP4="","",0.11*AX4) ->  | BU4: =IF(BP4="","",0.3*AX4) -> 
A5: 3.-Vedells Engreix (finalització) precocitat mitjana (vaques rústiques) | B5: 250 | C5: 680 | D5: 1.4078 | E5: 0.003763 | F5: 18 | G5: 12 | H5: 10 | I5: 19.5 | J5: 100 | K5: 1021.738552 | L5: =IF(I_Necessitats!$C$6=3,I_Necessitats!$C$10,"") ->  | M5: =IF(I_Necessitats!$C$6=3,I_Necessitats!$C$11,"") ->  | P5: 205 | Q5: 598.4 | R5: 1.070572974 | S5: 0.5553721475 | W5: 20.5 | X5: 116.688 | Y5: 1.623411638 | Z5: 0.003620976775 | BC5: 0.233 | BD5: 0.575 | BH5: =IF(L5="","",0.025*L5+(((1.2+((4.655*K5^0.22)*(L5^-0.22)))*M5))) -> 
A6: 4.-Vedells Engreix (finalització) precocitat alta (vaques lleteres) | B6: 200 | C6: 550 | D6: 1.4078 | E6: 0.003763 | F6: 20 | G6: 12 | H6: 7.5 | I6: 21 | J6: 95 | K6: =B6*EXP(D6) -> 817.3908414 | L6: =IF(I_Necessitats!$C$6=4,I_Necessitats!$C$10,"") ->  | M6: =IF(I_Necessitats!$C$6=4,I_Necessitats!$C$11,"") ->  | P6: =B6*(100-F6)/100 -> 160 | Q6: =C6*(100-G6)/100 -> 484 | R6: =LN(Q6/P6)/LN(C6/B6) -> 1.094217175 | S6: =EXP(LN(P6)-R6*LN(B6)) -> 0.4856165083 | W6: =H6*P6/100 -> 12 | X6: =I6*Q6/100 -> 101.64 | Y6: =LN(X6/W6)/LN(Q6/P6) -> 1.930173548 | Z6: =EXP(LN(X6)-Y6*LN(Q6)) -> 0.0006681087492 | BC6: 0.157 | BD6: 0.652
A7: 5.-Bous tardans Engreix (finalització) de 20 a 33 mesos | B7: 500 | C7: 750 | D7: 0.629 | E7: 0.0035 | F7: 12 | G7: 10 | H7: 11 | I7: 16.5 | J7: 106 | K7: =B7*EXP(D7) -> 937.8669536 | L7: =IF(I_Necessitats!$C$6=5,I_Necessitats!$C$10,"") ->  | M7: =IF(I_Necessitats!$C$6=5,I_Necessitats!$C$11,"") ->  | P7: =B7*(100-F7)/100 -> 440 | Q7: 675 | R7: =LN(Q7/P7)/LN(C7/B7) -> 1.055424882 | S7: =EXP(LN(P7)-R7*LN(B7)) -> 0.6235805742 | W7: =H7*P7/100 -> 48.4 | X7: 111.375 | Y7: =LN(X7/W7)/LN(Q7/P7) -> 1.947485716 | Z7: =EXP(LN(X7)-Y7*LN(Q7)) -> 0.0003441589228 | BC7: 0.2205 | BD7: 0.6
A8: 6.-Bous precoces Engreix (finalització) de 24 a 28 mesos | B8: 540 | C8: 660 | D8: 0.629 | E8: 0.0035 | F8: 13 | G8: 11 | H8: 16 | I8: 21.2 | J8: 108 | K8: 1012.89631 | L8: =IF(I_Necessitats!$C$6=6,I_Necessitats!$C$10,"") ->  | M8: =IF(I_Necessitats!$C$6=6,I_Necessitats!$C$11,"") ->  | P8: 469.8 | Q8: 587.4 | R8: 1.113261436 | S8: 0.4266231445 | W8: 75.168 | X8: 124.5288 | Y8: 2.259685705 | Z8: 6.892064866e-05 | BC8: 0.2425 | BD8: 0.6
A9: 7.-Vedelles tardanes Engreix (finalització) de 15 a 30 mesos | B9: 450 | C9: 700 | D9: 0.6174 | E9: 0.0035 | F9: 13 | G9: 10 | H9: 13 | I9: 18 | J9: 106 | K9: 834.345498 | L9: =IF(I_Necessitats!$C$6=7,I_Necessitats!$C$10,"") ->  | M9: =IF(I_Necessitats!$C$6=7,I_Necessitats!$C$11,"") ->  | P9: 391.5 | Q9: 630 | R9: 1.076729377 | S9: 0.5444273197 | W9: 50.895 | X9: 113.4 | Y9: 1.684042327 | Z9: 0.002189803174 | BC9: 0.2205 | BD9: 0.6
A10: 8.-Vedells tardans Creixement de 8 a 24 mesos | B10: 300 | C10: 540 | D10: 1.114 | E10: 0.0025 | F10: 16 | G10: 12 | H10: 8 | I10: 11 | J10: 94 | K10: 913.9560406 | L10: =IF(I_Necessitats!$C$6=8,I_Necessitats!$C$10,"") ->  | M10: =IF(I_Necessitats!$C$6=8,I_Necessitats!$C$11,"") ->  | P10: 252 | Q10: 475.2 | R10: 1.079144388 | S10: 0.5348463561 | W10: 20.16 | X10: 52.272 | Y10: 1.502050098 | Z10: 0.004982721459 | BC10: 0.03459 | BD10: 0.9
A11: 9.-Vedells precoces Creixement de 6 a 24 mesos | B11: 200 | C11: 520 | D11: 1.5013 | E11: 0.0025 | F11: 20 | G11: 13 | H11: 7.5 | I11: 18 | J11: 94 | K11: 897.503811 | L11: =IF(I_Necessitats!$C$6=9,I_Necessitats!$C$10,"") -> 200 | M11: =IF(I_Necessitats!$C$6=9,I_Necessitats!$C$11,"") -> 0.75065 | N11: 200.75065 | O11: 0.75065 | P11: 160 | Q11: 452.4 | R11: 1.087787001 | S11: 0.5024460831 | T11: 160 | U11: 160.6533453 | V11: 0.6533453437 | W11: 12 | X11: 81.432 | Y11: 1.842288525 | Z11: 0.001043653403 | AA11: 12 | AB11: 12.09042901 | AC11: 0.09042900815 | AD11: 148 | AE11: 148.5629163 | AF11: 0.5629163355 | AG11: 30.50184272 | AH11: 30.62626099 | AI11: 0.1244182703 | AJ11: 0.5958319683 | AK11: 0.7250037749 | AL11: 4.999198143 | AM11: 1.530940508 | AN11: 0.4453550728 | AO11: 0.4269077488 | AP11: 0.474 | AQ11: 0.6162301505 | AR11: 1.255609382 | AS11: 2.414295128 | AT11: 0.64 | AU11: -2 | AV11: -7.5 | AW11: 262 | AX11: 5.052381102 | AY11: 99.0266696 | AZ11: 62.4 | BA11: 7.507027712 | BB11: 194.4035473 | BC11: 0.03115 | BD11: 0.9 | BE11: 3.66990451 | BF11: 363.3372447 | BG11: 3.667626036 | BH11: 10.76259648 | BI11: 13.26673598 | BJ11: 5.861203125 | BK11: 5.861203125 | BL11: 24.37470096 | BM11: 4.091828283 | BN11: 10.1047622 | BO11: 0.5557619212 | BP11: 57.0811875 | BR11: 1.2 | BS11: 255.221 | BT11: 123.394 | BU11: 1.515714331 | BV11: 180.104 | BW11: 22000 | BX11: 3200 | BY11: 520
A12: 10.-Vedelles tardanes Creixement de 8 a 28 mesos | B12: 300 | C12: 600 | D12: 1.114 | E12: 0.0025 | F12: 18 | G12: 13 | H12: 9 | I12: 14 | J12: 94 | K12: 913.9560406 | L12: =IF(I_Necessitats!$C$6=10,I_Necessitats!$C$10,"") ->  | M12: =IF(I_Necessitats!$C$6=10,I_Necessitats!$C$11,"") ->  | P12: 246 | Q12: 522 | R12: 1.085391491 | S12: 0.5038355117 | W12: 22.14 | X12: 73.08 | Y12: 1.587281111 | Z12: 0.003548881384 | BC12: 0.03459 | BD12: 0.9
A13: 11.-Vedelles lleteres Creixement de 6 a 24 mesos | B13: 150 | C13: 600 | D13: 1.5013 | E13: 0.0025 | F13: 20 | G13: 13 | H13: 9 | I13: 21 | J13: 94 | K13: 673.1278582 | L13: =IF(I_Necessitats!$C$6=11,I_Necessitats!$C$10,"") ->  | M13: =IF(I_Necessitats!$C$6=11,I_Necessitats!$C$11,"") ->  | P13: 120 | Q13: 522 | R13: 1.0605077 | S13: 0.5907717353 | W13: 10.8 | X13: 109.62 | Y13: 1.576324161 | Z13: 0.005701119212 | BC13: 0.03915 | BD13: 0.9
A15: =I_Necessitats!C6 -> 9
A16: =IF($A$15=1,A3,IF($A$15=2,A4,IF($A$15=3,A5,IF($A$15=4,A6,IF($A$15=5,A7,IF($A$15=6,A8,IF($A$15=7,A9,IF($A$15=8,A10,IF($A$15=9,A11,IF($A$15=10,A12,A13)))))))))) -> 9.-Vedells precoces Creixement de 6 a 24 mesos | B16: =IF($A$15=1,B3,IF($A$15=2,B4,IF($A$15=3,B5,IF($A$15=4,B6,IF($A$15=5,B7,IF($A$15=6,B8,IF($A$15=7,B9,IF($A$15=8,B10,IF($A$15=9,B11,IF($A$15=10,B12,B13)))))))))) -> 200 | C16: =IF($A$15=1,C3,IF($A$15=2,C4,IF($A$15=3,C5,IF($A$15=4,C6,IF($A$15=5,C7,IF($A$15=6,C8,IF($A$15=7,C9,IF($A$15=8,C10,IF($A$15=9,C11,IF($A$15=10,C12,C13)))))))))) -> 520 | K16: =IF($A$15=1,K3,IF($A$15=2,K4,IF($A$15=3,K5,IF($A$15=4,K6,IF($A$15=5,K7,IF($A$15=6,K8,IF($A$15=7,K9,IF($A$15=8,K10,IF($A$15=9,K11,IF($A$15=10,K12,K13)))))))))) -> 897.503811 | L16: =SUM(L3:L13) -> 200 | M16: =SUM(M3:M13) -> 0.75065 | N16: 200.75065 | O16: 0.75065 | P16: 2976.8 | Q16: 6309.56 | R16: 11.84273258 | S16: 5.965285096 | T16: 160 | U16: 160.6533453 | V16: 0.6533453437 | W16: 314.663 | X16: 1095.6298 | Y16: 19.3665026 | Z16: 0.02535700186 | AA16: =SUM(AA3:AA13) -> 12 | AB16: =SUM(AB3:AB13) -> 12.09042901 | AC16: 0.09042900815 | AD16: 148 | AE16: 148.5629163 | AF16: 0.5629163355 | AG16: 30.50184272 | AH16: 30.62626099 | AI16: 0.1244182703 | AJ16: 0.5958319683 | AK16: 0.7250037749 | AL16: 4.999198143 | AM16: 1.530940508 | AN16: 0.4453550728 | AO16: 0.4269077488 | AP16: 0.474 | AQ16: 0.6162301505 | AR16: 1.255609382 | AS16: 2.414295128 | AT16: 0.64 | AU16: -2 | AV16: -7.5 | AW16: 262 | AX16: 5.052381102 | AY16: 99.0266696 | AZ16: 62.4 | BA16: 7.507027712 | BB16: 194.4035473 | BC16: 1.71698 | BD16: 7.737 | BE16: 3.66990451 | BF16: 363.3372447 | BG16: 3.667626036 | BH16: 10.76259648 | BI16: 13.26673598 | BJ16: 5.861203125 | BK16: 5.861203125 | BL16: 24.37470096 | BM16: 4.091828283 | BN16: 10.1047622 | BO16: 0.5557619212 | BP16: 57.0811875 | BQ16: 0 | BR16: 1.2 | BS16: 255.221 | BT16: 123.394 | BU16: 1.515714331 | BV16: 180.104 | BW16: 22000 | BX16: 3200 | BY16: 520
AZ17: =AZ16/AY16 -> 0.6301332788
E18: Pes inici | F18: =L9 ->  | K18: Pfinal | L18: TempsdiesT | M18: TempsDies
E19: Pes a assolir | F19: 720 | K19: =IF(I_Necessitats!$C$6=1,I_Necessitats!$H$12,"") ->  | L19: =IF(I_Necessitats!$C$6=1,I_Necessitats!$I$13,"") ->  | M19: =IF(I_Necessitats!$C$6=1,I_Necessitats!$H$13,"") -> 
A20: Farratge i complementació | E20: guany | F20: =M9 ->  | K20: =IF(I_Necessitats!$C$6=2,I_Necessitats!$H$12,"") ->  | L20: =IF(I_Necessitats!$C$6=2,I_Necessitats!$I$13,"") ->  | M20: =IF(I_Necessitats!$C$6=2,I_Necessitats!$H$13,"") -> 
A21: Pinso i palla | E21: Temps necessari | F21: =(F19-F18)/F20 ->  | K21: =IF(I_Necessitats!$C$6=3,I_Necessitats!$H$12,"") ->  | L21: =IF(I_Necessitats!$C$6=3,I_Necessitats!$I$13,"") ->  | M21: =IF(I_Necessitats!$C$6=3,I_Necessitats!$H$13,"") -> 
K22: =IF(I_Necessitats!$C$6=4,I_Necessitats!$H$12,"") ->  | L22: =IF(I_Necessitats!$C$6=4,I_Necessitats!$I$13,"") ->  | M22: =IF(I_Necessitats!$C$6=4,I_Necessitats!$H$13,"") -> 
K23: =IF(I_Necessitats!$C$6=5,I_Necessitats!$H$12,"") ->  | L23: =IF(I_Necessitats!$C$6=5,I_Necessitats!$I$13,"") ->  | M23: =IF(I_Necessitats!$C$6=5,I_Necessitats!$H$13,"") -> 
K24: =IF(I_Necessitats!$C$6=6,I_Necessitats!$H$12,"") ->  | L24: =IF(I_Necessitats!$C$6=6,I_Necessitats!$I$13,"") ->  | M24: =IF(I_Necessitats!$C$6=6,I_Necessitats!$H$13,"") -> 
K25: =IF(I_Necessitats!$C$6=7,I_Necessitats!$H$12,"") ->  | L25: =IF(I_Necessitats!$C$6=7,I_Necessitats!$I$13,"") ->  | M25: =IF(I_Necessitats!$C$6=7,I_Necessitats!$H$13,"") -> 
K26: =IF(I_Necessitats!$C$6=8,I_Necessitats!$H$12,"") ->  | L26: =IF(I_Necessitats!$C$6=8,I_Necessitats!$I$13,"") ->  | M26: =IF(I_Necessitats!$C$6=8,I_Necessitats!$H$13,"") -> 
A27: Dades orientatives: Vedelles precoces de 350 a 600 kg; GPV de 0,8 a 1,2 kg; Pv adult = 700 kg | K27: =IF(I_Necessitats!$C$6=9,I_Necessitats!$H$12,"") -> 620 | L27: =IF(I_Necessitats!$C$6=9,I_Necessitats!$I$13,"") -> 559.5150869 | M27: =IF(I_Necessitats!$C$6=9,I_Necessitats!$H$13,"") -> 559.5150869
A28: Dades orientatives: Vedelles carn gran format (Llemosina, Blonda) de 450 a 600 kg; GPV de 0,8 a 1,2 kg.; Pv adult = 850 kg | K28: =IF(I_Necessitats!$C$6=10,I_Necessitats!$H$12,"") ->  | L28: =IF(I_Necessitats!$C$6=10,I_Necessitats!$I$13,"") ->  | M28: =IF(I_Necessitats!$C$6=10,I_Necessitats!$H$13,"") -> 
A29: Dades orientatives: Vedelles carn tardanes (Xarolés i creuaments) de 450 a 600 kg; GPV de 0,8 a 1,2 kg; Pv adult = 850 kg | K29: =IF(I_Necessitats!$C$6=11,I_Necessitats!$H$12,"") ->  | L29: =IF(I_Necessitats!$C$6=11,I_Necessitats!$I$13,"") ->  | M29: =IF(I_Necessitats!$C$6=11,I_Necessitats!$H$13,"") -> 
A30: Dades orientatives: Vedells frisons de 150 a 650 kg; GPV de 0,8 a 1,6 kg. Pv adult = 750 kg
A31: Dades orientatives: Vedells altres lleteres i creuaments Xarolés de 200 a 550 kg; GPV d'1 a 1,6 kg; Pv adult = 750 kg
A32: Dades orientatives: Vedells rústiques de 250 a 800 kg; GPV d'1 a 2 kg; Pv adult = 750 kg | H32: Padult | I32: =450*EXP(I9*(1-EXP(-J9*B9))) -> 2.954698611e+10 | J32: =J9*I32*LN((D9*EXP(I9))/I32) -> -2.064440502e+13 | L32: =(I32-D9)/B9 -> 65659969.14
A33: Dades orientatives: Vedells carn gran format (Llemosina, Blonda) de 300 a 650 kg; GPV d'1 a 2 kg; Pv adult = 900 kg
A34: Dades orientatives: Vedells carn tardanes (Xarolés i creuaments alletants) de 300 a 700 kg; GPV d'1 a 2 kg; Pv adult = 900 kg
A38: Pes naixement 47 kg. Deslletament a 6-8 mesos. Vedell de 15 mesos Pv = 550 kg. Guany mitjà diari 1.400 g. IC (4,6) Rendiment a la canal 65-70%. Rendiment carnisser 79-85% carn. | W38: Charolais
A39: Pes naixement 42 kg. Deslletament a 7-8 mesos. Vedell de 15 mesos Pv = 550 kg Guany mitjà diari 1.500 g. Rendiment canal 70%. Rendiment carnisser 73% carn. | W39: Limousin
A40: Guany mitjà diari 1.500 a 1.700 g. Aprofitament dels vedells en escorxador de 65 fins a 68 %. Aprofitament de carn neta 75% fins a 80 %. | W40: Blonde d’Aquitaine
A41: Guany mitjà diari: 1.400 g. Vedell a 12 mesos (480 kg); Vedell 15-16 mesos (650 kg); Precoç; Edat al primer part 32 mesos; Rendiment canal 66%. | W41: Blanc blau belga
A42: Pes naixement 47 kg. Guany mitjà diari: 1.300 a 1.400 g. Vedell a 12 mesos (510 kg); Rendiments canal de 57 a 60%. | W42: Fleckvieh-Simmenthal
A43: Guany mitjà diari: 1.560 g. IC (4,1) fins 460 kg.; Guany mitjà diari: 1.580 g. IC (4,3) fins 550 kg. Rendiment canal: 60%. Rendiment carnisser 73% carn, 8,8% greix, 18,1% os. Producció de añojo (anoll): cicle curt (14 mesos i 500 kg), cicle mitjà (18 mesos i 600 kg). Guany mitjà diari:1.400 g. IC (4,2) fins 460 kg.; Guany mitjà diari:1.530 g. IC (4,3) fins 550 kg.; Rendiment canal: 64%. Rendiment carnisser 76,9% carn, 7,1% greix, 16% os. | W43: Rubia Gallega
A44: Vedells 9-10 mesos (300-350 kg), Vedells 12 mesos (430 kg). Anoll pesat (550-600 kg). Guany mitjà diari:1.540 g. IC (4,3) fins 300 kg.; Guany mitjà diari:1.670 g. IC (4,1) fins 460 kg.; Guany mitjà diari:1.750 g. IC (4,3) fins 550 kg. | W44: Pirinenca
A45: Vedells “pastero” 5-6 mesos (120-130 kg). | W45: Tudanca
A46: Vedell 12 mesos (323 kg), Guany mitjà diari:1.940 g. IC (3,6) fins 300 kg.; Guany mitjà diari:1.350 g. IC (4,4) fins 460 kg.; Guany mitjà diari:1.590 g. IC (4,6) fins 550 kg. | W46: Avileña-Negra Iberica
A47: Vedell 12 mesos (393 kg). Guany mitjà diari:1.360 g. IC (5,1) fins 300 kg.; Guany mitjà diari:1.510 g. IC (4,8) fins 460 kg.; Guany mitjà diari:1.400 g. IC (5,1) fins 550 kg. | W47: Retinto
A48: Vedell pastero 5-9 mesos (pesos escassos i variables). Guany mitjà diari:1.200 g. IC (4,1) fins 300 kg.; Guany mitjà diari:1.240 g. IC (4,6) fins 460 kg.; Guany mitjà diari:1.280 g. IC (4,9) fins 550 kg. Rendiment canal: 56%. | W48: Morucha
A49: Pes mitjà vaques 600-700 kg, mascles 800-1.100 kg. Pes viu sacrifici 550 kg. Guany mitjà diari:1.850 g. IC (3,9) fins 300 kg.; Guany mitjà diari: 1.690 g. IC (4,1) fins 460 kg.; Guany mitjà diari: 1.740 g. IC (4,2) fins 550 kg. Rendiment canal: 60,9%. Rendiment carnisser: 71,7% carn, 10% greix, 18,3% os. | W49: Bruna, Parda
A51: Frisona-Holstein; Bruna Suïssa; Jersey; Ayshire; Guernsey; Menorquina; Shorthorn; Tarentaise; Normanda; Montbeliarda; Abondance; Danesa vermella; Bretona; Simental o Fleckvieh, etc.
A52: Blonde d’Aquitaine; Charolaise; Blanc blau belga; Limousin; Hereford; Aberdeen angus; Shorthorn Durhan; Piamontesa; Rubia Gallega; Asturiana de los valles; Retinta; Bruna; etc. | W52: Llet
A53: Brunes, Aubrac, Salers, Retinta, Avilenya, Morucha, Cachena, Tudanca, Asturiana de los montes, etc. | W53: Carn
W54: Rústiques
A56: Fase d’engreix (del deslletament endavant): En el punt d’inflexió el creixement és màxim, el pes a la pubertat és 2/3 del pes adult. Si l’alimentació és adequada les vedelles de raça lletera arriben a la pubertat entre 9 i 11 mesos, i els vedells entre 11 i 12 mesos. A les races de carn el període és més llarg.

Sheet I_Necessitats
A1: Producció de carn: Engreix i finalització | J1: Guies
J2: Característiques d'algunes races | O2: Races de llet, carn, rústiques
J3: 7 | O3: 1
J4: =IF(J3=1,NR!A38,IF(J3=2,NR!A39,IF(J3=3,NR!A40,IF(J3=4,NR!A41,IF(J3=5,NR!A42,IF(J3=6,NR!A43,IF(J3=7,NR!A44,IF(J3=8,NR!A45,IF(J3=9,NR!A46,IF(J3=10,NR!A47,IF(J3=11,NR!A48,IF(J3=12,NR!A49)))))))))))) -> Vedells 9-10 mesos (300-350 kg), Vedells 12 mesos (430 kg). Anoll pesat (550-600 kg). Guany mitjà diari:1.540 g. IC (4,3) fins 300 kg.; Guany mitjà diari:1.670 g. IC (4,1) fins 460 kg.; Guany mitjà diari:1.750 g. IC (4,3) fins 550 kg. | O4: =IF(O3=1,NR!A51,IF(O3=2,NR!A52,IF(O3=3,NR!A53))) -> Frisona-Holstein; Bruna Suïssa; Jersey; Ayshire; Guernsey; Menorquina; Shorthorn; Tarentaise; Normanda; Montbeliarda; Abondance; Danesa vermella; Bretona; Simental o Fleckvieh, etc.
B5: Elegir tipus de boví
C6: 9
B7: Dades orientatives
B8: Pes viu inicial a partir de | D8: =NR!B16 -> 200
B9: Pes viu final fins a | D9: =NR!C16 -> 520 | E9: Pes adult | F9: =NR!K16 -> 897.503811 | H9: GMD,Kg/dia objectiu | I9: 0.8
B10: Pes inici | C10: 200 | D10: Per al pes inicial: GMD, kg/dia al voltant de... | G10: =NR!O16 -> 0.75065 | H10: 2 | I10: =IF(I9>1.15*G10,"GMD excessiu",IF(I9<0.85*G10,"GMD tan baix?","GMD normal")) -> GMD normal
B11: GMD, kg/dia | C11: =IF(H10=1,I9,G10) -> 0.75065 | D11: Període racionament, temps en dies | G11: =IF(H10=1,H13,I13) -> 559.5150869 | H11: Pes final | J11: Fase d’engreix (del deslletament endavant): En el punt d’inflexió el creixement és màxim, el pes a la pubertat és 2/3 del pes adult. Si l’alimentació és adequada les vedelles de raça lletera arriben a la pubertat entre 9 i 11 mesos, i els vedells entre 11 i 12 mesos. A les races de carn el període és més llarg.
B12: =IF(C11>1.15*G10,"GMD excessiu",IF(C11<0.85*G10,"GMD tan baix?","GMD normal")) -> GMD normal | D12: Possible pes final assolit | F12: =H12 -> 620 | H12: 620 | I12: teòric
B13: Necessitats Totals | E13: Període racionament, temps en dies | H13: =(H12-C10)/C11 -> 559.5150869 | I13: =(H12-C10)/G10 -> 559.5150869
B14: =IF(C6>=8,"UFL","UFV") -> UFL | C14: =NR!BE16 -> 3.66990451 | E14: Dades per al racionament
B15: PDI | C15: =NR!BF16 -> 363.3372447 | E15: Elegir modalitat racionament
B16: Ca | C16: =NR!BI16 -> 13.26673598 | E16: 2
B17: P | C17: =NR!BH16 -> 10.76259648
B18: CI, UEB | C18: =NR!BG16 -> 3.667626036 | E18: Tolerància càlculs (%) | G18: 12.5 | I18: =E16 -> 2
B19: Mg | C19: =NR!BJ16 -> 5.861203125 | E19: Mínim % MS Farratge | G19: 40
B20: Cl | C20: =NR!BK16 -> 5.861203125 | E20: =IF(C10<D8,"Pes inferior a tipus de boví",IF(C10>0.9*F9,"Valor superior a pes adult","")) -> 
B21: K | C21: =NR!BL16 -> 24.37470096 | E21: =IF(H12<=C10,"Ha de ser superior al pes inicial",IF(H12>=0.9*F9,"Valor massa alt","")) -> 
B22: Na | C22: =NR!BM16 -> 4.091828283
B23: S | C23: =NR!BN16 -> 10.1047622
B24: Co | C24: =NR!BO16 -> 0.5557619212
B25: Cu | C25: =NR!BP16 -> 57.0811875
B26: Mo | C26: =NR!BQ16 -> 0
B27: Iode | C27: =NR!BR16 -> 1.2
B28: Fe | C28: =NR!BS16 -> 255.221
B29: Mn | C29: =NR!BT16 -> 123.394
B30: Se | C30: =NR!BU16 -> 1.515714331
B31: Zn | C31: =NR!BV16 -> 180.104
B32: Vit A | C32: =NR!BW16 -> 22000
B33: Vit D | C33: =NR!BX16 -> 3200
B34: Vit E | C34: =NR!BY16 -> 520
B35: Gproteïnes/EfPDI | C35: =NR!AI16*1000/NR!AT16 -> 194.4035473
B36: CI, MSI | C36: =NR!AX16 -> 5.052381102
B37: EfPDI | C37: =NR!AT16 -> 0.64
B38: BPR màxim | C38: =NR!AU16 -> -2
B39: BPR mínim | C39: =NR!AV16 -> -7.5

Sheet II_Plantejar Ració
A1: Selecció d'ingredients, límits d'incorporació i preu | H1: Full no protegit. Només s'han de seleccionar els ingredients, i per a cadascun d'ells afegir les quantitats mínimes i màximes, que mai no han de ser negatives, i el preu de cadacun d'ells
B2: Límits d'incorporació | D2: Càlculs | G2: Preu Ingredient
B3: kg mín | C3: kg màx | D3: kg fresc | E3: kg MS | F3: % fresc ració | G3: €/kg fresc | H3: kg fresc total
B4: 0 | C4: 100 | D4: 2.998607076 | E4: =D4*CàlculsEV!D3/100 -> 2.698746369 | F4: =(D4*100)/$K$4 -> 65.99620559 | G4: 0.04 | K4: =SUM(D4:D26) -> 4.543605272 | L4: =K22 -> 89.67346675 | M4: %MS
A5: 0 | B5: 0 | C5: 5 | D5: 0 | E5: =D5*CàlculsEV!D4/100 -> 0 | F5: 0 | G5: 0.03 | H5: kg farratge fresc total | K5: =SUM(D4:D8) -> 2.998607076
A6: 0 | B6: 0 | C6: 0 | D6: 0 | E6: =D6*CàlculsEV!D5/100 -> 0 | F6: 0 | G6: 0.03 | H6: kg concentrat fresc total | K6: =K4-K5 -> 1.544998195
A7: 0 | B7: 0 | C7: 0 | D7: 0 | E7: =D7*CàlculsEV!D6/100 -> 0 | F7: 0 | G7: 0.01 | H7: Aportacions totals UE | K7: =SUMPRODUCT($E$4:$E$8,CàlculsEV!E3:E7) -> 2.804168186 | L7: =L23 -> 0.8477713071 | M7: UE/kg MS
A8: 0 | B8: 0 | C8: 0 | D8: 0 | E8: =D8*CàlculsEV!D7/100 -> 0 | F8: 0 | G8: 0.03 | H8: kg MS total | K8: =SUM(E4:E26) -> 4.074408363 | L8: =I_Necessitats!C36 -> 5.052381102 | M8: =K8-L8 -> -0.9779727394 | N8: <--- Diferència MSI real i calculada
A9: 0 | B9: 0 | C9: 0 | D9: 0 | E9: =D9*CàlculsEV!D8/100 -> 0 | F9: 0 | G9: 0.21 | H9: kg MS total farratge | K9: =SUM(E4:E8) -> 2.698746369 | M9: =I_Necessitats!E18 -> Tolerància càlculs (%) | O9: =I_Necessitats!G18 -> 12.5
A10: 0 | B10: 0 | C10: 4 | D10: 1.318942716 | E10: =D10*CàlculsEV!D9/100 -> 1.150118048 | F10: 29.02854974 | G10: 0.21 | H10: kg MS total concentrat | K10: =K8-K9 -> 1.375661994 | L10: =K7/K9 -> 1.039063255 | M10: =I_Necessitats!E19 -> Mínim % MS Farratge | O10: =I_Necessitats!G19 -> 40
A11: 0 | B11: 0 | C11: 6 | D11: -3.997096632e-05 | E11: =D11*CàlculsEV!D10/100 -> -3.597386969e-05 | F11: -0.0008797191641 | G11: 0.3 | H11: % MS farratge a la ració | K11: =(K9*100)/K8 -> 66.23652144
A12: 0 | B12: 0 | C12: 8 | D12: 0 | E12: =D12*CàlculsEV!D11/100 -> 0 | F12: 0 | G12: 0.643 | H12: PCO | K12: =(K10)/K8 -> 0.3376347856 | L12: Auxiliar càlcul Sg | M12: A | N12: =IF(N17-0.85<0,1,1-(1.26*(N17-0.85)^0.84)) -> 0.6890285385
A13: 0 | B13: 0 | C13: 2 | D13: 2.746006488e-07 | E13: =D13*CàlculsEV!D12/100 -> 2.394517658e-07 | F13: 6.043673084e-06 | G13: 0.15 | H13: Relació UF/UEB farratge | K13: =SUMPRODUCT($E$4:$E$8,CàlculsEV!$F$3:$F$7)/SUMPRODUCT($E$4:$E$8,CàlculsEV!$E$3:$E$7) -> 0.7569547805 | M13: D | N13: =(1/N17)-N12 -> 0.2733767773
A14: 0 | B14: 0 | C14: 0 | D14: 0 | E14: =D14*CàlculsEV!D13/100 -> 0 | F14: 0 | G14: 0.12 | H14: Taxa de substitució global | K14: =(0.86/N17)*(1-N15*EXP(-N14/(1-K12))) -> 0.6255618357 | M14: B | N14: =N17/(2.04*N13) -> 1.863160206
A15: 0 | B15: 0 | C15: 0 | D15: 0 | E15: =D15*CàlculsEV!D14/100 -> 0 | F15: 0 | G15: 0.312 | M15: K | N15: =N17*N13*EXP(N14/0.7) -> 4.067679665
A16: 0 | B16: 0 | C16: 0 | D16: 0 | E16: =D16*CàlculsEV!D15/100 -> 0 | F16: 0 | G16: 0.215 | H16: VALOR FUNCIÓ OBJECTIU €/ració | K16: =SUMPRODUCT(D4:D26,G4:G26) -> 0.4258620654 | M16: UEc | N16: =0.86*(1-N15*EXP(-N14/(1-K12))) -> 0.6499983172 | O16: =N16/N17 -> 0.6255618357
A17: 0 | B17: 0 | C17: 0.5 | D17: 4.279166228e-05 | E17: =D17*CàlculsEV!D16/100 -> 3.992462091e-05 | F17: 0.0009417997323 | G17: 0.146 | H17: COST PART FARRATGERA | K17: =SUMPRODUCT(D4:D8,G4:G8) -> 0.119944283 | M17: UEf | N17: =K7/K9 -> 1.039063255
B18: 0 | C18: 0.2 | D18: 0.2 | E18: =D18*CàlculsEV!D17/100 -> 0.1998 | F18: 4.401790826 | G18: 0.136 | H18: COST PART CONCENTRADA | K18: =K16-K17 -> 0.3059177824
A19: 0 | B19: 0 | C19: 0.3 | D19: 1.068254981e-08 | E19: =D19*CàlculsEV!D18/100 -> 1.057572431e-08 | F19: 2.351117488e-07 | G19: 0.438 | H19: Paràmetres nutritius, límits, valors finals
A20: 0 | B20: 0 | C20: 0 | D20: 0 | E20: =D20*CàlculsEV!D19/100 -> 0 | F20: 0 | G20: 0.6 | H20: Paràmetres | I20: Mínim | J20: Màxim | K20: Valor | L20: Valor/kg MS o % | M20: En alguns ingredients de la ració no hi consten els nutrients ...
A21: 0 | B21: 0 | C21: 1 | D21: 3.733071591e-09 | E21: =D21*CàlculsEV!D20/100 -> 3.733071591e-09 | F21: 8.216100141e-08 | G21: 0.29 | H21: MSI (kg/dia) | I21: 0 | J21: 999 | K21: =K8 -> 4.074408363
A22: 0 | B22: 0 | C22: 1 | D22: 0.0260523696 | E22: =D22*CàlculsEV!D21/100 -> 0.02573974116 | F22: 0.5733854074 | G22: 0.067 | H22: %MS ració | I22: 0 | J22: 999 | K22: =SUMPRODUCT(F4:F26,CàlculsEV!D3:D25)/100 -> 89.67346675
B23: 0 | C23: 0 | D23: 0 | E23: =D23*CàlculsEV!D22/100 -> 0 | F23: 0 | G23: 0.285 | H23: UEB | I23: =((100-$O$9)/100)*I_Necessitats!C18 -> 3.209172782 | J23: =I_Necessitats!C18 -> 3.667626036 | K23: =CàlculsEV!E26+0.86*(1-'II_Plantejar Ració'!N15*EXP(-'II_Plantejar Ració'!N14/(1-'II_Plantejar Ració'!K12))) -> 3.454166503 | L23: =K23/$K$8 -> 0.8477713071 | M23: =CàlculsEV!AN$21 -> 
B24: 0 | C24: 0 | D24: 0 | E24: =D24*CàlculsEV!D23/100 -> 0 | F24: 0 | G24: 0.01 | H24: =I_Necessitats!B14 -> UFL | I24: =IF(I_Necessitats!E16=2,((100-$O$9)/100)*I_Necessitats!C14,((100-$O$9)/100)*I_Necessitats!C14*B47/B48) -> 3.211166447 | J24: =IF(I_Necessitats!E16=2,((100+$O$9)/100)*I_Necessitats!C14,((100+$O$9)/100)*I_Necessitats!C14*B47/B48) -> 4.128642574 | K24: =CàlculsEV!F26 -> 4.084862302 | L24: =K24/$K$8 -> 1.002565756 | M24: =CàlculsEV!AO$21 -> 
B25: 0 | C25: 0 | D25: 0 | E25: =D25*CàlculsEV!D24/100 -> 0 | F25: 0 | G25: 0.01 | H25: PDI | I25: =((100-$O$9)/100)*(G32+(G33+M8*0.5*(5.7+0.074*B57)/B79)*G34/B79) -> 264.0229842 | J25: =((100+$O$9)/100)*(G32+(G33+M8*0.5*(5.7+0.074*B57)/B79)*G34/B79) -> 339.4581225 | K25: =CàlculsEV!G26 -> 313.3377465 | L25: =K25/$K$8 -> 76.90386397 | M25: =CàlculsEV!AP$21 -> 
B26: 0 | C26: 0 | D26: 0 | E26: =D26*CàlculsEV!D25/100 -> 0 | F26: 0 | G26: 0.01 | H26: BPR | I26: =ABS(I_Necessitats!C39) -> 7.5 | J26: =ABS(I_Necessitats!C38) -> 2 | K26: =CàlculsEV!H26 -> 30.54371661 | L26: =ABS(K26/K21) -> 7.496478972 | M26: =CàlculsEV!AQ$21 -> 
F27: =SUM(F4:F26) -> 100 | H27: NI | I27: =CàlculsEV!I26 -> 2.033941966 | J27: =CàlculsEV!I26 -> 2.033941966 | K27: =K21*100/I_Necessitats!C10 -> 2.037204181 | L27: =K27 -> 2.037204181 | M27: =CàlculsEV!AR$21 -> 
A28: Efecte NI | E28: =I_Necessitats!B7 -> Dades orientatives | H28: Ca | I28: =((100-$O$9)/100)*I_Necessitats!C16 -> 11.60839399 | J28: =(100+$O$9)/100*I_Necessitats!C16 -> 14.92507798 | K28: =CàlculsEV!J26 -> 14.00125056 | L28: =K28/$K$8 -> 3.436388627 | M28: =CàlculsEV!AS$21 -> 
A29: NIref | B29: =J27 -> 2.033941966 | F29: CI | G29: =I_Necessitats!C18 -> 3.667626036 | H29: P | I29: =((100-$O$9)/100)*I_Necessitats!C17 -> 9.417271921 | J29: =(100+$O$9)/100*I_Necessitats!C17 -> 12.10792104 | K29: =CàlculsEV!K26 -> 9.417271913 | L29: 2.311322547 | M29: =CàlculsEV!AT21 -> 
A30: NI % PV | B30: =K27 -> 2.037204181 | F30: UFV | G30: =I_Necessitats!C14 -> 3.66990451 | H30: Mg | I30: =((100-$O$9)/100)*I_Necessitats!C19 -> 5.128552734 | J30: =(100+$O$9)/100*I_Necessitats!C19 -> 6.593853516 | K30: =CàlculsEV!L26 -> 1.623763389 | L30: 0.3985274043 | M30: =CàlculsEV!AU21 -> Mg
A31: dMOm | B31: =76-2.74*B30 -> 70.41806054 | F31: PDI | G31: =I_Necessitats!C15 -> 363.3372447 | H31: K | I31: =((100-$O$9)/100)*I_Necessitats!C21 -> 21.32786334 | J31: =(100+$O$9)/100*I_Necessitats!C21 -> 27.42153858 | K31: =CàlculsEV!M26 -> 6.413601591 | L31: 1.574118503 | M31: =CàlculsEV!AV21 -> K
A32: Δ dMO_NI | B32: =-2.74*(B30-B29)/100 -> -8.938469749e-05 | F32: NecPDI_PUendo | G32: =B68 -> 62.4 | H32: Na | I32: =((100-$O$9)/100)*I_Necessitats!C22 -> 3.580349747 | J32: =(100+$O$9)/100*I_Necessitats!C22 -> 4.603306818 | K32: =CàlculsEV!N26 -> 0.4231066164 | L32: 0.1038449215 | M32: =CàlculsEV!AW21 -> Na
A33: Efecte %Co (PCO) | E33: PDI - NecPDI_PUendo | G33: =G31-G32 -> 300.9372447 | H33: S | I33: =((100-$O$9)/100)*I_Necessitats!C23 -> 8.841666929 | J33: =(100+$O$9)/100*I_Necessitats!C23 -> 11.36785748 | K33: =CàlculsEV!O26 -> 0.2831371728 | L33: 0.06949160407 | M33: =CàlculsEV!AX21 -> S
A34: PCO | B34: =K12 -> 0.3376347856 | F34: EfPDI | G34: =I_Necessitats!C37 -> 0.64 | H34: Cl | I34: =((100-$O$9)/100)*I_Necessitats!C20 -> 5.128552734 | J34: =(100+$O$9)/100*I_Necessitats!C20 -> 6.593853516 | K34: =CàlculsEV!P26 -> 0.01029591644 | L34: 0.002526972146 | M34: =CàlculsEV!AY21 -> Cl
A35: Δ dMO_CO | B35: =IF(B34=0,0,(-6.5/(1+(0.35/B34)^3))/100) -> -0.03074824188 | H35: Co | I35: =((100-$O$9)/100)*I_Necessitats!C24 -> 0.4862916811 | J35: =(100+$O$9)/100*I_Necessitats!C24 -> 0.6252321614 | K35: =CàlculsEV!Q26 -> 0.01149785783 | L35: 0.002821969918 | M35: =CàlculsEV!AZ21 -> Co
A36: Efecte balanç proteic rumen | H36: Cu | I36: =((100-$O$9)/100)*I_Necessitats!C25 -> 49.94603906 | J36: =(100+$O$9)/100*I_Necessitats!C25 -> 64.21633594 | K36: =CàlculsEV!R26 -> 5.101386374 | L36: 1.252055739 | M36: =CàlculsEV!AN$21 -> 
A37: MNT ingerida | B37: =L45 -> 147.5301189 | H37: Mn | I37: =((100-$O$9)/100)*I_Necessitats!C29 -> 107.96975 | J37: =(100+$O$9)/100*I_Necessitats!C29 -> 138.81825 | K37: =CàlculsEV!S26 -> 20.2398038 | L37: 4.96754424 | M37: =CàlculsEV!BB21 -> Mn
A38: MOrD o MOF | B38: =L57 -> 529.1724976 | H38: Zn | I38: =((100-$O$9)/100)*I_Necessitats!C31 -> 157.591 | J38: =(100+$O$9)/100*I_Necessitats!C27 -> 1.35 | K38: =CàlculsEV!T26 -> 28.06057316 | L38: 6.887030131 | M38: =CàlculsEV!BC21 -> Zn
A39: MNrD_rumen (MNF) fermentades rumen | B39: =B37*L56 -> 95.10034611 | H39: Iode | I39: =((100-$O$9)/100)*I_Necessitats!C27 -> 1.05 | J39: =(100+$O$9)/100*I_Necessitats!C27 -> 1.35 | K39: =CàlculsEV!U26 -> 1.998001058e-08 | L39: 4.903782046e-09 | M39: =CàlculsEV!BD21 -> Iode
A40: MN alim_duodè (PIA) no ferm a rumen | B40: =B37*(1-L56) -> 52.42977279 | H40: Se | I40: =((100-$O$9)/100)*I_Necessitats!C30 -> 1.326250039 | J40: =(100+$O$9)/100*I_Necessitats!C30 -> 1.705178622 | K40: =CàlculsEV!V26 -> 0.02299991067 | L40: 0.005644969434 | M40: =CàlculsEV!BE21 -> Se
A41: MN microbiana intestí ( 41,7 + 71,9 x 10^-3 x MOrD_rumen + 8,40 x PCO) | B41: =41.7+(B38*71.9*10^-3)+6.4*B34 -> 81.90836521 | H41: Vit A | I41: =((100-$O$9)/100)*I_Necessitats!C32 -> 19250 | J41: =(100+$O$9)/100*I_Necessitats!C32 -> 24750 | K41: =CàlculsEV!W26 -> 136347.1765 | L41: 33464.28839 | M41: =CàlculsEV!BF21 -> Vit A
A42: MN endogena | B42: 14.2 | H42: Vit D | I42: =((100-$O$9)/100)*I_Necessitats!C33 -> 2800 | J42: =(100+$O$9)/100*I_Necessitats!C33 -> 3600 | K42: =CàlculsEV!X26 -> 134.9373185 | L42: 33.11826072 | M42: =CàlculsEV!BG21 -> Vit D
A43: BPR ració | B43: =B37-(B40+B41+B42) -> -1.008019096 | H43: Vit E | I43: =((100-$O$9)/100)*I_Necessitats!C34 -> 455 | J43: =(100+$O$9)/100*I_Necessitats!C34 -> 585 | K43: =CàlculsEV!Y26 -> 61.22696525 | L43: 15.0272039 | M43: =CàlculsEV!BH21 -> Vit E
A44: BPR ref | B44: =-L26 -> -7.496478972 | H44: AG | K44: =CàlculsEV!Z26 -> 275.7806413 | L44: 67.68605813 | M44: =CàlculsEV!BI21 -> AG
A45: Δ dMO_BPR | B45: =(0.06*(B43-B44))/100 -> 0.003893075925 | H45: MNT_PB | K45: =CàlculsEV!AA26 -> 601.0979502 | L45: 147.5301189 | M45: =CàlculsEV!BJ21 -> 
H46: PDIA | K46: =CàlculsEV!AB26 -> 144.1401607 | L46: 35.37695486 | M46: =CàlculsEV!BK21 -> 
A47: ∑ dMO x PMO | B47: =K47 -> 0.6825176678 | H47: dMO | J47: =B48 -> 0.6555731172 | K47: =CàlculsEV!AC26 -> 0.6825176678 | L47: =J47 -> 0.6555731172 | M47: =CàlculsEV!BL21 -> 
A48: Efecte total interaccions | B48: =B47+(B32+B35+B45) -> 0.6555731172 | H48: MOD | K48: =CàlculsEV!AD26 -> 2470.489244 | L48: =K48/$K$8 -> 606.3430623 | M48: =CàlculsEV!BM21 -> 
H49: EE | K49: =CàlculsEV!AE26 -> 291.6205154 | L49: =K49/($K$8*10) -> 7.157370825 | M49: =CàlculsEV!BN21 -> 
A50: MODc_rumen (MOF corregida) | B50: =B38*B48/B47 -> 508.2817341 | H50: FB | K50: =CàlculsEV!AF26 -> 844.7393632 | L50: =K50/$K$8 -> 207.3281046 | M50: =CàlculsEV!BO21 -> 
A51: PANDI | B51: =0.193*B40 -> 10.11894615 | H51: NDF | K51: =CàlculsEV!AG26 -> 1812.541502 | L51: 444.8600486 | M51: =CàlculsEV!BP21 -> 
A52: dr | B52: =(B40-B51)/B40 -> 0.807 | H52: ADF | K52: =CàlculsEV!AH26 -> 1019.313378 | L52: 250.1745744 | M52: =CàlculsEV!BQ21 -> 
A53: PDIA | B53: =B37*(1-L56)*B52 -> 42.31082664 | H53: Lignina | K53: =CàlculsEV!AI26 -> 121.7488907 | L53: 29.88136677 | M53: =CàlculsEV!BR21 -> 
A54: MN microbianes_duodè (corregida) | B54: =40.7+75.6*10^-3*B50+8.07*B34-0.0114*B43 -> 81.86230324 | H54: cendres | K54: =CàlculsEV!AJ26 -> 225.6875529 | L54: 55.39149069 | M54: =CàlculsEV!BS21 -> 
A55: PDI = PDIA + MN microbianes_duodè x 0,8 x 0,8 | B55: =B53+B54*0.8*0.8 -> 94.70270071 | H55: Mo | K55: =CàlculsEV!AK26 -> 0.3450179983 | L55: 0.08467928779 | M55: =CàlculsEV!BT21 -> Mo
A56: flux de N duodenal endogen (Actualització) | H56: DT_N | K56: =CàlculsEV!AL26 -> 0.6446164812 | L56: =K56 -> 0.6446164812 | M56: =CàlculsEV!BU21 -> DT_N
A57: MOND = MO - MODc_rumen | B57: =L58-B50 -> 416.6235837 | H57: MOF | K57: =CàlculsEV!AM26 -> 2156.06485 | L57: =K57/K21 -> 529.1724976 | M57: =CàlculsEV!BV21 -> MOF
A58: N duodenal endo, g MNT/kg MSI = 14,2 x MSI | B58: =14.2*K8 -> 57.85659875 | H58: MO | K58: =K48/L47 -> 3768.441962 | L58: =K58/K21 -> 924.9053178 | M58: =CàlculsEV!AN$21 -> 
A59: PÈRDUES FECALS ENDÒGENES (PEF) i (NEC_PDI Actualització) | H59: PDI/UFL | I59: =((100-$O$9)/100)*I_Necessitats!C15/I_Necessitats!C14 -> 86.62898127 | J59: =((100+$O$9)/100)*I_Necessitats!C15/I_Necessitats!C14 -> 111.3801188 | K59: =K25/K24 -> 76.70705237 | L59: =K59 -> 76.70705237
A60: MNND = 0,163 x MN alim_duodè + 0,20 x MN mic_duodè + 5,7 + 0,074 x MOND | B60: =0.163*B40+0.2*B54+5.7+0.074*B57 -> 61.4486588
A61: PEF (proteïnes endogenes fecals) = 5,7 + 0,074 x MOND | B61: =5.7+0.074*B57 -> 36.53014519
A62: Nec PDI_PEF = MSI x [0,5 x (5,7 + 0,074 x MOND)]/EfPDI | B62: =K8*(0.5*(5.7+0.074*B57))/B79 -> 100.542474
A63: PÈRDUES ENDÒGENES URINÀRIES i (NEC_PDI Actualització)
A64: log10 NU (N urinari g/dia) log10 NU = - 1,17 + 1,00 x log10 Pv | B64: =-1.17+LOG10(I_Necessitats!C10) -> 1.131029996
A65: NU | B65: =10^B64 -> 13.52165951
A66: NUNP microbià/NU = 0,3325/(1 + (NU/0,203)) | B66: =0.3325/(1+(B65/0.203)) -> 0.004917972643
A67: NU endo | B67: =0.05*I_Necessitats!C10 -> 10
A68: Nec PDI_NU endo | B68: =0.312*I_Necessitats!C10 -> 62.4
A69: PÈRDUES NITROGENADES PER L’EPIDERMIS i (Nec_PDI Actualització)
A70: P epidèrmiques (0,2 g PDI/kg Pv0,60) | B70: =0.2*I_Necessitats!C10^0.6 -> 4.804497736
A71: Nec PDI_P epidèrmiques = 0,2 x Pv0,60/EffPDI | B71: =B70/B79 -> 6.490999916
A72: Nec_PDI no productives | B72: =B62+B68+B71 -> 169.433474
A73: Eficàcia de la síntesi proteica en lactació
A74: PDI disponible = PDI ingerida - Nec PDI_NU endògenes | B74: =K25-B68 -> 250.9377465
A75: EfPDI = ∑ despeses prot/PDI disponible = 0,67xEXP(-0,007x(PDI-100) | B75: =0.67*EXP(-0.007*(L25-100)) -> 0.7875687469
A76: Bal EN | B76: =K24-G30 -> 0.4149577916
A77: bal Proteïna | B77: =K25-G31 -> -49.99949816
A78: Guany Proteïna | B78: =I_Necessitats!C35 -> 194.4035473
A79: EfPDI = (PEF + P epid + MP + bal Prote)/(PDI disponible) | B79: =IF(B76>0,(B61+B70+B78+B77)/B74,(B61+B70+B78)/(B74+ABS(B77))) -> 0.7401783697
A81: NUcal=0,79xBPR/6,25 + (PDI/6,25) x (1-E·fPDI)+Nuendo + NUNPmic + 0,47X bal N | B81: =(0.79*B43/6.25+(K25/6.25)*(1-B79)+B67/6.25+(B41/6.25)+0.47*ABS(B77)/6.25)/I_Necessitats!C10 -> 0.1568189747

Sheet III_Resultat Ració
A1: Explotació: | B1: Data | C1: =TODAY() -> 2026-06-11 | D1: Pes inicial | E1: =I_Necessitats!C10 -> 200 | F1: Temps en dies | H1: =I_Necessitats!G11 -> 559.5150869
A2: =NR!A16 -> 9.-Vedells precoces Creixement de 6 a 24 mesos | B2: GPV, kg/dia | C2: =I_Necessitats!C11 -> 0.75065 | D2: Pes final | E2: =I_Necessitats!F12 -> 620
A4: INGREDIENTS | B4: kg/dia | C4: % MF | D4: kg/tona | E4: COST | G4: NUTRIENTS | H4: ANÀLISI
A5: =IF(B5="","",CàlculsEV!B3) -> FENC Civada Inici espigat | B5: =IF('II_Plantejar Ració'!D4=0,"",'II_Plantejar Ració'!D4) -> 2.998607076 | C5: =IF('II_Plantejar Ració'!D4=0,"",'II_Plantejar Ració'!F4) -> 65.99620559 | D5: =IF('II_Plantejar Ració'!D4=0,"",('II_Plantejar Ració'!D4*1000)/('II_Plantejar Ració'!$K$4)) -> 659.9620559 | E5: =IF('II_Plantejar Ració'!D4=0,"",'II_Plantejar Ració'!G4*B5) -> 0.119944283 | G5: MSI (kg/dia) | H5: ='II_Plantejar Ració'!K21 -> 4.074408363 | I5: Kg
A6: =IF(B6="","",CàlculsEV!B4) ->  | B6: =IF('II_Plantejar Ració'!D5=0,"",'II_Plantejar Ració'!D5) ->  | C6: =IF('II_Plantejar Ració'!D5=0,"",'II_Plantejar Ració'!F5) ->  | D6: =IF('II_Plantejar Ració'!D5=0,"",('II_Plantejar Ració'!D5*1000)/('II_Plantejar Ració'!$K$4)) ->  | E6: =IF('II_Plantejar Ració'!D5=0,"",'II_Plantejar Ració'!G5*B6) ->  | G6: %MS ració | H6: ='II_Plantejar Ració'!K22 -> 89.67346675 | I6: =IF('II_Plantejar Ració'!L23=1,"g","%") -> % | J6: Mínim | K6: Valor càlculs | L6: Màxim
A7: =IF(B7="","",CàlculsEV!B5) ->  | B7: =IF('II_Plantejar Ració'!D6=0,"",'II_Plantejar Ració'!D6) ->  | C7: =IF('II_Plantejar Ració'!D6=0,"",'II_Plantejar Ració'!F6) ->  | D7: =IF('II_Plantejar Ració'!D6=0,"",('II_Plantejar Ració'!D6*1000)/('II_Plantejar Ració'!$K$4)) ->  | E7: =IF('II_Plantejar Ració'!D6=0,"",'II_Plantejar Ració'!G6*B7) ->  | G7: UEB | H7: ='II_Plantejar Ració'!L23 -> 0.8477713071 | I7: UEB/kg MS | J7: ='II_Plantejar Ració'!I23 -> 3.209172782 | K7: ='II_Plantejar Ració'!K23 -> 3.454166503 | L7: ='II_Plantejar Ració'!J23 -> 3.667626036 | M7: =IF(K7>=J7,IF(K7<=L7,"OK","Excés"),"Dèficit") -> OK
A8: =IF(B8="","",CàlculsEV!B6) ->  | B8: =IF('II_Plantejar Ració'!D7=0,"",'II_Plantejar Ració'!D7) ->  | C8: =IF('II_Plantejar Ració'!D7=0,"",'II_Plantejar Ració'!F7) ->  | D8: =IF('II_Plantejar Ració'!D7=0,"",('II_Plantejar Ració'!D7*1000)/('II_Plantejar Ració'!$K$4)) ->  | E8: =IF('II_Plantejar Ració'!D7=0,"",'II_Plantejar Ració'!G7*B8) ->  | G8: UFV | H8: ='II_Plantejar Ració'!L24 -> 1.002565756 | I8: UFV/kg MS | J8: ='II_Plantejar Ració'!I24 -> 3.211166447 | K8: ='II_Plantejar Ració'!K24 -> 4.084862302 | L8: ='II_Plantejar Ració'!J24 -> 4.128642574 | M8: =IF(K8>=J8,IF(K8<=L8,"OK","Excés"),"Dèficit") -> OK
A9: =IF(B9="","",CàlculsEV!B7) ->  | B9: =IF('II_Plantejar Ració'!D8=0,"",'II_Plantejar Ració'!D8) ->  | C9: =IF('II_Plantejar Ració'!D8=0,"",'II_Plantejar Ració'!F8) ->  | D9: =IF('II_Plantejar Ració'!D8=0,"",('II_Plantejar Ració'!D8*1000)/('II_Plantejar Ració'!$K$4)) ->  | E9: =IF('II_Plantejar Ració'!D8=0,"",'II_Plantejar Ració'!G8*B9) ->  | G9: PDI | H9: ='II_Plantejar Ració'!L25 -> 76.90386397 | I9: g/kg MS | J9: ='II_Plantejar Ració'!I25 -> 264.0229842 | K9: ='II_Plantejar Ració'!K25 -> 313.3377465 | L9: ='II_Plantejar Ració'!J25 -> 339.4581225 | M9: OK | N9: ='II_Plantejar Ració'!M20 -> En alguns ingredients de la ració no hi consten els nutrients ...
A10: =IF(B10="","",CàlculsEV!B8) ->  | B10: =IF('II_Plantejar Ració'!D9=0,"",'II_Plantejar Ració'!D9) ->  | C10: =IF('II_Plantejar Ració'!D9=0,"",'II_Plantejar Ració'!F9) ->  | D10: =IF('II_Plantejar Ració'!D9=0,"",('II_Plantejar Ració'!D9*1000)/('II_Plantejar Ració'!$K$4)) ->  | E10: =IF('II_Plantejar Ració'!D9=0,"",'II_Plantejar Ració'!G9*B10) ->  | G10: BPR | H10: ='II_Plantejar Ració'!L26 -> 7.496478972 | I10: g PDI/kg MS | J10: ='II_Plantejar Ració'!I26 -> 7.5 | K10: ='II_Plantejar Ració'!L26 -> 7.496478972 | L10: ='II_Plantejar Ració'!J26 -> 2 | M10: =IF(K10<=J10,IF(K10<=L10,"OK","Excés"),"Dèficit") -> Excés
A11: =IF(B11="","",CàlculsEV!B9) -> Ordi gra | B11: =IF('II_Plantejar Ració'!D10=0,"",'II_Plantejar Ració'!D10) -> 1.318942716 | C11: =IF('II_Plantejar Ració'!D10=0,"",'II_Plantejar Ració'!F10) -> 29.02854974 | D11: =IF('II_Plantejar Ració'!D10=0,"",('II_Plantejar Ració'!D10*1000)/('II_Plantejar Ració'!$K$4)) -> 290.2854974 | E11: =IF('II_Plantejar Ració'!D10=0,"",'II_Plantejar Ració'!G10*B11) -> 0.2769779704 | G11: NI | H11: ='II_Plantejar Ració'!L27 -> 2.037204181 | I11: % Pv | J11: ='II_Plantejar Ració'!I27 -> 2.033941966 | K11: ='II_Plantejar Ració'!K27 -> 2.037204181 | L11: ='II_Plantejar Ració'!J27 -> 2.033941966
A12: =IF(B12="","",CàlculsEV!B10) -> Colza, turtó | B12: =IF('II_Plantejar Ració'!D11=0,"",'II_Plantejar Ració'!D11) -> -3.997096632e-05 | C12: =IF('II_Plantejar Ració'!D11=0,"",'II_Plantejar Ració'!F11) -> -0.0008797191641 | D12: =IF('II_Plantejar Ració'!D11=0,"",('II_Plantejar Ració'!D11*1000)/('II_Plantejar Ració'!$K$4)) -> -0.008797191641 | E12: =IF('II_Plantejar Ració'!D11=0,"",'II_Plantejar Ració'!G11*B12) -> -1.19912899e-05 | G12: Ca | H12: ='II_Plantejar Ració'!L28 -> 3.436388627 | I12: g/kg MS | J12: ='II_Plantejar Ració'!I28 -> 11.60839399 | K12: ='II_Plantejar Ració'!K28 -> 14.00125056 | L12: ='II_Plantejar Ració'!J28 -> 14.92507798 | M12: OK | N12: ='II_Plantejar Ració'!M28 -> 
A13: =IF(B13="","",CàlculsEV!B11) ->  | B13: =IF('II_Plantejar Ració'!D12=0,"",'II_Plantejar Ració'!D12) ->  | C13: =IF('II_Plantejar Ració'!D12=0,"",'II_Plantejar Ració'!F12) ->  | D13: =IF('II_Plantejar Ració'!D12=0,"",('II_Plantejar Ració'!D12*1000)/('II_Plantejar Ració'!$K$4)) ->  | E13: =IF('II_Plantejar Ració'!D12=0,"",'II_Plantejar Ració'!G12*B13) ->  | G13: P | H13: ='II_Plantejar Ració'!L29 -> 2.311322547 | I13: g/kg MS | J13: ='II_Plantejar Ració'!I29 -> 9.417271921 | K13: ='II_Plantejar Ració'!K29 -> 9.417271913 | L13: ='II_Plantejar Ració'!J29 -> 12.10792104 | M13: Dèficit | N13: ='II_Plantejar Ració'!M29 -> 
A14: =IF(B14="","",CàlculsEV!B12) -> Soja tortó 44 | B14: =IF('II_Plantejar Ració'!D13=0,"",'II_Plantejar Ració'!D13) -> 2.746006488e-07 | C14: =IF('II_Plantejar Ració'!D13=0,"",'II_Plantejar Ració'!F13) -> 6.043673084e-06 | D14: =IF('II_Plantejar Ració'!D13=0,"",('II_Plantejar Ració'!D13*1000)/('II_Plantejar Ració'!$K$4)) -> 6.043673084e-05 | E14: =IF('II_Plantejar Ració'!D13=0,"",'II_Plantejar Ració'!G13*B14) -> 4.119009732e-08 | G14: Mg | H14: ='II_Plantejar Ració'!L30 -> 0.3985274043 | I14: g/kg MS | N14: ='II_Plantejar Ració'!M30 -> Mg
A15: =IF(B15="","",CàlculsEV!B13) ->  | B15: =IF('II_Plantejar Ració'!D14=0,"",'II_Plantejar Ració'!D14) ->  | C15: =IF('II_Plantejar Ració'!D14=0,"",'II_Plantejar Ració'!F14) ->  | D15: =IF('II_Plantejar Ració'!D14=0,"",('II_Plantejar Ració'!D14*1000)/('II_Plantejar Ració'!$K$4)) ->  | E15: =IF('II_Plantejar Ració'!D14=0,"",'II_Plantejar Ració'!G14*B15) ->  | G15: K | H15: ='II_Plantejar Ració'!L31 -> 1.574118503 | I15: g/kg MS | N15: ='II_Plantejar Ració'!M31 -> K
A16: =IF(B16="","",CàlculsEV!B14) ->  | B16: =IF('II_Plantejar Ració'!D15=0,"",'II_Plantejar Ració'!D15) ->  | C16: =IF('II_Plantejar Ració'!D15=0,"",'II_Plantejar Ració'!F15) ->  | D16: =IF('II_Plantejar Ració'!D15=0,"",('II_Plantejar Ració'!D15*1000)/('II_Plantejar Ració'!$K$4)) ->  | E16: =IF('II_Plantejar Ració'!D15=0,"",'II_Plantejar Ració'!G15*B16) ->  | G16: Na | H16: ='II_Plantejar Ració'!L32 -> 0.1038449215 | I16: g/kg MS | N16: ='II_Plantejar Ració'!M32 -> Na
A17: =IF(B17="","",CàlculsEV!B15) ->  | B17: =IF('II_Plantejar Ració'!D16=0,"",'II_Plantejar Ració'!D16) ->  | C17: =IF('II_Plantejar Ració'!D16=0,"",'II_Plantejar Ració'!F16) ->  | D17: =IF('II_Plantejar Ració'!D16=0,"",('II_Plantejar Ració'!D16*1000)/('II_Plantejar Ració'!$K$4)) ->  | E17: =IF('II_Plantejar Ració'!D16=0,"",'II_Plantejar Ració'!G16*B17) ->  | G17: S | H17: ='II_Plantejar Ració'!L33 -> 0.06949160407 | I17: g/kg MS | N17: ='II_Plantejar Ració'!M33 -> S
A18: =IF(B18="","",CàlculsEV!B16) -> Llevat cerveseria | B18: =IF('II_Plantejar Ració'!D17=0,"",'II_Plantejar Ració'!D17) -> 4.279166228e-05 | C18: =IF('II_Plantejar Ració'!D17=0,"",'II_Plantejar Ració'!F17) -> 0.0009417997323 | D18: =IF('II_Plantejar Ració'!D17=0,"",('II_Plantejar Ració'!D17*1000)/('II_Plantejar Ració'!$K$4)) -> 0.009417997323 | E18: =IF('II_Plantejar Ració'!D17=0,"",'II_Plantejar Ració'!G17*B18) -> 6.247582694e-06 | G18: Cl | H18: ='II_Plantejar Ració'!L34 -> 0.002526972146 | I18: g/kg MS | N18: ='II_Plantejar Ració'!M34 -> Cl
A19: =IF(B19="","",CàlculsEV!B17) -> Grassa vegetal, mantega de porc (tots els tipus) | B19: =IF('II_Plantejar Ració'!D18=0,"",'II_Plantejar Ració'!D18) -> 0.2 | C19: =IF('II_Plantejar Ració'!D18=0,"",'II_Plantejar Ració'!F18) -> 4.401790826 | D19: =IF('II_Plantejar Ració'!D18=0,"",('II_Plantejar Ració'!D18*1000)/('II_Plantejar Ració'!$K$4)) -> 44.01790826 | E19: =IF('II_Plantejar Ració'!D18=0,"",'II_Plantejar Ració'!G18*B19) -> 0.0272 | G19: Co | H19: ='II_Plantejar Ració'!L35 -> 0.002821969918 | I19: mg/kg MS | N19: ='II_Plantejar Ració'!M35 -> Co
A20: =IF(B20="","",CàlculsEV!B18) -> Urea | B20: =IF('II_Plantejar Ració'!D19=0,"",'II_Plantejar Ració'!D19) -> 1.068254981e-08 | C20: =IF('II_Plantejar Ració'!D19=0,"",'II_Plantejar Ració'!F19) -> 2.351117488e-07 | D20: =IF('II_Plantejar Ració'!D19=0,"",('II_Plantejar Ració'!D19*1000)/('II_Plantejar Ració'!$K$4)) -> 2.351117488e-06 | E20: =IF('II_Plantejar Ració'!D19=0,"",'II_Plantejar Ració'!G19*B20) -> 4.678956818e-09 | G20: Cu | H20: ='II_Plantejar Ració'!L36 -> 1.252055739 | I20: mg/kg MS | N20: ='II_Plantejar Ració'!M36 -> 
A21: =IF(B21="","",CàlculsEV!B19) ->  | B21: =IF('II_Plantejar Ració'!D20=0,"",'II_Plantejar Ració'!D20) ->  | C21: =IF('II_Plantejar Ració'!D20=0,"",'II_Plantejar Ració'!F20) ->  | D21: =IF('II_Plantejar Ració'!D20=0,"",('II_Plantejar Ració'!D20*1000)/('II_Plantejar Ració'!$K$4)) ->  | E21: =IF('II_Plantejar Ració'!D20=0,"",'II_Plantejar Ració'!G20*B21) ->  | G21: Mn | H21: ='II_Plantejar Ració'!L37 -> 4.96754424 | I21: mg/kg MS | N21: ='II_Plantejar Ració'!M37 -> Mn
A22: =IF(B22="","",CàlculsEV!B20) -> Carbonat de cobalt | B22: =IF('II_Plantejar Ració'!D21=0,"",'II_Plantejar Ració'!D21) -> 3.733071591e-09 | C22: =IF('II_Plantejar Ració'!D21=0,"",'II_Plantejar Ració'!F21) -> 8.216100141e-08 | D22: =IF('II_Plantejar Ració'!D21=0,"",('II_Plantejar Ració'!D21*1000)/('II_Plantejar Ració'!$K$4)) -> 8.216100141e-07 | E22: =IF('II_Plantejar Ració'!D21=0,"",'II_Plantejar Ració'!G21*B22) -> 1.082590762e-09 | G22: Zn | H22: ='II_Plantejar Ració'!L38 -> 6.887030131 | I22: mg/kg MS | N22: ='II_Plantejar Ració'!M38 -> Zn
A23: =IF(B23="","",CàlculsEV!B21) -> Fosfat bicàlcic | B23: =IF('II_Plantejar Ració'!D22=0,"",'II_Plantejar Ració'!D22) -> 0.0260523696 | C23: =IF('II_Plantejar Ració'!D22=0,"",'II_Plantejar Ració'!F22) -> 0.5733854074 | D23: =IF('II_Plantejar Ració'!D22=0,"",('II_Plantejar Ració'!D22*1000)/('II_Plantejar Ració'!$K$4)) -> 5.733854074 | E23: =IF('II_Plantejar Ració'!D22=0,"",'II_Plantejar Ració'!G22*B23) -> 0.001745508763 | G23: Iode | H23: ='II_Plantejar Ració'!L39 -> 4.903782046e-09 | I23: mg/kg MS | N23: ='II_Plantejar Ració'!M39 -> Iode
A24: =IF(B24="","",CàlculsEV!B22) ->  | B24: =IF('II_Plantejar Ració'!D23=0,"",'II_Plantejar Ració'!D23) ->  | C24: =IF('II_Plantejar Ració'!D23=0,"",'II_Plantejar Ració'!F23) ->  | D24: =IF('II_Plantejar Ració'!D23=0,"",('II_Plantejar Ració'!D23*1000)/('II_Plantejar Ració'!$K$4)) ->  | E24: =IF('II_Plantejar Ració'!D23=0,"",'II_Plantejar Ració'!G23*B24) ->  | G24: Se | H24: ='II_Plantejar Ració'!L40 -> 0.005644969434 | I24: mg/kg MS | N24: ='II_Plantejar Ració'!M40 -> Se
A25: =IF(B25="","",CàlculsEV!B23) ->  | B25: =IF('II_Plantejar Ració'!D24=0,"",'II_Plantejar Ració'!D24) ->  | C25: =IF('II_Plantejar Ració'!D24=0,"",'II_Plantejar Ració'!F24) ->  | D25: =IF('II_Plantejar Ració'!D24=0,"",('II_Plantejar Ració'!D24*1000)/('II_Plantejar Ració'!$K$4)) ->  | E25: =IF('II_Plantejar Ració'!D24=0,"",'II_Plantejar Ració'!G24*B25) ->  | G25: Vit A | H25: ='II_Plantejar Ració'!L41 -> 33464.28839 | I25: UI | N25: ='II_Plantejar Ració'!M41 -> Vit A
A26: =IF(B26="","",CàlculsEV!B24) ->  | B26: =IF('II_Plantejar Ració'!D25=0,"",'II_Plantejar Ració'!D25) ->  | C26: =IF('II_Plantejar Ració'!D25=0,"",'II_Plantejar Ració'!F25) ->  | D26: =IF('II_Plantejar Ració'!D25=0,"",('II_Plantejar Ració'!D25*1000)/('II_Plantejar Ració'!$K$4)) ->  | E26: =IF('II_Plantejar Ració'!D25=0,"",'II_Plantejar Ració'!G25*B26) ->  | G26: Vit D | H26: ='II_Plantejar Ració'!L42 -> 33.11826072 | I26: UI | N26: ='II_Plantejar Ració'!M42 -> Vit D
A27: =IF(B27="","",CàlculsEV!B25) ->  | B27: =IF('II_Plantejar Ració'!D26=0,"",'II_Plantejar Ració'!D26) ->  | C27: =IF('II_Plantejar Ració'!D26=0,"",'II_Plantejar Ració'!F26) ->  | D27: =IF('II_Plantejar Ració'!D26=0,"",('II_Plantejar Ració'!D26*1000)/('II_Plantejar Ració'!$K$4)) ->  | E27: =IF('II_Plantejar Ració'!D26=0,"",'II_Plantejar Ració'!G26*B27) ->  | G27: Vit E | H27: ='II_Plantejar Ració'!L43 -> 15.0272039 | I27: UI | N27: ='II_Plantejar Ració'!M43 -> Vit E
A28: TOTAL | B28: =SUM(B5:B27) -> 4.543605272 | C28: =SUM(C5:C27) -> 100 | D28: =SUM(D5:D27) -> 1000 | E28: ='II_Plantejar Ració'!K16 -> 0.4258620654 | G28: AG | H28: ='II_Plantejar Ració'!L44 -> 67.68605813 | I28: g/kg MS | N28: ='II_Plantejar Ració'!M44 -> AG
G29: MNT_PB | H29: ='II_Plantejar Ració'!L45 -> 147.5301189 | I29: g/kg MS | N29: ='II_Plantejar Ració'!M45 -> 
B30: Fa % | C30: ='II_Plantejar Ració'!K11 -> 66.23652144 | D30: % greix s/MS | E30: ='II_Plantejar Ració'!L49 -> 7.157370825 | G30: PDIA | H30: ='II_Plantejar Ració'!L46 -> 35.37695486 | I30: g/kg MS | N30: ='II_Plantejar Ració'!M46 -> 
B31: Co % | C31: ='II_Plantejar Ració'!K12*100 -> 33.76347856 | G31: dMO | H31: ='II_Plantejar Ració'!L47 -> 0.6555731172 | N31: ='II_Plantejar Ració'!M47 -> 
G32: MOD | H32: ='II_Plantejar Ració'!L48 -> 606.3430623 | I32: g/kg MS | N32: ='II_Plantejar Ració'!M48 -> 
G33: EE | H33: ='II_Plantejar Ració'!L49 -> 7.157370825 | I33: % | K33: ='II_Plantejar Ració'!K49 -> 291.6205154 | N33: ='II_Plantejar Ració'!M49 -> 
G34: FB | H34: ='II_Plantejar Ració'!L50 -> 207.3281046 | I34: g/kg MS | N34: ='II_Plantejar Ració'!M50 -> 
G35: NDF | H35: ='II_Plantejar Ració'!L51 -> 444.8600486 | I35: g/kg MS | N35: ='II_Plantejar Ració'!M51 -> 
G36: ADF | H36: ='II_Plantejar Ració'!L52 -> 250.1745744 | I36: g/kg MS | N36: ='II_Plantejar Ració'!M52 -> 
G37: Lignina | H37: ='II_Plantejar Ració'!L53 -> 29.88136677 | I37: g/kg MS | N37: ='II_Plantejar Ració'!M53 -> 
G38: cendres | H38: ='II_Plantejar Ració'!L54 -> 55.39149069 | I38: g/kg MS | N38: ='II_Plantejar Ració'!M54 -> 
G39: Mo | H39: ='II_Plantejar Ració'!L55 -> 0.08467928779 | I39: mg/kg MS | N39: ='II_Plantejar Ració'!M55 -> Mo
G40: DT_N | H40: ='II_Plantejar Ració'!L56 -> 0.6446164812 | N40: ='II_Plantejar Ració'!M56 -> DT_N
G41: MOF | H41: ='II_Plantejar Ració'!L57 -> 529.1724976 | I41: g/kg MS | N41: ='II_Plantejar Ració'!M57 -> MOF
G42: MO | H42: ='II_Plantejar Ració'!L58 -> 924.9053178 | I42: g/kg MS | N42: ='II_Plantejar Ració'!M58 -> 
G43: PDI/UFL | H43: ='II_Plantejar Ració'!L59 -> 76.70705237 | I43: g | N43: ='II_Plantejar Ració'!M58 -> 
A59: =IF(B59="","",CàlculsEV!B26) ->  | B59: =IF('II_Plantejar Ració'!D27=0,"",'II_Plantejar Ració'!D27) -> 
